Workbook

Sheet Index
A1: Author | B1: Title | C1: Magazine | D1: Year | E1: Volume | F1: Pages | G1: Sheet | H1: Pauls Computer | I1: File Name | J1: Nellers Computer
A2: D. D. Bogard | B2: Ar-39/Ar-40 Dating of Mesosiderites | C2: Geochimica et Cosmochimica Acta | D2: 1990 | E2: 54 | F2: Pages 2549-2564 | G2: A1 | H2: C:\Essays\Geo_Dating\Age_Earth\BOGARD_A.pdf | I2: BOGARD_A.pdf | J2: ="C:\Neller\"&I2 -> C:\Neller\BOGARD_A.pdf | K2: =C2 & ", " & D2 & ", " & E2 & ", " & F2 -> Geochimica et Cosmochimica Acta, 1990, 54, Pages 2549-2564
A3: D. D. Bogard | B3: 39Ar-40Ar Ages of Eucrites | C3: Meteoritics And Planetary Science | D3: 2003 | E3: 38 | F3: Pages 669–710 | G3: A2 | H3: C:\Essays\Geo_Dating\Age_Earth\BOGARD_E.pdf | I3: BOGARD_E.pdf | J3: C:\Neller\BOGARD_E.pdf | K3: Meteoritics And Planetary Science, 2003, 38, Pages 669–710
A4: D. D. Bogard | B4: Ar diffusion properties, Meteorites | C4: Geochimica et Cosmochimica Acta | D4: 1980 | E4: 44 | F4: Pages 1667-1682 | G4: A3 | H4: C:\Essays\Geo_Dating\Age_Earth\BOGARD_B.pdf | I4: BOGARD_B.pdf | J4: C:\Neller\BOGARD_B.pdf | K4: Geochimica et Cosmochimica Acta, 1980, 44, Pages 1667-1682
A5: D. D. Bogard | B5: Argon-39/Argon-40 Ages | C5: Meteoritics And Planetary Science | D5: 2001 | E5: 36 | F5: Pages 107-122 | G5: A4 | H5: C:\Essays\Geo_Dating\Age_Earth\BOGARD_F.pdf | I5: BOGARD_F.pdf | J5: C:\Neller\BOGARD_F.pdf | K5: Meteoritics And Planetary Science, 2001, 36, Pages 107-122
A6: D. D. Bogard | B6: U-Th-Pb dating of Abee E4 Meteorite | C6: Earth and Planetary Science Letters | D6: 1983 | E6: 62 | F6: Pages 132-146 | G6: A5 | H6: C:\Essays\Geo_Dating\Age_Earth\BOGARD_C.pdf | I6: BOGARD_C.pdf | J6: C:\Neller\BOGARD_C.pdf | K6: Earth and Planetary Science Letters, 1983, 62, Pages 132-146
A7: D. G. Pearson | B7: Xenoliths from the Kaapvaal Craton | C7: Earth And Planetary Science Letters | D7: 1995 | E7: 134 | F7: Page 344 | G7: A6 | H7: C:\Essays\Geo_Dating\Age_Earth\Older_Than_Earth_3.pdf | I7: Older_Than_Earth_3.pdf | J7: C:\Neller\Older_Than_Earth_3.pdf | K7: Earth And Planetary Science Letters, 1995, 134, Page 344
A8: D. G. Pearson | B8: Stabilisation of Archaean lithosphere | C8: Earth and Planetary Science Letters | D8: 1995 | E8: 134 | F8: Pages 341-357 | G8: A7 | H8: C:\Essays\Geo_Dating\Age_Earth\Pearson.pdf | I8: Pearson.pdf | J8: C:\Neller\Pearson.pdf | K8: Earth and Planetary Science Letters, 1995, 134, Pages 341-357
A9: D. G. Pearson | B9: The Siberian Craton | C9: Geochimica et Cosmochimica Acta | D9: 1995 | E9: 59 | F9: Page 970 | G9: A8 | H9: C:\Essays\Geo_Dating\Age_Earth\Older_Than_Earth_6.pdf | I9: Older_Than_Earth_6.pdf | J9: C:\Neller\Older_Than_Earth_6.pdf | K9: Geochimica et Cosmochimica Acta, 1995, 59, Page 970
A10: D. S. Burnett | B10: Rb-Sr Ages Of Iron Meteorites | C10: Earth and Planetary Science Letters | D10: 1967 | E10: 2 | F10: Pages 397-408 | G10: A9 | H10: C:\Essays\Geo_Dating\Age_Earth\Meteorite_Burnett.pdf | I10: Meteorite_Burnett.pdf | J10: C:\Neller\Meteorite_Burnett.pdf | K10: Earth and Planetary Science Letters, 1967, 2, Pages 397-408
A11: Ekaterina V. Korochantseva | B11: 40Ar-39Ar Chronology | C11: Meteoritics And Planetary Science | D11: 2009 | E11: 44 | F11: Pages 293-321 | G11: B0 | H11: C:\Essays\Geo_Dating\Age_Earth\Meteorite_JOURDAN.pdf | I11: Meteorite_JOURDAN.pdf | J11: C:\Neller\Meteorite_JOURDAN.pdf | K11: Meteoritics And Planetary Science, 2009, 44, Pages 293-321
A12: Elmar K. Jessberger | B12: 40-Ar / 39-Ar Ages of Allende | C12: Icarus | D12: 1980 | E12: 42 | F12: Pages 380-405 | G12: B1 | H12: C:\Essays\Geo_Dating\Age_Earth\Meteorite_Jessberger.pdf | I12: Meteorite_Jessberger.pdf | J12: C:\Neller\Meteorite_Jessberger.pdf | K12: Icarus, 1980, 42, Pages 380-405
A13: F. Jourdan | B13: The Fossil LL6 Chondrite | C13: Geochemica Et Cosmochemica Acta | D13: 2010 | E13: 74 | F13: Pages 1734-1747 | G13: B2 | H13: C:\Essays\Geo_Dating\Age_Earth\Older_Than_Earth_3.pdf | I13: Older_Than_Earth_3.pdf | J13: C:\Neller\Older_Than_Earth_3.pdf | K13: Geochemica Et Cosmochemica Acta, 2010, 74, Pages 1734-1747
A14: G. H. Riley | B14: Isotopic discrepancies in Black Hills, South Dakota | C14: Geochemica Et Cosmochemica Acta | D14: 1970 | E14: 34 | F14: Pages 713-725 | G14: B3 | H14: C:\Essays\Geo_Dating\Age_Earth\Riley.pdf | I14: Riley.pdf | J14: C:\Neller\Riley.pdf | K14: Geochemica Et Cosmochemica Acta, 1970, 34, Pages 713-725
A15: G. J. Wasserburg | B15: Three Apollo 14 Basalts | C15: Earth And Planetary Science Letters | D15: 1972 | E15: 14 | F15: Pages 281-304. | G15: B4 | H15: C:\Essays\Geo_Dating\Age_Earth\Wasserburg.pdf | I15: Wasserburg.pdf | J15: C:\Neller\Wasserburg.pdf | K15: Earth And Planetary Science Letters, 1972, 14, Pages 281-304.
A16: G. R. Tilton | B16: Isotopic Lead Ages Of Meteorites | C16: Earth and Planetary Science Letters | D16: 1973 | E16: 19 | F16: Pages 321-329 | G16: B5 | H16: C:\Essays\Geo_Dating\Meteorites\Pb-206_14.pdf | I16: Pb-206_14.pdf | J16: C:\Neller\Pb-206_14.pdf | K16: Earth and Planetary Science Letters, 1973, 19, Pages 321-329
A17: Gianfranco Di Vincenzo | B17: 40Ar-39Ar Dating of Pseudo Tachylytes | C17: Earth And Planetary Science Letters | D17: 2004 | E17: 223 | F17: Page 360 | G17: B6 | H17: C:\Essays\Geo_Dating\Age_Earth\Older_Than_Earth_1.pdf | I17: Older_Than_Earth_1.pdf | J17: C:\Neller\Older_Than_Earth_1.pdf | K17: Earth And Planetary Science Letters, 2004, 223, Page 360
A18: H. Maluski | B18: Location of extraneous argon | C18: Chemical Geology | D18: 1990 | E18: 80 | F18: Pages 201-204 | G18: B7 | H18: C:\Essays\Geo_Dating\Age_Earth\Maluski.pdf | I18: Maluski.pdf | J18: C:\Neller\Maluski.pdf | K18: Chemical Geology, 1990, 80, Pages 201-204
A19: Ichiro Kaneoka | B19: Excess Argon In Ultramafic Rocks | C19: Earth and Planetary Science Letters | D19: 1974 | E19: 22 | F19: Pages 145-156 | G19: B8 | H19: C:\Essays\Geo_Dating\Age_Earth\Ages_012.pdf | I19: Ages_012.pdf | J19: C:\Neller\Ages_012.pdf | K19: Earth and Planetary Science Letters, 1974, 22, Pages 145-156
A20: J. L. Birck | B20: Rhenium-187-Osmium-187 in iron meteorites | C20: Meteoritics And Planetary Science | D20: 1998 | E20: 33 | F20: Pages 641-453 | G20: B9 | H20: C:\Essays\Geo_Dating\Age_Earth\Meteorite_Birck.pdf | I20: Meteorite_Birck.pdf | J20: C:\Neller\Meteorite_Birck.pdf | K20: Meteoritics And Planetary Science, 1998, 33, Pages 641-453
A21: Jean Luck | B21: The Study of Molybdenites | C21: Earth and Planetary Science Letters | D21: 1982 | E21: 61 | F21: Page 293 | G21: C0 | H21: C:\Essays\Geo_Dating\Age_Earth\Older_Than_Earth_7.pdf | I21: Older_Than_Earth_7.pdf | J21: C:\Neller\Older_Than_Earth_7.pdf | K21: Earth and Planetary Science Letters, 1982, 61, Page 293
A22: Jennifer A. Grier | B22: Analyses of the chondritic meteorite Orvinio | C22: Meteoritics And Planetary Science | D22: 2004 | E22: 39 | F22: Pages 1475-1493 | G22: C1 | H22: C:\Essays\Geo_Dating\Age_Earth\Meteorite_Grier.pdf | I22: Meteorite_Grier.pdf | J22: C:\Neller\Meteorite_Grier.pdf | K22: Meteoritics And Planetary Science, 2004, 39, Pages 1475-1493
A23: Joachim Kunz | B23: Shocked meteorites: Argon-40-argon-39 | C23: Meteoritics And Planetary Science | D23: 1997 | E23: 32 | F23: Pages 647-670 | G23: C2 | H23: C:\Essays\Geo_Dating\Age_Earth\Meteorite_Kunz.pdf | I23: Meteorite_Kunz.pdf | J23: C:\Neller\Meteorite_Kunz.pdf | K23: Meteoritics And Planetary Science, 1997, 32, Pages 647-670
A24: John G. Spray | B24: The Strangways impact structure | C24: Earth And Planetary Science Letters | D24: 1999 | E24: 172 | F24: Page 207 | G24: C3 | H24: C:\Essays\Geo_Dating\Age_Earth\Older_Than_Earth_4.pdf | I24: Older_Than_Earth_4.pdf | J24: C:\Neller\Older_Than_Earth_4.pdf | K24: Earth And Planetary Science Letters, 1999, 172, Page 207
A25: Katsuhiko Suzuki | B25: Reliable Re-Os Ages | C25: Geochimica et Cosmochimica Acta | D25: 1993 | E25: 57 | F25: Page 1626 | G25: C4 | H25: C:\Essays\Geo_Dating\Age_Earth\Older_Than_Earth_8.pdf | I25: Older_Than_Earth_8.pdf | J25: C:\Neller\Older_Than_Earth_8.pdf | K25: Geochimica et Cosmochimica Acta, 1993, 57, Page 1626
A26: Kyoungwon Min | B26: Single grain (U-Th)/He ages, Acapulco meteorite | C26: Earth and Planetary Science Letters | D26: 2003 | E26: 209 | F26: Pages 323-336 | G26: C5 | H26: C:\Essays\Geo_Dating\Age_Earth\Meteorite_Kyoungwon.pdf | I26: Meteorite_Kyoungwon.pdf | J26: C:\Neller\Meteorite_Kyoungwon.pdf | K26: Earth and Planetary Science Letters, 2003, 209, Pages 323-336
A27: L. Rancitelli | B27: Potassium: Argon Dating of Iron Meteorites | C27: Science | D27: 1967 | E27: 155 | F27: Pages 999-1000 | G27: C6 | H27: C:\Essays\Geo_Dating\Age_Earth\Meteor_Rancitelli.pdf | I27: Meteor_Rancitelli.pdf | J27: C:\Neller\Meteor_Rancitelli.pdf | K27: Science, 1967, 155, Pages 999-1000
A28: M. A. Kendrick | B28: 40Ar-39Ar Quartz Ages | C28: Geochimica et Cosmochimica Acta | D28: 2006 | E28: 70 | F28: Page 2573-2575 | G28: C7 | H28: C:\Essays\Geo_Dating\Age_Earth\Older_Than_Earth_9.pdf | I28: Older_Than_Earth_9.pdf | J28: C:\Neller\Older_Than_Earth_9.pdf | K28: Geochimica et Cosmochimica Acta, 2006, 70, Page 2573-2575
A29: Mitsunobu Tatsumoto | B29: The Allende and Orgueil Chondrites | C29: Geochimica et Cosmochimica Acta | D29: 1976 | E29: 40 | F29: Pages 617-634 | G29: C8 | H29: C:\Essays\Geo_Dating\Age_Earth\Meteorite_Tatsumoto.pdf | I29: Meteorite_Tatsumoto.pdf | J29: C:\Neller\Meteorite_Tatsumoto.pdf | K29: Geochimica et Cosmochimica Acta, 1976, 40, Pages 617-634
A30: Osamu Okano | B30: Antarctic LL-chondrites | C30: Geochemica Et Cosmochemica Acta | D30: 1990 | E30: 54 | F30: Pages 3509-3523 | G30: C9 | H30: C:\Essays\Geo_Dating\Age_Earth\Meteorite_Okano.pdf | I30: Meteorite_Okano.pdf | J30: C:\Neller\Meteorite_Okano.pdf | K30: Geochemica Et Cosmochemica Acta, 1990, 54, Pages 3509-3523
A31: P. McConville | B31: The Peace River shocked M chondrite | C31: Geochimica et Cosmochimica Acta | D31: 1988 | E31: 52 | F31: Pages 2487-2499 | G31: D0 | H31: C:\Essays\Geo_Dating\Age_Earth\Meteorite_MCCONVILL.pdf | I31: Meteorite_MCCONVILL.pdf | J31: C:\Neller\Meteorite_MCCONVILL.pdf | K31: Geochimica et Cosmochimica Acta, 1988, 52, Pages 2487-2499
A32: Paul Pellas | B32: History Of The Acapulco Meteorite | C32: Geochimica et Cosmochimica Acta | D32: 1997 | E32: 61 | F32: Pages 3477-3501 | G32: D1 | H32: C:\Essays\Geo_Dating\Age_Earth\Meteorite_Pellas.pdf | I32: Meteorite_Pellas.pdf | J32: C:\Neller\Meteorite_Pellas.pdf | K32: Geochimica et Cosmochimica Acta, 1997, 61, Pages 3477-3501
A33: R. J. Walker | B33: African Peridotite Xenoliths | C33: Geochimica et Cosmochimica Acta | D33: 1989 | E33: 53 | F33: Page 1591 | G33: D2 | H33: C:\Essays\Geo_Dating\Age_Earth\Older_Than_Earth_5.pdf | I33: Older_Than_Earth_5.pdf | J33: C:\Neller\Older_Than_Earth_5.pdf | K33: Geochimica et Cosmochimica Acta, 1989, 53, Page 1591
A34: R. W. Carlson | B34: North Western Wyoming Craton | C34: Earth And Planetary Science Letters | D34: 1994 | E34: 126 | F34: Page 460 | G34: D3 | H34: C:\Essays\Geo_Dating\Age_Earth\Older_Than_Earth_2.pdf | I34: Older_Than_Earth_2.pdf | J34: ="C:\Neller\"&I34 -> C:\Neller\Older_Than_Earth_2.pdf | K34: =C34 & ", " & D34 & ", " & E34 & ", " & F34 -> Earth And Planetary Science Letters, 1994, 126, Page 460
A35: R. W. Stoenner | B35: Potassium-argon age of iron meteorites | C35: Geochemica Et Cosmochemica Acta | D35: 1958 | E35: 15 | F35: Pages 40-50 | G35: D4 | H35: C:\Essays\Geo_Dating\Age_Earth\Meteorite_Stoenner.pdf | I35: Meteorite_Stoenner.pdf | J35: C:\Neller\Meteorite_Stoenner.pdf | K35: Geochemica Et Cosmochemica Acta, 1958, 15, Pages 40-50
A36: Robert J. Fleck | B36: Age and Origin of Base and Precious Metal | C36: Economic Geology | D36: 2002 | E36: 97 | F36: Pages 35-37 | G36: D5 | H36: C:\Essays\Geo_Dating\Age_Earth\Ages_001.pdf | I36: Ages_001.pdf | J36: C:\Neller\Ages_001.pdf | K36: Economic Geology, 2002, 97, Pages 35-37
A37: Sidney Niemeyer | B37: Ar-39, Ar-40 dating of inclusions from IAB iron meteorites | C37: Geochimica et Cosmochimica Acta | D37: 1979 | E37: 43 | F37: Pages 1829-1840 | G37: D6 | H37: C:\Essays\Geo_Dating\Age_Earth\Meteorite_NIEMEYER.pdf | I37: Meteorite_NIEMEYER.pdf | J37: C:\Neller\Meteorite_NIEMEYER.pdf | K37: Geochimica et Cosmochimica Acta, 1979, 43, Pages 1829-1840
A38: T. Itaya | B38: Pressure Metamorphism in Northeast Japan | C38: Gondwana Research | D38: 2005 | E38: 8 | F38: Page 619 | G38: D7 | H38: C:\Essays\Geo_Dating\Age_Earth\Itaya.pdf | I38: Itaya.pdf | J38: C:\Neller\Itaya.pdf | K38: Gondwana Research, 2005, 8, Page 619
A39: Vidas Stukas | B39: 40 Ar/39ar Dating Of The Long Range Dikes | C39: Earth and Planetary Science Letters | D39: 1974 | E39: 22 | F39: Pages 261 | G39: D8 | H39: C:\Essays\Geo_Dating\Age_Earth\Ages_002.pdf | I39: Ages_002.pdf | J39: C:\Neller\Ages_002.pdf | K39: Earth and Planetary Science Letters, 1974, 22, Pages 261
A40: W. Kaiser | B40: K/Ar Age Determinations of Iron Meteorites | C40: Earth and Planetary Science Letters | D40: 1968 | E40: 4 | F40: Pages 84-88 | G40: D9 | H40: C:\Essays\Geo_Dating\Age_Earth\Meteorite_Kaiser.pdf | I40: Meteorite_Kaiser.pdf | J40: C:\Neller\Meteorite_Kaiser.pdf | K40: Earth and Planetary Science Letters, 1968, 4, Pages 84-88
A41: Yuri Amelin | B41: U-Pb ages of angrites | C41: Geochemica Et Cosmochemica Acta | D41: 2008 | E41: 72 | F41: Pages 221-232 | G41: E0 | H41: C:\Essays\Geo_Dating\Age_Earth\Amelin_D.pdf | I41: Amelin_D.pdf | J41: C:\Neller\Amelin_D.pdf | K41: Geochemica Et Cosmochemica Acta, 2008, 72, Pages 221-232
A43: Yuri Amelin | B43: Natural Radionuclide Mobility | C43: Geochemica Et Cosmochemica Acta | D43: 2008 | E43: 72 | F43: Pages 2067-2089 | G43: E2 | H43: C:\Essays\Geo_Dating\Age_Earth\Amelin_F.pdf | I43: Amelin_F.pdf | J43: C:\Neller\Amelin_F.pdf | K43: Geochemica Et Cosmochemica Acta, 2008, 72, Pages 2067-2089
A44: Yuri Amelin | B44: Pb isotopic age of the Allende chondrules | C44: Meteoritics And Planetary Science | D44: 2007 | E44: 42 | F44: Pages 1321-1335 | G44: E3 | H44: C:\Essays\Geo_Dating\Age_Earth\Amelin_C.pdf | I44: Amelin_C.pdf | J44: C:\Neller\Amelin_C.pdf | K44: Meteoritics And Planetary Science, 2007, 42, Pages 1321-1335
A45: Yuri Amelin | B45: Precise U-Pb dating | C45: Geochemica Et Cosmochemica Acta | D45: 2005 | E45: 69 | F45: Pages 505-518 | G45: E4 | H45: C:\Essays\Geo_Dating\Age_Earth\Amelin_A.pdf | I45: Amelin_A.pdf | J45: C:\Neller\Amelin_A.pdf | K45: Geochemica Et Cosmochemica Acta, 2005, 69, Pages 505-518
A46: Yuri Amelin | B46: Silica Mineral Formation | C46: Geochemica Et Cosmochemica Acta | D46: 2003 | E46: 67 | F46: Pages 1145-1176 | G46: E5 | H46: C:\Essays\Geo_Dating\Age_Earth\Amelin_G.pdf | I46: Amelin_G.pdf | J46: C:\Neller\Amelin_G.pdf | K46: Geochemica Et Cosmochemica Acta, 2003, 67, Pages 1145-1176
A47: Kuo-Lung Wang | B47: Evolution of the South China Block | C47: Geochimica et Cosmochimica Acta | D47: 2009 | E47: 73 | F47: Pages 4531–4557 | G47: E6 | H47: C:\Essays\Geo_Dating\Secrets\TRD_03.pdf | I47: TRD_03.pdf | J47: C:\Neller\TRD_03.pdf | K47: Geochimica et Cosmochimica Acta, 2009, 73, Pages 4531–4557
A48: Jingao Liu | B48: The North China Craton | C48: Dissertation, University of Maryland | D48: 2011 | F48: Pages 1-238 | G48: E7 | H48: C:\Essays\Geo_Dating\Secrets\TRD_04.pdf | I48: TRD_04.pdf | J48: C:\Neller\TRD_04.pdf | K48: Dissertation, University of Maryland, 2011, , Pages 1-238
A49: Joshua Davies | B49: Rhenium/Osmium Geochronology of Oxide Minerals | C49: Dissertation, University of Alberta | D49: 2010 | F49: Pages 1-152 | G49: E8 | H49: C:\Essays\Geo_Dating\Secrets\TRD_05.pdf | I49: TRD_05.pdf | J49: C:\Neller\TRD_05.pdf | K49: Dissertation, University of Alberta, 2010, , Pages 1-152
A50: Zaicong Wang | B50: Rocks From the Earth’s Mantle | C50: Dissertation, University Of Berlin | D50: 2013 | F50: Pages 1-186 | G50: E9 | H50: C:\Essays\Geo_Dating\Secrets\TRD_06.pdf | I50: TRD_06.pdf | J50: C:\Neller\TRD_06.pdf | K50: Dissertation, University Of Berlin, 2013, , Pages 1-186
A51: Yan-Long Zhang | B51: Central Asian Orogenic Belt | C51: Lithos | D51: 2011 | E51: 126 | F51: Pages 233–247 | G51: F1 | H51: C:\Essays\Geo_Dating\Dating\Future_Ages\Future_Ages_13.pdf | I51: Future_Ages_13.pdf | J51: C:\Neller\Future_Ages_13.pdf | K51: Lithos, 2011, 126, Pages 233–247
A52: Jing Sun | B52: Hebi, North China Craton | C52: Chemical Geology | D52: 2012 | E52: 328 | F52: Pages 123–136 | G52: F2 | H52: C:\Essays\Geo_Dating\QUT\Future_Ages_005.pdf | I52: Future_Ages_005.pdf | J52: C:\Neller\Future_Ages_005.pdf | K52: Chemical Geology, 2012, 328, Pages 123–136
A53: Chuan-Zhou Liu | B53: Re–Os Isotopic Results | C53: Chemical Geology | D53: 2012 | E53: 291 | F53: Pages 186–198 | G53: F3 | H53: C:\Essays\Geo_Dating\QUT\Future_Ages_006.pdf | I53: Future_Ages_006.pdf | J53: C:\Neller\Future_Ages_006.pdf | K53: Chemical Geology, 2012, 291, Pages 186–198
A54: Valeria Murgulov | B54: Lithospheric Mantle Evolution | C54: Lithos | D54: 2011 | E54: 125 | F54: Pages 405–422 | G54: F4 | H54: C:\Essays\Geo_Dating\Dating\Impossible\Older_Than_Earth_07.pdf | I54: Older_Than_Earth_07.pdf | J54: C:\Neller\Older_Than_Earth_07.pdf | K54: Lithos, 2011, 125, Pages 405–422
A55: Fu-yuan Wu | B55: The age of Lithospheric Mantle | C55: Chemical Geology | D55: 2003 | E55: 196 | F55: Pages 107–129 | G55: F5 | H55: C:\Essays\Geo_Dating\QUT\Future_Ages_008.pdf | I55: Future_Ages_008.pdf | J55: C:\Neller\Future_Ages_008.pdf | K55: Chemical Geology, 2003, 196, Pages 107–129
K56: , , ,
K57: , , ,
K58: , , ,
K59: , , ,
K60: , , ,
K61: , , ,
K62: , , ,
K63: , , ,
K64: , , ,
K65: , , ,
K66: , , ,
K67: , , ,
K68: , , ,
K69: , , ,

Sheet A1
A1: Sample | B1: Age | C1: Error Level
B2: Billion Years | C2: Billion Years | D2: =(A3) -> 1. Bondoc | H2: Meteorite | I2: Maximum Age | J2: Minimum Age | K2: Average Age | L2: Age Difference | M2: Percentage | N2: Standard Deviation | R2: 13.96 | S2: 13960
A3: 1. Bondoc | D3: Maximum Age | E3: 4.02 | F3: Billion Years | H3: Name | I3: Million Years | J3: Million Years | K3: Million Years | L3: Million Years | M3: Difference | N3: Billion Years | R3: 13.13 | S3: 13130
A4: 300 | B4: 4.02 | C4: 0.09 | D4: Minimum Age | E4: 3.2 | F4: Billion Years | H4: 1. Bondoc | I4: 4020 | J4: 3200 | K4: 3560 | L4: 820 | M4: 1.25625 | N4: 199 | R4: 10.92 | S4: 10920
A5: 400 | B5: 3.2 | C5: 0.42 | D5: Average Age | E5: 3.56 | F5: Billion Years | H5: 2. Budulan Plag. | I5: 4300 | J5: 3180 | K5: 3800 | L5: 1120 | M5: 1.352201258 | N5: 221 | R5: 9.93 | S5: 9930
A6: 500 | B6: 3.4 | C6: 0.33 | D6: Age Difference | E6: =(E3-E4) -> 0.82 | F6: Billion Years | H6: 3. Emery | I6: 9080 | J6: 3310 | K6: 4110 | L6: 5770 | M6: 2.743202417 | N6: 183 | R6: 9.17 | S6: 9170
A7: 600 | B7: 3.49 | C7: 0.36 | D7: Difference | E7: =(E3/E4) -> 1.25625 | F7: Percent | H7: 4. Estherville | I7: 13960 | J7: 3180 | K7: 4530 | L7: 10780 | M7: 4.389937107 | N7: 198 | R7: 9.08 | S7: 9080
A8: 700 | B8: 3.57 | C8: 0.29 | D8: Standard Deviation | E8: 0.199 | F8: Billion Years | H8: 5. Hainholz | I8: 5480 | J8: 1550 | K8: 3530 | L8: 3930 | M8: 3.535483871 | N8: 685 | R8: 8.43 | S8: 8430
A9: 850 | B9: 3.66 | C9: 0.25 | H9: 6. Lowicz | I9: 9930 | J9: 2920 | K9: 4210 | L9: 7010 | M9: 3.400684932 | N9: 263 | R9: 7.92 | S9: 7920
A10: 1000 | B10: 3.53 | C10: 0.26 | H10: 7. Morristown | I10: 7920 | J10: 3600 | K10: 4230 | L10: 4320 | M10: 2.2 | N10: 1240 | R10: 7.67 | S10: 7670
A11: 1150 | B11: 3.62 | C11: 0.06 | H11: 8. Mount Padbury | I11: 5520 | J11: 3490 | K11: 3800 | L11: 2030 | M11: 1.581661891 | N11: 100 | R11: 7.36 | S11: 7360
A12: 1300 | B12: 3.49 | C12: 0.07 | H12: 9. Patwar Basalt | I12: 6140 | J12: 1800 | K12: 3600 | L12: 4340 | M12: 3.411111111 | N12: 466 | R12: 6.23 | S12: 6230
A13: 1500 | B13: 3.63 | C13: 0.07 | H13: 10. Patwar Gabbro | I13: 8430 | J13: 2670 | K13: 3910 | L13: 5760 | M13: 3.157303371 | N13: 224 | R13: 6.14 | S13: 6140
A14: 1600 | B14: 3.55 | C14: 0.07 | H14: 11. Pinnaroo | I14: 3740 | J14: 1770 | K14: 2860 | L14: 1970 | M14: 2.11299435 | N14: 710 | R14: 5.52 | S14: 5520
H15: 12. QUE-86900 | I15: 10920 | J15: 3240 | K15: 4300 | L15: 7680 | M15: 3.37037037 | N15: 200 | R15: 5.48 | S15: 5480
D16: =(A17) -> 2. Budulan Plag. | H16: 13. Simondium | I16: 9170 | J16: 3270 | K16: 4100 | L16: 5900 | M16: 2.804281346 | N16: 151 | R16: 5.32 | S16: 5320
A17: 2. Budulan Plag. | D17: Maximum Age | E17: 4.3 | F17: Billion Years | H17: 14. Vaca Muerta Basalt | I17: 4200 | J17: 3330 | K17: 3720 | L17: 870 | M17: 1.261261261 | N17: 60 | R17: 4.46
A18: 300 | B18: 4.3 | C18: 0.05 | D18: Minimum Age | E18: 3.18 | F18: Billion Years | H18: 15. Vaca Muerta Gabbro | I18: 4410 | J18: 2680 | K18: 3630 | L18: 1730 | M18: 1.645522388 | N18: 280
A19: 500 | B19: 3.6 | C19: 0.07 | D19: Average Age | E19: 3.8 | F19: Billion Years | H19: 16. Veramin | I19: 13130 | J19: 2710 | K19: 4570 | L19: 10420 | M19: 4.84501845 | N19: 2880
A20: 650 | B20: 4.21 | C20: 0.08 | D20: Age Difference | E20: =(E17-E18) -> 1.12 | F20: Billion Years
A21: 750 | B21: 3.76 | C21: 0.05 | D21: Difference | E21: =(E17/E18) -> 1.352201258 | F21: Percent
A22: 850 | B22: 3.62 | C22: 0.05 | D22: Standard Deviation | E22: 0.221 | F22: Billion Years
A23: 950 | B23: 3.63 | C23: 0.06
A24: 1000 | B24: 3.72 | C24: 0.06
A25: 1050 | B25: 3.75 | C25: 0.06
A26: 1100 | B26: 3.8 | C26: 0.07 | D26: D. D. Bogard
A27: 1150 | B27: 3.84 | C27: 0.07 | D27: Geochemica Et Cosmochemica Acta
A28: 1200 | B28: 3.93 | C28: 0.07 | D28: Volume 54, pages 2549-2564
A29: 1300 | B29: 3.95 | C29: 0.07 | D29: Ar-39, Ar-40 Dating of Mesosiderites
A30: 1400 | B30: 3.95 | C30: 0.07 | D30: 1990
A31: 1550 | B31: 3.85 | C31: 0.05
A32: 1600 | B32: 3.18 | C32: 0.06
D34: =(A35) -> 3. Emery
A35: 3. Emery | D35: Maximum Age | E35: 9.08 | F35: Billion Years
A36: 350 | B36: 9.08 | C36: 0.29 | D36: Minimum Age | E36: 3.31 | F36: Billion Years
A37: 500 | B37: 3.94 | C37: 0.05 | D37: Average Age | E37: 4.11 | F37: Billion Years
A38: 625 | B38: 3.31 | C38: 0.03 | D38: Age Difference | E38: =(E35-E36) -> 5.77 | F38: Billion Years
A39: 700 | B39: 3.36 | C39: 0.04 | D39: Difference | E39: =(E35/E36) -> 2.743202417 | F39: Percent
A40: 750 | B40: 3.56 | C40: 0.04 | D40: Standard Deviation | E40: 0.183 | F40: Billion Years
A41: 800 | B41: 3.61 | C41: 0.05
A42: 850 | B42: 3.64 | C42: 0.06
A43: 925 | B43: 3.7 | C43: 0.07
A44: 1000 | B44: 3.78 | C44: 0.08
A45: 1075 | B45: 3.86 | C45: 0.09
A46: 1150 | B46: 3.84 | C46: 0.09
A47: 1225 | B47: 3.89 | C47: 0.13
A48: 1350 | B48: 4.09 | C48: 0.2
A49: 1500 | B49: 4.07 | C49: 0.21
A50: 1600 | B50: 4.01 | C50: 0.2
D52: =(A53) -> 4. Estherville
A53: 4. Estherville | D53: Maximum Age | E53: 13.96 | F53: Billion Years
A54: 330 | B54: 13.96 | C54: 5.63 | D54: Minimum Age | E54: 3.18 | F54: Billion Years
A55: 450 | B55: 7.67 | C55: 0.69 | D55: Average Age | E55: 4.53 | F55: Billion Years
A56: 550 | B56: 3.24 | C56: 0.06 | D56: Age Difference | E56: =(E53-E54) -> 10.78 | F56: Billion Years
A57: 650 | B57: 3.18 | C57: 0.03 | D57: Difference | E57: =(E53/E54) -> 4.389937107 | F57: Percent
A58: 750 | B58: 3.44 | C58: 0.03 | D58: Standard Deviation | E58: 0.198 | F58: Billion Years
A59: 825 | B59: 3.38 | C59: 0.03
A60: 875 | B60: 3.43 | C60: 0.03
A61: 925 | B61: 3.47 | C61: 0.04
A62: 975 | B62: 3.53 | C62: 0.04
A63: 1025 | B63: 3.62 | C63: 0.05
A64: 1075 | B64: 3.67 | C64: 0.05
A65: 1125 | B65: 3.71 | C65: 0.06
A66: 1200 | B66: 3.75 | C66: 0.06
A67: 1300 | B67: 3.86 | C67: 0.11
A68: 1550 | B68: 4.01 | C68: 0.1
D70: =(A71) -> 5. Hainholz
A71: 5. Hainholz | D71: Maximum Age | E71: 5.48 | F71: Billion Years
A72: 300 | B72: 5.48 | C72: 0.12 | D72: Minimum Age | E72: 1.55 | F72: Billion Years
A73: 500 | B73: 2.92 | C73: 0.06 | D73: Average Age | E73: 3.53 | F73: Billion Years
A74: 700 | B74: 3.08 | C74: 0.05 | D74: Age Difference | E74: =(E71-E72) -> 3.93 | F74: Billion Years
A75: 850 | B75: 3.24 | C75: 0.06 | D75: Difference | E75: =(E71/E72) -> 3.535483871 | F75: Percent
A76: 950 | B76: 3.43 | C76: 0.07 | D76: Standard Deviation | E76: 0.685 | F76: Billion Years
A77: 1000 | B77: 1.55 | C77: 0.08
A78: 1050 | B78: 3.62 | C78: 0.09
A79: 1150 | B79: 3.71 | C79: 0.09
A80: 1200 | B80: 3.81 | C80: 0.09
A81: 1100 | B81: 3.84 | C81: 0.1
A82: 1400 | B82: 3.84 | C82: 0.1
A83: 1500 | B83: 3.88 | C83: 0.1
D85: =(A86) -> 6. Lowicz
A86: 6. Lowicz | D86: Maximum Age | E86: 9.93 | F86: Billion Years
A87: 320 | B87: 9.93 | C87: 0.86 | D87: Minimum Age | E87: 2.92 | F87: Billion Years
A88: 450 | B88: 6.23 | C88: 0.28 | D88: Average Age | E88: 4.21 | F88: Billion Years
A89: 600 | B89: 2.92 | C89: 0.05 | D89: Age Difference | E89: =(E86-E87) -> 7.01 | F89: Billion Years
A90: 750 | B90: 3.07 | C90: 0.03 | D90: Difference | E90: =(E86/E87) -> 3.400684932 | F90: Percent
A91: 850 | B91: 3.3 | C91: 0.03 | D91: Standard Deviation | E91: 0.263 | F91: Billion Years
A92: 950 | B92: 3.42 | C92: 0.04
A93: 1000 | B93: 3.55 | C93: 0.05
A94: 1050 | B94: 3.68 | C94: 0.06
A95: 1100 | B95: 3.69 | C95: 0.07
A96: 1200 | B96: 3.69 | C96: 0.09
A97: 1275 | B97: 3.84 | C97: 0.14
A98: 1325 | B98: 3.85 | C98: 0.16
A99: 1400 | B99: 3.86 | C99: 10.15
A100: 1500 | B100: 3.89 | C100: 0.16
D102: =(A103) -> 7. Morristown
A103: 7. Morristown | D103: Maximum Age | E103: 7.92 | F103: Billion Years | I103: 7. Morristown
A104: 300 | B104: 7.92 | C104: 0.17 | D104: Minimum Age | E104: 3.6 | F104: Billion Years | I104: 8. Mount Padbury
A105: 500 | B105: 4.29 | C105: 0.08 | D105: Average Age | E105: 4.23 | F105: Billion Years | I105: 9. Patwar Basalt
A106: 700 | B106: 3.76 | C106: 0.05 | D106: Age Difference | E106: =(E103-E104) -> 4.32 | F106: Billion Years | I106: 10. Patwar Gabbro
A107: 850 | B107: 3.6 | C107: 0.04 | D107: Difference | E107: =(E103/E104) -> 2.2 | F107: Percent | I107: 11. Pinnaroo
A108: 950 | B108: 3.66 | C108: 0.06 | D108: Standard Deviation | E108: 1.24 | F108: Billion Years | I108: 12. QUE-86900
A109: 1000 | B109: 3.73 | C109: 0.09 | I109: 13. Simondium
A110: 1050 | B110: 3.81 | C110: 0.1 | I110: 14. Vaca Muerta Basalt
A111: 1100 | B111: 3.89 | C111: 0.19 | I111: 15. Vaca Muerta Gabbro
A112: 1150 | B112: 3.87 | C112: 0.16 | I112: 16. Veramin
A113: 1200 | B113: 3.92 | C113: 0.29
A114: 1550 | B114: 4.1 | C114: 0.49
D116: =(A117) -> 8. Mount Padbury
A117: 8. Mount Padbury | D117: Maximum Age | E117: 5.52 | F117: Billion Years
A118: 300 | B118: 5.52 | C118: 0.05 | D118: Minimum Age | E118: 3.49 | F118: Billion Years
A119: 500 | B119: 4.46 | C119: 0.21 | D119: Average Age | E119: 3.8 | F119: Billion Years
A120: 700 | B120: 3.88 | C120: 0.05 | D120: Age Difference | E120: =(E117-E118) -> 2.03 | F120: Billion Years
A121: 850 | B121: 3.6 | C121: 0.04 | D121: Difference | E121: =(E117/E118) -> 1.581661891 | F121: Percent
A122: 950 | B122: 3.49 | C122: 0.04 | D122: Standard Deviation | E122: 0.1 | F122: Billion Years
A123: 1000 | B123: 3.49 | C123: 0.04
A124: 1050 | B124: 3.5 | C124: 0.05
A125: 1100 | B125: 3.56 | C125: 0.06
A126: 1150 | B126: 3.59 | C126: 0.1
A127: 1200 | B127: 3.6 | C127: 0.11
A128: 1250 | B128: 3.62 | C128: 0.11
A129: 1350 | B129: 3.6 | C129: 0.12
A130: 1550 | B130: 3.59 | C130: 0.07
D132: =(A133) -> 9. Patwar Basalt
A133: 9. Patwar Basalt | D133: Maximum Age | E133: 6.14 | F133: Billion Years
A134: 300 | B134: 6.14 | C134: 0.1 | D134: Minimum Age | E134: 1.8 | F134: Billion Years
A135: 450 | B135: 2.76 | C135: 0.03 | D135: Average Age | E135: 3.6 | F135: Billion Years
A136: 600 | B136: 3.16 | C136: 0.03 | D136: Age Difference | E136: =(E133-E134) -> 4.34 | F136: Billion Years
A137: 750 | B137: 3.2 | C137: 0.03 | D137: Difference | E137: =(E133/E134) -> 3.411111111 | F137: Percent
A138: 850 | B138: 3.3 | C138: 0.03 | D138: Standard Deviation | E138: 0.466 | F138: Billion Years
A139: 950 | B139: 3.38 | C139: 0.03
A140: 1050 | B140: 3.39 | C140: 0.04
A141: 1150 | B141: 3.37 | C141: 0.05
A142: 1250 | B142: 3.32 | C142: 0.06
A143: 1350 | B143: 3.2 | C143: 0.16
A144: 1450 | B144: 3.11 | C144: 0.25
A145: 1600 | B145: 3.52 | C145: 0.09
A146: 1660 | B146: 1.8 | C146: 0.11
D148: =(A149) -> 10. Patwar Gabbro
A149: 10. Patwar Gabbro | D149: Maximum Age | E149: 8.43 | F149: Billion Years
A150: 300 | B150: 8.43 | C150: 0.39 | D150: Minimum Age | E150: 2.67 | F150: Billion Years
A151: 500 | B151: 2.67 | C151: 0.02 | D151: Average Age | E151: 3.91 | F151: Billion Years
A152: 700 | B152: 3.06 | C152: 0.02 | D152: Age Difference | E152: =(E149-E150) -> 5.76 | F152: Billion Years
A153: 900 | B153: 3.25 | C153: 0.02 | D153: Difference | E153: =(E149/E150) -> 3.157303371 | F153: Percent
A154: 1000 | B154: 3.45 | C154: 0.04 | D154: Standard Deviation | E154: 0.224 | F154: Billion Years
A155: 1075 | B155: 3.53 | C155: 0.04
A156: 1150 | B156: 3.58 | C156: 0.05
A157: 1225 | B157: 3.66 | C157: 0.07
A158: 1300 | B158: 3.77 | C158: 0.12
A159: 1375 | B159: 3.87 | C159: 0.1
A160: 1450 | B160: 3.91 | C160: 0.07
A161: 1525 | B161: 3.92 | C161: 0.06
A162: 1600 | B162: 3.96 | C162: 0.06
A163: 1700 | B163: 3.7 | C163: 0.07
D165: =(A166) -> 11. Pinnaroo
A166: 11. Pinnaroo | D166: Maximum Age | E166: 3.74 | F166: Billion Years
A167: 300 | B167: 2.42 | C167: 0.01 | D167: Minimum Age | E167: 1.77 | F167: Billion Years
A168: 500 | B168: 2.39 | C168: 0.18 | D168: Average Age | E168: 2.86 | F168: Billion Years
A169: 700 | B169: 1.82 | C169: 0.08 | D169: Age Difference | E169: =(E166-E167) -> 1.97 | F169: Billion Years
A170: 850 | B170: 1.77 | C170: 0.02 | D170: Difference | E170: =(E166/E167) -> 2.11299435 | F170: Percent
A171: 950 | B171: 2.26 | C171: 0.02 | D171: Standard Deviation | E171: 0.71 | F171: Billion Years
A172: 1000 | B172: 2.54 | C172: 0.03
A173: 1050 | B173: 2.53 | C173: 0.03
A174: 1100 | B174: 2.61 | C174: 0.03
A175: 1150 | B175: 3.24 | C175: 0.06
A176: 1200 | B176: 3.6 | C176: 0.08
A177: 1250 | B177: 3.67 | C177: 0.08
A178: 1300 | B178: 3.7 | C178: 0.09
A179: 1400 | B179: 3.74 | C179: 0.1
A180: 1550 | B180: 3.71 | C180: 0.09
D182: =(A183) -> 12. QUE-86900
A183: 12. QUE-86900 | D183: Maximum Age | E183: 10.92 | F183: Billion Years
A184: 300 | B184: 10.92 | C184: 1.45 | D184: Minimum Age | E184: 3.24 | F184: Billion Years
A185: 500 | B185: 7.36 | C185: 0.21 | D185: Average Age | E185: 4.3 | F185: Billion Years
A186: 700 | B186: 3.28 | C186: 0.04 | D186: Age Difference | E186: =(E183-E184) -> 7.68 | F186: Billion Years
A187: 850 | B187: 3.28 | C187: 0.03 | D187: Difference | E187: =(E183/E184) -> 3.37037037 | F187: Percent
A188: 950 | B188: 3.24 | C188: 0.04 | D188: Standard Deviation | E188: 0.2 | F188: Billion Years
A189: 1000 | B189: 3.33 | C189: 0.05
A190: 1050 | B190: 3.38 | C190: 0.06
A191: 1100 | B191: 3.43 | C191: 0.06
A192: 1150 | B192: 3.47 | C192: 0.07
A193: 1200 | B193: 3.55 | C193: 0.08
A194: 1250 | B194: 3.65 | C194: 0.13
A195: 1300 | B195: 3.72 | C195: 0.31
A196: 1400 | B196: 3.76 | C196: 0.27
A197: 1550 | B197: 3.81 | C197: 0.11
D199: =(A200) -> 13. Simondium
A200: 13. Simondium | D200: Maximum Age | E200: 9.17 | F200: Billion Years
A201: 350 | B201: 9.17 | C201: 0.16 | D201: Minimum Age | E201: 3.27 | F201: Billion Years
A202: 450 | B202: 5.32 | C202: 0.1 | D202: Average Age | E202: 4.1 | F202: Billion Years
A203: 575 | B203: 3.27 | C203: 0.04 | D203: Age Difference | E203: =(E200-E201) -> 5.9 | F203: Billion Years
A204: 700 | B204: 3.94 | C204: 0.04 | D204: Difference | E204: =(E200/E201) -> 2.804281346 | F204: Percent
A205: 775 | B205: 3.36 | C205: 0.04 | D205: Standard Deviation | E205: 0.151 | F205: Billion Years
A206: 850 | B206: 3.5 | C206: 0.05
A207: 900 | B207: 3.54 | C207: 0.05
A208: 950 | B208: 3.6 | C208: 0.05
A209: 1025 | B209: 3.64 | C209: 0.05
A210: 1125 | B210: 3.71 | C210: 0.06
A211: 1225 | B211: 3.76 | C211: 2.07
... 49 more rows

Sheet A2
A1: Meteorite Sample | C1: Age | D1: Error | S1: Percent | T1: Standard Deviation | Y1: 39Ar/40Ar | Z1: 39Ar/40Ar
A2: A. QUE 97053,8 | C2: Billion Years | D2: Billion Years | J2: =(A2) -> A. QUE 97053,8 | N2: Meteorite | O2: Maximum Age | P2: Minimum Age | Q2: Average Age | R2: Age Difference | S2: Difference | T2: Million Years | Y2: 9669 | Z2: 4737
A3: 350 | B3: 0.3 | C3: 9.669 | D3: 0.316 | E3: 10105 | F3: 89.83 | G3: 64.3 | H3: 346.83 | J3: Maximum Age | K3: 9669 | L3: Million Years | N3: A. QUE 97053,8 | O3: 9669 | P3: 3749 | Q3: 4660 | R3: 5920 | S3: =(O3-P3)/P3 -> 1.579087757 | T3: 1071 | Y3: 7496 | Z3: 4645
A4: 450 | B4: 0.7 | C4: 3.749 | D4: 0.249 | E4: 333.8 | F4: 20.22 | G4: 114 | H4: 4.89 | J4: Minimum Age | K4: 3749 | L4: Million Years | N4: B. GRA 98098,26 WR | O4: 7008 | P4: 3239 | Q4: 4470 | R4: 3769 | S4: =(O4-P4)/P4 -> 1.16363075 | T4: 521 | Y4: 7008 | Z4: 4614
A5: 525 | B5: 3.8 | C5: 4.043 | D5: 0.074 | E5: 401.4 | F5: 11.4 | G5: 102.5 | H5: 3.83 | J5: Average Age | K5: 4660 | L5: Million Years | N5: C. PCA - 82502,81 | O5: 5431 | P5: 3300 | Q5: 4366 | R5: 2131 | S5: 0.6457575758 | T5: 414 | Y5: 6742 | Z5: 4579
A6: 575 | B6: 5.5 | C6: 4.202 | D6: 0.055 | E6: 442.7 | F6: 6.63 | G6: 96.2 | H6: 3.87 | J6: Age Difference | K6: =(K3-K4) -> 5920 | L6: Million Years | N6: D. PCA - 91007,26 | O6: 4460 | P6: 1560 | Q6: 4062 | R6: 2900 | S6: 1.858974359 | T6: 720 | Y6: 6100 | Z6: 4553
A7: 625 | B7: 7.6 | C7: 4.348 | D7: 0.041 | E7: 483.9 | F7: 5.99 | G7: 87.3 | H7: 3.63 | J7: Difference | K7: =(K3/K4) -> 2.579087757 | L7: Percent | N7: E. Caldera | O7: 4493 | P7: 2819 | Q7: 4110 | R7: 1674 | S7: 0.5938275984 | T7: 501 | Y7: 5817 | Z7: 4541
A8: 675 | B8: 8.9 | C8: 4.389 | D8: 0.069 | E8: 496.3 | F8: 5.75 | G8: 79.3 | H8: 3.57 | J8: Standard Deviation | K8: 1071 | L8: Million Years | N8: F. Asuka-881388,55 | O8: 4853 | P8: 3250 | Q8: 4360 | R8: 1603 | S8: 0.4932307692 | T8: 297 | Y8: 5788 | Z8: 4513
A9: 720 | B9: 20.9 | C9: 4.46 | D9: 0.017 | E9: 517.9 | F9: 5.08 | G9: 72.6 | H9: 3.24 | N9: G. Asuka-881467,42 | O9: 4465 | P9: 202 | Q9: 3814 | R9: 4263 | S9: 21.1039604 | T9: 1163 | Y9: 5481 | Z9: 4512
A10: 750 | B10: 25.1 | C10: 4.456 | D10: 0.015 | E10: 516.9 | F10: 4.75 | G10: 69.6 | H10: 3.08 | N10: H. GRO - 95533,7 | O10: 4096 | P10: 2823 | Q10: 3635 | R10: 1273 | S10: 0.4509387177 | T10: 278 | Y10: 5341 | Z10: 4512
A11: 775 | B11: 34.5 | C11: 4.491 | D11: 0.012 | E11: 527.7 | F11: 4.66 | G11: 69.1 | H11: 3.05 | N11: I. QUE - 97014,5 | O11: 4553 | P11: 2947 | Q11: 3527 | R11: 1606 | S11: 0.5449609773 | T11: 294 | Y11: 5324 | Z11: 4511
A12: 800 | B12: 42.9 | C12: 4.479 | D12: 0.01 | E12: 524.1 | F12: 4.69 | G12: 68.5 | H12: 3.03 | N12: J. Moama | O12: 4484 | P12: 866 | Q12: 3659 | R12: 3618 | S12: 4.177829099 | T12: 1189 | Y12: 5209 | Z12: 4510
A13: 825 | B13: 45.7 | C13: 4.475 | D13: 0.01 | E13: 522.6 | F13: 4.84 | G13: 69 | H13: 3.03 | N13: K. EET - 87520 | O13: 5481 | P13: 2004 | Q13: 4180 | R13: 3477 | S13: 1.73502994 | T13: 683 | Y13: 4853 | Z13: 4507
A14: 850 | B14: 35.2 | C14: 4.46 | D14: 0.012 | E14: 518.1 | F14: 5.11 | G14: 68.5 | H14: 3.03 | N14: L. Moore County | O14: 6742 | P14: 1827 | Q14: 4064 | R14: 4915 | S14: 2.690202518 | T14: 860 | Y14: 4754 | Z14: 4505
A15: 875 | B15: 25.9 | C15: 4.465 | D15: 0.015 | E15: 519.5 | F15: 5.47 | G15: 67.4 | H15: 3.02 | N15: M. Serra de Mage | O15: 6100 | P15: 499 | Q15: 3199 | R15: 5601 | S15: 11.2244489 | T15: 1125
A16: 900 | B16: 15.5 | C16: 4.45 | D16: 0.022 | E16: 514.9 | F16: 5.81 | G16: 65.7 | H16: 3.02 | N16: N. EET -87548 | O16: 3674 | P16: 1738 | Q16: 3230 | R16: 1936 | S16: 1.113924051 | T16: 568
A17: 950 | B17: 15.9 | C17: 4.427 | D17: 0.022 | E17: 507.8 | F17: 6.37 | G17: 66 | H17: 3.13 | N17: O. ALH -85001,32 | O17: 4754 | P17: 3097 | Q17: 3600 | R17: 1657 | S17: 0.5350339038 | T17: 350
A18: 1000 | B18: 28.7 | C18: 4.44 | D18: 0.013 | E18: 511.8 | F18: 6.85 | G18: 72.9 | H18: 3.62 | N18: P. Piplia Kalan | O18: 4284 | P18: 162 | Q18: 3526 | R18: 4122 | S18: 25.44444444 | T18: 889
A19: 1040 | B19: 24.4 | C19: 4.43 | D19: 0.015 | E19: 508.6 | F19: 6.75 | G19: 77.7 | H19: 4.05 | N19: Q. Sioux County | O19: 4513 | P19: 2189 | Q19: 3810 | R19: 2324 | S19: 1.061671996 | T19: 453
A20: 1080 | B20: 34.2 | C20: 4.466 | D20: 0.012 | E20: 520 | F20: 9.33 | G20: 92.7 | H20: 4.92 | J20: D. D. Bogard | N20: R. Asuka-87272,49 | O20: 3652 | P20: 342 | Q20: 2895 | R20: 3310 | S20: 9.678362573 | T20: 813
A21: 1110 | B21: 31 | C21: 4.466 | D21: 0.013 | E21: 520 | F21: 10.61 | G21: 113.1 | H21: 6.31 | J21: Meteoritics And Planetary Science | N21: S. Macibini Glass | O21: 5788 | P21: 2621 | Q21: 3873 | R21: 3167 | S21: 1.208317436 | T21: 600
A22: 1140 | B22: 24.8 | C22: 4.467 | D22: 0.016 | E22: 520.1 | F22: 14.22 | G22: 164.7 | H22: 8.86 | J22: Volume 38, Number 5, Pages 669–710 | N22: T. QUE - 94200,13 | O22: 3724 | P22: 3169 | Q22: 3516 | R22: 555 | S22: 0.1751341117 | T22: 179
A23: 1180 | B23: 20.5 | C23: 4.464 | D23: 0.019 | E23: 519.2 | F23: 18.78 | G23: 243 | H23: 12.24 | J23: 39Ar-40Ar Ages of Eucrites | N23: U. EET - 87509,24 | O23: 7496 | P23: 4026 | Q23: 4382 | R23: 3470 | S23: 0.8618976652 | T23: 983
A24: 1250 | B24: 17.4 | C24: 4.496 | D24: 0.021 | E24: 529.5 | F24: 15.65 | G24: 202.3 | H24: 10.31 | J24: 2003 | N24: V. EET - 87509,71 | O24: 4449 | P24: 3558 | Q24: 4012 | R24: 891 | S24: 0.2504215852 | T24: 224
A25: 1350 | B25: 45.6 | C25: 4.488 | D25: 0.01 | E25: 527.1 | F25: 7.55 | G25: 103.8 | H25: 4.98 | N25: W. EET -87509,74 | O25: 4645 | P25: 873 | Q25: 3761 | R25: 3772 | S25: 4.320733104 | T25: 882
A26: 1425 | B26: 53.2 | C26: 4.481 | D26: 0.01 | E26: 524.8 | F26: 6.19 | G26: 89.2 | H26: 4.11 | N26: X. EET - 87531,21 | O26: 4176 | P26: 3301 | Q26: 3861 | R26: 875 | S26: 0.2650711905 | T26: 206
A27: 1500 | B27: 2.4 | C27: 4.579 | D27: 0.107 | E27: 556.8 | F27: 6.1 | G27: 84.4 | H27: 5.81 | N27: Y. EET - 87503,53 | O27: 5209 | P27: 3568 | Q27: 3856 | R27: 1641 | S27: 0.4599215247 | T27: 437
A28: 1600 | B28: 0.1 | C28: 5.817 | D28: 0.542 | E28: 1152.5 | F28: 11.5 | G28: 57.3 | H28: 28.04 | N28: Z. EET - 87503,23 | O28: 5324 | P28: 2294 | Q28: 3524 | R28: 3030 | S28: 1.320836966 | T28: 930
C29: =AVERAGE(C3:C28) -> 4.659884615 | O29: =MAX(O3:O28) -> 9669 | P29: =MIN(P3:P28) -> 162
A30: B. GRA 98098,26 WR | C30: Age | D30: Error | J30: =(A30) -> B. GRA 98098,26 WR
A31: 350 | B31: 2.1 | C31: 7.008 | D31: 0.119 | E31: 2275.5 | F31: 44.62 | G31: 16.4 | H31: 78.36 | J31: Maximum Age | K31: 7008 | L31: Million Years
A32: 450 | B32: 1.2 | C32: 3.239 | D32: 0.183 | E32: 239.8 | F32: 28.56 | G32: 23.9 | H32: 6.01 | J32: Minimum Age | K32: 3239 | L32: Million Years
A33: 525 | B33: 5.7 | C33: 3.872 | D33: 0.049 | E33: 360.7 | F33: 15.67 | G33: 30.6 | H33: 4.35 | J33: Average Age | K33: 4470 | L33: Million Years
A34: 600 | B34: 20.7 | C34: 4.368 | D34: 0.016 | E34: 490.1 | F34: 7.86 | G34: 29.2 | H34: 3.87 | J34: Age Difference | K34: =(K31-K32) -> 3769 | L34: Million Years
A35: 635 | B35: 16.1 | C35: 4.487 | D35: 0.021 | E35: 526.6 | F35: 4.72 | G35: 22.3 | H35: 2.84 | J35: Difference | K35: =(K31/K32) -> 2.16363075 | L35: Percent
A36: 675 | B36: 36.4 | C36: 4.345 | D36: 0.086 | E36: 483 | F36: 4.99 | G36: 22.2 | H36: 2.92 | J36: Standard Deviation | K36: 521 | L36: Million Years
A37: 700 | B37: 29.9 | C37: 4.438 | D37: 0.013 | E37: 511.2 | F37: 4.99 | G37: 23.2 | H37: 3.16
A38: 725 | B38: 34.8 | C38: 4.458 | D38: 0.011 | E38: 517.4 | F38: 5.87 | G38: 28.2 | H38: 3.81
A39: 750 | B39: 37.3 | C39: 4.458 | D39: 0.011 | E39: 517.5 | F39: 6.87 | G39: 33.2 | H39: 4.51
A40: 775 | B40: 45.1 | C40: 4.466 | D40: 0.01 | E40: 520.1 | F40: 8.03 | G40: 40.4 | H40: 5.27
A41: 800 | B41: 68.5 | C41: 4.452 | D41: 0.011 | E41: 515.6 | F41: 9.69 | G41: 48.2 | H41: 6.26
A42: 825 | B42: 46.2 | C42: 4.428 | D42: 0.009 | E42: 508.1 | F42: 10.57 | G42: 52.3 | H42: 6.79
A43: 850 | B43: 38.5 | C43: 4.467 | D43: 0.01 | E43: 520.3 | F43: 12 | G43: 58.6 | H43: 7.69
A44: 875 | B44: 39.8 | C44: 4.456 | D44: 0.01 | E44: 516.8 | F44: 13.69 | G44: 63.4 | H44: 8.42
A45: 900 | B45: 29.7 | C45: 4.459 | D45: 0.012 | E45: 517.8 | F45: 16.27 | G45: 69.1 | H45: 9.38
A46: 925 | B46: 21.6 | C46: 4.433 | D46: 0.016 | E46: 509.6 | F46: 19.44 | G46: 73.7 | H46: 10.32
A47: 950 | B47: 12.3 | C47: 4.483 | D47: 0.025 | E47: 525.2 | F47: 21.96 | G47: 78.9 | H47: 11.1
A48: 1000 | B48: 23.3 | C48: 4.475 | D48: 0.015 | E48: 522.8 | F48: 24.86 | G48: 81.6 | H48: 11.78
A49: 1000 | B49: 1403.2 | C49: 4.403 | D49: 0.006 | E49: 500.6 | F49: 4.27 | G49: 21.7 | H49: 2.75
A50: 1050 | B50: 22.1 | C50: 4.481 | D50: 0.016 | E50: 524.7 | F50: 28.48 | G50: 80.9 | H50: 12.25
A51: 1100 | B51: 22.6 | C51: 4.474 | D51: 0.015 | E51: 522.5 | F51: 34.58 | G51: 86.1 | H51: 13.91
A52: 1100 | B52: 45.4 | C52: 4.462 | D52: 0.018 | E52: 518.8 | F52: 12.44 | G52: 54.1 | H52: 7.28
A53: 1150 | B53: 19.3 | C53: 4.454 | D53: 0.017 | E53: 516.1 | F53: 51.97 | G53: 142.8 | H53: 23.06
A54: 1200 | B54: 88.8 | C54: 4.473 | D54: 0.011 | E54: 522 | F54: 11.85 | G54: 53.6 | H54: 7.28
A55: 1225 | B55: 19.4 | C55: 4.466 | D55: 0.02 | E55: 520 | F55: 91.24 | G55: 361.6 | H55: 54.7
A56: 1275 | B56: 32.2 | C56: 4.512 | D56: 0.025 | E56: 534.6 | F56: 23.86 | G56: 108.9 | H56: 15.14
A57: 1325 | B57: 26.9 | C57: 4.478 | D57: 0.015 | E57: 523.9 | F57: 79.18 | G57: 296.2 | H57: 46.02
A58: 1375 | B58: 141.5 | C58: 4.483 | D58: 0.009 | E58: 525.3 | F58: 20.4 | G58: 94.7 | H58: 12.81
A59: 1425 | B59: 62.8 | C59: 4.511 | D59: 0.01 | E59: 534.1 | F59: 54.23 | G59: 170.3 | H59: 27.04
A60: 1450 | B60: 15.1 | C60: 4.467 | D60: 0.054 | E60: 520.4 | F60: 17.93 | G60: 93.5 | H60: 12.21
A61: 1575 | B61: 7.7 | C61: 4.384 | D61: 0.042 | E61: 494.6 | F61: 41.79 | G61: 188.3 | H61: 27.32
A62: 1575 | B62: 1.5 | C62: 4.219 | D62: 0.291 | E62: 447.3 | F62: 16.07 | G62: 79.3 | H62: 13.46
C63: =AVERAGE(C31:C62) -> 4.47059375
A64: C. PCA - 82502,81 | C64: Age | D64: Error | J64: =(A64) -> C. PCA - 82502,81
A65: 350 | B65: 2.1 | C65: 3.348 | D65: 0.031 | E65: 2275.5 | F65: 44.62 | G65: 16.4 | H65: 78.36 | J65: Maximum Age | K65: 5431 | L65: Million Years
A66: 450 | B66: 1.2 | C66: 3.3 | D66: 0.019 | E66: 239.8 | F66: 28.56 | G66: 23.9 | H66: 6.01 | J66: Minimum Age | K66: 3300 | L66: Million Years
A67: 550 | B67: 5.7 | C67: 4.061 | D67: 0.012 | E67: 360.7 | F67: 15.67 | G67: 30.6 | H67: 4.35 | J67: Average Age | K67: 4366 | L67: Million Years
A68: 600 | B68: 20.7 | C68: 4.301 | D68: 0.011 | E68: 490.1 | F68: 7.86 | G68: 29.2 | H68: 3.87 | J68: Age Difference | K68: =(K65-K66) -> 2131 | L68: Million Years
A69: 650 | B69: 16.1 | C69: 4.416 | D69: 0.012 | E69: 526.6 | F69: 4.72 | G69: 22.3 | H69: 2.84 | J69: Difference | K69: =(K65/K66) -> 1.645757576 | L69: Percent
A70: 700 | B70: 36.4 | C70: 4.475 | D70: 0.008 | E70: 483 | F70: 4.99 | G70: 22.2 | H70: 2.92 | J70: Standard Deviation | K70: 414 | L70: Million Years
A71: 720 | B71: 29.9 | C71: 4.505 | D71: 0.01 | E71: 511.2 | F71: 4.99 | G71: 23.2 | H71: 3.16
A72: 745 | B72: 34.8 | C72: 4.507 | D72: 0.009 | E72: 517.4 | F72: 5.87 | G72: 28.2 | H72: 3.81
A73: 775 | B73: 37.3 | C73: 4.51 | D73: 0.008 | E73: 517.5 | F73: 6.87 | G73: 33.2 | H73: 4.51
A74: 800 | B74: 45.1 | C74: 4.512 | D74: 0.008 | E74: 520.1 | F74: 8.03 | G74: 40.4 | H74: 5.27
A75: 825 | B75: 68.5 | C75: 4.495 | D75: 0.008 | E75: 515.6 | F75: 9.69 | G75: 48.2 | H75: 6.26
A76: 850 | B76: 46.2 | C76: 4.465 | D76: 0.01 | E76: 508.1 | F76: 10.57 | G76: 52.3 | H76: 6.79
A77: 900 | B77: 38.5 | C77: 4.4 | D77: 0.009 | E77: 520.3 | F77: 12 | G77: 58.6 | H77: 7.69
A78: 950 | B78: 39.8 | C78: 4.341 | D78: 0.009 | E78: 516.8 | F78: 13.69 | G78: 63.4 | H78: 8.42
A79: 1000 | B79: 29.7 | C79: 4.362 | D79: 0.01 | E79: 517.8 | F79: 16.27 | G79: 69.1 | H79: 9.38
A80: 1050 | B80: 21.6 | C80: 4.403 | D80: 0.014 | E80: 509.6 | F80: 19.44 | G80: 73.7 | H80: 10.32
A81: 1100 | B81: 12.3 | C81: 4.408 | D81: 0.032 | E81: 525.2 | F81: 21.96 | G81: 78.9 | H81: 11.1
A82: 1200 | B82: 23.3 | C82: 4.451 | D82: 0.018 | E82: 522.8 | F82: 24.86 | G82: 81.6 | H82: 11.78
A83: 1300 | B83: 1403.2 | C83: 4.488 | D83: 0.017 | E83: 500.6 | F83: 4.27 | G83: 21.7 | H83: 2.75
A84: 1400 | B84: 22.1 | C84: 5.341 | D84: 0.125 | E84: 524.7 | F84: 28.48 | G84: 80.9 | H84: 12.25
A85: 1575 | B85: 22.6 | C85: 4.614 | D85: 0.2 | E85: 522.5 | F85: 34.58 | G85: 86.1 | H85: 13.91
C86: =STDEV(C65:C85) -> 0.4141956807
A87: D. PCA - 91007,26 | C87: Age | D87: Error | J87: =(A87) -> D. PCA - 91007,26
A88: 350 | B88: 60.6 | C88: 1.56 | D88: 0.006 | E88: 44.7 | F88: 0.44 | G88: 6.3 | H88: 1.2 | J88: Maximum Age | K88: 4460 | L88: Million Years
A89: 450 | B89: 16 | C89: 2.973 | D89: 0.015 | E89: 136.5 | F89: 1.58 | G89: 38.6 | H89: 1.24 | J89: Minimum Age | K89: 1560 | L89: Million Years
A90: 550 | B90: 30.6 | C90: 3.697 | D90: 0.013 | E90: 220 | F90: 2.17 | G90: 53.6 | H90: 1.56 | J90: Average Age | K90: 4062 | L90: Million Years
A91: 600 | B91: 33.9 | C91: 4.166 | D91: 0.011 | E91: 295 | F91: 2.5 | G91: 61.8 | H91: 1.78 | J91: Age Difference | K91: =(K88-K89) -> 2900 | L91: Million Years
A92: 650 | B92: 39.9 | C92: 4.335 | D92: 0.011 | E92: 327.1 | F92: 2.37 | G92: 59.3 | H92: 1.72 | J92: Difference | K92: =(K88/K89) -> 2.858974359 | L92: Percent
A93: 700 | B93: 45 | C93: 4.424 | D93: 0.009 | E93: 345.2 | F93: 2.4 | G93: 59.4 | H93: 1.68 | J93: Standard Deviation | K93: 720 | L93: Million Years
A94: 725 | B94: 62.1 | C94: 4.445 | D94: 0.009 | E94: 349.7 | F94: 2.41 | G94: 60 | H94: 1.69
A95: 750 | B95: 70.5 | C95: 4.446 | D95: 0.008 | E95: 350 | F95: 2.39 | G95: 59.9 | H95: 1.71
A96: 775 | B96: 51.2 | C96: 4.441 | D96: 0.009 | E96: 348.7 | F96: 2.38 | G96: 58.5 | H96: 1.66
A97: 850 | B97: 84.4 | C97: 4.366 | D97: 0.008 | E97: 333.4 | F97: 2.53 | G97: 60.9 | H97: 1.82
A98: 900 | B98: 58 | C98: 4.213 | D98: 0.009 | E98: 303.5 | F98: 2.61 | G98: 62.8 | H98: 1.89
A99: 950 | B99: 55.6 | C99: 4.051 | D99: 0.009 | E99: 274.8 | F99: 2.86 | G99: 64.7 | H99: 2.05
A100: 1000 | B100: 55.2 | C100: 4.242 | D100: 0.01 | E100: 308.9 | F100: 3.71 | G100: 80.3 | H100: 2.68
A101: 1050 | B101: 49.5 | C101: 4.311 | D101: 0.012 | E101: 322.4 | F101: 6.34 | G101: 130.6 | H101: 4.55
A102: 1100 | B102: 12.3 | C102: 4.317 | D102: 0.03 | E102: 323.4 | F102: 13.28 | G102: 277.9 | H102: 9.79
A103: 1200 | B103: 96.6 | C103: 4.36 | D103: 0.015 | E103: 332.1 | F103: 10.63 | G103: 221.1 | H103: 7.63
A104: 1300 | B104: 5.7 | C104: 4.46 | D104: 0.054 | E104: 352.9 | F104: 9.39 | G104: 191.3 | H104: 7.45
A105: 1550 | B105: 8.3 | C105: 4.312 | D105: 0.067 | E105: 322.6 | F105: 8.73 | G105: 182.3 | H105: 6.05
C106: =AVERAGE(C88:C105) -> 4.062166667
A107: E. Caldera | C107: Age | D107: Error | J107: =(A107) -> E. Caldera
A108: 350 | B108: 138.3 | C108: 3.517 | D108: 0.005 | E108: 79 | F108: 5.53 | G108: 2.49 | H108: 2.68 | J108: Maximum Age | K108: 4493 | L108: Million Years
A109: 450 | B109: 33.9 | C109: 3.422 | D109: 0.01 | E109: 74.2 | F109: 3.84 | G109: 4.18 | H109: 2.4 | J109: Minimum Age | K109: 2819 | L109: Million Years
A110: 550 | B110: 7.6 | C110: 3.541 | D110: 0.041 | E110: 80.2 | F110: 5.62 | G110: 17.7 | H110: 2.12 | J110: Average Age | K110: 4110 | L110: Million Years
A111: 650 | B111: 25.4 | C111: 2.819 | D111: 0.021 | E111: 49.4 | F111: 2.29 | G111: 29 | H111: 0.55 | J111: Age Difference | K111: =(K108-K109) -> 1674 | L111: Million Years
A112: 750 | B112: 32.1 | C112: 3.763 | D112: 0.014 | E112: 92.4 | F112: 0.99 | G112: 57.8 | H112: 0.38 | J112: Difference | K112: =(K108/K109) -> 1.593827598 | L112: Percent
A113: 800 | B113: 25.4 | C113: 4.184 | D113: 0.016 | E113: 120.2 | F113: 0.88 | G113: 85.4 | H113: 0.41 | J113: Standard Deviation | K113: 501 | L113: Million Years
A114: 850 | B114: 47.4 | C114: 4.317 | D114: 0.011 | E114: 130.3 | F114: 0.84 | G114: 94.6 | H114: 0.44
A115: 900 | B115: 64.8 | C115: 4.379 | D115: 0.009 | E115: 135.3 | F115: 0.77 | G115: 92.5 | H115: 0.44
A116: 950 | B116: 85.2 | C116: 4.378 | D116: 0.008 | E116: 135.3 | F116: 0.71 | G116: 89.3 | H116: 0.4
A117: 975 | B117: 91.2 | C117: 4.403 | D117: 0.008 | E117: 137.3 | F117: 0.73 | G117: 92.4 | H117: 0.4
A118: 1000 | B118: 132.5 | C118: 4.443 | D118: 0.008 | E118: 140.7 | F118: 0.8 | G118: 103.4 | H118: 0.44
A119: 1025 | B119: 155.8 | C119: 4.458 | D119: 0.008 | E119: 142 | F119: 0.87 | G119: 111.4 | H119: 0.48
A120: 1050 | B120: 72.1 | C120: 4.443 | D120: 0.01 | E120: 140.7 | F120: 0.83 | G120: 104.6 | H120: 0.45
A121: 1150 | B121: 134.8 | C121: 4.404 | D121: 0.013 | E121: 137.4 | F121: 1.82 | G121: 199.4 | H121: 1.03
A122: 1250 | B122: 74.4 | C122: 4.428 | D122: 0.03 | E122: 139.4 | F122: 5.78 | G122: 566.7 | H122: 3.31
A123: 1400 | B123: 249.7 | C123: 4.493 | D123: 0.012 | E123: 145 | F123: 1.71 | G123: 191.4 | H123: 0.97
A124: 1550 | B124: 15 | C124: 4.48 | D124: 0.09 | E124: 143.9 | F124: 1.34 | G124: 129.4 | H124: 1.56
C125: =AVERAGE(C108:C124) -> 4.110117647
A126: F. Asuka-881388,55 | C126: Age | D126: Error | J126: =(A126) -> F. Asuka-881388,55
A127: 350 | B127: 1.5 | C127: 3.25 | D127: 0.094 | E127: 230.6 | F127: 77.14 | G127: 31.3 | H127: 3.6 | J127: Maximum Age | K127: 4853 | L127: Million Years
A128: 450 | B128: 0.8 | C128: 4.07 | D128: 0.142 | E128: 389.7 | F128: 46.99 | G128: 46.4 | H128: 3.88 | J128: Minimum Age | K128: 3250 | L128: Million Years
A129: 500 | B129: 2.2 | C129: 4.128 | D129: 0.069 | E129: 403.8 | F129: 14.23 | G129: 51.8 | H129: 5.02 | J129: Average Age | K129: 4360 | L129: Million Years
A130: 550 | B130: 3.2 | C130: 4.25 | D130: 0.048 | E130: 435.3 | F130: 7.36 | G130: 48.2 | H130: 5.26 | J130: Age Difference | K130: =(K127-K128) -> 1603 | L130: Million Years
A131: 600 | B131: 5.7 | C131: 4.314 | D131: 0.03 | E131: 452.6 | F131: 6.29 | G131: 49.5 | H131: 4.97 | J131: Difference | K131: =(K127/K128) -> 1.493230769 | L131: Percent
A132: 650 | B132: 7.1 | C132: 4.32 | D132: 0.024 | E132: 454.4 | F132: 6.01 | G132: 46.7 | H132: 4.26 | J132: Standard Deviation | K132: 297 | L132: Million Years
A133: 700 | B133: 15.4 | C133: 4.427 | D133: 0.013 | E133: 484.7 | F133: 7.14 | G133: 64.5 | H133: 5.12
A134: 735 | B134: 35.6 | C134: 4.473 | D134: 0.007 | E134: 498.4 | F134: 8.37 | G134: 78.4 | H134: 5.6
A135: 760 | B135: 38.9 | C135: 4.481 | D135: 0.006 | E135: 500.9 | F135: 8.48 | G135: 79.6 | H135: 5.6
A136: 790 | B136: 35.7 | C136: 4.48 | D136: 0.006 | E136: 500.6 | F136: 8.64 | G136: 80.6 | H136: 5.7
A137: 825 | B137: 26.6 | C137: 4.481 | D137: 0.009 | E137: 501 | F137: 8.79 | G137: 81.5 | H137: 5.8
A138: 850 | B138: 17.8 | C138: 4.49 | D138: 0.011 | E138: 503.6 | F138: 8.99 | G138: 82.6 | H138: 5.9
A139: 900 | B139: 19 | C139: 4.479 | D139: 0.01 | E139: 500.2 | F139: 9.59 | G139: 86.2 | H139: 6.2
A140: 925 | B140: 11.6 | C140: 4.464 | D140: 0.016 | E140: 495.8 | F140: 10.33 | G140: 90 | H140: 6.6
A141: 955 | B141: 9.5 | C141: 4.455 | D141: 0.019 | E141: 493.3 | F141: 12.04 | G141: 101.8 | H141: 7.9
A142: 1010 | B142: 8.5 | C142: 4.431 | D142: 0.021 | E142: 486 | F142: 17.92 | G142: 143.8 | H142: 11.7
A143: 1100 | B143: 18.7 | C143: 4.489 | D143: 0.019 | E143: 503.5 | F143: 82.6 | G143: 612.6 | H143: 54.1
A144: 1175 | B144: 3.7 | C144: 4.346 | D144: 0.051 | E144: 461.6 | F144: 94.14 | G144: 728.9 | H144: 62.1
A145: 1300 | B145: 9.1 | C145: 4.434 | D145: 0.021 | E145: 486.9 | F145: 25.69 | G145: 203.6 | H145: 16.8
A146: 1450 | B146: 0.8 | C146: 4.853 | D146: 0.168 | E146: 625.9 | F146: 47.14 | G146: 347.6 | H146: 34.9
A147: 1600 | B147: 0.2 | C147: 4.444 | D147: 0.427 | E147: 489.9 | F147: 30.33 | G147: 186.7 | H147: 31.9
C148: =AVERAGE(C127:C147) -> 4.359952381
A149: G. Asuka-881467,42 | C149: Age | D149: Error | J149: =(A149) -> G. Asuka-881467,42
A150: 350 | B150: 124.9 | C150: 0.202 | D150: 0.003 | E150: 5.4 | F150: 3.84 | G150: 1.16 | H150: 0.1 | J150: Maximum Age | K150: 4465 | L150: Million Years
A151: 400 | B151: 17.2 | C151: 0.684 | D151: 0.021 | E151: 21 | F151: 3.9 | G151: 5.9 | H151: 0.8 | J151: Minimum Age | K151: 202 | L151: Million Years
A152: 450 | B152: 3.4 | C152: 2.363 | D152: 0.052 | E152: 123.5 | F152: 25.91 | G152: 17.3 | H152: 0.7 | J152: Average Age | K152: 3814 | L152: Million Years
A153: 500 | B153: 5.9 | C153: 3.369 | D153: 0.03 | E153: 249.8 | F153: 13.28 | G153: 27.2 | H153: 1.2 | J153: Age Difference | K153: =(K150-K151) -> 4263 | L153: Million Years
A154: 575 | B154: 11.4 | C154: 4.007 | D154: 0.016 | E154: 375.2 | F154: 3.68 | G154: 34.9 | H154: 1.6 | J154: Difference | K154: =(K150/K151) -> 22.1039604 | L154: Percent
A155: 625 | B155: 12.1 | C155: 4.145 | D155: 0.015 | E155: 408.6 | F155: 2.79 | G155: 33.6 | H155: 1.6 | J155: Standard Deviation | K155: 1163 | L155: Million Years
A156: 675 | B156: 22.3 | C156: 4.101 | D156: 0.009 | E156: 397.6 | F156: 2.7 | G156: 41.7 | H156: 1.5
A157: 700 | B157: 16.1 | C157: 4.351 | D157: 0.012 | E157: 463.6 | F157: 2.85 | G157: 51.2 | H157: 1.7
A158: 725 | B158: 24.7 | C158: 4.394 | D158: 0.008 | E158: 475.7 | F158: 3.17 | G158: 58.7 | H158: 2.02
A159: 750 | B159: 28.3 | C159: 4.432 | D159: 0.007 | E159: 486.8 | F159: 3.24 | G159: 62 | H159: 2.1
A160: 775 | B160: 29.3 | C160: 4.441 | D160: 0.008 | E160: 489.7 | F160: 3.28 | G160: 63.2 | H160: 2.13
A161: 800 | B161: 35.2 | C161: 4.43 | D161: 0.007 | E161: 486.4 | F161: 3.34 | G161: 63.6 | H161: 2.17
A162: 825 | B162: 28.7 | C162: 4.388 | D162: 0.008 | E162: 473.9 | F162: 3.34 | G162: 62.4 | H162: 2.11
A163: 850 | B163: 19.8 | C163: 4.331 | D163: 0.01 | E163: 457.9 | F163: 3.35 | G163: 61 | H163: 2.07
A164: 900 | B164: 24.2 | C164: 4.203 | D164: 0.008 | E164: 423.4 | F164: 3.97 | G164: 60.9 | H164: 2.18
A165: 975 | B165: 29.9 | C165: 4.255 | D165: 0.008 | E165: 437.1 | F165: 4.3 | G165: 70.9 | H165: 2.67
A166: 1050 | B166: 34.4 | C166: 4.377 | D166: 0.008 | E166: 470.8 | F166: 12.37 | G166: 193 | H166: 8.21
A167: 1080 | B167: 10.8 | C167: 4.392 | D167: 0.019 | E167: 475.3 | F167: 22.04 | G167: 331.6 | H167: 14.66
A168: 1140 | B168: 7.4 | C168: 4.358 | D168: 0.028 | E168: 465.5 | F168: 35.04 | G168: 532.7 | H168: 23.25
A169: 1250 | B169: 40.7 | C169: 4.465 | D169: 0.008 | E169: 496.8 | F169: 12.45 | G169: 201 | H169: 8.27
A170: 1300 | B170: 6.3 | C170: 4.35 | D170: 0.027 | E170: 463.1 | F170: 6.23 | G170: 107.4 | H170: 4.12
A171: 1400 | B171: 1.2 | C171: 3.748 | D171: 0.115 | E171: 318.9 | F171: 4.53 | G171: 69.9 | H171: 3.46
A172: 1600 | B172: 0.02 | C172: 3.94 | D172: 0.56 | E172: 359.8 | F172: blank | G172: blank | H172: blank
C173: =AVERAGE(C150:C172) -> 3.814173913
A174: H. GRO - 95533,7 | C174: Age | D174: Error | J174: =(A174) -> H. GRO - 95533,7
A175: 350 | B175: 5.8 | C175: 3.452 | D175: 0.05 | E175: 190.2 | F175: 3.64 | G175: 69.4 | H175: 12.39 | J175: Maximum Age | K175: 4096 | L175: Million Years
A176: 450 | B176: 6.2 | C176: 3.796 | D176: 0.029 | E176: 237.2 | F176: 1.74 | G176: 70.8 | H176: 1.37 | J176: Minimum Age | K176: 2823 | L176: Million Years
A177: 550 | B177: 32.1 | C177: 3.689 | D177: 0.017 | E177: 221.6 | F177: 1.46 | G177: 57.1 | H177: 1.03 | J177: Average Age | K177: 3635 | L177: Million Years
A178: 600 | B178: 36.2 | C178: 3.62 | D178: 0.017 | E178: 212.1 | F178: 1.41 | G178: 51.7 | H178: 0.98 | J178: Age Difference | K178: =(K175-K176) -> 1273 | L178: Million Years
A179: 650 | B179: 45.7 | C179: 3.557 | D179: 0.017 | E179: 203.7 | F179: 1.42 | G179: 53.4 | H179: 1.06 | J179: Difference | K179: =(K175/K176) -> 1.450938718 | L179: Percent
A180: 700 | B180: 40.4 | C180: 3.558 | D180: 0.017 | E180: 203.8 | F180: 1.73 | G180: 64.6 | H180: 1.23 | J180: Standard Deviation | K180: 278 | L180: Million Years
A181: 750 | B181: 76.6 | C181: 3.552 | D181: 0.016 | E181: 203 | F181: 2.24 | G181: 83.5 | H181: 1.61
A182: 775 | B182: 52.2 | C182: 3.564 | D182: 0.017 | E182: 204.6 | F182: 2.51 | G182: 92.5 | H182: 1.79
A183: 800 | B183: 46.3 | C183: 3.589 | D183: 0.017 | E183: 207.9 | F183: 2.66 | G183: 98.7 | H183: 1.91
A184: 850 | B184: 36 | C184: 3.599 | D184: 0.018 | E184: 209.3 | F184: 2.77 | G184: 101 | H184: 1.98
A185: 925 | B185: 39.2 | C185: 3.63 | D185: 0.018 | E185: 213.4 | F185: 3.37 | G185: 114 | H185: 2.44
A186: 1000 | B186: 24.7 | C186: 3.618 | D186: 0.022 | E186: 211.8 | F186: 5.23 | G186: 155.6 | H186: 3.76
A187: 1100 | B187: 34.3 | C187: 3.652 | D187: 0.038 | E187: 216.5 | F187: 20.4 | G187: 568 | H187: 14.54
A188: 1200 | B188: 15.2 | C188: 3.959 | D188: 0.052 | E188: 262.8 | F188: 24.74 | G188: 767.4 | H188: 17.65
A189: 1300 | B189: 4.4 | C189: 4.096 | D189: 0.08 | E189: 286.1 | F189: 21.53 | G189: 695.2 | H189: 15.25
A190: 1400 | B190: 4.4 | C190: 4.047 | D190: 0.044 | E190: 277.4 | F190: 13.57 | G190: 403.5 | H190: 9.28
A191: 1550 | B191: 0.8 | C191: 2.823 | E191: 124.6 | F191: 8.22 | G191: 27.4 | H191: 4.79
C192: =AVERAGE(C175:C191) -> 3.635352941
A193: I. QUE - 97014,5 | C193: Age | D193: Error | J193: =(A193) -> I. QUE - 97014,5
A194: 350 | B194: 8.7 | C194: 4.553 | D194: 0.039 | E194: 547.9 | F194: 43.03 | G194: 22.5 | H194: 15.41 | J194: Maximum Age | K194: 4553 | L194: Million Years
A195: 450 | B195: 8.8 | C195: 2.947 | D195: 0.041 | E195: 196.8 | F195: 15.76 | G195: 28.7 | H195: 1.25 | J195: Minimum Age | K195: 2947 | L195: Million Years
A196: 550 | B196: 425.9 | C196: 3.544 | D196: 0.006 | E196: 292.7 | F196: 2.75 | G196: 24.7 | H196: 0.82 | J196: Average Age | K196: 3527 | L196: Million Years
A197: 600 | B197: 13.6 | C197: 3.566 | D197: 0.029 | E197: 296.9 | F197: 1.06 | G197: 14.9 | H197: 0.55 | J197: Age Difference | K197: =(K194-K195) -> 1606 | L197: Million Years
A198: 700 | B198: 56.5 | C198: 3.582 | D198: 0.009 | E198: 300 | F198: 1.42 | G198: 23.3 | H198: 0.78 | J198: Difference | K198: =(K194/K195) -> 1.544960977 | L198: Percent
A199: 750 | B199: 99.4 | C199: 3.537 | D199: 0.007 | E199: 291.4 | F199: 2.4 | G199: 37.2 | H199: 1.29 | J199: Standard Deviation | K199: 294 | L199: Million Years
A200: 775 | B200: 77.5 | C200: 3.518 | D200: 0.008 | E200: 287.9 | F200: 3.13 | G200: 48 | H200: 1.68
... 362 more rows

Sheet A3
A1: Meteorite Dating
A4: 1 | B4: Age | C4: Error Level | D4: Meteorite Dating
A5: Wellman | B5: Billion Years | C5: Billion Years | D5: =(A5) -> Wellman
A6: 350 | B6: 5.2 | C6: 0.2 | D6: Maximum Age | E6: 5.2 | F6: Billion Years | H6: Meteor's | I6: Maximum Age | J6: Minimum Age | K6: Average Age | L6: Age Difference | M6: Percentage | N6: Billion Years
A7: 425 | B7: 3.737 | C7: 0.1049 | D7: Minimum Age | E7: 3.737 | F7: Billion Years | H7: Name | I7: Billion Years | J7: Billion Years | K7: Billion Years | L7: Billion Years | M7: Difference | N7: Standard Deviation
A8: 500 | B8: 4.301 | C8: 0.042 | D8: Average Age | E8: 4.31 | F8: Billion Years | H8: Wellman | I8: 5.2 | J8: 3.737 | K8: 4.31 | L8: 1.463 | M8: 1.3914905 | N8: 0.313
A9: 575 | B9: 4.244 | C9: 0.042 | D9: Age Difference | E9: =(E6-E7) -> 1.463 | F9: Billion Years | H9: Wickenburg | I9: 3.005 | J9: 0.568 | K9: 1.46 | L9: 2.437 | M9: 5.290492958 | N9: 0.883
A10: 635 | B10: 4.232 | C10: 0.042 | D10: Difference | E10: =(E6/E7) -> 1.3914905 | F10: Percent | H10: Shaw | I10: 5.15 | J10: 4.17 | K10: 4.375 | L10: 0.98 | M10: 1.23501199 | N10: 0.232
A11: 685 | B11: 4.273 | C11: 0.043 | D11: Standard Deviation | E11: 0.313 | F11: Billion Years | H11: Louisville | I11: 5.5 | J11: 0.51 | K11: 1.06 | L11: 4.99 | M11: 10.78431373 | N11: 0.256
A12: 735 | B12: 4.342 | C12: 0.042 | H12: Arapahoe | I12: 9.71 | J12: 0.89 | K12: 3.356 | L12: 8.82 | M12: 10.91011236 | N12: 2.365
A13: 785 | B13: 4.415 | C13: 0.042 | H13: Farmington | I13: 3.7 | J13: 0.511 | K13: 0.94 | L13: 3.189 | M13: 7.240704501 | N13: 0.831
A14: 835 | B14: 4.569 | C14: 0.1062 | D14: D. D. Bogard | H14: Lubbock | I14: 9.4 | J14: 0.12 | K14: 2.462 | L14: 9.28 | M14: 78.33333333 | N14: 0.809
A15: 925 | B15: 4.295 | C15: 0.043 | D15: Geochemica Et Cosmochemica Acta | H15: Orvinio | I15: 8.78 | J15: 0.764 | K15: 2.292 | L15: 8.016 | M15: 11.4921466 | N15: 2.106
A16: 1050 | B16: 4.309 | C16: 0.1042 | D16: Volume 44, pages 1667 to 1682
A17: 1200 | B17: 4.143 | C17: 0.045 | D17: Ar diffusion properties,
A18: 1350 | B18: 4.139 | C18: 0.055 | D18: 1980
A19: 1550 | B19: 4.22 | C19: 0.23
A20: 2 | D20: Meteorite Dating
A21: Wickenburg | D21: =(A21) -> Wickenburg
A22: 4511 | B22: 2.71 | C22: 0.11 | D22: Maximum Age | E22: 3.005 | F22: Billion Years
A23: 550 | B23: 1.16 | C23: 0.067 | D23: Minimum Age | E23: 0.568 | F23: Billion Years
A24: 640 | B24: 0.731 | C24: 0.032 | D24: Average Age | E24: 1.46 | F24: Billion Years
A25: 725 | B25: 0.629 | C25: 3021 | D25: Age Difference | E25: =(E22-E23) -> 2.437 | F25: Billion Years
A26: 810 | B26: 0.568 | C26: 0.015 | D26: Difference | E26: =(E22/E23) -> 5.290492958 | F26: Percent | I26: Wellman | J26: Wickenburg | K26: Shaw | L26: Louisville | M26: Arapahoe | N26: Farmington | O26: Lubbock | P26: Orvinio
A27: 890 | B27: 0.783 | C27: 0.032 | D27: Standard Deviation | E27: 0.883 | F27: Billion Years | I27: 5200 | J27: 3005 | K27: 5150 | L27: 5500 | M27: 9710 | N27: 3700 | O27: 9400 | P27: 8780
A28: 980 | B28: 0.653 | C28: 0.024 | I28: 4569 | J28: 2840 | K28: 4586 | L28: 2210 | M28: 4362 | N28: 1435 | O28: 5820 | P28: 4790
A29: 1070 | B29: 0.774 | C29: 0.02 | I29: 4415 | J29: 2710 | K29: 4548 | L29: 1450 | M29: 4330 | N29: 1005 | O29: 3070 | P29: 2170
A30: 1160 | B30: 1.284 | C30: 0.028 | I30: 4342 | J30: 2173 | K30: 4434 | L30: 950 | M30: 3970 | N30: 811 | O30: 2511 | P30: 2106.389679
A31: 1220 | B31: 1.499 | C31: 0.028 | I31: 4309 | J31: 1707 | K31: 4380 | L31: 747 | M31: 3394 | N31: 766 | O31: 2495 | P31: 2050
A32: 1270 | B32: 1.707 | C32: 0.056 | I32: 4301 | J32: 1499 | K32: 4313 | L32: 668 | M32: 3353 | N32: 731 | O32: 2342 | P32: 1903
A33: 1320 | B33: 2.173 | C33: 0.043 | I33: 4295 | J33: 1284 | K33: 4311 | L33: 662 | M33: 3220 | N33: 702 | O33: 2305 | P33: 1890
A34: 1370 | B34: 3.005 | C34: 0.081 | I34: 4273 | J34: 1160 | K34: 4295 | L34: 616 | M34: 2971 | N34: 647 | O34: 2299 | P34: 1844
A35: 1450 | B35: 2.84 | C35: 31 | I35: 4244 | J35: 783 | K35: 4294 | L35: 613 | M35: 1982 | N35: 636 | O35: 2184 | P35: 1829
A36: 3 | D36: Meteorite Dating | I36: 4232 | J36: 774 | K36: 4294 | L36: 566 | M36: 1134 | N36: 618 | O36: 1977 | P36: 1554
A37: Shaw | D37: =(A37) -> Shaw | I37: 4220 | J37: 731 | K37: 4278 | L37: 550 | M37: 961 | N37: 548 | O37: 1507 | P37: 1471
A38: 340 | B38: 4.17 | C38: 0.17 | D38: Maximum Age | E38: 5.15 | F38: Billion Years | I38: 4143 | J38: 653 | K38: 4273 | L38: 520 | M38: 890 | N38: 537 | O38: 1412 | P38: 1243
A39: 425 | B39: 4.548 | C39: 0.069 | D39: Minimum Age | E39: 4.17 | F39: Billion Years | I39: 4139 | J39: 629 | K39: 4273 | L39: 516 | N39: 511 | O39: 1407 | P39: 916
A40: 500 | B40: 4.586 | C40: 0.1379 | D40: Average Age | E40: 4.375 | F40: Billion Years | I40: 3737 | J40: 568 | K40: 4266 | L40: 510 | N40: 511 | O40: 1070 | P40: 879
A41: 600 | B41: 4.434 | C41: 0.087 | D41: Age Difference | E41: =(E38-E39) -> 0.98 | F41: Billion Years | K41: 4261 | L41: 501 | O41: 990 | P41: 764
A42: 700 | B42: 4.38 | C42: 0.059 | D42: Difference | E42: =(E38/E39) -> 1.23501199 | F42: Percent | K42: 4257 | L42: 501 | O42: 953
A43: 775 | B43: 4.295 | C43: 0.058 | D43: Standard Deviation | E43: 0.232 | F43: Billion Years | K43: 4170 | O43: 120.4
A44: 825 | B44: 4.311 | C44: 0.058
A45: 875 | B45: 4.313 | C45: 0.058
A46: 925 | B46: 4.294 | C46: 0.063
A47: 975 | B47: 4.273 | C47: 0.098
A48: 1050 | B48: 4.278 | C48: 0.065
A49: 1125 | B49: 4.273 | C49: 0.058
A50: 1200 | B50: 4.261 | C50: 0.06
A51: 1275 | B51: 4.266 | C51: 0.06
A52: 1375 | B52: 4.257 | C52: 0.064
A53: 1475 | B53: 4.294 | C53: 0.059
A54: 1620 | B54: 5.15 | C54: 0.09
A55: 4 | D55: Meteorite Dating
A56: Louisville | D56: =(A56) -> Louisville
A57: 300 | B57: 5.5 | C57: 0.42 | D57: Maximum Age | E57: 5.5 | F57: Billion Years
A58: 400 | B58: 2.21 | C58: 0.09 | D58: Minimum Age | E58: 0.51 | F58: Billion Years
A59: 500 | B59: 1.45 | C59: 0.05 | D59: Average Age | E59: 1.06 | F59: Billion Years
A60: 600 | B60: 0.747 | C60: 0.026 | D60: Age Difference | E60: =(E57-E58) -> 4.99 | F60: Billion Years
A61: 700 | B61: 0.613 | C61: 0.017 | D61: Difference | E61: =(E57/E58) -> 10.78431373 | F61: Percent
A62: 800 | B62: 0.501 | C62: 0.015 | D62: Standard Deviation | E62: 0.256 | F62: Billion Years
A63: 900 | B63: 0.501 | C63: 0.008
A64: 975 | B64: 0.51 | C64: 0.008
A65: 1050 | B65: 0.516 | C65: 0.008
A66: 1125 | B66: 0.52 | C66: 0.007
A67: 1200 | B67: 0.55 | C67: 0.011
A68: 1275 | B68: 0.566 | C68: 0.013
A69: 1350 | B69: 0.616 | C69: 0.02
A70: 1425 | B70: 0.662 | C70: 0.007
A71: 1500 | B71: 0.668 | C71: 0.12
A72: 1575 | B72: 0.95 | C72: 0.03
A73: 5 | D73: Meteorite Dating
A74: Arapahoe | D74: =(A74) -> Arapahoe
A75: 400 | B75: 9.71 | C75: 0.04 | D75: Maximum Age | E75: 9.71 | F75: Billion Years
A76: 500 | B76: 4.33 | C76: 0.04 | D76: Minimum Age | E76: 0.89 | F76: Billion Years
A77: 600 | B77: 3.22 | C77: 0.03 | D77: Average Age | E77: 3.356 | F77: Billion Years
A78: 700 | B78: 1.134 | C78: 0.019 | D78: Age Difference | E78: =(E75-E76) -> 8.82 | F78: Billion Years
A79: 775 | B79: 0.961 | C79: 0.018 | D79: Difference | E79: =(E75/E76) -> 10.91011236 | F79: Percent
A80: 875 | B80: 0.89 | C80: 0.02 | D80: Standard Deviation | E80: 2.365 | F80: Billion Years
A81: 975 | B81: 1.982 | C81: 0.034
A82: 1075 | B82: 3.353 | C82: 0.034
A83: 1150 | B83: 2.971 | C83: 0.31
A84: 1225 | B84: 3.394 | C84: 0.035
A85: 1300 | B85: 4.362 | C85: 0.053
A86: 1610 | B86: 3.97 | C86: 0.54
A87: 6 | D87: Meteorite Dating
A88: Farmington | D88: =(A88) -> Farmington
A89: 550 | B89: 1.435 | C89: 0.028 | D89: Maximum Age | E89: 3.7 | F89: Billion Years
A90: 625 | B90: 1.005 | C90: 0.044 | D90: Minimum Age | E90: 0.511 | F90: Billion Years
A91: 700 | B91: 0.537 | C91: 0.01 | D91: Average Age | E91: 0.94 | F91: Billion Years
A92: 775 | B92: 0.511 | C92: 0.009 | D92: Age Difference | E92: =(E89-E90) -> 3.189 | F92: Billion Years
A93: 850 | B93: 0.511 | C93: 0.009 | D93: Difference | E93: =(E89/E90) -> 7.240704501 | F93: Percent
A94: 925 | B94: 0.548 | C94: 0.01 | D94: Standard Deviation | E94: 0.831 | F94: Billion Years
A95: 1000 | B95: 0.766 | C95: 0.032
A96: 1075 | B96: 0.731 | C96: 0.033
A97: 1150 | B97: 0.618 | C97: 0.032
A98: 1225 | B98: 0.647 | C98: 0.042
A99: 1300 | B99: 0.702 | C99: 0.031
A100: 1375 | B100: 0.636 | C100: 0.087
A101: 1450 | B101: 0.811 | C101: 0.131
A102: 1610 | B102: 3.7 | C102: 2.3
A103: 7 | D103: Meteorite Dating
A104: Lubbock | D104: =(A104) -> Lubbock
A105: 340 | B105: 9.4 | C105: 0.2 | D105: Maximum Age | E105: 9.4 | F105: Billion Years
A106: 450 | B106: 5.82 | C106: 0.307 | D106: Minimum Age | E106: 0.12 | F106: Billion Years
A107: 555 | B107: 2.184 | C107: 0.032 | D107: Average Age | E107: 2.462 | F107: Billion Years
A108: 625 | B108: 1.507 | C108: 0.027 | D108: Age Difference | E108: =(E105-E106) -> 9.28 | F108: Billion Years
A109: 700 | B109: 1.407 | C109: 0.025 | D109: Difference | E109: =(E105/E106) -> 78.33333333 | F109: Percent
A110: 750 | B110: 1.07 | C110: 0.022 | D110: Standard Deviation | E110: 0.809 | F110: Billion Years
A111: 810 | B111: 0.99 | C111: 0.021
A112: 890 | B112: 0.953 | C112: 0.022
A113: 975 | B113: 0.1204 | C113: 0.032
A114: 1075 | B114: 1.412 | C114: 0.028
A115: 1150 | B115: 1.977 | C115: 0.035
A116: 1200 | B116: 2.342 | C116: 0.1036
A117: 1250 | B117: 2.495 | C117: 0.036
A118: 1300 | B118: 2.511 | C118: 0.035
A119: 1350 | B119: 2.299 | C119: 0.062
A120: 1425 | B120: 2.305 | C120: 0.45
A121: 1500 | B121: 3.07 | C121: 0.27 | J121: 0.1204
A122: 8 | D122: Meteorite Dating | J122: 0.501
A123: Orvinio | D123: =(A123) -> Orvinio | J123: 0.501
A124: 330 | B124: 8.78 | D124: Maximum Age | E124: 8.78 | F124: Billion Years | J124: 0.51
A125: 450 | B125: 4.79 | C125: 0.13 | D125: Minimum Age | E125: 0.764 | F125: Billion Years | J125: 0.511
A126: 550 | B126: 2.05 | C126: 0.06 | D126: Average Age | E126: 2.292 | F126: Billion Years | J126: 0.511
A127: 650 | B127: 0.916 | C127: 0.057 | D127: Age Difference | E127: =(E124-E125) -> 8.016 | F127: Billion Years | J127: 0.516
A128: 725 | B128: 0.764 | C128: 0.023 | D128: Difference | E128: =(E124/E125) -> 11.4921466 | F128: Percent | J128: 0.52
A129: 800 | B129: 1.243 | C129: 0.023 | D129: Standard Deviation | E129: 2.106 | F129: Billion Years | J129: 0.537
A130: 875 | B130: 0.879 | C130: 0.192 | J130: 0.548
A131: 975 | B131: 1.471 | C131: 0.074 | J131: 0.55
A132: 1075 | B132: 1.554 | C132: 0.04 | J132: 0.566
A133: 1150 | B133: 1.903 | C133: 0.08 | J133: 0.568
A134: 1250 | B134: 1.844 | C134: 0.035 | J134: 0.613
A135: 1325 | B135: 1.829 | C135: 0.033 | J135: 0.616
A136: 1305 | B136: 1.89 | C136: 0.07 | J136: 0.618
A137: 1450 | B137: 2.17 | C137: 0.13 | J137: 0.629
A138: 1550 | B138: =STDEV(B124:B137) -> 2.106389679 | C138: 0.13 | J138: 0.636
J139: 0.647
J140: 0.653
J141: 0.662
J142: 0.668
J143: 0.702
J144: 0.731
J145: 0.731
J146: 0.747
J147: 0.764
J148: 0.766
J149: 0.774
J150: 0.783
J151: 0.811
J152: 0.879
J153: 0.89
J154: 0.916
J155: 0.95
J156: 0.953
J157: 0.961
J158: 0.99
J159: 1.005
J160: 1.07
J161: 1.134
J162: 1.16
J163: 1.243
J164: 1.284
J165: 1.407
J166: 1.412
J167: 1.435
J168: 1.45
J169: 1.471
J170: 1.499
J171: 1.507
J172: 1.554
J173: 1.707
J174: 1.829
J175: 1.844
J176: 1.89
J177: 1.903
J178: 1.977
J179: 1.982
J180: 2.05
J181: =STDEV(J167:J180) -> 0.2272370597
J182: 2.17
J183: 2.173
J184: 2.184
J185: 2.21
J186: 2.299
J187: 2.305
J188: 2.342
J189: 2.495
J190: 2.511
J191: 2.71
J192: 2.84
J193: 2.971
J194: 3.005
J195: 3.07
J196: 3.22
J197: 3.353
J198: 3.394
J199: 3.7
J200: 3.737
J201: 3.97
J202: 4.139
... 37 more rows

Sheet A4
A1: Temperature (°C) | L1: 1. Monahans Light | M1: 2. Monahans Dark | N1: 3. Monahans Halite
A2: 1. Monahans Light | B2: 39Ar Age | C2: Error Level | E2: =(A2) -> 1. Monahans Light | L2: 4619 | M2: 8058 | N2: 5745
A3: 400 | B3: 4.619 | C3: 0.01 | E3: Maximum Age | F3: 4619 | G3: Million Years | L3: 4542 | M3: 4714 | N3: 4330
A4: 450 | B4: 4.503 | C4: 0.006 | E4: Minimum Age | F4: 2503 | G4: Million Years | L4: 4534 | M4: 4582 | N4: 4204
A5: 500 | B5: 4.322 | C5: 0.005 | E5: Average Age | F5: 4286 | G5: Million Years | L5: 4534 | M5: 4503 | N5: 4124
A6: 530 | B6: 4.346 | C6: 0.005 | E6: Age Difference | F6: =(F3-F4) -> 2116 | G6: Million Years | L6: 4534 | M6: 4495 | N6: 3824
A7: 550 | B7: 4.384 | C7: 0.006 | E7: Difference | F7: =(F3/F4) -> 1.845385537 | G7: Percent | L7: 4531 | M7: 4483 | N7: 2250
A8: 575 | B8: 4.427 | C8: 0.004 | E8: Standard Deviation | F8: 420 | G8: Million Years | L8: 4529 | M8: 4481 | N8: 1965
A9: 600 | B9: 4.473 | C9: 0.004 | L9: 4524 | M9: 4469 | N9: 1324
A10: 620 | B10: 4.498 | C10: 0.004 | L10: 4522 | M10: 4456 | N10: 1102
A11: 635 | B11: 4.522 | C11: 0.004 | L11: 4521 | M11: 4450
A12: 650 | B12: 4.524 | C12: 0.004 | L12: 4503 | M12: 4434
A13: 660 | B13: 4.534 | C13: 0.005 | L13: 4498 | M13: 4430
A14: 675 | B14: 4.534 | C14: 0.004 | L14: 4488 | M14: 4425
A15: 705 | B15: 4.531 | C15: 0.004 | L15: 4473 | M15: 4418
A16: 725 | B16: 4.534 | C16: 0.005 | E16: D. D. Bogard | L16: 4427 | M16: 4417
A17: 740 | B17: 4.542 | C17: 0.006 | E17: Meteoritics And Planetary Science | L17: 4384 | M17: 4304
A18: 765 | B18: 4.529 | C18: 0.005 | E18: Volume 36, Pages 107-122 | L18: 4346 | M18: 4089
A19: 790 | B19: 4.521 | C19: 0.006 | E19: Argon-39/Argon-40 Ages | L19: 4343 | M19: 4043
A20: 850 | B20: 4.488 | C20: 0.006 | E20: 2001 | L20: 4322 | M20: 3954
A21: 900 | B21: 4.315 | C21: 0.006 | L21: 4315 | M21: 3942
A22: 940 | B22: 4.058 | C22: 0.006 | L22: 4206 | M22: 3939
A23: 975 | B23: 3.825 | C23: 0.007 | L23: 4090 | M23: 3916
A24: 1020 | B24: 3.74 | C24: 0.008 | L24: 4069 | M24: 3899
A25: 1075 | B25: 4.069 | C25: 0.006 | L25: 4058
A26: 1125 | B26: 4.09 | C26: 0.018 | L26: 4017
A27: 1200 | B27: 4.017 | C27: 0.024 | L27: 3825
A28: 1300 | B28: 4.343 | C28: 0.013 | L28: 3740
A29: 1400 | B29: 4.206 | C29: 0.066 | L29: 2503
A30: 1575 | B30: 2.503 | C30: 0.297
B31: =STDEV(B3:B30) -> 0.4198687925
A33: 2. Monahans Dark | B33: 39Ar Age | C33: Error Level | E33: =(A33) -> 2. Monahans Dark
A34: 400 | B34: 4.714 | C34: 0.004 | E34: Maximum Age | F34: 8058 | G34: Million Years
A35: 450 | B35: 4.582 | C35: 0.007 | E35: Minimum Age | F35: 3899 | G35: Million Years
A36: 505 | B36: 4.417 | C36: 0.004 | E36: Average Age | F36: 4474 | G36: Million Years
A37: 535 | B37: 4.418 | C37: 0.004 | E37: Age Difference | F37: =(F34-F35) -> 4159 | G37: Million Years
A38: 560 | B38: 4.43 | C38: 0.004 | E38: Difference | F38: =(F34/F35) -> 2.066683765 | G38: Percent
A39: 600 | B39: 4.425 | C39: 0.003 | E39: Standard Deviation | F39: 819 | G39: Million Years
A40: 620 | B40: 4.456 | C40: 0.004
A41: 638 | B41: 4.469 | C41: 0.004
A42: 655 | B42: 4.483 | C42: 0.004
A43: 680 | B43: 4.481 | C43: 0.004
A44: 700 | B44: 4.503 | C44: 0.005
A45: 725 | B45: 4.495 | C45: 0.005
A46: 750 | B46: 4.45 | C46: 0.005
A47: 790 | B47: 4.434 | C47: 0.005
A48: 855 | B48: 4.304 | C48: 0.005
A49: 900 | B49: 4.089 | C49: 0.007
A50: 930 | B50: 3.939 | C50: 0.006
A51: 970 | B51: 3.954 | C51: 0.005
A52: 1020 | B52: 3.899 | C52: 0.005
A53: 1100 | B53: 3.942 | C53: 0.005
A54: 1200 | B54: 3.916 | C54: 0.006
A55: 1350 | B55: 4.043 | C55: 0.009
A56: 1575 | B56: 8.058 | C56: 0.523
B57: =STDEV(B34:B56) -> 0.819464985
A59: 3. Monahans Halite | B59: 39Ar Age | C59: Error Level | E59: =(A59) -> 3. Monahans Halite
A60: 100 | B60: 5.745 | C60: 0.887 | E60: Maximum Age | F60: 5745 | G60: Million Years
A61: 250 | B61: 2.25 | C61: 0.486 | E61: Minimum Age | F61: 1102 | G61: Million Years
A62: 500 | B62: 1.102 | C62: 0.032 | E62: Average Age | F62: 3208 | G62: Million Years
A63: 600 | B63: 4.124 | C63: 0.006 | E63: Age Difference | F63: =(F60-F61) -> 4643 | G63: Million Years
A64: 625 | B64: 4.33 | C64: 0.008 | E64: Difference | F64: =(F60/F61) -> 5.213248639 | G64: Percent
A65: 650 | B65: 3.824 | C65: 0.191 | E65: Standard Deviation | F65: 1595 | G65: Million Years
A66: 800 | B66: 1.324 | C66: 0.4
A67: 1100 | B67: 1.965 | C67: 0.436
A68: 1575 | B68: 4.204 | C68: 0.773
B69: =STDEV(B60:B68) -> 1.595042485

Sheet A5
A1: Meteorite Dating | M1: Age | N1: Error | S1: 7.2
M2: Billion Years | N2: Billion Years | S2: 8.9
A3: Abee clast 1, 1, 04 | O3: =(A3) -> Abee clast 1, 1, 04 | S3: 5.4
A4: 350 | B4: 4.36 | C4: 83.75 | D4: 0.85 | E4: 1.168 | F4: 0.013 | G4: 1.29 | H4: 0.031 | I4: 0.0884 | J4: 0.0019 | K4: 0.397 | L4: 0.009 | M4: 4.1 | N4: 0.02 | O4: Maximum Age | P4: 4530 | Q4: Million Years | S4: 4.8
A5: 450 | B5: 7.93 | C5: 102.3 | D5: 0.7 | E5: 0.525 | F5: 0.006 | G5: 1.102 | H5: 0.025 | I5: 0.0298 | J5: 0.0007 | K5: 0.465 | L5: 0.01 | M5: 4.43 | N5: 0.02 | O5: Minimum Age | P5: 3560 | Q5: Million Years
A6: 525 | B6: 6.64 | C6: 106.9 | D6: 0.7 | E6: 0.423 | F6: 0.005 | G6: 1.446 | H6: 0.042 | I6: 0.029 | J6: 0.0021 | K6: 0.354 | L6: 0.01 | M6: 4.5 | N6: 0.02 | O6: Average Age | P6: 4270 | Q6: Million Years
A7: 600 | B7: 10.22 | C7: 99.39 | D7: 0.51 | E7: 0.417 | F7: 0.004 | G7: 1.385 | H7: 0.031 | I7: 0.0257 | J7: 0.0007 | K7: 0.37 | L7: 0.008 | M7: 4.38 | N7: 0.02 | O7: Age Difference | P7: =(P4-P5) -> 970 | Q7: Million Years
A8: 650 | B8: 4.04 | C8: 101 | D8: 0.9 | E8: 0.448 | F8: 0.006 | G8: 1.153 | H8: 0.026 | I8: 0.0323 | J8: 0.001 | K8: 0.444 | L8: 0.01 | M8: 4.41 | N8: 0.02 | O8: Difference | P8: =(P4/P5) -> 1.27247191 | Q8: Percent
A9: 725 | B9: 2.07 | C9: 108 | D9: 0.7 | E9: 0.51 | F9: 0.006 | G9: 1.131 | H9: 0.036 | I9: 0.029 | J9: 0.0021 | K9: 0.453 | L9: 0.015 | M9: 4.52 | N9: 0.02 | O9: Standard Deviation | P9: 330 | Q9: Million Years
A10: 800 | B10: 14.11 | C10: 106.4 | D10: 0.5 | E10: 0.779 | F10: 0.006 | G10: 2.014 | H10: 0.034 | I10: 0.0409 | J10: 0.0019 | K10: 0.254 | L10: 0.004 | M10: 4.5 | N10: 0.02
A11: 875 | B11: 3.05 | C11: 108.5 | D11: 1.2 | E11: 0.826 | F11: 0.011 | G11: 2.03 | H11: 0.064 | I11: 0.0679 | J11: 0.0068 | K11: 0.252 | L11: 0.008 | M11: 4.53 | N11: 0.02
A12: 975 | B12: 4.1 | C12: 105.3 | D12: 1.4 | E12: 0.82 | F12: 0.015 | G12: 3.49 | H12: 0.11 | I12: 0.1035 | J12: 0.0029 | K12: 0.147 | L12: 0.005 | M12: 4.48 | N12: 0.03 | O12: D. D. Bogard
A13: 1090 | B13: 4.75 | C13: 99.9 | D13: 0.6 | E13: 0.991 | F13: 0.009 | G13: 10.8 | H13: 0.25 | I13: 0.375 | J13: 0.004 | K13: 0.047 | L13: 0.001 | M13: 4.39 | N13: 0.02 | O13: Earth and Planetary Science Letters
A14: 1250 | B14: 9.91 | C14: 84.96 | D14: 0.7 | E14: 1.131 | F14: 0.014 | G14: 6.63 | H14: 0.16 | I14: 1.122 | J14: 0.02 | K14: 0.077 | L14: 0.002 | M14: 4.13 | N14: 0.02 | O14: Volume 62, pages 132-146
A15: 1400 | B15: 3.01 | C15: 62.11 | D15: 2.18 | E15: 1.95 | F15: 0.07 | G15: 9.5 | H15: 0.4 | I15: 2.9 | J15: 0.11 | K15: 0.054 | L15: 0.002 | M15: 3.63 | N15: 0.06 | O15: U Th Pb dating of Abee E4 Meteorite
A16: 1500 | B16: 0.67 | C16: 59.5 | D16: 2.3 | E16: 3.17 | F16: 0.17 | G16: 11.4 | H16: 0.7 | I16: 5.25 | J16: 0.27 | K16: 0.045 | L16: 0.003 | M16: 3.56 | N16: 0.06 | O16: 1983
M17: =STDEV(M4:M16) -> 0.3308710338
A19: Abee clast 2, 2, 05 | M19: X | O19: =(A19) -> Abee clast 2, 2, 05
A20: 300 | B20: 300 | C20: 0.07 | D20: 522 | E20: 0.32 | G20: 4.75 | I20: 1.59 | K20: 0.11 | M20: 7.2 | O20: Maximum Age | P20: 7200 | Q20: Million Years
A21: 400 | B21: 400 | C21: 0.33 | D21: 131 | E21: 0.94 | G21: 2.61 | I21: 0.197 | K21: 0.2 | M21: 4.8 | O21: Minimum Age | P21: 3990 | Q21: Million Years
A22: 500 | B22: 99.22 | C22: 0.31 | D22: 0.464 | E22: 0.024 | F22: 1.7 | G22: 0.04 | H22: 0.0501 | I22: 0.0011 | J22: 0.302 | K22: 0.007 | M22: 4.33 | N22: 0.02 | O22: Average Age | P22: 4640 | Q22: Million Years
A23: 600 | B23: 109.8 | C23: 0.2 | D23: 0.35 | E23: 0.004 | F23: 1.03 | G23: 0.02 | H23: 0.0294 | I23: 0.0013 | J23: 0.498 | K23: 0.01 | M23: 4.5 | N23: 0.02 | O23: Age Difference | P23: =(P20-P21) -> 3210 | Q23: Million Years
A24: 675 | B24: 110.8 | C24: 0.2 | D24: 0.365 | E24: 0.003 | F24: 1.12 | G24: 0.02 | H24: 0.0273 | I24: 0.0004 | J24: 0.458 | K24: 0.009 | M24: 4.52 | N24: 0.02 | O24: Difference | P24: =(P20/P21) -> 1.804511278 | Q24: Percent
A25: 750 | B25: 110.9 | C25: 0.7 | D25: 0.534 | E25: 0.007 | F25: 1.82 | G25: 0.02 | H25: 0.04 | I25: 0.0007 | J25: 0.281 | K25: 0.014 | M25: 4.52 | N25: 0.02 | O25: Standard Deviation | P25: 840 | Q25: Million Years
A26: 800 | B26: 112.1 | C26: 1.2 | D26: 0.702 | E26: 0.011 | F26: 2.43 | G26: 0.06 | H26: 0.0639 | I26: 0.0014 | J26: 0.211 | K26: 0.005 | M26: 4.54 | N26: 0.02
A27: 900 | B27: 109.6 | C27: 0.8 | D27: 0.88 | E27: 0.009 | F27: 3.38 | G27: 0.07 | H27: 0.0889 | I27: 0.002 | J27: 0.152 | K27: 0.003 | M27: 4.5 | N27: 0.02
A28: 1000 | B28: 105.3 | C28: 1.3 | D28: 0.923 | E28: 0.018 | F28: 6.91 | G28: 0.21 | H28: 0.171 | I28: 0.004 | J28: 0.0741 | K28: 0.0022 | M28: 4.43 | N28: 0.03
A29: 1150 | B29: 95.3 | C29: 0.8 | D29: 1.323 | E29: 0.014 | F29: 18.3 | G29: 0.4 | H29: 0.936 | I29: 0.009 | J29: 0.028 | K29: 0.0007 | M29: 4.27 | N29: 0.02
A30: 1300 | B30: 82.2 | C30: 0.5 | D30: 1.25 | E30: 0.011 | F30: 7.77 | G30: 0.16 | H30: 1.38 | I30: 0.01 | J30: 0.0659 | K30: 0.0014 | M30: 4.03 | N30: 0.02
A31: 1550 | B31: 80.1 | C31: 4.4 | D31: 3.3 | E31: 0.26 | F31: 14.6 | G31: 1.3 | H31: 5.71 | I31: 0.44 | J31: 0.035 | K31: 0.003 | M31: 3.99 | N31: 0.09
M32: =STDEV(M19:M31) -> 0.8382173545
M34: X
A35: Abee clast 3, 3, 06 | O35: =(A35) -> Abee clast 3, 3, 06
A36: 300 | B36: 0.2 | C36: 1355 | D36: 2.16 | F36: 4.7 | H36: 4.43 | J36: 0.11 | M36: 8.9 | O36: Maximum Age | P36: 8900 | Q36: Million Years
A37: 400 | B37: 0.83 | C37: 193 3 | D37: 0.75 | E37: 0.01 | F37: 2.9 | H37: 0.48 | J37: 0.17 | M37: 5.4 | O37: Minimum Age | P37: 3580 | Q37: Million Years
A38: 500 | B38: 4.87 | C38: 72.47 | D38: 0.8 | E38: 0.393 | F38: 0.006 | G38: 2.32 | H38: 0.06 | I38: 0.0479 | J38: 0.003 | K38: 0.221 | L38: 0.006 | M38: 3.82 | N38: 0.02 | O38: Average Age | P38: 4610 | Q38: Million Years
A39: 600 | B39: 8.52 | C39: 88.94 | D39: 0.35 | E39: 0.486 | F39: 0.004 | G39: 3.62 | H39: 0.08 | I39: 0.0302 | J39: 0.001 | K39: 0.141 | L39: 0.003 | M39: 4.15 | N39: 0.02 | O39: Age Difference | P39: =(P36-P37) -> 5320 | Q39: Million Years
A40: 675 | B40: 5.68 | C40: 97.98 | D40: 0.42 | E40: 0.697 | F40: 0.016 | G40: 3.66 | H40: 0.08 | I40: 0.0294 | J40: 0.0011 | K40: 0.14 | L40: 0.003 | M40: 4.31 | N40: 0.02 | O40: Difference | P40: =(P36/P37) -> 2.48603352 | Q40: Percent
A41: 725 | B41: 11.59 | C41: 102.2 | D41: 0.6 | E41: 0.826 | F41: 0.008 | G41: 3.47 | H41: 0.09 | I41: 0.0318 | J41: 0.0012 | K41: 0.148 | L41: 0.004 | M41: 4.38 | N41: 0.02 | O41: Standard Deviation | P41: 1360 | Q41: Million Years
A42: 775 | B42: 7.22 | C42: 108.4 | D42: 0.8 | E42: 1.13 | F42: 0.014 | G42: 3.68 | H42: 0.08 | I42: 0.0435 | J42: 0.0013 | K42: 0.139 | L42: 0.003 | M42: 4.47 | N42: 0.02
A43: 850 | B43: 2.65 | C43: 109.4 | D43: 0.6 | E43: 1.235 | F43: 0.011 | G43: 3.28 | H43: 0.09 | I43: 0.0516 | J43: 0.0023 | K43: 0.156 | L43: 0.004 | M43: 4.49 | N43: 0.02
A44: 950 | B44: 9.3 | C44: 103.2 | D44: 0.2 | E44: 1.326 | F44: 0.006 | G44: 4.48 | H44: 0.09 | I44: 0.0598 | J44: 0.0012 | K44: 0.114 | L44: 0.002 | M44: 4.39 | N44: 0.02
A45: 1050 | B45: 6.27 | C45: 97.3 | D45: 0.4 | E45: 1.14 | F45: 0.007 | G45: 7.02 | H45: 0.15 | I45: 0.1003 | J45: 0.0022 | K45: 0.0729 | L45: 0.0015 | M45: 4.29 | N45: 0.02
A46: 1175 | B46: 10.28 | C46: 81 | D46: 0.47 | E46: 0.884 | F46: 0.008 | G46: 19.3 | H46: 0.4 | I46: 0.25 | J46: 0.002 | K46: 0.0265 | L46: 0.0006 | M46: 4 | N46: 0.02
A47: 1325 | B47: 7.64 | C47: 69.8 | D47: 0.5 | E47: 1.177 | F47: 0.012 | G47: 10 | H47: 0.3 | I47: 0.489 | J47: 0.008 | K47: 0.0512 | L47: 0.0012 | M47: 3.76 | N47: 0.02
A48: 1500 | B48: 1.21 | C48: 62 | D48: 3.4 | E48: 2.12 | F48: 0.17 | G48: 12.2 | H48: 1.2 | I48: 1.95 | J48: 0.16 | K48: 0.0419 | L48: 0.0041 | M48: 3.58 | N48: 0.09
M49: =STDEV(M36:M48) -> 1.364645629
A59: TABLES 4 And 5 | B59: 206Pb/204Pb | D59: 207Pb/204Pb | F59: 208Pb/204Pb | H59: Pb-206/207 | I59: Pb-206/207
A60: 1,1,01 | H60: Ratio | I60: Age
A61: 1,1,I | B61: 9.44 | C61: 0.012 | D61: 10.377 | E61: 0.014 | F61: 29.594 | G61: 0.05 | H61: 1.0992 | I61: =[1]!AgePb76(H61) ->  | J61: 3.1348 | K61: 0.0036 | L61: 4.56 | M61: 0.15
A62: 1,1 | B62: 9.576 | C62: 0.01 | D62: 10.481 | E62: 0.012 | F62: 29.753 | G62: 0.04 | H62: 1.0945 | I62: =[1]!AgePb76(H62) ->  | J62: 3.1069 | K62: 0.0026 | L62: 4.72 | M62: 0.05
A63: I,I,E2 | B63: 9.53 | C63: 0.012 | D63: 10.433 | E63: 0.015 | F63: 29.661 | G63: 0.044 | H63: 1.0947 | I63: =[1]!AgePb76(H63) ->  | J63: 3.1123 | K63: 0.0027 | L63: 4.56 | M63: 0.1
A64: I,I,E2(H20 | B64: 10.79 | C64: 0.08 | D64: 11.15 | E64: 0.1 | F64: 30.61 | G64: 0.27 | H64: 1.033 | I64: =[1]!AgePb76(H64) ->  | J64: 2.836 | K64: 0.014 | L64: 4.45 | M64: 0.07
A65: 2,2,02
A66: 2,2,I | B66: 9.443 | C66: 0.008 | D66: 10.387 | E66: 0.011 | F66: 29.559 | G66: 0.037 | H66: 1.1 | I66: =[1]!AgePb76(H66) ->  | J66: 3.1302 | K66: 0.0028 | L66: 4.7 | M66: 0.1
A67: 2,2,E | B67: 9.487 | C67: 0.015 | D67: 10.405 | E67: 0.018 | F67: 29.556 | G67: 0.058 | H67: 1.0966 | I67: =[1]!AgePb76(H67) ->  | J67: 3.1152 | K67: 0.0035 | L67: 4.54 | M67: 0.13
A68: 2,2,E(H20 | B68: 15.17 | C68: 0.11 | D68: 13.59 | E68: 0.12 | F68: 34.52 | G68: 0.31 | H68: 0.8958 | I68: =[1]!AgePb76(H68) ->  | J68: 2.275 | K68: 0.012 | L68: 4.41 | M68: 0.03
A69: 3,3,07
A70: 3,3,1 | B70: 9.472 | C70: 0.013 | D70: 10.397 | E70: 0.015 | F70: 29.642 | G70: 0.045 | H70: 1.0976 | I70: =[1]!AgePb76(H70) ->  | J70: 3.1293 | K70: 0.0021 | L70: 4.56 | M70: 0.1
A71: 3,3,E | B71: 9.517 | C71: 0.01 | D71: 10.438 | E71: 0.011 | F71: 29.737 | G71: 0.037 | H71: 1.0967 | I71: =[1]!AgePb76(H71) ->  | J71: 3.1245 | K71: 0.0022 | L71: 4.7 | M71: 0.06
A72: 3,3,E(H20 | B72: 10.03 | C72: 0.04 | D72: 10.74 | E72: 0.05 | F72: 30.03 | G72: 0.15 | H72: 1.0708 | I72: =[1]!AgePb76(H72) ->  | J72: 2.993 | K72: 0.008 | L72: 4.55 | M72: 0.05
A78: TABLE 7 | C78: Pb-206/204 | D78: Pb-207/204 | E78: Pb-207/206 | F78: Pb-207/206
A79: Abee | B79: 1,1,01 | C79: Ratio | D79: Ratio | E79: Ratio | F79: Age | K79: Pb-206/204 | L79: Pb-207/204 | M79: Pb-208/204 | N79: 238U/204Pb
A80: 1,1,I | B80: 0.008 | C80: 9.44 | D80: 10.377 | E80: =(D80/C80) -> 1.099258475 | F80: =[1]!AgePb76(E80) ->  | I80: Abee | J80: 1,1,01 | K80: Ratio | L80: Ratio | M80: Ratio | N80: Ratio
A81: 1,1,El | B81: 33.4 | C81: 9.472 | D81: 10.424 | E81: =(D81/C81) -> 1.100506757 | F81: =[1]!AgePb76(E81) ->  | I81: 1,1,I | J81: 0.008 | K81: 9.44 | L81: 10.377 | M81: 29.594 | N81: 0.1281 | O81: 10.293 | P81: -0.01 | Q81: 29.489 | S81: 0.04
A82: 1,I,E2 | B82: 26.4 | C82: 9.451 | D82: 10.39 | E82: 1.099354566 | F82: =[1]!AgePb76(E82) ->  | I82: 1,1,El | J82: 33.4 | K82: 9.472 | L82: 10.424 | M82: 29.655 | N82: 0.1588 | O82: 10.32 | Q82: 0.25 | R82: 29.539 | T82: 0.21
A83: Abee | B83: 2,2,02 | E83: 0 | I83: 1,I,E2 | J83: 26.4 | K83: 9.451 | L83: 10.39 | M83: 29.587 | N83: 0.1397 | O83: 10.299 | Q83: 0.05 | R83: 29.481 | T83: 0.02
A84: 2,2,I | B84: 2.9 | C84: 9.435 | D84: 10.383 | E84: 1.100476948 | F84: =[1]!AgePb76(E84) ->  | I84: Abee | J84: 2,2,02
A85: 2,2,E | B85: 12.1 | C85: 9.448 | D85: 10.384 | E85: 1.099068586 | F85: =[1]!AgePb76(E85) ->  | I85: 2,2,I | J85: 2.9 | K85: 9.435 | L85: 10.383 | M85: 29.551 | N85: 0.1234 | O85: 10.302 | Q85: 0.08 | R85: 29.442 | S85: -0.11
A86: Abee | B86: 3,3,07 | E86: 0 | I86: 2,2,E | J86: 12.1 | K86: 9.448 | L86: 10.384 | M86: 29.519 | N86: 0.1362 | O86: 10.295 | Q86: 0.01 | R86: 29.399 | S86: -0.26
A87: 3,3,I | B87: 23 | C87: 9.434 | D87: 10.376 | E87: 1.099851601 | F87: =[1]!AgePb76(E87) ->  | I87: Abee | J87: 3,3,07
A88: 3,3,E | B88: 30 | C88: 9.472 | D88: 10.413 | E88: 1.099345439 | F88: =[1]!AgePb76(E88) ->  | I88: 3,3,I | J88: 23 | K88: 9.434 | L88: 10.376 | M88: 29.607 | N88: 0.1227 | O88: 10.296 | R88: 0.02 | S88: 29.479 | V88: 0.01
A89: Mean | E89: 0 | I89: 3,3,E | J89: 30 | K89: 9.472 | L89: 10.413 | M89: 29.694 | N89: 0.1589 | O89: 10.309 | Q89: 0.14 | R89: 29.555 | T89: 0.27
A90: Indarch | B90: c | C90: 9.452 | D90: 10.402 | E90: 1.100507829 | F90: =[1]!AgePb76(E90) ->  | I90: Mean | J90: . | K90: . | L90: . | M90: . | N90: . | O90: 10.302 | R90: 0.007 | S90: 0.08 | V90: 0.07 | W90: 29.483 | X90: _ | Y90: 0.04 | Z90: 0.02 | AC90: 0.14
A91: St. Sauveur | B91: c | C91: 9.47 | D91: 10.408 | E91: 1.09904963 | F91: =[1]!AgePb76(E91) ->  | I91: Indarch | J91: 0 | K91: 9.452 | L91: 10.402 | M91: 29.7 | N91: 0.157 | O91: 10.3 | R91: 0.06 | S91: -29.54 | T91: ( | W91: 0.22)
A92: Cation | B92: Diablo | E92: 0 | I92: Sauveur | J92: 13.5 | K92: 9.47 | L92: 10.408 | M92: 29.69 | N92: 0.157 | O92: 10.306 | Q92: 0.11 | R92: -29.53 | S92: ( | T92: 0.17)
A93: troilite | B93: d | C93: 9.307 | D93: 10.294 | E93: 1.10604921 | F93: =[1]!AgePb76(E93) ->  | I93: Diablo | J93: 0 | K93: 9.307 | L93: 10.294 | M93: 29.476 | N93: 0 | O93: 10.294 | P93: 0 | Q93: 29.476 | R93: 0
D97: Meteorite | E97: Pb-207/206 | F97: Pb-207/206
D98: Name | E98: Ratio | F98: Age
D99: Abee 1 | E99: 1.099258475 | F99: =[1]!AgePb76(E99) -> 
E100: 1.100506757 | F100: =[1]!AgePb76(E100) -> 
E101: 1.099354566 | F101: =[1]!AgePb76(E101) -> 
D103: Abee 2 | E103: 1.100476948 | F103: =[1]!AgePb76(E103) -> 
E104: 1.099068586 | F104: =[1]!AgePb76(E104) -> 
D106: Abee 3 | E106: 1.099851601 | F106: =[1]!AgePb76(E106) -> 
E107: 1.099345439 | F107: =[1]!AgePb76(E107) -> 
D109: Indarch | E109: 1.100507829 | F109: =[1]!AgePb76(E109) -> 
D111: St. Sauveur | E111: 0.7014814815 | F111: =[1]!AgePb76(E111) -> 
D113: Canyon Diablo | E113: 1.10604921 | F113: =[1]!AgePb76(E113) -> 
A117: TABLES 4 And 5
A118: TABLE | C118: 206Pb/238U | G118: 208Pb/232Th | H118: 208Pb/232Th | I118: 207Pb/206Pb | J118: 207Pb/206Pb
A119: l,l,01 | B119: 206Pb/238U | C119: Age | D119: 204Pb/238U | E119: 204Pb/232Th | F119: 232Th/204Pb | G119: Ratio | H119: Age | I119: Ratio | J119: Age | K119: 238U/204Pb | M119: 232Th/238U | O119: 238U/235U | Q119: 206Pb/204Pb | R119: 207Pb/204Pb | S119: 208Pb/204Pb
A120: l,l,I | B120: =(Q120/K120) -> 73.69242779 | C120: =[1]!AgePb6U8(B120) ->  | D120: =(1/K120) -> 7.806401249 | E120: =(D120/M120) -> 2.431900701 | F120: =(1/E120) -> 0.411201 | G120: =(S120/F120) -> 71.96966933 | H120: =[1]!AgePb8Th2(G120) ->  | I120: =(R120/Q120) -> 1.099258475 | J120: =[1]!AgePb76(I120) ->  | K120: 0.1281 | L120: 0.008 | M120: 3.21 | N120: 0.04 | O120: - | Q120: 9.44 | R120: 10.377 | S120: 29.594
A121: 1,I,EI | B121: =(Q121/K121) -> 60.99363057 | C121: =[1]!AgePb6U8(B121) ->  | D121: =(1/K121) -> 6.369426752 | E121: =(D121/M121) -> 2.219312457 | F121: =(1/E121) -> 0.45059 | G121: =(S121/F121) -> 66.03120353 | H121: =[1]!AgePb8Th2(G121) ->  | I121: =(R121/Q121) -> 1.094507101 | J121: =[1]!AgePb76(I121) ->  | K121: 0.157 | L121: 0.0009 | M121: 2.87 | N121: 0.02 | O121: - | Q121: 9.576 | R121: 10.481 | S121: 29.753
A122: 1,I,E2 | B122: 68.80866426 | C122: =[1]!AgePb6U8(B122) ->  | D122: 7.220216606 | E122: 2.414788163 | F122: 0.414115 | G122: =(S122/F122) -> 71.62503169 | H122: =[1]!AgePb8Th2(G122) ->  | I122: 1.09475341 | J122: =[1]!AgePb76(I122) ->  | K122: 0.1385 | L122: 0.001 | M122: 2.99 | N122: 0.03 | O122: 138 | P122: 1.4 | Q122: 9.53 | R122: 10.433 | S122: 29.661
A123: 1,1,E2 | B123: 35.96666667 | C123: =[1]!AgePb6U8(B123) ->  | D123: 3.333333333 | E123: 2.192982456 | F123: 0.456 | G123: =(S123/F123) -> 67.12719298 | H123: =[1]!AgePb8Th2(G123) ->  | I123: 1.033364226 | J123: =[1]!AgePb76(I123) ->  | K123: 0.3 | L123: 0.011 | M123: 1.52 | N123: 0.09 | O123: - | Q123: 10.79 | R123: 11.15 | S123: 30.61
A124: 2,2,02
A125: 2,2,I | B125: 76.58556367 | C125: =[1]!AgePb6U8(B125) ->  | D125: 8.110300081 | E125: 2.317228595 | F125: 0.43155 | G125: =(S125/F125) -> 68.49496003 | H125: =[1]!AgePb8Th2(G125) ->  | I125: 1.09996823 | J125: =[1]!AgePb76(I125) ->  | K125: 0.1233 | L125: 0.001 | M125: 3.5 | N125: 0.04 | O125: - | Q125: 9.443 | R125: 10.387 | S125: 29.559
A126: 2,2,E | B126: 69.96312684 | C126: =[1]!AgePb6U8(B126) ->  | D126: 7.374631268 | E126: 2.119146916 | F126: 0.471888 | G126: =(S126/F126) -> 62.63350626 | H126: =[1]!AgePb8Th2(G126) ->  | I126: 1.096763993 | J126: =[1]!AgePb76(I126) ->  | K126: 0.1356 | L126: 0.0009 | M126: 3.48 | N126: 0.03 | O126: 138.5 | P126: 0.8 | Q126: 9.487 | R126: 10.405 | S126: 29.556
A127: 2,2,E | B127: 17.47695853 | C127: =[1]!AgePb6U8(B127) ->  | D127: 1.152073733 | E127: 2.880184332 | F127: 0.3472 | G127: =(S127/F127) -> 99.42396313 | H127: =[1]!AgePb8Th2(G127) ->  | I127: 0.8958470666 | J127: =[1]!AgePb76(I127) ->  | K127: 0.868 | L127: 0.078 | M127: 0.4 | N127: 0.07 | Q127: 15.17 | R127: 13.59 | S127: 34.52
A128: 3,3,07
A129: 3,3,I | B129: 77.51227496 | C129: =[1]!AgePb6U8(B129) ->  | D129: 8.183306056 | E129: 1.995928306 | F129: 0.50102 | G129: =(S129/F129) -> 59.16330685 | H129: =[1]!AgePb8Th2(G129) ->  | I129: 1.09765625 | J129: =[1]!AgePb76(I129) ->  | K129: 0.1222 | L129: 0.0009 | M129: 4.1 | N129: 0.1 | Q129: 9.472 | R129: 10.397 | S129: 29.642
A130: 3,3,E | B130: 60.15802781 | C130: =[1]!AgePb6U8(B130) ->  | D130: 6.321112516 | E130: 1.832206526 | F130: 0.54579 | G130: =(S130/F130) -> 54.48432547 | H130: =[1]!AgePb8Th2(G130) ->  | I130: 1.096774194 | J130: =[1]!AgePb76(I130) ->  | K130: 0.1582 | L130: 0.001 | M130: 3.45 | N130: 0.04 | O130: 137.6 | P130: 0.5 | Q130: 9.517 | R130: 10.438 | S130: 29.737
A131: 3,3,E | B131: 30.02994012 | C131: =[1]!AgePb6U8(B131) ->  | D131: 2.994011976 | E131: 1.360914535 | F131: 0.7348 | G131: =(S131/F131) -> 40.86826347 | H131: =[1]!AgePb8Th2(G131) ->  | I131: 1.070787637 | J131: =[1]!AgePb76(I131) ->  | K131: 0.334 | L131: 0.006 | M131: 2.2 | N131: 0.05 | Q131: 10.03 | R131: 10.74 | S131: 30.03
C135: 206Pb/238U | D135: 208Pb/232Th | E135: 207Pb/206Pb
C136: Million Years | D136: Million Years | E136: Million Years
C137: 27805.82575 | D137: 86711.34646 | E137: 5369.998743
C138: 26604.55534 | D138: 84995.6187 | E138: 5363.94324
C139: 27369.91544 | D139: 86615.65743 | E139: 5364.257835
C140: 23271.66224 | D140: 85323.42482 | E140: 5283.446546
C141: 28050.80661 | D141: 85725.19924 | E141: 5370.900939
C142: 27475.65126 | D142: 83944.21747 | E142: 5366.823039
C143: 18801.12471 | D143: 93166.26287 | E143: 5082.330023
C144: 28127.34879 | D144: 82810.76596 | E144: 5367.959838
C145: 26517.07419 | D145: 81174.34173 | E145: 5366.836041
C146: 22143.12682 | D146: 75483.13502 | E146: 5333.292787
C147: =COUNT(C137:C146) -> 10

Sheet A6
A1: 3 | B1: Rocks Older Than The Earth | D1: Table 2 | E1: Million Years | F1: Million Years
A2: Author | B2: D. G. Pearson | E2: 187Re/188Os | F2: 187Re/188Os
A3: Journal | B3: Earth And Planetary Science Letters | E3: 1600
A4: Edition | B4: Volume 134, PAGE 344 | E4: 2200 | F4: 3500
A5: Title | B5: Xenoliths from the Kaapvaal Craton | E5: 3000 | F5: 8500
A6: Year | B6: 1995 | E6: 2700 | F6: 3800
A7: Spreadsheet | B7: Older Than The Earth | E7: 2000 | F7: 2200
A8: Mineral, Location | B8: South Africa | E8: 2600 | F8: 2800
E9: 1800 | F9: 2300
E10: 2800 | F10: 10200
E11: 2700 | F11: 4100
E12: 1200 | F12: 1200
E13: 2200 | F13: 2300
E14: 2800 | F14: 4300
E15: 900 | F15: 100
E16: 3100 | F16: 3500
E17: 2600 | F17: 2900
E18: 3300 | F18: 15600
E19: 2500 | F19: 2700
E20: 2000 | F20: 3200
E21: 2100 | F21: 2600
E22: 2400 | F22: 2800
E23: 500
E24: 3500 | F24: 11100
E25: 1700 | F25: 1700
E26: 2100

Sheet A7
A1: Sample | B1: Age | G1: Sample | H1: Age
A2: Name | B2: Billion Years | G2: Name | H2: Billion Years
G3: PHN-2600 | H3: 8.5
A4: FRB-979 | G4: F-865 | H4: 10.2
A5: FRB-l00l | B5: 3.5 | G5: PHN-2825 | H5: 15.6
A6: PHN-2600 | B6: 8.5 | G6: PHN-5239 | H6: 11.1
A7: PHN-5266 | B7: 3.8
A8: PHN-5254 | B8: 2.2
A9: PHN-5275 | B9: 2.8
A12: F-556 | B12: 2.3 | E12: D. G. Pearson,
A13: F-865 | B13: 10.2
A14: F-866 | B14: 4.1 | E14: Stabilisation of Archaean lithosphere,
A15: FRB-921 | B15: 1.2 | E15: Earth and Planetary Science Letters,
A16: FRB-1350 | B16: 2.3 | E16: 1995,
A17: PHN-1569 | B17: 4.3 | E17: Volume 134, Pages 341-357
A18: BD-2125 | B18: 0.1
A19: PHN-2302 | B19: 3.5
A20: PHN-2823 | B20: 2.9
A21: PHN-2825 | B21: 15.6
A22: PHN-5273 | B22: 2.7
A23: PHN-5595 | B23: 3.2
A26: FRB-909 | B26: 2.6
A27: PHN-1596 | B27: 2.8
A28: PHN-1611
A29: PHN-5239 | B29: 11.1
A30: PHN-5267 | B30: 1.7
A31: K7-318

Sheet A8
A1: 6 | B1: Rocks Older Than The Earth | H1: Table 5.
A2: Author | B2: D. G. Pearson | C2: 6 | E2: 5.454 | F2: Billion Years Old | H2: Sample | I2: Re/Os | J2: Re/Os | K2: Sm/Nd | L2: Sm/Nd | M2: Rb/Sr | O2: Re/Os | P2: -1 | Q2: 11000
A3: Journal | B3: Geochimica et Cosmochimica Acta | E3: 6.245 | F3: Billion Years Old | H3: Peridotites | O3: Sm/Nd | P3: -1 | Q3: 3200
A4: Edition | B4: Volume 59, Number 5, PAGE 970 | E4: 12.716 | F4: Billion Years Old | I4: 5.5 | J4: 2.6
A5: Title | B5: The Siberian Craton | I5: -1 | J5: 1.8
A6: Year | B6: 1995 | I6: -1 | J6: 1.9 | K6: 1.9 | L6: 2.3
A7: Spreadsheet | B7: Older Than The Earth | I7: 2.5 | J7: 2 | K7: 1.7 | L7: 2.1 | M7: 8.3
A8: Mineral, Location | B8: Siberia | H8: Low-T garnet facies
I9: 0.4 | J9: 0.4
I10: 0.5
I11: -1 | J11: 2.1
I12: 11 | J12: 1
I13: 2.2 | J13: 1.7
H14: Megacrystalline
I15: -1 | J15: 1.8 | K15: -1 | L15: -1 | M15: -1
I16: -1 | J16: 3.2 | K16: 2.7 | L16: 2.9 | M16: -1
I17: 3.1 | J17: 2.9
I18: 3 | J18: 1.8
K19: 2 | L19: 2.3 | M19: 0.99
K20: 2.1 | L20: 2.5 | M20: -1
I21: 4.1 | J21: 3 | K21: 3 | L21: 3.2 | M21: -1
I22: 6.9 | J22: 2.8 | K22: -1 | L22: -1 | M22: -1
J23: 1.8 | K23: 2.2 | L23: -1
K24: 2.3 | L24: 2.5
H25: High-T garnet facies
I26: 6.6 | J26: 1.5
I27: 0.1 | J27: 1.2
I28: -1 | J28: 1.1
H29: Eclogites
I30: 2.7
I31: 3.1 | K31: 3

Sheet A9
A1: Meteorite | B1: 87R/86Sr | C1: TABLE 3
A2: Colomera A | B2: 3800 | C2: TABLE 3
B3: 3800
B4: 3800
B5: 3800
B6: 3800
B7: 3700
A8: Colomera D3 | B8: 4700
A9: Four Corners AM 1 | B9: 8400
B10: 9300
B11: 9100
B12: 9100
B13: 8500
B14: 8200
A15: Four Corners AM 2-B1 | B15: 5000
B16: 5100
B17: 4800
B18: 4500
A19: Four Corners AM 2-B6 | B19: 5000
A20: Four Corners H-1 | B20: 5000
A21: Four Corners H-3 | B21: 4900
B22: 4400
B23: 4600
A24: Four Corners N-1 | B24: 4700
B25: 5200
B26: 4800
A27: Linwood H-B1 | B27: 4800
B28: 4500
B29: 4600
B30: 4800
B31: 4600
B32: 5100
A33: Odessa N1-8 | B33: 4300
B34: 4200
B35: 4400
B36: 4900
B37: 4800
B38: 4600
B39: 4400
A40: Toluca N-A3 | B40: 5000
B41: 4700
B42: 4900
B43: 4900
A44: Toluca N-AB1 | B44: 4600
B45: 4600
B46: 4300
B47: 4500 | C47: TABLE 3
A48: Forest City 1 | B48: 4900 | C48: TABLE 4
B49: 4500
B50: 4600
A51: Forest City 2 | B51: 4700
A52: Forest City | B52: 4600
A53: Forest City | B53: 5000
A54: Leedy 1 | B54: 4700
B55: 4800
A56: Leedy 2 | B56: 4700
A57: Bruderheim 1 | B57: 4700
B58: 4700
A59: Bruderheim 2 | B59: 4800
A60: Bruderheim 3 | B60: 4700 | C60: TABLE 4
B61: =MIN(B2:B60) -> 3700
A68: Meteorite | B68: 87R/86Sr | C68: Meteorite | D68: 87R/86Sr
A69: Colomera A | B69: 3800 | C69: Odessa N1-8 | D69: 4300
B70: 3800 | D70: 4200
B71: 3800 | D71: 4400
B72: 3800 | D72: 4900
B73: 3800 | D73: 4800
B74: 3700 | D74: 4600
A75: Colomera D3 | B75: 4700 | D75: 4400
A76: Four Corners AM 1 | B76: 8400 | C76: Toluca N-A3 | D76: 5000
B77: 9300 | D77: 4700
B78: 9100 | D78: 4900
B79: 9100 | D79: 4900
B80: 8500 | C80: Toluca N-AB1 | D80: 4600
B81: 8200 | D81: 4600
A82: Four Corners AM 2-B1 | B82: 5000 | D82: 4300
B83: 5100 | D83: 4500
B84: 4800 | C84: Forest City 1 | D84: 4900
B85: 4500 | D85: 4500
A86: Four Corners AM 2-B6 | B86: 5000 | D86: 4600
A87: Four Corners H-1 | B87: 5000 | C87: Forest City 2 | D87: 4700
A88: Four Corners H-3 | B88: 4900 | C88: Forest City | D88: 4600
B89: 4400 | C89: Forest City | D89: 5000
B90: 4600 | C90: Leedy 1 | D90: 4700
A91: Four Corners N-1 | B91: 4700 | D91: 4800
B92: 5200 | C92: Leedy 2 | D92: 4700
B93: 4800 | C93: Bruderheim 1 | D93: 4700
A94: Linwood H-B1 | B94: 4800 | D94: 4700
B95: 4500 | C95: Bruderheim 2 | D95: 4800
B96: 4600 | C96: Bruderheim 3 | D96: 4700
B97: 4800
B98: 4600
B99: 5100

Sheet B0
A1: Sample Name | L1: Age | M1: Error | AA1: 40Ar/39Ar | AB1: 40Ar/39Ar | AC1: 40Ar/39Ar | AE1: 14917
L2: Million Years | M2: Million Years | AA2: 14917 | AB2: 7707 | AC2: 5598 | AE2: 13979
A3: Table A01. Dhofar 019 whole rock | N3: =(A3) -> Table A01. Dhofar 019 whole rock | AA3: 13979 | AB3: 7610 | AC3: 5575 | AE3: 12845
A4: 350 | B4: 357 | C4: 10 | D4: 0 | E4: 0 | F4: 67 | G4: 3 | H4: 5 | I4: 1 | J4: 103 | K4: 3 | L4: 9260 | M4: 440 | N4: Maximum Age | O4: 11679 | P4: Million Years | R4: Sample | S4: Maximum Age | T4: Minimum Age | U4: Average Age | V4: Age Difference | W4: Percent | X4: Standard Deviation | AA4: 12845 | AB4: 7432 | AC4: 5414 | AE4: 11679
A5: 450 | B5: 3602 | C5: 97 | D5: 3 | E5: 1 | F5: 695 | G5: 19 | H5: 13 | I5: 1 | J5: 1052 | K5: 28 | L5: 11679 | M5: 196 | N5: Minimum Age | O5: 737 | P5: Million Years | R5: Name | S5: Million Years | T5: Million Years | U5: Million Years | V5: Million Years | W5: Difference | X5: Million Years | AA5: 11679 | AB5: 7233 | AC5: 5403 | AE5: 10730
A6: 550 | B6: 3204 | C6: 86 | D6: 15 | E6: 1 | F6: 736 | G6: 20 | H6: 69 | I6: 2 | J6: 947 | K6: 25 | L6: 8507 | M6: 43 | N6: Average Age | O6: 2883 | P6: Million Years | R6: Table A01. Dhofar 019 whole rock | S6: 11679 | T6: 737 | U6: 2883 | V6: 10942 | W6: 15.84667571 | X6: 2705 | AA6: 10730 | AB6: 7184 | AC6: 5391 | AE6: 10521
A7: 600 | B7: 727 | C7: 20 | D7: 40 | E7: 1 | F7: 404 | G7: 11 | H7: 190 | I7: 5 | J7: 214 | K7: 6 | L7: 4167 | M7: 16 | N7: Age Difference | O7: =(O4-O5) -> 10942 | P7: Million Years | R7: Table A02. Dhofar 019 maskelynite | S7: 10521 | T7: 818 | U7: 2674 | V7: 9703 | W7: 12.86185819 | X7: 2920 | AA7: 10521 | AB7: 7168 | AC7: 5389 | AE7: 10487
A8: 650 | B8: 318 | C8: 9 | D8: 50 | E8: 1 | F8: 282 | G8: 8 | H8: 236 | I8: 7 | J8: 99 | K8: 3 | L8: 2652 | M8: 11 | N8: Difference | O8: =(O4/O5) -> 15.84667571 | P8: Percent | R8: Table A03. Dhofar 019 pyroxene | S8: 10730 | T8: 804 | U8: 3694 | V8: 9926 | W8: 13.34577114 | X8: 3493 | AA8: 10487 | AB8: 6857 | AC8: 4987 | AE8: 10322
A9: 700 | B9: 240 | C9: 7 | D9: 57 | E9: 2 | F9: 150 | G9: 4 | H9: 185 | I9: 6 | J9: 76 | K9: 2 | L9: 2635 | M9: 14 | N9: Standard Deviation | O9: 2705 | P9: Million Years | R9: Table A04. Dhofar 019 olivine | S9: 10487 | T9: 1778 | U9: 4549 | V9: 8709 | W9: 5.898200225 | X9: 3013 | AA9: 10322 | AB9: 6680 | AC9: 4813 | AE9: 10142
A10: 750 | B10: 547 | C10: 13 | D10: 158 | E10: 4 | F10: 172 | G10: 4 | H10: 181 | I10: 4 | J10: 167 | K10: 4 | L10: 3849 | M10: 12 | R10: Table A05. Dhofar 019 opaque | S10: 14917 | T10: 4420 | U10: 8453 | V10: 10497 | W10: 3.374886878 | X10: 3270 | AA10: 10142 | AB10: 6482 | AC10: 4771 | AE10: 9669
A11: 800 | B11: 275 | C11: 7 | D11: 187 | E11: 4 | F11: 93 | G11: 3 | H11: 125 | I11: 3 | J11: 87 | K11: 2 | L11: 3405 | M11: 13 | R11: Table A06. SaU 005 whole rock | S11: 7184 | T11: 568 | U11: 1653 | V11: 6616 | W11: 12.64788732 | X11: 1621 | AA11: 9669 | AB11: 6451 | AC11: 4732 | AE11: 9613
A12: 850 | B12: 283 | C12: 7 | D12: 346 | E12: 8 | F12: 116 | G12: 3 | H12: 170 | I12: 4 | J12: 91 | K12: 2 | L12: 3004 | M12: 13 | R12: Table A07. SaU 005 glass | S12: 6235 | T12: 3247 | U12: 4242 | V12: 2988 | W12: 1.920234062 | X12: 1404 | AA12: 9613 | AB12: 6235 | AC12: 4673 | AE12: 9260
A13: 900 | B13: 402 | C13: 10 | D13: 1360 | E13: 31 | F13: 297 | G13: 7 | H13: 501 | I13: 12 | J13: 157 | K13: 4 | L13: 2265 | M13: 8 | R13: Table A08. SaU 005 maskelynite | S13: 7432 | T13: 1344 | U13: 3899 | V13: 6088 | W13: 5.529761905 | X13: 2336 | AA13: 9260 | AB13: 6192 | AC13: 4641 | AE13: 9148
A14: 950 | B14: 200 | C14: 5 | D14: 795 | E14: 19 | F14: 182 | G14: 5 | H14: 364 | I14: 9 | J14: 101 | K14: 2 | L14: 2118 | M14: 9 | N14: Ekaterina V. Korochantseva | R14: Table A10. SaU 005 olivine | S14: 13979 | T14: 3839 | U14: 6559 | V14: 10140 | W14: 3.641312842 | X14: 3339 | AA14: 9148 | AB14: 6064 | AC14: 4425 | AE14: 9111
A15: 1000 | B15: 123 | C15: 4 | D15: 139 | E15: 3 | F15: 122 | G15: 3 | H15: 213 | I15: 6 | J15: 67 | K15: 2 | L15: 2275 | M15: 14 | N15: Meteoritics And Planetary Science | R15: Table A11. Shergotty whole rock | S15: 8542 | T15: 1112 | U15: 2995 | V15: 7430 | W15: 7.681654676 | X15: 2573 | AA15: 9111 | AB15: 5874 | AC15: 4420 | AE15: 8542
A16: 1050 | B16: 150 | C16: 4 | D16: 205 | E16: 5 | F16: 155 | G16: 4 | H16: 246 | I16: 6 | J16: 69 | K16: 2 | L16: 2128 | M16: 10 | N16: Volume 44, Number 2, Pages 293–321 | R16: Table A12. Shergotty glass | S16: 3637 | T16: 355 | U16: 1199 | V16: 3282 | W16: 10.24507042 | X16: 1205 | AA16: 8542 | AB16: 5771 | AC16: 4405 | AE16: 8507
A17: 1100 | B17: 209 | C17: 6 | D17: 311 | E17: 8 | F17: 247 | G17: 6 | H17: 352 | I17: 9 | J17: 82 | K17: 2 | L17: 1906 | M17: 6 | N17: 40Ar-39Ar Chronology | R17: Table A13. Shergotty maskelynite | S17: 3887 | T17: 1433 | U17: 2973 | V17: 2454 | W17: 2.712491277 | X17: 841 | AA17: 8507 | AB17: 5745 | AC17: 4292 | AE17: 8323
A18: 1150 | B18: 244 | C18: 7 | D18: 342 | E18: 8 | F18: 318 | G18: 8 | H18: 416 | I18: 10 | J18: 84 | K18: 2 | L18: 1738 | M18: 7 | N18: 2009 | R18: Table A14. Shergotty pyroxene | S18: 3274 | T18: 134 | U18: 696 | V18: 3140 | W18: 24.43283582 | X18: 715 | AA18: 8323 | AB18: 5733 | AC18: 4237 | AE18: 8197
A19: 1200 | B19: 807 | C19: 19 | D19: 1096 | E19: 25 | F19: 1138 | G19: 25 | H19: 2029 | I19: 45 | J19: 192 | K19: 4 | L19: 1021 | M19: 3 | R19: Table A15. Zagami whole rock | S19: 6064 | T19: 94 | U19: 2276 | V19: 5970 | W19: 64.5106383 | X19: 1751 | AA19: 8197 | AB19: 5693 | AC19: 4167 | AE19: 7987
A20: 1250 | B20: 594 | C20: 15 | D20: 766 | E20: 18 | F20: 872 | G20: 21 | H20: 1367 | I20: 32 | J20: 129 | K20: 3 | L20: 1016 | M20: 3 | R20: Table A16. Zagami maskelynite | S20: 5733 | T20: 238 | U20: 1202 | V20: 5495 | W20: 24.08823529 | X20: 1758 | AA20: 7987 | AB20: 5608 | AC20: 4115 | AE20: 7707
A21: 1280 | B21: 858 | C21: 21 | D21: 1044 | E21: 25 | F21: 1315 | G21: 31 | H21: 1193 | I21: 28 | J21: 130 | K21: 3 | L21: 1135 | M21: 4 | R21: Table A17. Zagami pyroxene | S21: 1344 | T21: 198 | U21: 375 | V21: 1146 | W21: 6.787878788 | X21: 294 | AE21: 7610
A22: 1320 | B22: 1760 | C22: 41 | D22: 2149 | E22: 49 | F22: 2588 | G22: 58 | H22: 2263 | I22: 51 | J22: 227 | K22: 5 | L22: 1066 | M22: 3 | R22: Table A18. Zagami opaque | S22: 7707 | T22: 290 | U22: 1525 | V22: 7417 | W22: 26.57586207 | X22: 2079 | AE22: 7432
A23: 1360 | B23: 1507 | C23: 37 | D23: 1887 | E23: 45 | F23: 2177 | G23: 52 | H23: 1760 | I23: 42 | J23: 165 | K23: 4 | L23: 1014 | M23: 4 | R23: Table A09. SaU 005 pyroxene | S23: 12845 | T23: 1354 | U23: 4763 | V23: 11491 | W23: 9.486706056 | X23: 3787 | AE23: 7233
A24: 1400 | B24: 820 | C24: 27 | D24: 1058 | E24: 34 | F24: 1184 | G24: 38 | H24: 897 | I24: 28 | J24: 80 | K24: 3 | L24: 969 | M24: 4 | AE24: 7184
A25: 1450 | B25: 480 | C25: 40 | D25: 623 | E25: 51 | F25: 696 | G25: 58 | H25: 400 | I25: 33 | J25: 28 | K25: 2 | L25: 805 | M25: 6 | AE25: 7168
A26: 1500 | B26: 2647 | C26: 91 | D26: 3510 | E26: 120 | F26: 3880 | G26: 130 | H26: 2107 | I26: 72 | J26: 132 | K26: 5 | L26: 737 | M26: 5 | AE26: 6857
A27: 1580 | B27: 1480 | C27: 100 | D27: 1590 | E27: 110 | F27: 2090 | G27: 140 | H27: 806 | I27: 56 | J27: 77 | K27: 5 | L27: 1027 | M27: 7 | AE27: 6680
A28: 1650 | B28: 197 | C28: 67 | D28: 103 | E28: 31 | F28: 174 | G28: 53 | H28: 75 | I28: 23 | J28: 32 | K28: 10 | L28: 2682 | M28: 58 | AE28: 6482
A29: 1700 | B29: 74 | C29: 74 | D29: 43 | E29: 43 | F29: 71 | G29: 71 | H29: 23 | I29: 23 | J29: 9 | K29: 9 | L29: 2630 | M29: 278 | AE29: 6451
A30: Total | B30: 22100 | C30: 230 | D30: 17870 | E30: 200 | F30: 20220 | G30: 250 | H30: 16190 | I30: 140 | J30: 4599 | K30: 43 | L30: 2143 | M30: 48 | AE30: 6235
L31: =STDEV(L4:L30) -> 2705.462719 | AE31: 6192
A32: Table A02. Dhofar 019 maskelynite | L32: Age | M32: Error | N32: =(A32) -> Table A02. Dhofar 019 maskelynite | AE32: 6064
L33: Million Years | M33: Million Years | AE33: 5874
A34: 550 | B34: 4297 | C34: 96 | D34: 29 | E34: 6 | F34: 818 | G34: 18 | H34: 29 | I34: 3 | J34: 12440 | K34: 280 | L34: 10521 | M34: 180 | N34: Maximum Age | O34: 10521 | P34: Million Years | AE34: 5771
A35: 650 | B35: 3462 | C35: 77 | D35: 65 | E35: 6 | F35: 698 | G35: 16 | H35: 27 | I35: 2 | J35: 10080 | K35: 220 | L35: 10322 | M35: 143 | N35: Minimum Age | O35: 818 | P35: Million Years | AE35: 5745
A36: 750 | B36: 927 | C36: 22 | D36: 219 | E36: 8 | F36: 205 | G36: 5 | H36: 40 | I36: 3 | J36: 2713 | K36: 61 | L36: 7233 | M36: 120 | N36: Average Age | O36: 2674 | P36: Million Years | AE36: 5733
A37: 850 | B37: 2008 | C37: 45 | D37: 1176 | E37: 27 | F37: 414 | G37: 10 | H37: 90 | I37: 3 | J37: 5870 | K37: 130 | L37: 7168 | M37: 42 | N37: Age Difference | O37: =(O34-O35) -> 9703 | P37: Million Years | AE37: 5693
A38: 930 | B38: 54 | C38: 4 | D38: 308 | E38: 14 | F38: 37 | G38: 2 | H38: 63 | I38: 3 | J38: 159 | K38: 7 | L38: 2001 | M38: 46 | N38: Difference | O38: =(O34/O35) -> 12.86185819 | P38: Percent | AE38: 5608
A39: 1000 | B39: 42 | C39: 3 | D39: 293 | E39: 16 | F39: 41 | G39: 3 | H39: 88 | I39: 5 | J39: 116 | K39: 6 | L39: 1302 | M39: 28 | N39: Standard Deviation | O39: 2920 | P39: Million Years | AE39: 5598
A40: 1070 | B40: 56 | C40: 4 | D40: 521 | E40: 24 | F40: 57 | G40: 3 | H40: 133 | I40: 6 | J40: 136 | K40: 6 | L40: 1087 | M40: 10 | AE40: 5575
A41: 1150 | B41: 64 | C41: 4 | D41: 758 | E41: 37 | F41: 85 | G41: 5 | H41: 159 | I41: 8 | J41: 140 | K41: 7 | L41: 964 | M41: 12 | AE41: 5414
A42: 1250 | B42: 203 | C42: 6 | D42: 2539 | E42: 68 | F42: 281 | G42: 8 | H42: 507 | I42: 14 | J42: 362 | K42: 9 | L42: 818 | M42: 5 | AE42: 5403
A43: 1350 | B43: 509 | C43: 12 | D43: 5150 | E43: 100 | F43: 605 | G43: 13 | H43: 873 | I43: 18 | J43: 892 | K43: 18 | L43: 1081 | M43: 6 | AE43: 5391
A44: 1450 | B44: 552 | C44: 16 | D44: 5150 | E44: 130 | F44: 595 | G44: 16 | H44: 712 | I44: 19 | J44: 964 | K44: 25 | L44: 1326 | M44: 8 | AE44: 5389
A45: 1650 | B45: 546 | C45: 63 | D45: 6330 | E45: 660 | F45: 688 | G45: 71 | H45: 844 | I45: 87 | J45: 773 | K45: 80 | L45: 993 | M45: 5 | AE45: 4987
A46: Total | B46: 12720 | C46: 150 | D46: 22540 | E46: 680 | F46: 4524 | G46: 80 | H46: 3566 | I46: 93 | J46: 34640 | K46: 390 | L46: 3923 | M46: 105 | AE46: 4813
L47: =STDEV(L20:L46) -> 2919.890185 | AE47: 4771
A48: Table A03. Dhofar 019 pyroxene | L48: Age | M48: Error | N48: =(A48) -> Table A03. Dhofar 019 pyroxene | AE48: 4732
L49: Million Years | M49: Million Years | AE49: 4673
A50: 450 | B50: 627 | C50: 13 | D50: 0 | E50: 0 | F50: 117 | G50: 2 | H50: 5 | I50: 1 | J50: 1797 | K50: 36 | L50: 10142 | M50: 309 | N50: Maximum Age | O50: 10730 | P50: Million Years | AE50: 4641
A51: 550 | B51: 2182 | C51: 43 | D51: 19 | E51: 2 | F51: 424 | G51: 8 | H51: 13 | I51: 1 | J51: 6340 | K51: 130 | L51: 10730 | M51: 104 | N51: Minimum Age | O51: 804 | P51: Million Years | AE51: 4425
A52: 650 | B52: 1372 | C52: 27 | D52: 71 | E52: 2 | F52: 310 | G52: 6 | H52: 35 | I52: 1 | J52: 4005 | K52: 79 | L52: 8197 | M52: 55 | N52: Average Age | O52: 3694 | P52: Million Years | AE52: 4420
A53: 750 | B53: 389 | C53: 9 | D53: 191 | E53: 5 | F53: 107 | G53: 2 | H53: 40 | I53: 1 | J53: 1122 | K53: 23 | L53: 5693 | M53: 35 | N53: Age Difference | O53: =(O50-O51) -> 9926 | P53: Million Years | AE53: 4405
A54: 850 | B54: 1074 | C54: 15 | D54: 1537 | E54: 21 | F54: 227 | G54: 3 | H54: 57 | I54: 1 | J54: 3104 | K54: 41 | L54: 6857 | M54: 36 | N54: Difference | O54: =(O50/O51) -> 13.34577114 | P54: Percent | AE54: 4292
A55: 950 | B55: 90 | C55: 3 | D55: 1296 | E55: 33 | F55: 51 | G55: 2 | H55: 78 | I55: 2 | J55: 276 | K55: 7 | L55: 2433 | M55: 19 | N55: Standard Deviation | O55: 3493 | P55: Million Years | AE55: 4237
A56: 1050 | B56: 58 | C56: 3 | D56: 415 | E56: 16 | F56: 53 | G56: 2 | H56: 115 | I56: 4 | J56: 168 | K56: 6 | L56: 1398 | M56: 11 | AE56: 4167
A57: 1130 | B57: 44 | C57: 4 | D57: 463 | E57: 29 | F57: 46 | G57: 3 | H57: 94 | I57: 6 | J57: 98 | K57: 6 | L57: 1100 | M57: 9 | AE57: 4115
A58: 1200 | B58: 85 | C58: 5 | D58: 1142 | E58: 61 | F58: 114 | G58: 6 | H58: 198 | I58: 11 | J58: 138 | K58: 7 | L58: 804 | M58: 6 | AE58: 4050
A59: 1270 | B59: 120 | C59: 9 | D59: 1430 | E59: 110 | F59: 167 | G59: 12 | H59: 207 | I59: 15 | J59: 174 | K59: 13 | L59: 933 | M59: 9 | AE59: 4035
A60: 1340 | B60: 378 | C60: 22 | D60: 3770 | E60: 210 | F60: 464 | G60: 26 | H60: 406 | I60: 23 | J60: 501 | K60: 28 | L60: 1241 | M60: 5 | AE60: 3974
A61: 1410 | B61: 310 | C61: 25 | D61: 3200 | E61: 250 | F61: 370 | G61: 29 | H61: 217 | I61: 17 | J61: 324 | K61: 25 | L61: 1422 | M61: 11 | AE61: 3966
A62: 1480 | B62: 386 | C62: 56 | D62: 4820 | E62: 680 | F62: 533 | G62: 76 | H62: 237 | I62: 34 | J62: 203 | K62: 29 | L62: 946 | M62: 8 | AE62: 3956
A63: 1550 | B63: 152 | C63: 69 | D63: 1850 | E63: 820 | F63: 209 | G63: 93 | H63: 102 | I63: 45 | J63: 99 | K63: 44 | L63: 1039 | M63: 12 | AE63: 3945
A64: 1650 | B64: 71 | C64: 62 | D64: 640 | E64: 500 | F64: 75 | G64: 59 | H64: 38 | I64: 30 | J64: 112 | K64: 87 | L64: 2187 | M64: 41 | AE64: 3923
A65: Total | B65: 7340 | C65: 130 | D65: 20840 | E65: 1230 | F65: 3270 | G65: 140 | H65: 1841 | I65: 73 | J65: 18460 | K65: 190 | L65: 3974 | M65: 83 | AE65: 3900
L66: =STDEV(L50:L65) -> 3493.370292 | AE66: 3887
A67: Table A04. Dhofar 019 olivine | L67: Age | M67: Error | N67: =(A67) -> Table A04. Dhofar 019 olivine | AE67: 3849
L68: Million Years | M68: Million Years | AE68: 3839
A69: 550 | B69: 3740 | C69: 120 | D69: 11 | E69: 6 | F69: 714 | G69: 22 | H69: 26 | I69: 5 | J69: 1085 | K69: 33 | L69: 10487 | M69: 318 | N69: Maximum Age | O69: 10487 | P69: Million Years | AE69: 3688
A70: 650 | B70: 2752 | C70: 87 | D70: 25 | E70: 8 | F70: 558 | G70: 18 | H70: 42 | I70: 4 | J70: 803 | K70: 25 | L70: 9111 | M70: 142 | N70: Minimum Age | O70: 1778 | P70: Million Years | AE70: 3662
A71: 750 | B71: 837 | C71: 28 | D71: 205 | E71: 10 | F71: 189 | G71: 6 | H71: 57 | I71: 3 | J71: 246 | K71: 8 | L71: 6451 | M71: 86 | N71: Average Age | O71: 4549 | P71: Million Years | AE71: 3637
A72: 850 | B72: 2223 | C72: 70 | D72: 2491 | E72: 78 | F72: 455 | G72: 14 | H72: 78 | I72: 4 | J72: 647 | K72: 20 | L72: 7610 | M72: 68 | N72: Age Difference | O72: =(O69-O70) -> 8709 | P72: Million Years | AE72: 3568
A73: 950 | B73: 49 | C73: 6 | D73: 984 | E73: 72 | F73: 32 | G73: 3 | H73: 65 | I73: 5 | J73: 21 | K73: 2 | L73: 2293 | M73: 42 | N73: Difference | O73: =(O69/O70) -> 5.898200225 | P73: Percent | AE73: 3554
A74: 1050 | B74: 65 | C74: 7 | D74: 381 | E74: 27 | F74: 41 | G74: 4 | H74: 93 | I74: 7 | J74: 26 | K74: 2 | L74: 2096 | M74: 36 | N74: Standard Deviation | O74: 3013 | P74: Million Years | AE74: 3512
A75: 1150 | B75: 58 | C75: 9 | D75: 460 | E75: 50 | F75: 46 | G75: 6 | H75: 77 | I75: 9 | J75: 19 | K75: 2 | L75: 1999 | M75: 39 | AE75: 3466
A76: 1250 | B76: 95 | C76: 14 | D76: 752 | E76: 82 | F76: 102 | G76: 12 | H76: 127 | I76: 14 | J76: 27 | K76: 3 | L76: 1778 | M76: 22 | AE76: 3452
A77: 1350 | B77: 310 | C77: 21 | D77: 2040 | E77: 120 | F77: 324 | G77: 20 | H77: 277 | I77: 17 | J77: 63 | K77: 4 | L77: 1878 | M77: 14 | AE77: 3432
A78: 1450 | B78: 245 | C78: 35 | D78: 1090 | E78: 140 | F78: 216 | G78: 27 | H78: 78 | I78: 10 | J78: 41 | K78: 5 | L78: 2975 | M78: 49 | AE78: 3405
A79: 1550 | B79: 271 | C79: 73 | D79: 1010 | E79: 240 | F79: 252 | G79: 61 | H79: 88 | I79: 21 | J79: 41 | K79: 10 | L79: 2789 | M79: 50 | AE79: 3340
A80: 1650 | B80: 140 | C80: 140 | D80: 160 | E80: 120 | F80: 75 | G80: 61 | H80: 33 | I80: 26 | J80: 32 | K80: 25 | L80: 3900 | M80: 297 | AE80: 3287
A81: Total | B81: 10780 | C81: 230 | D81: 9600 | E81: 360 | F81: 3005 | G81: 99 | H81: 1042 | I81: 44 | J81: 3050 | K81: 54 | L81: 5771 | M81: 169 | AE81: 3274
L82: =STDEV(L69:L81) -> 3013.449033 | AE82: 3251
A83: Table A05. Dhofar 019 opaque | L83: Age | M83: Error | N83: =(A83) -> Table A05. Dhofar 019 opaque | AE83: 3247
L84: Million Years | M84: Million Years | AE84: 3171
A85: 450 | B85: 1347 | C85: 44 | D85: 2 | E85: 2 | F85: 252 | G85: 8 | H85: 150 | I85: 16 | J85: 3840 | K85: 130 | L85: 9613 | M85: 178 | N85: Maximum Age | O85: 14917 | P85: Million Years | AE85: 3156
A86: 650 | B86: 3320 | C86: 110 | D86: 13 | E86: 4 | F86: 631 | G86: 21 | H86: 20 | I86: 20 | J86: 9670 | K86: 310 | L86: 14917 | M86: 1775 | N86: Minimum Age | O86: 4420 | P86: Million Years | AE86: 3136
A87: 850 | B87: 1515 | C87: 50 | D87: 92 | E87: 4 | F87: 296 | G87: 10 | H87: 220 | I87: 18 | J87: 4350 | K87: 140 | L87: 9148 | M87: 135 | N87: Average Age | O87: 8453 | P87: Million Years | AE87: 3066
A88: 1050 | B88: 48 | C88: 4 | D88: 21 | E88: 3 | F88: 12 | G88: 1 | H88: 35 | I88: 11 | J88: 152 | K88: 8 | L88: 6482 | M88: 564 | N88: Age Difference | O88: =(O85-O86) -> 10497 | P88: Million Years | AE88: 3036
A89: 1250 | B89: 44 | C89: 7 | D89: 35 | E89: 5 | F89: 17 | G89: 2 | H89: 99 | I89: 16 | J89: 130 | K89: 14 | L89: 4420 | M89: 204 | N89: Difference | O89: =(O85/O86) -> 3.374886878 | P89: Percent | AE89: 3023
A90: 1450 | B90: 155 | C90: 14 | D90: 112 | E90: 9 | F90: 60 | G90: 5 | H90: 175 | I90: 17 | J90: 411 | K90: 28 | L90: 5391 | M90: 119 | N90: Standard Deviation | O90: 3270 | P90: Million Years | AE90: 3004
A91: 1650 | B91: 29 | C91: 29 | D91: 30 | E91: 30 | F91: 19 | G91: 19 | H91: 8 | I91: 8 | J91: 81 | K91: 81 | L91: 7987 | M91: 1499 | AE91: 2975
A92: Total | B92: 6460 | C92: 130 | D92: 305 | E92: 32 | F92: 1287 | G92: 31 | H92: 707 | I92: 41 | J92: 18630 | K92: 380 | L92: 9669 | M92: 1265 | AE92: 2975
L93: =STDEV(L85:L92) -> 3269.633135 | AE93: 2942
A94: Table A06. SaU 005 whole rock | L94: Age | M94: Error | N94: =(A94) -> Table A06. SaU 005 whole rock | AE94: 2893
L95: Million Years | M95: Million Years | AE95: 2789
A96: 500 | B96: 20 | C96: 2 | D96: 15 | E96: 5 | F96: 5 | G96: 1 | H96: 3 | I96: 2 | J96: 48 | K96: 2 | L96: 4732 | M96: 1153 | N96: Maximum Age | O96: 7184 | P96: Million Years | AE96: 2740
A97: 600 | B97: 339 | C97: 10 | D97: 4 | E97: 4 | F97: 129 | G97: 4 | H97: 15 | I97: 2 | J97: 964 | K97: 28 | L97: 7184 | M97: 253 | N97: Minimum Age | O97: 568 | P97: Million Years | AE97: 2718
A98: 680 | B98: 271 | C98: 8 | D98: 35 | E98: 6 | F98: 525 | G98: 16 | H98: 162 | I98: 5 | J98: 811 | K98: 23 | L98: 2893 | M98: 18 | N98: Average Age | O98: 1653 | P98: Million Years | AE98: 2682
A99: 740 | B99: 112 | C99: 4 | D99: 58 | E99: 6 | F99: 187 | G99: 6 | H99: 137 | I99: 5 | J99: 344 | K99: 10 | L99: 1976 | M99: 27 | N99: Age Difference | O99: =(O96-O97) -> 6616 | P99: Million Years | AE99: 2652
A100: 800 | B100: 263 | C100: 8 | D100: 466 | E100: 18 | F100: 191 | G100: 6 | H100: 202 | I100: 7 | J100: 833 | K100: 24 | L100: 2620 | M100: 22 | N100: Difference | O100: =(O96/O97) -> 12.64788732 | P100: Percent | AE100: 2635
A101: 860 | B101: 252 | C101: 9 | D101: 643 | E101: 22 | F101: 306 | G101: 9 | H101: 374 | I101: 11 | J101: 921 | K101: 27 | L101: 1952 | M101: 12 | N101: Standard Deviation | O101: 1621 | P101: Million Years | AE101: 2630
A102: 900 | B102: 59 | C102: 3 | D102: 94 | E102: 5 | F102: 93 | G102: 2 | H102: 204 | I102: 4 | J102: 341 | K102: 5 | L102: 1521 | M102: 14 | AE102: 2620
A103: 940 | B103: 30 | C103: 2 | D103: 94 | E103: 4 | F103: 52 | G103: 1 | H103: 190 | I103: 4 | J103: 283 | K103: 4 | L103: 1409 | M103: 12 | AE103: 2519
A104: 990 | B104: 32 | C104: 2 | D104: 180 | E104: 8 | F104: 63 | G104: 2 | H104: 349 | I104: 7 | J104: 338 | K104: 5 | L104: 1027 | M104: 9 | AE104: 2443
A105: 1040 | B105: 32 | C105: 2 | D105: 296 | E105: 11 | F105: 60 | G105: 3 | H105: 469 | I105: 8 | J105: 354 | K105: 5 | L105: 845 | M105: 6 | AE105: 2433
A106: 1100 | B106: 33 | C106: 2 | D106: 326 | E106: 8 | F106: 60 | G106: 2 | H106: 480 | I106: 8 | J106: 338 | K106: 5 | L106: 800 | M106: 5 | AE106: 2293
A107: 1150 | B107: 37 | C107: 2 | D107: 353 | E107: 11 | F107: 60 | G107: 2 | H107: 532 | I107: 9 | J107: 327 | K107: 5 | L107: 715 | M107: 4 | AE107: 2275
A108: 1200 | B108: 64 | C108: 2 | D108: 857 | E108: 15 | F108: 116 | G108: 3 | H108: 1244 | I108: 19 | J108: 642 | K108: 9 | L108: 618 | M108: 4 | AE108: 2265
A109: 1240 | B109: 65 | C109: 2 | D109: 741 | E109: 16 | F109: 133 | G109: 3 | H109: 765 | I109: 12 | J109: 462 | K109: 7 | L109: 706 | M109: 4 | AE109: 2187
A110: 1280 | B110: 98 | C110: 5 | D110: 1081 | E110: 38 | F110: 154 | G110: 6 | H110: 840 | I110: 29 | J110: 607 | K110: 21 | L110: 817 | M110: 6 | AE110: 2143
A111: 1320 | B111: 124 | C111: 6 | D111: 1408 | E111: 51 | F111: 153 | G111: 6 | H111: 898 | I111: 33 | J111: 704 | K111: 25 | L111: 872 | M111: 6 | AE111: 2128
A112: 1360 | B112: 73 | C112: 7 | D112: 860 | E112: 52 | F112: 82 | G112: 5 | H112: 519 | I112: 31 | J112: 350 | K112: 21 | L112: 771 | M112: 6 | AE112: 2118
A113: 1400 | B113: 87 | C113: 11 | D113: 1426 | E113: 99 | F113: 128 | G113: 9 | H113: 907 | I113: 63 | J113: 466 | K113: 33 | L113: 616 | M113: 5 | AE113: 2096
A114: 1450 | B114: 55 | C114: 21 | D114: 910 | E114: 250 | F114: 78 | G114: 22 | H114: 370 | I114: 100 | J114: 172 | K114: 47 | L114: 568 | M114: 9 | AE114: 2040
A115: 1500 | B115: 233 | C115: 39 | D115: 2180 | E115: 280 | F115: 255 | G115: 33 | H115: 737 | I115: 94 | J115: 664 | K115: 85 | L115: 971 | M115: 9 | AE115: 2001
A116: Total | B116: 2277 | C116: 51 | D116: 12020 | E116: 400 | F116: 2831 | G116: 47 | H116: 9390 | I116: 160 | J116: 9970 | K116: 120 | L116: 1101 | M116: 18 | AE116: 1999
L117: =STDEV(L96:L116) -> 1620.87956 | AE117: 1976
A118: Table A07. SaU 005 glass | L118: Age | M118: Error | N118: =(A118) -> Table A07. SaU 005 glass | AE118: 1974
L119: Million Years | M119: Million Years | AE119: 1958
A120: 600 | B120: 1356 | C120: 34 | D120: 0 | E120: 0 | F120: 449 | G120: 14 | H120: 133 | I120: 11 | J120: 387 | K120: 9 | L120: 5745 | M120: 132 | N120: Maximum Age | O120: 6235 | P120: Million Years | AE120: 1952
A121: 700 | B121: 755 | C121: 21 | D121: 6 | E121: 2 | F121: 262 | G121: 9 | H121: 181 | I121: 9 | J121: 224 | K121: 5 | L121: 4292 | M121: 75 | N121: Minimum Age | O121: 3247 | P121: Million Years | AE121: 1906
A122: 800 | B122: 4280 | C122: 100 | D122: 52 | E122: 2 | F122: 973 | G122: 24 | H122: 328 | I122: 11 | J122: 1272 | K122: 29 | L122: 6235 | M122: 45 | N122: Average Age | O122: 4242 | P122: Million Years | AE122: 1891
A123: 860 | B123: 946 | C123: 23 | D123: 9 | E123: 2 | F123: 237 | G123: 9 | H123: 260 | I123: 9 | J123: 344 | K123: 8 | L123: 4405 | M123: 39 | N123: Age Difference | O123: =(O120-O121) -> 2988 | P123: Million Years | AE123: 1878
A124: 900 | B124: 143 | C124: 7 | D124: 3 | E124: 3 | F124: 52 | G124: 6 | H124: 88 | I124: 6 | J124: 73 | K124: 2 | L124: 3662 | M124: 105 | N124: Difference | O124: =(O120/O121) -> 1.920234062 | P124: Percent | AE124: 1842
A125: 960 | B125: 188 | C125: 9 | D125: 4 | E125: 2 | F125: 63 | G125: 7 | H125: 153 | I125: 7 | J125: 116 | K125: 3 | L125: 3512 | M125: 57 | N125: Standard Deviation | O125: 1404 | P125: Million Years | AE125: 1778
A126: 1040 | B126: 264 | C126: 10 | D126: 12 | E126: 2 | F126: 84 | G126: 4 | H126: 267 | I126: 10 | J126: 170 | K126: 4 | L126: 3247 | M126: 45 | AE126: 1738
A127: 1100 | B127: 416 | C127: 13 | D127: 16 | E127: 3 | F127: 107 | G127: 7 | H127: 289 | I127: 11 | J127: 212 | K127: 5 | L127: 3466 | M127: 46 | AE127: 1697
A128: 1150 | B128: 391 | C128: 12 | D128: 23 | E128: 3 | F128: 117 | G128: 5 | H128: 340 | I128: 10 | J128: 223 | K128: 5 | L128: 3287 | M128: 31 | AE128: 1679
A129: 1190 | B129: 259 | C129: 9 | D129: 22 | E129: 2 | F129: 82 | G129: 5 | H129: 258 | I129: 8 | J129: 188 | K129: 4 | L129: 3452 | M129: 33 | AE129: 1593
A130: 1220 | B130: 218 | C130: 8 | D130: 33 | E130: 2 | F130: 96 | G130: 4 | H130: 234 | I130: 10 | J130: 184 | K130: 4 | L130: 3568 | M130: 53 | AE130: 1521
A131: 1260 | B131: 303 | C131: 11 | D131: 42 | E131: 6 | F131: 105 | G131: 10 | H131: 298 | I131: 11 | J131: 297 | K131: 7 | L131: 3945 | M131: 49 | AE131: 1433
A132: 1300 | B132: 394 | C132: 16 | D132: 70 | E132: 3 | F132: 165 | G132: 7 | H132: 380 | I132: 11 | J132: 455 | K132: 10 | L132: 4237 | M132: 31 | AE132: 1426
A133: 1340 | B133: 564 | C133: 20 | D133: 77 | E133: 3 | F133: 179 | G133: 6 | H133: 378 | I133: 10 | J133: 507 | K133: 8 | L133: 4425 | M133: 35 | AE133: 1422
A134: 1380 | B134: 1523 | C134: 37 | D134: 209 | E134: 5 | F134: 529 | G134: 13 | H134: 660 | I134: 15 | J134: 1592 | K134: 21 | L134: 5414 | M134: 31 | AE134: 1409
A135: 1420 | B135: 614 | C135: 41 | D135: 80 | E135: 4 | F135: 237 | G135: 13 | H135: 232 | I135: 9 | J135: 623 | K135: 14 | L135: 5598 | M135: 52 | AE135: 1398
A136: 1460 | B136: 398 | C136: 57 | D136: 45 | E136: 4 | F136: 135 | G136: 14 | H136: 150 | I136: 12 | J136: 355 | K136: 17 | L136: 5389 | M136: 106 | AE136: 1354
A137: 1500 | B137: 0 | C137: 0 | D137: 0 | E137: 0 | F137: 0 | G137: 0 | H137: 0 | I137: 0 | J137: 0 | K137: 0 | M137: 0 | AE137: =STDEV(AE121:AE136) -> 201.0234543
A138: 1640 | B138: 1730 | C138: 310 | D138: 54 | E138: 6 | F138: 479 | G138: 69 | H138: 195 | I138: 22 | J138: 737 | K138: 76 | L138: 6192 | M138: 78 | AE138: =STDEV(AE130:AE137) -> 434.6558297
A139: Total | B139: 14740 | C139: 340 | D139: 758 | E139: 14 | F139: 4353 | G139: 81 | H139: 4824 | I139: 47 | J139: 7960 | K139: 90 | L139: 4771 | M139: 20 | AE139: =STDEV(AE131:AE138) -> 508.6190648
L140: =STDEV(L120:L139) -> 1013.685422 | AE140: =STDEV(AE113:AE139) -> 496.6566525
A141: Table A08. SaU 005 maskelynite | L141: Age | M141: Error | N141: =(A141) -> Table A08. SaU 005 maskelynite | AE141: =STDEV(AE128:AE140) -> 521.5569685
L142: Million Years | M142: Million Years | AE142: =STDEV(AE115:AE141) -> 553.7376673
A143: 600 | B143: 105 | C143: 3 | D143: 1 | E143: 1 | F143: 24 | G143: 1 | H143: 4 | I143: 2 | J143: 304 | K143: 5 | L143: 7432 | M143: 858 | N143: Maximum Age | O143: 7432 | P143: Million Years | AE143: =STDEV(AE136:AE142) -> 360.5449098
A144: 800 | B144: 77 | C144: 3 | D144: 60 | E144: 31 | F144: 27 | G144: 2 | H144: 8 | I144: 1 | J144: 222 | K144: 5 | L144: 5608 | M144: 288 | N144: Minimum Age | O144: 1344 | P144: Million Years | AE144: =STDEV(AE137:AE143) -> 123.1234756
A145: 1000 | B145: 232 | C145: 4 | D145: 95 | E145: 25 | F145: 57 | G145: 2 | H145: 25 | I145: 2 | J145: 668 | K145: 10 | L145: 5575 | M145: 122 | N145: Average Age | O145: 3899 | P145: Million Years | AE145: =STDEV(AE132:AE144) -> 522.0137231
A146: 1200 | B146: 83 | C146: 3 | D146: 311 | E146: 24 | F146: 20 | G146: 1 | H146: 55 | I146: 2 | J146: 249 | K146: 6 | L146: 2740 | M146: 37 | N146: Age Difference | O146: =(O143-O144) -> 6088 | P146: Million Years | AE146: =STDEV(AE132:AE145) -> 506.4468126
A147: 1400 | B147: 50 | C147: 5 | D147: 1099 | E147: 71 | F147: 21 | G147: 2 | H147: 133 | I147: 8 | J147: 202 | K147: 12 | L147: 1426 | M147: 21 | N147: Difference | O147: =(O143/O144) -> 5.529761905 | P147: Percent | AE147: =STDEV(AE126:AE146) -> 576.3188452
A148: 1600 | B148: 20 | C148: 17 | D148: 910 | E148: 460 | F148: 15 | G148: 8 | H148: 60 | I148: 30 | J148: 83 | K148: 41 | L148: 1344 | M148: 32 | N148: Standard Deviation | O148: 2336 | P148: Million Years | AE148: =STDEV(AE128:AE147) -> 542.909966
A149: Total | B149: 568 | C149: 19 | D149: 2480 | E149: 460 | F149: 163 | G149: 9 | H149: 285 | I149: 31 | J149: 1728 | K149: 45 | L149: 3171 | M149: 223 | AE149: =STDEV(AE134:AE148) -> 410.5575017
L150: =STDEV(L143:L149) -> 2335.550032 | AE150: =STDEV(AE143:AE149) -> 156.8960458
A151: Table A9. SaU 005 pyroxene | L151: Age | M151: Error | N151: =(A151) -> Table A9. SaU 005 pyroxene
L152: Million Years | M152: Million Years
A153: 600 | B153: 437 | C153: 20 | D153: 5 | E153: 5 | F153: 92 | G153: 5 | H153: 100 | I153: 24 | J153: 126 | K153: 5 | L153: 8323 | M153: 424 | N153: Maximum Age | O153: 13979 | P153: Million Years
A154: 800 | B154: 334 | C154: 16 | D154: 27 | E154: 5 | F154: 62 | G154: 4 | H154: 3 | I154: 3 | J154: 95 | K154: 4 | L154: 13979 | M154: 19668 | N154: Minimum Age | O154: 3839 | P154: Million Years
A155: 1000 | B155: 230 | C155: 11 | D155: 17 | E155: 6 | F155: 57 | G155: 4 | H155: 358 | I155: 32 | J155: 67 | K155: 3 | L155: 4987 | M155: 133 | N155: Average Age | O155: 6559 | P155: Million Years
A156: 1200 | B156: 87 | C156: 6 | D156: 0 | E156: 0 | F156: 18 | G156: 3 | H156: 224 | I156: 32 | J156: 25 | K156: 2 | L156: 4115 | M156: 206 | N156: Age Difference | O156: =(O153-O154) -> 10140 | P156: Million Years
A157: 1400 | B157: 135 | C157: 14 | D157: 60 | E157: 8 | F157: 49 | G157: 5 | H157: 417 | I157: 50 | J157: 39 | K157: 3 | L157: 3839 | M157: 138 | N157: Difference | O157: =(O153/O154) -> 3.641312842 | P157: Percent
A158: 1600 | B158: 390 | C158: 47 | D158: 27 | E158: 9 | F158: 84 | G158: 10 | H158: 233 | I158: 42 | J158: 117 | K158: 11 | L158: 6680 | M158: 265 | N158: Standard Deviation | O158: 3339 | P158: Million Years
A159: 1800 | B159: 160 | C159: 150 | D159: 7 | E159: 7 | F159: 35 | G159: 31 | H159: 300 | I159: 210 | J159: 47 | K159: 33 | L159: 4673 | M159: 206
A160: Total | B160: 1780 | C160: 160 | D160: 143 | E160: 17 | F160: 398 | G160: 34 | H160: 1640 | I160: 230 | J160: 515 | K160: 36 | L160: 5874 | M160: 4901
L161: =STDEV(L153:L160) -> 3339.197455
A162: Table A10. SaU 005 olivine | L162: Age | M162: Error | N162: =(A162) -> Table A10. SaU 005 olivine
L163: Million Years | M163: Million Years
A164: 800 | B164: 119 | C164: 3 | D164: 58 | E164: 2 | F164: 88 | G164: 2 | H164: 559 | I164: 17 | J164: 357 | K164: 9 | L164: 3251 | M164: 27 | N164: Maximum Age | O164: 8542 | P164: Million Years
A165: 1000 | B165: 147 | C165: 4 | D165: 57 | E165: 2 | F165: 74 | G165: 2 | H165: 896 | I165: 25 | J165: 464 | K165: 11 | L165: 2942 | M165: 21 | N165: Minimum Age | O165: 1112 | P165: Million Years
A166: 1200 | B166: 33 | C166: 2 | D166: 119 | E166: 4 | F166: 27 | G166: 1 | H166: 1768 | I166: 56 | J166: 190 | K166: 6 | L166: 1112 | M166: 7 | N166: Average Age | O166: 2995 | P166: Million Years
A167: 1400 | B167: 103 | C167: 3 | D167: 599 | E167: 17 | F167: 76 | G167: 2 | H167: 4050 | I167: 110 | J167: 505 | K167: 14 | L167: 1239 | M167: 4 | N167: Age Difference | O167: =(O164-O165) -> 7430 | P167: Million Years
A168: 1600 | B168: 111 | C168: 7 | D168: 535 | E168: 25 | F168: 61 | G168: 3 | H168: 1649 | I168: 77 | J168: 370 | K168: 17 | L168: 1842 | M168: 12 | N168: Difference | O168: =(O164/O165) -> 7.681654676 | P168: Percent
A169: 1780 | B169: 170 | C169: 29 | D169: 13 | E169: 2 | F169: 33 | G169: 6 | H169: 34 | I169: 8 | J169: 487 | K169: 61 | L169: 8542 | M169: 352 | N169: Standard Deviation | O169: 2573 | P169: Million Years
A170: Total | B170: 683 | C170: 30 | D170: 1381 | E170: 31 | F170: 359 | G170: 8 | H170: 8960 | I170: 150 | J170: 2373 | K170: 67 | L170: 2040 | M170: 77
L171: =STDEV(L164:L170) -> 2572.554234
A172: Table A11. Shergotty whole rock | L172: Age | M172: Error | N172: =(A172) -> Table A11. Shergotty whole rock
L173: Million Years | M173: Million Years
A174: 300 | B174: 22 | C174: 2 | D174: 0 | E174: 0 | F174: 6 | G174: 2 | H174: 10 | I174: 2 | J174: 59 | K174: 5 | L174: 3066 | M174: 315 | N174: Maximum Age | O174: 3637 | P174: Million Years
A175: 450 | B175: 24 | C175: 2 | D175: 0 | E175: 0 | F175: 1 | G175: 1 | H175: 13 | I175: 3 | J175: 69 | K175: 5 | L175: 2975 | M175: 301 | N175: Minimum Age | O175: 355 | P175: Million Years
A176: 550 | B176: 29 | C176: 4 | D176: 0 | E176: 0 | F176: 7 | G176: 2 | H176: 14 | I176: 4 | J176: 77 | K176: 9 | L176: 3036 | M176: 358 | N176: Average Age | O176: 1199 | P176: Million Years
A177: 650 | B177: 53 | C177: 2 | D177: 17 | E177: 1 | F177: 110 | G177: 4 | H177: 1308 | I177: 27 | J177: 458 | K177: 9 | L177: 443 | M177: 1.5 | N177: Age Difference | O177: =(O174-O175) -> 3282 | P177: Million Years
A178: 750 | B178: 146 | C178: 3 | D178: 56 | E178: 1 | F178: 277 | G178: 5 | H178: 7275 | I178: 77 | J178: 1992 | K178: 21 | L178: 355 | M178: 0.7 | N178: Difference | O178: =(O174/O175) -> 10.24507042 | P178: Percent
A179: 850 | B179: 217 | C179: 4 | D179: 146 | E179: 2 | F179: 527 | G179: 6 | H179: 10780 | I179: 110 | J179: 4089 | K179: 39 | L179: 475 | M179: 1 | N179: Standard Deviation | O179: 1205 | P179: Million Years
A180: 950 | B180: 235 | C180: 4 | D180: 260 | E180: 3 | F180: 727 | G180: 8 | H180: 10680 | I180: 110 | J180: 3421 | K180: 33 | L180: 409 | M180: 0.7
A181: 1050 | B181: 267 | C181: 4 | D181: 739 | E181: 8 | F181: 1734 | G181: 19 | H181: 12680 | I181: 130 | J181: 3621 | K181: 37 | L181: 369 | M181: 0.7
A182: 1150 | B182: 302 | C182: 5 | D182: 1041 | E182: 12 | F182: 1551 | G182: 18 | H182: 11270 | I182: 120 | J182: 3306 | K182: 36 | L182: 378 | M182: 0.8
A183: 1250 | B183: 523 | C183: 8 | D183: 2664 | E183: 31 | F183: 1386 | G183: 17 | H183: 12710 | I183: 140 | J183: 4061 | K183: 45 | L183: 408 | M183: 1
A184: 1350 | B184: 1152 | C184: 18 | D184: 6224 | E184: 73 | F184: 1821 | G184: 22 | H184: 12650 | I184: 140 | J184: 4806 | K184: 57 | L184: 476 | M184: 1.9
A185: 1450 | B185: 1043 | C185: 20 | D185: 4856 | E185: 86 | F185: 1003 | G185: 18 | H185: 5170 | I185: 92 | J185: 2788 | K185: 51 | L185: 643 | M185: 4
A186: 1550 | B186: 982 | C186: 36 | D186: 1317 | E186: 47 | F186: 419 | G186: 16 | H186: 2623 | I186: 93 | J186: 2736 | K186: 97 | L186: 1089 | M186: 4
A187: 1650 | B187: 670 | C187: 160 | D187: 299 | E187: 69 | F187: 155 | G187: 38 | H187: 1340 | I187: 310 | J187: 1160 | K187: 270 | L187: 946 | M187: 10 | AE187: 1344
A188: 1700 | B188: 1010 | C188: 200 | D188: 28 | E188: 6 | F188: 174 | G188: 38 | H188: 214 | I188: 47 | J188: 1760 | K188: 350 | L188: 3637 | M188: 152 | AE188: 1344
A189: Total | B189: 6670 | C189: 260 | D189: 17650 | E189: 140 | F189: 9897 | G189: 72 | H189: 88730 | I189: 470 | J189: 34400 | K189: 470 | L189: 484 | M189: 5 | AE189: 1326
L190: =STDEV(L174:L189) -> 1205.49424 | AE190: 1320
A191: Table A12. Shergotty glass | L191: Age | M191: Error | N191: =(A191) -> Table A12. Shergotty glass | AE191: 1302
L192: Million Years | M192: Million Years | AE192: 1278
A193: 650 | B193: 38 | C193: 7 | D193: 19 | E193: 4 | F193: 16 | G193: 3 | H193: 61 | I193: 7 | J193: 15 | K193: 2 | L193: 1958 | M193: 48 | N193: Maximum Age | O193: 3887 | P193: Million Years | AE193: 1277
A194: 850 | B194: 161 | C194: 7 | D194: 330 | E194: 10 | F194: 131 | G194: 4 | H194: 1442 | I194: 26 | J194: 220 | K194: 4 | L194: 1433 | M194: 7 | N194: Minimum Age | O194: 1433 | P194: Million Years | AE194: 1241
A195: 1050 | B195: 792 | C195: 16 | D195: 2234 | E195: 36 | F195: 352 | G195: 8 | H195: 1768 | I195: 29 | J195: 1195 | K195: 18 | L195: 3340 | M195: 9 | N195: Average Age | O195: 2973 | P195: Million Years | AE195: 1239
A196: 1250 | B196: 1275 | C196: 24 | D196: 5017 | E196: 80 | F196: 671 | G196: 12 | H196: 2494 | I196: 39 | J196: 1937 | K196: 29 | L196: 3554 | M196: 6 | N196: Age Difference | O196: =(O193-O194) -> 2454 | P196: Million Years | AE196: =STDEV(AE180:AE195) -> 40.42517093
A197: 1450 | B197: 2315 | C197: 52 | D197: 8500 | E197: 130 | F197: 959 | G197: 17 | H197: 3615 | I197: 57 | J197: 3471 | K197: 53 | L197: 3887 | M197: 7 | N197: Difference | O197: =(O193/O194) -> 2.712491277 | P197: Percent | AE197: 1162
A198: 1550 | B198: 171 | C198: 92 | D198: 550 | E198: 74 | F198: 78 | G198: 20 | H198: 364 | I198: 49 | J198: 199 | K198: 27 | L198: 3023 | M198: 14 | N198: Standard Deviation | O198: 841 | P198: Million Years | AE198: 1135
A199: 1650 | B199: 170 | C199: 160 | D199: 480 | E199: 100 | F199: 70 | G199: 32 | H199: 353 | I199: 76 | J199: 211 | K199: 45 | L199: 3156 | M199: 17 | AE199: 1112
A200: Total | B200: 4920 | C200: 190 | D200: 17120 | E200: 210 | F200: 2277 | G200: 44 | H200: 10100 | I200: 120 | J200: 7249 | K200: 82 | L200: 3432 | M200: 6 | AE200: 1101
... 371 more rows

Sheet B1
G1: Age | H1: Error | M1: Sample | N1: Maximum Age | O1: Minimum Age | P1: Average Age | Q1: Age Difference | R1: Percentage | S1: Standard Deviation | Y1: 40Ar/39Ar | Z1: 40Ar/39Ar | AA1: 40Ar/39Ar | AB1: 40Ar/39Ar
A2: Sample 01 | G2: Billion Years | H2: Billion Years | I2: =(A2) -> Sample 01 | M2: Name | N2: Million Years | O2: Million Years | P2: Million Years | Q2: Million Years | R2: Difference | S2: Million Years | Y2: 7460 | Z2: 5004 | AA2: 4811 | AB2: 4703
A3: 350 | B3: 540 | C3: 68 | D3: 176 | E3: 55 | F3: 535 | G3: 3.955 | H3: 0.034 | I3: Maximum Age | J3: 4455 | K3: Million Years | M3: Sample 01 | N3: 4455 | O3: 2452 | P3: 3743 | Q3: 2003 | R3: =(Q3/N3) -> 0.4496071829 | S3: 480 | Y3: 5812 | Z3: 4963 | AA3: 4799 | AB3: 4703
A4: 390 | B4: 264 | C4: 68 | D4: 115 | E4: 45 | F4: 160 | G4: 2.452 | H4: 0.067 | I4: Minimum Age | J4: 2452 | K4: Million Years | M4: Sample 02 | N4: 5067 | O4: 3027 | P4: 4317 | Q4: 2040 | R4: =(Q4/N4) -> 0.4026050918 | S4: 515 | Y4: 5784 | Z4: 4943 | AA4: 4776 | AB4: 4692
A5: 430 | B5: 228 | C5: 123 | D5: 105 | E5: 48 | F5: 302 | G5: 3.255 | H5: 0.052 | I5: Average Age | J5: 3743 | K5: Million Years | M5: Sample 03 | N5: 4919 | O5: 4092 | P5: 4559 | Q5: 827 | R5: 0.1681236024 | S5: 247 | Y5: 5706 | Z5: 4939 | AA5: 4775 | AB5: 4692
A6: 470 | B6: 171 | C6: 148 | D6: 70 | E6: 53 | F6: 409 | G6: 3.59 | H6: 0.06 | I6: Age Difference | J6: =(J3-J4) -> 2003 | K6: Million Years | M6: Sample 04 | N6: 4939 | O6: 4363 | P6: 4610 | Q6: 576 | R6: 0.1166227981 | S6: 220 | Y6: 5641 | Z6: 4919 | AA6: 4770 | AB6: 4691
A7: 510 | B7: 216 | C7: 461 | D7: 233 | E7: 92 | F7: 836 | G7: 3.834 | H7: 0.041 | I7: Difference | J7: =(J3/J4) -> 1.816884176 | K7: Percent | M7: Sample 05 | N7: 4691 | O7: 2248 | P7: 4180 | Q7: 2443 | R7: 0.5207844809 | S7: 740 | Y7: 5590 | Z7: 4914 | AA7: 4766 | AB7: 4690
A8: 560 | B8: 152 | C8: 407 | D8: 260 | E8: 73 | F8: 751 | G8: 4.036 | H8: 0.063 | I8: Standard Deviation | J8: 480 | K8: Million Years | M8: Sample 06 | N8: 4943 | O8: 4102 | P8: 4505 | Q8: 841 | R8: 0.1701395913 | S8: 280 | Y8: 5331 | Z8: 4913 | AA8: 4762 | AB8: 4686
A9: 610 | B9: 189 | C9: 342 | D9: 208 | E9: 64 | F9: 525 | G9: 3.679 | H9: 0.064 | M9: Sample 07 | N9: 4835 | O9: 4166 | P9: 4462 | Q9: 669 | R9: 0.1383660807 | S9: 198 | Y9: 5235 | Z9: 4901 | AA9: 4762 | AB9: 4681
A10: 650 | B10: 180 | C10: 415 | D10: 179 | E10: 47 | F10: 446 | G10: 3.906 | H10: 0.055 | M10: Sample 08 | N10: 4776 | O10: 4207 | P10: 4555 | Q10: 569 | R10: 0.1191373534 | S10: 127 | Y10: 5233 | Z10: 4886 | AA10: 4756 | AB10: 4679
A11: 700 | B11: 293 | C11: 664 | D11: 201 | E11: 48 | F11: 432 | G11: 3.829 | H11: 0.092 | M11: Sample 09 | N11: 5004 | O11: 3682 | P11: 4451 | Q11: 1322 | R11: 0.2641886491 | S11: 405 | Y11: 5223 | Z11: 4884 | AA11: 4744 | AB11: 4673
A12: 760 | B12: 485 | C12: 987 | D12: 224 | E12: 57 | F12: 531 | G12: 3.893 | H12: 0.04 | M12: Sample 10 | N12: 4505 | O12: 1871 | P12: 3924 | Q12: 2634 | R12: 0.5846836848 | S12: 844 | Y12: 5216 | Z12: 4875 | AA12: 4735 | AB12: 4671
A13: 820 | B13: 648 | C13: 1326 | D13: 284 | E13: 61 | F13: 708 | G13: 4.244 | H13: 0.062 | I13: Elmar K. Jessberger | M13: Sample 11 | N13: 4707 | O13: 3631 | P13: 4364 | Q13: 1076 | R13: 0.2285957085 | S13: 337 | Y13: 5192 | Z13: 4871 | AA13: 4734 | AB13: 4671
A14: 870 | B14: 649 | C14: 1267 | D14: 242 | E14: 60 | F14: 554 | G14: 3.869 | H14: 0.053 | I14: Icarus | M14: Sample 12 | N14: 5641 | O14: 4330 | P14: 4849 | Q14: 1311 | R14: 0.2324056018 | S14: 322 | Y14: 5168 | Z14: 4870 | AA14: 4726 | AB14: 4668
A15: 920 | B15: 913 | C15: 1669 | D15: 293 | E15: 58 | F15: 442 | G15: 3.571 | H15: 0.068 | I15: Volume 42, pages 380-405 | M15: Sample 13 | N15: 4549 | O15: 4396 | P15: 4488 | Q15: 153 | R15: 0.03363376566 | S15: 55 | Y15: 5135 | Z15: 4869 | AA15: 4724 | AB15: 4667
A16: 980 | B16: 1445 | C16: 2956 | D16: 516 | E16: 59 | F16: 325 | G16: 3.068 | H16: 0.084 | I16: 40-Ar / 39-Ar Ages of Allende | M16: Sample 19 | N16: 5590 | O16: 4110 | P16: 4827 | Q16: 1480 | R16: 0.2647584973 | S16: 416 | Y16: 5113 | Z16: 4865 | AA16: 4721 | AB16: 4667
A17: 1030 | B17: 1358 | C17: 4797 | D17: 762 | E17: 44 | F17: 234 | G17: 3.034 | H17: 0.1 | I17: 1980 | M17: Sample 20 | N17: 5812 | O17: 4367 | P17: 5150 | Q17: 1445 | R17: 0.2486235375 | S17: 502 | Y17: 5085 | Z17: 4861 | AA17: 4716 | AB17: 4665
A18: 1090 | B18: 1418 | C18: 9331 | D18: 798 | E18: 51 | F18: 359 | G18: 3.428 | H18: 0.068 | M18: Sample 21 | N18: 5784 | O18: 4256 | P18: 4824 | Q18: 1528 | R18: 0.2641770401 | S18: 537 | Y18: 5067 | Z18: 4848 | AA18: 4715 | AB18: 4663
A19: 1140 | B19: 1397 | C19: 7155 | D19: 796 | E19: 61 | F19: 595 | G19: 3.95 | H19: 0.041 | M19: Sample 23 | N19: 7460 | O19: 3967 | P19: 4846 | Q19: 3493 | R19: 0.468230563 | S19: 1195 | Y19: 5050 | Z19: 4835 | AA19: 4712 | AB19: 4658
A20: 1190 | B20: 601 | C20: 2101 | D20: 277 | E20: 41 | F20: 464 | G20: 4.196 | H20: 0.092 | Y20: 5049 | Z20: 4824 | AA20: 4707 | AB20: 4653
A21: 1250 | B21: 301 | C21: 1168 | D21: 171 | E21: 27 | F21: 300 | G21: 4.192 | H21: 0.128
A22: 1350 | B22: 226 | C22: 701 | D22: 171 | E22: 20 | F22: 263 | G22: 4.455 | H22: 0.239
A23: 1500 | B23: 282 | C23: 549 | D23: 246 | E23: 64 | F23: 706 | G23: 4.164 | H23: 0.047
G24: =AVERAGE(G3:G23) -> 3.742857143
A26: Sample 02 | G26: Age | H26: Error | I26: =(A26) -> Sample 02
A27: 350 | B27: 527 | C27: 83 | D27: 216 | E27: 274 | F27: 525 | G27: 5.067 | H27: 0.045 | I27: Maximum Age | J27: 5067 | K27: Million Years
A28: 400 | B28: 388 | C28: 126 | D28: 125 | E28: 451 | F28: 578 | G28: 4.398 | H28: 0.032 | I28: Minimum Age | J28: 3027 | K28: Million Years
A29: 450 | B29: 203 | C29: 184 | D29: 100 | E29: 731 | F29: 1010 | G29: 4.522 | H29: 0.045 | I29: Average Age | J29: 4317 | K29: Million Years
A30: 495 | B30: 230 | C30: 317 | D30: 130 | E30: 1162 | F30: 1701 | G30: 4.619 | H30: 0.015 | I30: Age Difference | J30: =(J27-J28) -> 2040 | K30: Million Years
A31: 500 | B31: 229 | C31: 39P | D31: 327 | E31: 1658 | F31: 2406 | G31: 4.604 | H31: 0.005 | I31: Difference | J31: =(J27/J28) -> 1.673934589 | K31: Percent
A32: 540 | B32: 209 | C32: 484 | D32: 182 | E32: 1748 | F32: 2517 | G32: 4.59 | H32: 0.017 | I32: Standard Deviation | J32: 515 | K32: Million Years
A33: 620 | B33: 157 | C33: 216 | D33: 259 | E33: 855 | F33: 1104 | G33: 4.409 | H33: 0.015
A34: 670 | B34: 239 | C34: 315 | D34: 362 | E34: 771 | F34: 1166 | G34: 4.671 | H34: 0.028
A35: 715 | B35: 226 | C35: 325 | D35: 236 | E35: 518 | F35: 778 | G35: 4.658 | H35: 0.028
A36: 760 | B36: 351 | C36: 614 | D36: 273 | E36: 547 | F36: 796 | G36: 4.607 | H36: 0.014
A37: 810 | B37: 412 | C37: 824 | D37: 235 | E37: 602 | F37: 840 | G37: 4.54 | H37: 0.057
A38: 855 | B38: 479 | C38: 1072 | D38: 223 | E38: 726 | F38: 925 | G38: 4.387 | H38: 0.021
A39: 900 | B39: 709 | C39: 1695 | D39: 356 | E39: 925 | F39: 1110 | G39: 4.29 | H39: 0.013
A40: 950 | B40: 1181 | C40: 2725 | D40: 399 | E40: 1228 | F40: 1376 | G40: 4.178 | H40: 0.014
A41: 1000 | B41: 967 | C41: 3757 | D41: 347 | E41: 724 | F41: 679 | G41: 3.092 | H41: 0.028
A42: 1050 | B42: 1330 | C42: 7562 | D42: 500 | E42: 660 | F42: 527 | G42: 3.027 | H42: 0.04
A43: 1125 | B43: 1885 | C43: 15951 | D43: 1207 | E43: 816 | F43: 696 | G43: 3.739 | H43: 0.036
A44: 1285 | B44: 2417 | C44: 8956 | D44: 961 | E44: 1291 | F44: 1634 | G44: 4.377 | H44: 0.022
A45: 1435 | B45: 214 | C45: 918 | D45: 128 | E45: 245 | F45: 288 | G45: 4.255 | H45: 0.057
G46: =AVERAGE(G27:G45) -> 4.317368421
A48: Sample 03 | G48: Age | H48: Error | I48: =(A48) -> Sample 03
A49: 490 | B49: 53 | C49: 30 | D49: 20 | E49: 260 | F49: 3114.282 | G49: 4.282 | H49: 0.03 | I49: Maximum Age | J49: 4919 | K49: Million Years
A50: 580 | B50: 14 | C50: 29 | D50: 38 | E50: 160 | F50: 227 4.561 | G50: 4.561 | H50: 0.061 | I50: Minimum Age | J50: 4092 | K50: Million Years
A51: 670 | B51: 19 | C51: 30 | D51: 68 | E51: 163 | F51: 2174.468 | G51: 4.468 | H51: 0.033 | I51: Average Age | J51: 4559 | K51: Million Years
A52: 790 | B52: 17 | C52: 46 | D52: 66 | E52: 152 | F52: 2664.919 | G52: 4.919 | H52: 0.023 | I52: Age Difference | J52: =(J49-J50) -> 827 | K52: Million Years
A53: 880 | B53: 21 | C53: 75 | D53: 82 | E53: 201 | F53: 3414.861 | G53: 4.861 | H53: 0.048 | I53: Difference | J53: =(J49/J50) -> 1.202101662 | K53: Percent
A54: 965 | B54: 16 | C54: 123 | D54: 51 | E54: 237 | F54: 3574.667 | G54: 4.667 | H54: 0.03 | I54: Standard Deviation | J54: 247 | K54: Million Years
A55: 1061 | B55: 12 | C55: 552 | D55: 19 | E55: 256 | F55: 3564.533 | G55: 4.533 | H55: 0.03
A56: 1141 | B56: 13 | C56: 471 | D56: 23 | E56: 140 | F56: 196 4.548 | G56: 4.54 | H56: 0.864
A57: 1300 | B57: 20 | C57: 760 | D57: 26 | E57: 141 | F57: 2134.667 | G57: 4.667 | H57: 0.07
A58: 1471 | B58: 11 | C58: 242 | D58: 18 | E58: 38 | F58: 664.892 | G58: 4.092 | H58: 0.213
G59: =AVERAGE(G49:G58) -> 4.559
A61: Sample 04 | G61: Age | H61: Error | I61: =(A61) -> Sample 04
A62: 600 | B62: 32 | C62: 78 | D62: 96 | E62: 407 | F62: 6744.824 | G62: 4.824 | H62: 0.014 | I62: Maximum Age | J62: 4939 | K62: Million Years
A63: 690 | B63: 34 | C63: 121 | D63: 179 | E63: 310 | F63: 5274.865 | G63: 4.865 | H63: 0.014 | I63: Minimum Age | J63: 4363 | K63: Million Years
A64: 770 | B64: 45 | C64: 191 | D64: 176 | E64: 369 | F64: 6544.939 | G64: 4.939 | H64: 0.021 | I64: Average Age | J64: 4610 | K64: Million Years
A65: 860 | B65: 24 | C65: 176 | D65: 164 | E65: 265 | F65: 4144.726 | G65: 4.726 | H65: 0.021 | I65: Age Difference | J65: =(J62-J63) -> 576 | K65: Million Years
A66: 950 | B66: 35 | C66: 379 | D66: 205 | E66: 501 | F66: 6854.504 | G66: 4.504 | H66: 0.014 | I66: Difference | J66: =(J62/J63) -> 1.132019253 | K66: Percent
A67: 1040 | B67: 23 | C67: 864 | D67: 99 | E67: 437 | F67: 5494.363 | G67: 4.363 | H67: 0.017 | I67: Standard Deviation | J67: 220 | K67: Million Years
A68: 1130 | B68: 18 | C68: 991 | D68: 51 | E68: 281 | F68: 3794.479 | G68: 4.419 | H68: 0.017
A69: 1230 | B69: 23 | C69: 4485 | D69: 72 | E69: 476 | F69: 6214.426 | G69: 4.426 | H69: 0.015
A70: 1331 | B70: B | C70: 1259 | D70: 40 | E70: 146 | F70: 1844.372 | G70: 4.372 | H70: 0.03
A71: 1460 | B71: 5 | C71: 138 | D71: 7 | E71: 29 | F71: 444.665 | G71: 4.665 | H71: 0.243
G72: =AVERAGE(G62:G71) -> 4.6103
A74: Sample 05 | G74: Age | H74: Error | I74: =(A74) -> Sample 05
A75: 346 | B75: 16 | C75: 87 | D75: 227 | E75: 148 | F75: 45 | G75: 2.248 | H75: 0.068 | I75: Maximum Age | J75: 4691 | K75: Million Years
A76: 410 | B76: 2 | C76: 138 | D76: 189 | E76: 69 | F76: 35 | G76: 2.945 | H76: 0.126 | I76: Minimum Age | J76: 2248 | K76: Million Years
A77: 480 | B77: 7 | C77: 455 | D77: 189 | E77: 98 | F77: 135 | G77: 4.521 | H77: 0.141 | I77: Average Age | J77: 4180 | K77: Million Years
A78: 545 | B78: _ | C78: 400 | D78: 31 | E78: 73 | F78: 104 | G78: 4.56 | H78: 0.171 | I78: Age Difference | J78: =(J75-J76) -> 2443 | K78: Million Years
A79: 610 | B79: 11 | C79: 534 | D79: 27 | E79: 150 | F79: 120 | G79: 3.635 | H79: 0.096 | I79: Difference | J79: =(J75/J76) -> 2.086743772 | K79: Percent
A80: 690 | B80: 12 | C80: 535 | D80: 283 | E80: 71 | F80: 104 | G80: 4.635 | H80: 0.146 | I80: Standard Deviation | J80: 740 | K80: Million Years
A81: 760 | B81: 7 | C81: 635 | D81: 289 | E81: 78 | F81: 119 | G81: 4.691 | H81: 0.071
A82: 830 | B82: __ | C82: 539 | D82: 201 | E82: 74 | F82: 93 | G82: 4.372 | H82: 0.201
A83: 910 | C83: 1655 | D83: 269 | E83: 95 | F83: 144 | G83: 4.686 | H83: 0.218
A84: 1000 | B84: 11 | C84: 2417 | D84: 399 | E84: 188 | F84: 238 | G84: 4.375 | H84: 0.085
A85: 1090 | B85: 12 | C85: 4759 | D85: 442 | E85: 84 | F85: 130 | G85: 4.668 | H85: 0.254
A86: 1190 | B86: 7 | C86: 25c10 | D86: 1467 | E86: 175 | F86: 254 | G86: 4.608 | H86: 3.093
A87: 1290 | B87: _ | C87: 1408 | D87: 1CO3 | E87: 98 | F87: 130 | G87: 4.451 | H87: 0.152
A88: 1400 | C88: 3007 | D88: 339 | E88: 58 | F88: 54 | G88: 4.128 | H88: 0.289
G89: =AVERAGE(G75:G88) -> 4.180214286
A91: Sample 06 | G91: Age | H91: Error | I91: =(A91) -> Sample 06
A92: 400 | B92: 123 | C92: 188 | D92: 168 | E92: 1390 | F92: 1563 | G92: 4.183 | H92: 0.007 | I92: Maximum Age | J92: 4943 | K92: Million Years
A93: 460 | B93: 95 | C93: 299 | D93: 191 | E93: 2004 | F93: 3105 | G93: 4.712 | H93: 0.004 | I93: Minimum Age | J93: 4102 | K93: Million Years
A94: 520 | B94: 91 | C94: 414 | D94: 344 | E94: 2704 | F94: 4165 | G94: 4.703 | H94: 0.04 | I94: Average Age | J94: 4505 | K94: Million Years
A95: 570 | B95: 96 | C95: 398 | D95: 592 | E95: 2549 | F95: 3895 | G95: 4.69 | H95: 0.004 | I95: Age Difference | J95: =(J92-J93) -> 841 | K95: Million Years
A96: 630 | B96: 152 | C96: 434 | D96: 1255 | E96: 2639 | F96: 3846 | G96: 4.611 | H96: 0.06 | I96: Difference | J96: =(J92/J93) -> 1.205021941 | K96: Percent
A97: 690 | B97: 138 | C97: 437 | D97: 1132 | E97: 1958 | F97: 3125 | G97: 4.762 | H97: 0.07 | I97: Standard Deviation | J97: 280 | K97: Million Years
A98: 730 | B98: 131 | C98: 451 | D98: 797 | E98: 1762 | F98: 3133 | G98: 4.943 | H98: 6.006
A99: 785 | B99: 141 | C99: 500 | D99: 882 | E99: 1770 | F99: 3090 | G99: 4.913 | H99: 0.008
A100: 830 | B100: 120 | C100: 569 | D100: 922 | E100: 1911 | F100: 3064 | G100: 4.77 | H100: 0.008
A101: 890 | B101: 129 | C101: 900 | D101: 101 | E101: 2682 | F101: 3972 | G101: 4.638 | H101: 0.006
A102: 950 | B102: 153 | C102: 1665 | D102: 1181 | E102: 4326 | F102: 5935 | G102: 4.51 | H102: 0.005
A103: 1050 | B103: 87 | C103: 4941 | D103: 384 | E103: 4435 | F103: 5390 | G103: 4.31 | H103: 0.006
A104: 1110 | B104: 92 | C104: 8987 | D104: 311 | E104: 3523 | F104: 3882 | G104: 4.151 | H104: 0.01
A105: 1170 | B105: 101 | C105: 6615 | D105: 283 | E105: 2017 | F105: 2531 | G105: 4.363 | H105: 0.016
A106: 1230 | B106: 91 | C106: 9423 | D106: 281 | E106: 3778 | F106: 4714 | G106: 4.354 | H106: 0.011
A107: 1310 | B107: 22 | C107: 2477 | D107: 139 | E107: 700 | F107: 751 | G107: 4.109 | H107: 0.079
A108: 1390 | B108: 48 | C108: 3892 | D108: 183 | E108: 1159 | F108: 1239 | G108: 4.102 | H108: 0.057
A109: 1500 | B109: 76 | C109: 1749 | D109: 149 | E109: 704 | F109: 830 | G109: 4.261 | H109: 0.07
G110: =AVERAGE(G92:G109) -> 4.504722222
A112: Sample 07 | G112: Age | H112: Error | I112: =(A112) -> Sample 07
A113: 500 | B113: 117 | C113: 63 | D113: 76 | E113: 415 | F113: 691 | G113: 4.835 | H113: 0.025 | I113: Maximum Age | J113: 4835 | K113: Million Years
A114: 600 | B114: 28 | C114: 82 | D114: 151 | E114: 354 | F114: 394 | G114: 4.166 | H114: 0.018 | I114: Minimum Age | J114: 4166 | K114: Million Years
A115: 710 | B115: 22 | C115: 17C | D115: 266 | E115: 275 | F115: 400 | G115: 4.609 | H115: 0.055 | I115: Average Age | J115: 4462 | K115: Million Years
A116: 800 | B116: 32 | C116: 221 | D116: 299 | E116: 306 | F116: 373 | G116: 4.318 | H116: 0.027 | I116: Age Difference | J116: =(J113-J114) -> 669 | K116: Million Years
A117: 900 | B117: 27 | C117: 248 | D117: 338 | E117: 322 | F117: 48P | G117: 4.648 | H117: 0.047 | I117: Difference | J117: =(J113/J114) -> 1.160585694 | K117: Percent
A118: 1000 | B118: 32 | C118: 541 | D118: 313 | E118: 483 | F118: 647 | G118: 4.471 | H118: 0.027 | I118: Standard Deviation | J118: 198 | K118: Million Years
A119: 1110 | B119: 25 | C119: 1174 | D119: 81 | E119: 409 | F119: 551 | G119: 4.48 | H119: 0.027
A120: 1240 | B120: 27 | C120: 1839 | D120: 124 | E120: 247 | F120: 326 | G120: 4.447 | H120: 0.057
A121: 1450 | C121: 1464 | D121: 77 | E121: 147 | F121: 187 | G121: 4.381 | H121: 0.137
A122: 1500 | B122: 76 | C122: 1749 | D122: 149 | E122: 704 | F122: 830 | G122: 4.261 | H122: 0.07
G123: =AVERAGE(G113:G122) -> 4.4616
A125: Sample 08 | G125: Age | H125: Error | I125: =(A125) -> Sample 08
A126: 350 | B126: 182 | C126: 54 | D126: 125 | E126: 373 | F126: 600 | G126: 4.776 | H126: 0.044 | I126: Maximum Age | J126: 4776 | K126: Million Years
A127: 390 | B127: 46 | C127: 73 | D127: 66 | E127: 292 | F127: 333 | G127: 4.207 | H127: 0.072 | I127: Minimum Age | J127: 4207 | K127: Million Years
A128: 430 | B128: 39 | C128: 148 | D128: 68 | E128: 474 | F128: 655 | G128: 4.522 | H128: 0.037 | I128: Average Age | J128: 4555 | K128: Million Years
A129: 470 | B129: 63 | C129: 381 | D129: 195 | E129: 1124 | F129: 1690 | G129: 4.663 | H129: 0.03 | I129: Age Difference | J129: =(J126-J127) -> 569 | K129: Million Years
A130: 510 | B130: 37 | C130: 404 | D130: 263 | E130: 1154 | F130: 1664 | G130: 4.592 | H130: 0.017 | I130: Difference | J130: =(J126/J127) -> 1.135250773 | K130: Percent
A131: 550 | B131: 57 | C131: 363 | D131: 435 | E131: 1144 | F131: 1655 | G131: 4.599 | H131: 0.01 | I131: Standard Deviation | J131: 127 | K131: Million Years
A132: 590 | B132: 63 | C132: 312 | D132: 541 | E132: 1002 | F132: 1372 | G132: 4.507 | H132: 0.023
A133: 635 | B133: 69 | C133: 353 | D133: 555 | E133: 788 | F133: 1193 | G133: 4.673 | H133: 0.035
A134: 670 | B134: 42 | C134: 409 | D134: 445 | E134: 602 | F134: 910 | G134: 4.671 | H134: 0.023
A135: 720 | B135: 82 | C135: 648 | D135: 545 | E135: 753 | F135: 1169 | G135: 4.716 | H135: 0.034
A136: 765 | B136: 81 | C136: 684 | D136: 441 | E136: 711 | F136: 1117 | G136: 4.735 | H136: 0.027
A137: 805 | B137: b9 | C137: 696 | D137: 467 | E137: 826 | F137: 1235 | G137: 4.653 | H137: 0.03
A138: 860 | B138: 75 | C138: 972 | D138: 516 | E138: 1147 | F138: 1656 | G138: 4.595 | H138: 0.017
A139: 905 | B139: 112 | C139: 1287 | D139: 698 | E139: 1474 | F139: 2061 | G139: 4.541 | H139: 0.021
A140: 960 | B140: 130 | C140: 1833 | D140: 414 | E140: 1729 | F140: 2369 | G140: 4.508 | H140: 0.02
A141: 1020 | B141: 143 | C141: 3537 | D141: 443 | E141: 1866 | F141: 2462 | G141: 4.446 | H141: 0.011
A142: 1078 | B142: 108 | C142: 5570 | D142: 250 | E142: 1454 | F142: 1914 | G142: 4.442 | H142: 0.018
A143: 1120 | B143: 111 | C143: 6565 | D143: 255 | E143: 1185 | F143: 1565 | G143: 4.448 | H143: 0.027
A144: 1170 | B144: 108 | C144: 8225 | D144: 275 | E144: 1551 | F144: 2166 | G144: 4.54 | H144: 8
A145: 1225 | B145: 84 | C145: 11919 | D145: 313 | E145: 1791 | F145: 2501 | G145: 4.54 | H145: 0.015
A146: 1290 | B146: 48 | C146: 6700 | D146: 221 | E146: 1072 | F146: 1454 | G146: 4.492 | H146: 0.032
A147: 1355 | B147: 37 | C147: 3889 | D147: 151 | E147: 625 | F147: 859 | G147: 4.513 | H147: 0.031
A148: 1445 | B148: 20 | C148: 2410 | D148: 135 | E148: 456 | F148: 658 | G148: 4.593 | H148: 0.07
A149: 1525 | B149: 11 | C149: 457 | D149: 50 | E149: 67 | F149: 84 | G149: 4.355 | H149: 0.387
G150: =AVERAGE(G126:G149) -> 4.555291667
A152: Sample 09 | G152: Age | H152: Error | I152: =(A152) -> Sample 09
A153: 350 | B153: 113 | C153: 57 | D153: 101 | E153: 604 | F153: 577 | G153: 3.922 | H153: 0.022 | I153: Maximum Age | J153: 5004 | K153: Million Years
A154: 390 | B154: 27 | C154: 54 | D154: 67 | E154: 520 | F154: 614 | G154: 4.264 | H154: 0.029 | I154: Minimum Age | J154: 3682 | K154: Million Years
A155: 430 | B155: 53 | C155: 129 | D155: 111 | E155: 1280 | F155: 1787 | G155: 4.539 | H155: 0.01 | I155: Average Age | J155: 4451 | K155: Million Years
A156: 475 | B156: 50 | C156: 204 | D156: 188 | E156: 1907 | F156: 3111 | G156: 4.799 | H156: 0.009 | I156: Age Difference | J156: =(J153-J154) -> 1322 | K156: Million Years
A157: 515 | B157: 63 | C157: 253 | D157: 321 | E157: 2421 | F157: 3895 | G157: 4.775 | H157: 0.008 | I157: Difference | J157: =(J153/J154) -> 1.359043998 | K157: Percent
A158: 550 | B158: 76 | C158: 302 | D158: 476 | E158: 2673 | F158: 4392 | G158: 4.811 | H158: 0.011 | I158: Standard Deviation | J158: 405 | K158: Million Years
A159: 590 | B159: 81 | C159: 323 | D159: 859 | E159: 2850 | F159: 4422 | G159: 4.715 | H159: 0.011
A160: 630 | B160: 86 | C160: 206 | D160: 742 | E160: 1576 | F160: 2453 | G160: 4.721 | H160: 0.013
A161: 680 | B161: 83 | C161: 235 | D161: 966 | E161: 1736 | F161: 2777 | G161: 4.766 | H161: 0.014
A162: 730 | B162: 137 | C162: 407 | D162: 982 | E162: 3090 | F162: 5399 | G162: 4.914 | H162: 0.012
A163: 770 | B163: 145 | C163: 317 | D163: 613 | E163: 1955 | F163: 3602 | G163: 5.004 | H163: 0.01
A164: 815 | B164: 142 | C164: 393 | D164: 673 | E164: 1659 | F164: 2847 | G164: 4.884 | H164: 0.012
A165: 860 | B165: 94 | C165: 471 | D165: 645 | E165: 1766 | F165: 2637 | G165: 4.651 | H165: 0.015
A166: 910 | B166: 105 | C166: 775 | D166: 659 | E166: 2453 | F166: 3219 | G166: 4.437 | H166: 0.007
A167: 950 | B167: 106 | C167: 1362 | D167: 679 | E167: 3543 | F167: 4316 | G167: 4.314 | H167: 0.006
A168: 1080 | B168: 15 | C168: 9723 | D168: 464 | E168: 5597 | F168: 6169 | G168: 4.151 | H168: 0.006
A169: 1150 | B169: 89 | C169: 6931 | D169: 211 | E169: 2107 | F169: 2395 | G169: 4.202 | H169: 0.012
A170: 1210 | B170: 122 | C170: 7043 | D170: 163 | E170: 2236 | F170: 2690 | G170: 4.294 | H170: 0.009
A171: 1280 | B171: 47 | C171: 2836 | D171: 130 | E171: 730 | F171: 691 | G171: 3.904 | H171: 0.043
A172: 1350 | B172: 31 | C172: 3337 | D172: 146 | E172: 850 | F172: 719 | G172: 3.729 | H172: 0.032
A173: 1490 | B173: 31 | C173: 2681 | D173: 153 | E173: 801 | F173: 658 | G173: 3.682 | H173: 0.037
G174: =AVERAGE(G153:G173) -> 4.451333333
A176: Sample 10 | G176: Age | H176: Error | I176: =(A176) -> Sample 10
A177: 410 | B177: 1b4 | C177: 296 | D177: 663 | E177: 968 | F177: 844 | G177: 3.776 | H177: 0.003 | I177: Maximum Age | J177: 4505 | K177: Million Years
A178: 450 | B178: 59 | C178: 302 | D178: 490 | E178: 1253 | F178: 1458 | G178: 4.239 | H178: 0.004 | I178: Minimum Age | J178: 1871 | K178: Million Years
A179: 490 | B179: 90 | C179: 473 | D179: 867 | E179: 2131 | F179: 2736 | G179: 4.4 | H179: 0.003 | I179: Average Age | J179: 3924 | K179: Million Years
A180: 530 | B180: 133 | C180: 530 | D180: 1416 | E180: 2334 | F180: 3082 | G180: 4.447 | H180: 0.003 | I180: Age Difference | J180: =(J177-J178) -> 2634 | K180: Million Years
A181: 565 | B181: 156 | C181: 499 | D181: 2019 | E181: 1898 | F181: 2530 | G181: 4.462 | H181: 0.002 | I181: Difference | J181: =(J177/J178) -> 2.407803314 | K181: Percent
A182: 600 | B182: 262 | C182: 603 | D182: 3331 | E182: 1651 | F182: 2202 | G182: 4.463 | H182: 0.003 | I182: Standard Deviation | J182: 844 | K182: Million Years
A183: 640 | B183: 392 | C183: 714 | D183: 5091 | E183: 1202 | F183: 1615 | G183: 4.476 | H183: 0.003
A184: 670 | B184: 329 | C184: 535 | D184: 4553 | E184: 588 | F184: 799 | G184: 4.495 | H184: 0.004
A185: 710 | B185: 232 | C185: 352 | D185: 3270 | E185: 299 | F185: 408 | G185: 4.505 | H185: 0.005
A186: 760 | B186: 213 | C186: 365 | D186: 2777 | E186: 255 | F186: 344 | G186: 4.486 | H186: 0.007
A187: 810 | B187: 113 | C187: 230 | D187: 1229 | E187: 153 | F187: 207 | G187: 4.494 | H187: 0.011
A188: 870 | B188: 126 | C188: 380 | D188: 1256 | E188: 173 | F188: 219 | G188: 4.376 | H188: 0.013
A189: 930 | B189: 124 | C189: 653 | D189: 1115 | E189: 189 | F189: 219 | G189: 4.233 | H189: 0.012
A190: 980 | B190: 176 | C190: 3102 | D190: 922 | E190: 253 | F190: 222 | G190: 3.786 | H190: 0.015
A191: 1030 | B191: 175 | C191: 3416 | D191: 883 | E191: 229 | F191: 134 | G191: 3.162 | H191: 0.024
A192: 1090 | B192: 228 | C192: 4582 | D192: 1050 | E192: 288 | F192: 112 | G192: 2.574 | H192: 0.03
A193: 1160 | B193: 77 | C193: 1379 | D193: 555 | E193: 63 | F193: 21 | G193: 2.391 | H193: 0.165
A194: 1260 | B194: 131 | C194: 1909 | D194: 651 | E194: 104 | F194: 23 | G194: 1.871 | H194: 0.205
G195: =AVERAGE(G177:G194) -> 3.924222222
A197: Sample 11 | G197: Age | H197: Error | I197: =(A197) -> Sample 11
A198: 390 | B198: 764 | C198: 139 | D198: 690 | E198: 3082 | F198: 3844 | G198: 4.353 | H198: 0.005 | I198: Maximum Age | J198: 4707 | K198: Million Years
A199: 430 | B199: 208 | C199: 87 | D199: 447 | E199: 2482 | F199: 3571 | G199: 4.589 | H199: 0.006 | I199: Minimum Age | J199: 3631 | K199: Million Years
A200: 475 | B200: 193 | C200: 104 | D200: 622 | E200: 3119 | F200: 4463 | G200: 4.58 | H200: 0.004 | I200: Average Age | J200: 4364 | K200: Million Years
A201: 520 | B201: 216 | C201: 137 | D201: 1135 | E201: 3777 | F201: 5370 | G201: 4.569 | H201: 0.004 | I201: Age Difference | J201: =(J198-J199) -> 1076 | K201: Million Years
A202: 565 | B202: 271 | C202: 158 | D202: 1821 | E202: 3198 | F202: 4534 | G202: 4.565 | H202: 0.006 | I202: Difference | J202: =(J198/J199) -> 1.296337097 | K202: Percent
A203: 590 | B203: 293 | C203: 155 | D203: 2172 | E203: 2107 | F203: 2906 | G203: 4.519 | H203: 0.009 | I203: Standard Deviation | J203: 337 | K203: Million Years
A204: 645 | B204: 333 | C204: 167 | D204: 2474 | E204: 1531 | F204: 2231 | G204: 4.61 | H204: 0.011
A205: 680 | B205: 264 | C205: 137 | D205: 1645 | E205: 1048 | F205: 1619 | G205: 4.707 | H205: 0.017
A206: 720 | B206: 242 | C206: 138 | D206: 1218 | E206: 936 | F206: 1442 | G206: 4.703 | H206: 0.023
A207: 770 | B207: 352 | C207: 223 | D207: 1255 | E207: 1168 | F207: 1774 | G207: 4.679 | H207: 0.014
A208: 830 | B208: 388 | C208: 302 | D208: 1200 | E208: 1323 | F208: 1904 | G208: 4.589 | H208: 0.013
A209: 880 | B209: 559 | C209: 606 | D209: 1380 | E209: 1714 | F209: 2282 | G209: 4.46 | H209: 0.012
A210: 930 | B210: 658 | C210: 806 | D210: 1360 | E210: 1861 | F210: 2398 | G210: 4.407 | H210: 0.013
... 333 more rows

Sheet B2
P1: Ar40/Ar39 | Q1: Error | R1: F. Jourdan
P2: Age | Q2: Mega Years | R2: Geochemica Et Cosmochemica Acta
P3: Million Years | R3: Volume 74, pages 1734–1747
A4: Mo-1a | R4: The Fossil LL6 Chondrite
A5: u | B5: 0.000162 | C5: 5e-06 | D5: 0.00349 | E5: 5e-05 | F5: 3.5e-05 | G5: 5e-06 | H5: 0.0012 | I5: 0 | J5: 0.795313 | K5: 0.316928 | L5: 102.7 | M5: 452.01 | O5: 35.17 | P5: 2888.75 | Q5: 224.14 | R5: 2010
A6: Mo-1b | R6: Meteorite Dating | T6: A | V6: Sample | W6: Maximum Age | X6: Minimum Age | Y6: Average Age | Z6: Age Difference | AA6: Percent | AB6: Standard Deviation
A7: J | B7: = | C7: 0.008759 | E7: 2.9e-05 | F7: -0.0033 | G7: D | H7: = | I7: 1.0052 | K7: 0.002 | V7: Name | W7: Million Years | X7: Million Years | Y7: Million Years | Z7: Million Years | AA7: Difference | AB7: Million Years
A8: 60 | B8: 0.000158 | C8: 6e-06 | D8: 0.000148 | E8: 5e-06 | F8: 4e-05 | G8: 4e-06 | H8: 0.00091 | I8: 2e-05 | J8: 0.10073 | K8: 0.00059 | L8: 59.5 | M8: 65.01 | O8: 2.67 | P8: 813.09 | Q8: 53.69 | R8: Maximum Age | S8: 2065.16 | T8: Million Years | V8: A | W8: 2065.16 | X8: 163.5 | Y8: 701.53 | Z8: 1901.66 | AA8: 12.63094801 | AB8: 892.76
A9: 61 | B9: 0.00011 | C9: 5e-06 | D9: 0.000327 | E9: 8e-06 | F9: 4e-05 | G9: 4e-06 | H9: 0.00115 | I9: 2e-05 | J9: 0.05677 | K9: 0.00026 | L9: 52.2 | M9: 23.99 | O9: 1.72 | P9: 344.03 | Q9: 45.01 | R9: Minimum Age | S9: 163.5 | T9: Million Years | V9: B | W9: 2849.02 | X9: 923.59 | Y9: 1818.85 | Z9: 1925.43 | AA9: 3.084723741 | AB9: 771.62
A10: 62 | B10: 6.1e-05 | C10: 4e-06 | D10: 0.000349 | E10: 1.4e-05 | F10: 3.6e-05 | G10: 4e-06 | H10: 0.0014 | I10: 1e-05 | J10: 0.03284 | K10: 0.00014 | L10: 62.4 | M10: 12.38 | O10: 1.21 | P10: 185.75 | Q10: 34.57 | R10: Average Age | S10: 701.53 | T10: Million Years | V10: C | W10: 2043.2 | X10: 176.51 | Y10: 533.64 | Z10: 1866.69 | AA10: 11.57554813 | AB10: 482.14
A11: 63 | B11: 5.4e-05 | C11: 4e-06 | D11: 0.000734 | E11: 1.8e-05 | F11: 4.3e-05 | G11: 4e-06 | H11: 0.00275 | I11: 3e-05 | J11: 0.05216 | K11: 0.00031 | L11: 82.8 | M11: 14.14 | O11: 0.63 | P11: 210.69 | Q11: 17.61 | R11: Age Difference | S11: =(S8-S9) -> 1901.66 | T11: Million Years | V11: D | W11: 7119.34 | X11: 174.38 | Y11: 1320.43 | Z11: 6944.96 | AA11: 40.82658562 | AB11: 1902.15
A12: 64 | B12: 4.5e-05 | C12: 3e-06 | D12: 0.00057 | E12: 1.3e-05 | F12: 3.6e-05 | G12: 4e-06 | H12: 0.00216 | I12: 2e-05 | J12: 0.03441 | K12: 0.00013 | L12: 81.1 | M12: 10.83 | O12: 0.67 | P12: 163.5 | Q12: 19.37 | R12: Difference | S12: =(S8/S9) -> 12.63094801 | T12: Percent | V12: E | W12: 3888.7 | X12: 248.67 | Y12: 1190.29 | Z12: 3640.03 | AA12: 15.63799413 | AB12: 1450.555161
A13: 65 | B13: 5.4e-05 | C13: 4e-06 | D13: 0.000715 | E13: 1.6e-05 | F13: 4.6e-05 | G13: 4e-06 | H13: 0.00294 | I13: 4e-05 | J13: 0.04578 | K13: 0.00013 | L13: 80.1 | M13: 10.97 | O13: 0.56 | P13: 165.53 | Q13: 16.06 | R13: Standard Deviation | S13: 892.76 | T13: Million Years | V13: F | Z13: =(W13-X13) -> 0 | AA13: =(W13/X13) -> 
A14: 66 | B14: 6.1e-05 | C14: 5e-06 | D14: 0.000909 | E14: 2e-05 | F14: 7.4e-05 | G14: 3e-06 | H14: 0.0038 | I14: 4e-05 | J14: 0.06966 | K14: 0.00024 | L14: 84.7 | M14: 14.35 | O14: 0.5 | P14: 213.66 | Q14: 13.93 | V14: G | W14: 11250 | X14: 5475 | Z14: =(W14-X14) -> 5775 | AA14: =(W14/X14) -> 2.054794521
A15: 66.8 | B15: 0.00061 | C15: 1e-05 | D15: 0.001396 | E15: 1.5e-05 | F15: 0.000256 | G15: 4e-06 | H15: 0.00471 | I15: 3e-05 | J15: 1.30726 | K15: 0.00195 | L15: 87.1 | M15: 244.5 | O15: 2.05 | P15: 2065.16 | Q15: 20.61 | V15: H | W15: =(W13/X11) -> 0
A16: 67.5 | B16: 0.000112 | C16: 6e-06 | D16: 0.001563 | E16: 2.5e-05 | F16: 0.000253 | G16: 7e-06 | H16: 0.00236 | I16: 2e-05 | J16: 0.12725 | K16: 0.00055 | L16: 80.1 | M16: 42 | O16: 0.98 | P16: 565.12 | Q16: 22.59
A17: 68.5 | B17: 0.000307 | C17: 1e-05 | D17: 0.010628 | E17: 6.6e-05 | F17: 0.001525 | G17: 3.9e-05 | H17: 0.0064 | I17: 2e-05 | J17: 0.30318 | K17: 0.00135 | L17: 75 | M17: 35.47 | O17: 0.57 | P17: 488.09 | Q17: 13.83
A18: 68.5 | B18: 0.000362 | C18: 9e-06 | D18: 0.026323 | E18: 0.000169 | F18: 0.004432 | G18: 4e-05 | H18: 0.00351 | I18: 2e-05 | J18: 0.49938 | K18: 0.00151 | L18: 83.9 | M18: 125.24 | O18: 1.46 | P18: 1335.92 | Q18: 22.02
A19: 70.5 | B19: 0.000618 | C19: 1e-05 | D19: 0.02193 | E19: 8.7e-05 | F19: 0.000502 | G19: 1.2e-05 | H19: 0.00342 | I19: 2e-05 | J19: 0.83553 | K19: 0.00284 | L19: 81 | M19: 207.34 | O19: 2.24 | P19: 1867.84 | Q19: 25.16 | W19: Ar40/Ar39 | X19: Ar40/Ar39 | Y19: Ar40/Ar39 | Z19: Ar40/Ar39 | AA19: Ar40/Ar39 | AB19: Ar40/Ar39
A20: Mo-1c | R20: Meteorite Dating | T20: B | W20: 11250.7 | X20: 2463.74 | Y20: 923.59 | Z20: 479.02 | AA20: 328.3 | AB20: 213.66
A21: J | B21: = | C21: 0.008759 | E21: 2.9e-05 | F21: -0.0033 | G21: D | H21: = | I21: 1.0052 | K21: 0.002 | W21: 7119.34 | X21: 2065.16 | Y21: 814.33 | Z21: 428.02 | AA21: 312.01 | AB21: 210.69
A22: 60 | B22: 0.000132 | C22: 7e-06 | D22: 8e-05 | E22: 1e-05 | F22: 3.4e-05 | G22: 3e-06 | H22: 0.000496 | I22: 2e-05 | J22: 0.159607 | K22: 0.00066 | L22: 99.93 | M22: 333.17 | O22: 14.77 | P22: 2463.74 | Q22: 119.14 | R22: Maximum Age | S22: 2849.02 | T22: Million Years | W22: 5475.4 | X22: 2043.2 | Y22: 813.09 | Z22: 423.47 | AA22: 295.96 | AB22: 187.94
A23: 61 | B23: 8.7e-05 | C23: 5e-06 | D23: 0.00037 | E23: 1e-05 | F23: 5.9e-05 | G23: 6e-06 | H23: 0.000477 | I23: 2.3e-05 | J23: 0.054476 | K23: 0.00024 | L23: 99.93 | M23: 111.3 | O23: 5.87 | P23: 1227.41 | Q23: 93.93 | R23: Minimum Age | S23: 923.59 | T23: Million Years | W23: 3889.1 | X23: 1891.98 | Y23: 693.53 | Z23: 367.03 | AA23: 292.14 | AB23: 185.8
A24: 66 | B24: 0.000106 | C24: 5e-06 | D24: 0.00203 | E24: 8e-05 | F24: 5.8e-05 | G24: 5e-06 | H24: 0.00182 | I24: 1.4e-05 | J24: 0.140283 | K24: 0.000698 | L24: 99.95 | M24: 76.3 | O24: 0.76 | P24: 923.59 | Q24: 14.36 | R24: Average Age | S24: 1818.85 | T24: Million Years | W24: 3888.7 | X24: 1867.84 | Y24: 617.14 | Z24: 360.74 | AA24: 274.21 | AB24: 185.75
A25: 68 | B25: 5.6e-05 | C25: 3e-06 | D25: 0.00088 | E25: 2e-05 | F25: 1.6e-05 | G25: 4e-06 | H25: 0.000201 | I25: 7e-06 | J25: 0.035963 | K25: 0.000204 | L25: 99.91 | M25: 187.09 | O25: 8.36 | P25: 1750.5 | Q25: 100.15 | R25: Age Difference | S25: =(S22-S23) -> 1925.43 | T25: Million Years | W25: 3759.1 | X25: 1771.85 | Y25: 565.12 | Z25: 358.98 | AA25: 255.67 | AB25: 176.51
A26: 69.5 | B26: 6.1e-05 | C26: 5e-06 | D26: 0.00079 | E26: 2e-05 | F26: 2.3e-05 | G26: 3e-06 | H26: 0.00022 | I26: 7e-06 | J26: 0.036845 | K26: 6.2e-05 | L26: 99.9 | M26: 166.96 | O26: 7.25 | P26: 1625.71 | Q26: 93.01 | R26: Difference | S26: =(S22/S23) -> 3.084723741 | T26: Percent | W26: 3708.1 | X26: 1750.5 | Y26: 556.32 | Z26: 348.29 | AA26: 249.97 | AB26: 174.38
A27: 70.5 | B27: 6.1e-05 | C27: 4e-06 | D27: 0.00102 | E27: 1e-05 | F27: 2.3e-05 | G27: 5e-06 | H27: 0.000189 | I27: 7e-06 | J27: 0.038317 | K27: 0.00024 | L27: 99.91 | M27: 211.67 | O27: 10.51 | P27: 1891.98 | Q27: 116.39 | R27: Standard Deviation | S27: 771.62 | T27: Million Years | W27: 2888.75 | X27: 1625.71 | Y27: 520.75 | Z27: 344.03 | AA27: 248.67 | AB27: 165.53
A28: 73 | B28: 7e-05 | C28: 4e-06 | D28: 0.00059 | E28: 2e-05 | F28: 7e-06 | G28: 2e-06 | H28: 9.5e-05 | I28: 7e-06 | J28: 0.032826 | K28: 0.000193 | L28: 99.8 | M28: 439.68 | O28: 56.57 | P28: 2849.02 | Q28: 368.55 | W28: 2849.02 | X28: 1335.92 | Y28: 488.09 | Z28: 336.39 | AA28: 237.68 | AB28: 163.5
A29: Mo-1d | R29: Meteorite Dating | T29: C | W29: 2485.38 | X29: 1227.41 | Y29: 486.09 | Z29: 336.15 | AA29: 233.95
A30: J | B30: = | C30: 0.008759 | E30: 2.9e-05 | F30: -0.0033 | G30: D | H30: = | I30: 1.0052 | K30: 0.002
A31: 60 | B31: 0.000118 | C31: 6e-06 | D31: 6.9e-05 | E31: 5e-06 | F31: 2.9e-05 | G31: 4e-06 | H31: 0.000577 | I31: 2.2e-05 | J31: 0.06891 | K31: 0.00029 | L31: 54.8 | M31: 65.13 | O31: 4.57 | P31: 814.33 | Q31: 91.92 | R31: Maximum Age | S31: 2043.2 | T31: Million Years
A32: 62 | B32: 8.2e-05 | C32: 5e-06 | D32: 0.000107 | E32: 9e-06 | F32: 3.1e-05 | G32: 2e-06 | H32: 0.000405 | I32: 8e-06 | J32: 0.03773 | K32: 0.00017 | L32: 46 | M32: 41.24 | O32: 4.65 | P32: 556.32 | Q32: 107.97 | R32: Minimum Age | S32: 176.51 | T32: Million Years
A33: 64 | B33: 9.9e-05 | C33: 4e-06 | D33: 0.000533 | E33: 1.2e-05 | F33: 5.8e-05 | G33: 3e-06 | H33: 0.001736 | I33: 2.1e-05 | J33: 0.05838 | K33: 0.00055 | L33: 59.4 | M33: 18.74 | O33: 1 | P33: 274.21 | Q33: 27.08 | R33: Average Age | S33: 533.64 | T33: Million Years
A34: 65 | B34: 5.8e-05 | C34: 4e-06 | D34: 0.000588 | E34: 1.4e-05 | F34: 4.9e-05 | G34: 4e-06 | H34: 0.00207 | I34: 3e-05 | J34: 0.04837 | K34: 0.0002 | L34: 79.5 | M34: 16.97 | O34: 0.75 | P34: 249.97 | Q34: 20.6 | R34: Age Difference | S34: =(S31-S32) -> 1866.69 | T34: Million Years
A35: 66 | B35: 5.8e-05 | C35: 5e-06 | D35: 0.000636 | E35: 8e-06 | F35: 6.9e-05 | G35: 5e-06 | H35: 0.002271 | I35: 2.4e-05 | J35: 0.04014 | K35: 0.0001 | L35: 74.8 | M35: 11.73 | O35: 0.73 | P35: 176.51 | Q35: 20.84 | R35: Difference | S35: =(S31/S32) -> 11.57554813 | T35: Percent
A36: 66.5 | B36: 4.7e-05 | C36: 2e-06 | D36: 0.000556 | E36: 1.8e-05 | F36: 8.8e-05 | G36: 4e-06 | H36: 0.002027 | I36: 2e-05 | J36: 0.03576 | K36: 0.00013 | L36: 81.5 | M36: 12.53 | O36: 0.55 | P36: 187.94 | Q36: 15.59 | R36: Standard Deviation | S36: 482.14 | T36: Million Years
A37: 67 | B37: 7e-05 | C37: 4e-06 | D37: 0.000895 | E37: 1.4e-05 | F37: 0.000173 | G37: 8e-06 | H37: 0.002155 | I37: 2.6e-05 | J37: 0.08156 | K37: 0.00052 | L37: 83.3 | M37: 30.21 | O37: 0.85 | P37: 423.47 | Q37: 21.25
A38: 67.5 | B38: 3.1e-05 | C38: 4e-06 | D38: 0.000322 | E38: 9e-06 | F38: 7.8e-05 | G38: 6e-06 | H38: 0.000684 | I38: 1.5e-05 | J38: 0.03793 | K38: 0.00016 | L38: 91.7 | M38: 46.57 | O38: 2.41 | P38: 617.14 | Q38: 54.11
A39: 68 | B39: 9.2e-05 | C39: 3e-06 | D39: 0.001645 | E39: 2.9e-05 | F39: 0.000365 | G39: 1.8e-05 | H39: 0.002495 | I39: 3.1e-05 | J39: 0.06433 | K39: 0.00024 | L39: 66.3 | M39: 16.08 | O39: 0.52 | P39: 237.68 | Q39: 14.4
A40: 68.5 | B40: 0.000126 | C40: 7e-06 | D40: 0.001665 | E40: 2.5e-05 | F40: 0.000415 | G40: 1.1e-05 | H40: 0.001486 | I40: 1.3e-05 | J40: 0.07184 | K40: 0.00023 | L40: 55 | M40: 25.76 | O40: 1.46 | P40: 367.03 | Q40: 37.6
A41: 69 | B41: 0.000125 | C41: 6e-06 | D41: 0.001902 | E41: 3.1e-05 | F41: 0.000511 | G41: 7e-06 | H41: 0.001045 | I41: 1.5e-05 | J41: 0.08782 | K41: 0.00046 | L41: 64.3 | M41: 53.52 | O41: 2.12 | P41: 693.53 | Q41: 45.63
A42: 69.5 | B42: 6e-05 | C42: 4e-06 | D42: 0.000972 | E42: 1.8e-05 | F42: 0.000247 | G42: 9e-06 | H42: 0.000416 | I42: 1.1e-05 | J42: 0.02385 | K42: 0.00013 | L42: 39.8 | M42: 20.35 | O42: 3.84 | P42: 295.96 | Q42: 102.88
A43: 72 | B43: 0.001425 | C43: 1.6e-05 | D43: 0.050383 | E43: 7.7e-05 | F43: 0.008503 | G43: 3.1e-05 | H43: 0.00655 | I43: 5.3e-05 | J43: 1.85138 | K43: 0.00227 | L43: 80.1 | M43: 240.16 | O43: 2.79 | P43: 2043.2 | Q43: 28.42
A44: Mo-1e | R44: Meteorite Dating | T44: D
A45: J | B45: = | C45: 0.008759 | E45: 2.9e-05 | F45: -0.0033 | G45: D | H45: = | I45: 1.0078 | K45: 0.0012
A46: 65 | B46: 2.7e-05 | C46: 3e-06 | D46: 3.2e-05 | E46: 4e-06 | F46: 1.9e-05 | G46: 3e-06 | H46: 0.000309 | I46: 8e-06 | J46: 0.01343 | K46: 5e-05 | L46: 70.8 | M46: 23.4 | O46: 3.88 | P46: 336.39 | Q46: 101.86 | R46: Maximum Age | S46: 7119.34 | T46: Million Years
A47: 65.8 | B47: 3e-05 | C47: 3e-06 | D47: 5e-05 | E47: 6e-06 | F47: 4e-05 | G47: 5e-06 | H47: 0.000688 | I47: 1.2e-05 | J47: 0.01805 | K47: 9e-05 | L47: 74.2 | M47: 15.81 | O47: 1.82 | P47: 233.95 | Q47: 50.44 | R47: Minimum Age | S47: 174.38 | T47: Million Years
A48: 66.7 | B48: 3.8e-05 | C48: 2e-06 | D48: 7.8e-05 | E48: 6e-06 | F48: 0.000114 | G48: 5e-06 | H48: 0.001181 | I48: 1.4e-05 | J48: 0.02263 | K48: 0.00011 | L48: 71.4 | M48: 11.59 | O48: 0.87 | P48: 174.38 | Q48: 25 | R48: Average Age | S48: 1320.43 | T48: Million Years
A49: 67.5 | B49: 5.3e-05 | C49: 3e-06 | D49: 0.000151 | E49: 9e-06 | F49: 0.00045 | G49: 1.2e-05 | H49: 0.001443 | I49: 1e-05 | J49: 0.0304 | K49: 0.00018 | L49: 65.8 | M49: 12.38 | O49: 0.75 | P49: 185.8 | Q49: 21.46 | R49: Age Difference | S49: =(S46-S47) -> 6944.96 | T49: Million Years
A50: 68.2 | B50: 4.6e-05 | C50: 4e-06 | D50: 0.000172 | E50: 8e-06 | F50: 0.000398 | G50: 1.3e-05 | H50: 0.000974 | I50: 8e-06 | J50: 0.02695 | K50: 0.00011 | L50: 70.8 | M50: 17.38 | O50: 1.41 | P50: 255.67 | Q50: 38.66 | R50: Difference | S50: =(S46/S47) -> 40.82658562 | T50: Percent
A51: 69.5 | B51: 7.4e-05 | C51: 3e-06 | D51: 0.000286 | E51: 8e-06 | F51: 0.000693 | G51: 1.6e-05 | H51: 0.001265 | I51: 1.4e-05 | J51: 0.06073 | K51: 0.00016 | L51: 75.7 | M51: 35.3 | O51: 1.06 | P51: 486.09 | Q51: 25.7 | R51: Standard Deviation | S51: 1902.15 | T51: Million Years
A52: 69.5 | B52: 0.000291 | C52: 4e-06 | D52: 0.001428 | E52: 1.7e-05 | F52: 0.004376 | G52: 5.1e-05 | H52: 0.001964 | I52: 1.1e-05 | J52: 0.41945 | K52: 0.0007 | L52: 84 | M52: 190.68 | O52: 1.93 | P52: 1771.85 | Q52: 22.85
A53: 70 | B53: 0.001758 | C53: 1.3e-05 | D53: 0.000587 | E53: 7e-06 | F53: 0.000349 | G53: 8e-06 | H53: 0.000632 | I53: 7e-06 | J53: 3.78113 | K53: 0.00195 | L53: 86.9 | M53: 5793.02 | O53: 87.32 | P53: 7119.34 | Q53: 53.33
A54: Mo-1f | R54: Meteorite Dating | T54: E
A55: J | B55: = | C55: 0.008759 | E55: 2.9e-05 | F55: -0.0033 | G55: D | H55: = | I55: 1.0078 | K55: 0.0012
A56: 63 | B56: 5.5e-05 | C56: 3e-06 | D56: 2.3e-05 | E56: 5e-06 | F56: 2.1e-05 | G56: 3e-06 | H56: 0.000789 | I56: 1.4e-05 | J56: 0.03807 | K56: 0.00018 | L56: 68.2 | M56: 30.57 | O56: 1.55 | P56: 428.02 | Q56: 38.75 | R56: Maximum Age | S56: 3888.7 | T56: Million Years
A57: 64 | B57: 2.5e-05 | C57: 2e-06 | D57: 2e-05 | E57: 4e-06 | F57: 1.3e-05 | G57: 3e-06 | H57: 0.000395 | I57: 7e-06 | J57: 0.01553 | K57: 0.00011 | L57: 80.8 | M57: 25.27 | O57: 2.45 | P57: 360.74 | Q57: 63.48 | R57: Minimum Age | S57: 248.67 | T57: Million Years
A58: 65.5 | B58: 5.6e-05 | C58: 1e-06 | D58: 3.6e-05 | E58: 4e-06 | F58: 3.2e-05 | G58: 5e-06 | H58: 0.001583 | I58: 2.4e-05 | J58: 0.05112 | K58: 0.00021 | L58: 76.9 | M58: 23.38 | O58: 0.63 | P58: 336.15 | Q58: 16.58 | R58: Average Age | S58: 1190.29 | T58: Million Years
A59: 66.2 | B59: 2.8e-05 | C59: 2e-06 | D59: 3.2e-05 | E59: 6e-06 | F59: 1.6e-05 | G59: 3e-06 | H59: 0.001099 | I59: 9e-06 | J59: 0.03304 | K59: 0.0002 | L59: 89.5 | M59: 24.31 | O59: 0.89 | P59: 348.29 | Q59: 23.23 | R59: Age Difference | S59: =(S56-S57) -> 3640.03 | T59: Million Years
A60: 67 | B60: 6.1e-05 | C60: 3e-06 | D60: 5.5e-05 | E60: 5e-06 | F60: 6.1e-05 | G60: 5e-06 | H60: 0.003485 | I60: 1.8e-05 | J60: 0.08536 | K60: 0.0003 | L60: 84.8 | M60: 20.07 | O60: 0.35 | P60: 292.14 | Q60: 9.45 | R60: Difference | S60: =(S56/S57) -> 15.63799413 | T60: Percent
A61: 67.8 | B61: 6.2e-05 | C61: 2e-06 | D61: 4.8e-05 | E61: 4e-06 | F61: 4.4e-05 | G61: 4e-06 | H61: 0.001574 | I61: 1e-05 | J61: 0.04254 | K61: 0.00011 | L61: 67.2 | M61: 16.87 | O61: 0.56 | P61: 248.67 | Q61: 15.55 | R61: Standard Deviation | S61: 1450.555161 | T61: Million Years
A62: 68.5 | B62: 6.2e-05 | C62: 2e-06 | D62: 5.2e-05 | E62: 4e-06 | F62: 9.6e-05 | G62: 4e-06 | H62: 0.005316 | I62: 6.4e-05 | J62: 0.12978 | K62: 0.00026 | L62: 90 | M62: 21.56 | O62: 0.32 | P62: 312.01 | Q62: 8.55
A63: 69.2 | B63: 7.5e-05 | C63: 4e-06 | D63: 6.5e-05 | E63: 4e-06 | F63: 9.5e-05 | G63: 5e-06 | H63: 0.004983 | I63: 3e-05 | J63: 0.13201 | K63: 0.00023 | L63: 87.5 | M63: 22.79 | O63: 0.32 | P63: 328.3 | Q63: 8.38
A64: 69.5 | B64: 1.5e-05 | C64: 3e-06 | D64: 3.3e-05 | E64: 2e-06 | F64: 1e-05 | G64: 3e-06 | H64: 0.000391 | I64: 2e-06 | J64: 0.01276 | K64: 5e-05 | L64: 97 | M64: 25.14 | O64: 3.15 | P64: 358.98 | Q64: 81.48
A65: 70 | B65: 7.5e-05 | C65: 4e-06 | D65: 8.9e-05 | E65: 6e-06 | F65: 8.1e-05 | G65: 5e-06 | H65: 0.001745 | I65: 1.6e-05 | J65: 0.08456 | K65: 0.00021 | L65: 80.2 | M65: 38.2 | O65: 0.88 | P65: 520.75 | Q65: 20.81
A66: 70.5 | B66: 6.6e-05 | C66: 3e-06 | D66: 0.000131 | E66: 6e-06 | F66: 8e-05 | G66: 7e-06 | H66: 0.001627 | I66: 1.9e-05 | J66: 0.07106 | K66: 0.00026 | L66: 81.3 | M66: 34.72 | O66: 0.83 | P66: 479.02 | Q66: 20.23
A67: 71 | B67: 0.000502 | C67: 6e-06 | D67: 0.001031 | E67: 1.2e-05 | F67: 0.000176 | G67: 5e-06 | H67: 0.001823 | I67: 1.1e-05 | J67: 0.7106 | K67: 0.00091 | L67: 81.7 | M67: 338.57 | O67: 3.2 | P67: 2485.38 | Q67: 25.47
A68: 71.5 | B68: 6.4e-05 | C68: 4e-06 | D68: 8.3e-05 | E68: 6e-06 | F68: 1.8e-05 | G68: 3e-06 | H68: 5.8e-05 | I68: 6e-06 | J68: 0.03532 | K68: 0.00015 | L68: 61.3 | M68: 777.49 | O68: 207.67 | P68: 3708.1 | Q68: 840.4
A69: 72.2 | B69: 9.6e-05 | C69: 4e-06 | D69: 7.3e-05 | E69: 4e-06 | F69: 1.4e-05 | G69: 3e-06 | H69: 6.3e-05 | I69: 5e-06 | J69: 0.05278 | K69: 0.00031 | L69: 55 | M69: 871.36 | O69: 171.48 | P69: 3888.7 | Q69: 627.8
A70: 73 | B70: 4.1e-05 | C70: 2e-06 | D70: 3.2e-05 | E70: 4e-06 | F70: 9e-06 | G70: 3e-06 | H70: 3.3e-05 | I70: 3e-06 | J70: 0.01535 | K70: 3e-05 | L70: 37.4 | M70: 803.06 | O70: 704.54 | P70: 3759.1 | Q70: 2771.5
A71: Mo-1g | R71: Meteorite Dating | T71: F
A72: J | B72: = | C72: 0.008759 | E72: 2.9e-05 | F72: -0.0033 | G72: D | H72: = | I72: 1.0052 | K72: 0.0028
A73: 70 | B73: 2.2e-05 | C73: 5e-06 | D73: 0.000186 | E73: 1e-05 | F73: _0.000009 | G73: 5e-06 | H73: 2.9e-05 | I73: 5e-06 | J73: 0.01715 | K73: 8e-05 | L73: 83.4 | M73: 894.84 | O73: 561.07 | P73: 3889.1 | Q73: 2378
A74: Mo-1h | R74: Meteorite Dating | T74: G
A75: J | B75: = | C75: 0.008759 | E75: 2.9e-05 | F75: -0.0033 | G75: D | H75: = | I75: 1.0052 | K75: 0.0028
A76: 55.2 | B76: 0.000195 | C76: 6e-06 | D76: 0.000303 | E76: 8e-06 | F76: 3.5e-05 | G76: 3e-06 | H76: 4.1e-05 | I76: 4e-06 | J76: 0.45114 | K76: 0.00158 | L76: 88.9 | M76: 58218.76 | O76: 40918.31 | P76: 11250.7 | Q76: 2531
A77: 60 | B77: 2.9e-05 | C77: 2e-06 | D77: 0.000125 | E77: 8e-06 | F77: 5e-06 | G77: 1e-06 | H77: 3.9e-05 | I77: 6e-06 | J77: 0.0208 | K77: 8e-05 | L77: 88 | M77: 2260.69 | O77: 2503.25 | P77: 5475.4 | Q77: 3803.2

Sheet B3
A2: Table 5. | C2: Rb-Sr Date | D2: Rb-Sr Date | E2: Rb-Sr Date
A3: Mines Location | B3: Mineral Type | C3: Years | D3: Million Years | E3: Billion Years
A4: Hugo Mine | B4: Albite | C4: 7100000000 | D4: =(C4/1000000) -> 7100 | E4: =(C4/1000000000) -> 7.1
A5: Hugo Mine | B5: Montebrasite | C5: 4700000000 | D5: =(C5/1000000) -> 4700 | E5: =(C5/1000000000) -> 4.7
A6: Hugo Mine | B6: Spodumene | C6: 1500000000 | D6: 1500 | E6: 1.5
A7: Hugo Mine | B7: Apatite | C7: 900000000000 | D7: 900000 | E7: 900
A8: Hugo Mine | B8: Lithiophyllite | C8: 53000000000 | D8: 53000 | E8: 53
A9: Tin Mountain | B9: Montebraeite | C9: 36000000000 | D9: 36000 | E9: 36
A10: Tin Mountain | B10: Spodumene | C10: 1400000000 | D10: 1400 | E10: 1.4
A11: Tin Mountain | B11: Apatite | C11: 75000000000 | D11: 75000 | E11: 75
A12: Bob Ingersoll Mine | B12: Montebrasite | C12: 81000000000 | D12: 81000 | E12: 81
A13: Bob Ingersoll Mine | B13: Spodumene | C13: 1800000000 | D13: 1800 | E13: 1.8
A14: Bob Ingersoll Mine | B14: Apatite | C14: 460000000000 | D14: 460000 | E14: 460
A17: June, 1970
A18: Geo Chemica et Cosmochimica Acta,
A19: Volume 34, pages 713 to 725
A20: G. H. Riley
A21: Isotopic discrepancies
A25: Table 1
A26: Mines Location | B26: Mineral Type | C26: K/Ca | D26: K/Ar | E26: Rb/Sr | F26: Pb206/U238 | G26: Pb207/U235 | H26: Pb207/Pb206 | I26: Pb208/Th232
A27: Bob Ingersoll | B27: Lepidolite | E27: 1170
A28: Bob Ingersoll | B28: Lepidolite | E28: 1540
A29: Bob Ingersoll | B29: Lepidolite | D29: 1380 | E29: 1670
A30: Bob Ingersoll | B30: Muscovite | C30: 1660 | D30: 1730
A31: Bob Ingersoll | B31: Microcline | C31: 1090 | D31: 1600
A32: Bob Ingersoll | B32: Ureninite | F32: 1580 | G32: 1600 | H32: 1630 | I32: 1440
A33: Bob Ingersoll | B33: Lepidolite | E33: 1690
A34: Bob Ingersoll | B34: Lepidolite | E34: 1580
A35: Bob Ingersoll | B35: Leipdolite | C35: 1190
A36: Black Hills | B36: Ursninite | F36: 1615 | G36: 1615 | H36: 1622 | I36: 1370
A37: Black Hills | B37: Umninito | F37: 1390 | G37: 1460 | H37: 1610 | I37: 1030
A38: Bob Ingersoll | B38: Lepidolito | E38: 1630
A39: Bob Ingersoll | B39: Lepidolite | E39: 1620
A40: Etta | B40: Muscovite | C40: 1640
A41: Herney Granite | B41: Muscovite | C41: 1680
A48: Table 4
A49: Mines Location | B49: Rb/Sr | D49: Mines Location | E49: Rb/Sr
A50: Tin Mountain | B50: 1727 | D50: Bob Ingersoll | E50: 1706
A51: Tin Mountain | B51: 1736 | D51: Bob Ingersoll | E51: 1714
A52: Tin Mountain | B52: 1712 | D52: Bob Ingersoll | E52: 1678
A53: Tin Mountain | B53: 1715 | D53: Bob Ingersoll | E53: 1676
A54: Tin Mountain | B54: 1714 | D54: Hugo Mine | E54: 1648
A55: Bob Ingersoll | B55: 1706 | D55: Hugo Mine | E55: 1648
A56: Bob Ingersoll | B56: 1714 | D56: Hugo Mine | E56: 1628
A57: Tin Mountain | B57: 1699 | D57: Hugo Mine | E57: 1608
A58: Tin Mountain | B58: 1700 | D58: Hugo Mine | E58: 1611
A59: Tin Mountain | B59: 1679 | D59: Tin Mountain | E59: 1727
A60: Tin Mountain | B60: 1676 | D60: Tin Mountain | E60: 1736
A61: Bob Ingersoll | B61: 1678 | D61: Tin Mountain | E61: 1712
A62: Bob Ingersoll | B62: 1676 | D62: Tin Mountain | E62: 1715
A63: Tin Mountain | B63: 1688 | D63: Tin Mountain | E63: 1714
A64: Tin Mountain | B64: 1693 | D64: Tin Mountain | E64: 1699
A65: Tin Mountain | B65: 1681 | D65: Tin Mountain | E65: 1700
A66: Tin Mountain | B66: 1678 | D66: Tin Mountain | E66: 1679
A67: Tin Mountain | B67: 1658 | D67: Tin Mountain | E67: 1676
A68: Tin Mountain | B68: 1688 | D68: Tin Mountain | E68: 1688
A69: Tin Mountain | B69: 1664 | D69: Tin Mountain | E69: 1693
A70: Tin Mountain | B70: 1653 | D70: Tin Mountain | E70: 1681
A71: Hugo Mine | B71: 1648 | D71: Tin Mountain | E71: 1678
A72: Hugo Mine | B72: 1648 | D72: Tin Mountain | E72: 1658
A73: Hugo Mine | B73: 1628 | D73: Tin Mountain | E73: 1688
A74: Hugo Mine | B74: 1608 | D74: Tin Mountain | E74: 1664
A75: Hugo Mine | B75: 1611 | D75: Tin Mountain | E75: 1653

Sheet B4
A1: Rock | B1: Pb-207 | C1: Pb-206 | D1: Pb-207 | E1: Pb-208 | I1: Lurnar Rock | J1: Maximum Age | K1: Minimum Age | L1: Age Difference | M1: Percentage
A2: Sample | B2: Pb-206 | C2: U-238 | D2: U-235 | E2: Th-232 | I2: Dating | J2: Billion Years | K2: Billion Years | L2: Billion Years | M2: Difference | P2: Pb207/Pb206 | Q2: Pb206/U238 | R2: Pb207/U235 | S2: Pb208/Th232
B3: Billion Years | C3: Billion Years | D3: Billion Years | E3: Billion Years | G3: G. J. Wasserburg | I3: Plagioclase A | J3: 28.14 | K3: 5.43 | L3: =(J3-K3) -> 22.71 | M3: =(J3/K3) -> 5.182320442 | P3: 5650 | Q3: 10280 | R3: 6540 | S3: 28140
A4: Whole rock-1 | B4: 5.01 | C4: 5.6 | D4: 5.18 | E4: 5.48 | G4: Earth And Planetary Science Letters | I4: Plagioclase B | J4: 11.23 | K4: 5.28 | L4: =(J4-K4) -> 5.95 | M4: =(J4/K4) -> 2.126893939 | P4: 5580 | Q4: 9210 | R4: 6430 | S4: 24920
B5: 5.02 | C5: 5.55 | D5: 5.17 | E5: 5.41 | G5: Volume 14, Pages 281-304. | I5: Wash of plagioclase | J5: 9.08 | K5: 4.45 | L5: 4.63 | M5: 2.040449438 | P5: 5430 | Q5: 9080 | R5: 6390 | S5: 23500
B6: 5.01 | C6: 5.62 | D6: 5.18 | E6: 5.5 | G6: Three Apollo 14 Basalts | P6: 5330 | Q6: 8970 | R6: 5760 | S6: 11230
A7: Whole rock-2 | B7: 4.97 | C7: 5.44 | D7: 5.1 | E7: 5.41 | G7: 1972 | P7: 5310 | Q7: 8730 | R7: 5740 | S7: 10790
B8: 4.97 | C8: 5.39 | D8: 5.09 | E8: 5.35 | P8: 5280 | Q8: 7150 | R8: 5710 | S8: 10340
B9: 4.96 | C9: 5.5 | D9: 5.11 | E9: 5.49 | P9: 5110 | Q9: 6980 | R9: 5670 | S9: 9010
A10: Magnetic fraction- 1 | B10: 4.83 | C10: 5.1 | D10: 4.91 | E10: 4.91 | P10: 5100 | Q10: 6810 | R10: 5650 | S10: 8890
B11: 4.84 | C11: 5.06 | D11: 4.9 | E11: 4.87 | P11: 5050 | Q11: 5620 | R11: 5180 | S11: 5500
B12: 4.83 | C12: 5.15 | D12: 4.92 | E12: 4.97 | P12: 5020 | Q12: 5600 | R12: 5180 | S12: 5490
A13: Plagioclase A | B13: 5.58 | C13: 9.21 | D13: 6.43 | E13: 24.92 | P13: 5010 | Q13: 5550 | R13: 5170 | S13: 5480
B14: 5.65 | C14: 8.73 | D14: 6.39 | E14: 23.5 | P14: 5010 | Q14: 5500 | R14: 5110 | S14: 5410
B15: 5.43 | C15: 10.28 | D15: 6.54 | E15: 28.14 | P15: 4970 | Q15: 5440 | R15: 5100 | S15: 5410
A16: Dirty plagioclase | B16: 5.11 | P16: 4970 | Q16: 5390 | R16: 5090 | S16: 5350
B17: 5.05 | P17: 4960 | Q17: 5150 | R17: 4920 | S17: 4970
B18: 5.1 | P18: 4840 | Q18: 5100 | R18: 4910 | S18: 4910
A19: Magnetic fraction-2 | B19: 4.8 | P19: 4830 | Q19: 5060 | R19: 4900 | S19: 4870
B20: 4.8 | P20: 4830 | S20: 4800
B21: 4.79 | P21: 4800
B22: 4.79 | J22: 80 | P22: 4800
A23: Whole rock-3 | B23: 4.27 | C23: 4.2 | D23: 4.25 | E23: 4.1
B24: 4.27 | C24: 4.19 | D24: 4.24 | E24: 4.09
B25: 4.27 | C25: 4.21 | D25: 4.25 | E25: 4.1
A26: Whole rock-4 | B26: 4.28 | C26: 4.24 | D26: 4.27 | E26: 4.13
B27: 4.28 | C27: 4.23 | D27: 4.26 | E27: 4.1
B28: 4.28 | C28: 4.25 | D28: 4.27 | E28: 4.13
A29: More magnetic fraction | B29: 4.25 | C29: 4.18 | D29: 4.23 | E29: 4.05
B30: 4.25 | C30: 4.14 | D30: 4.21 | E30: 4.01
B31: 4.25 | C31: 4.19 | D31: 4.23 | E31: 4.06
A32: Less magnetic fraction | B32: 4.48 | C32: 4.5 | D32: 4.49 | E32: 4.48
B33: 4.48 | C33: 4.39 | D33: 4.45 | E33: 4.35
B34: 4.48 | C34: 4.55 | D34: 4.5 | E34: 4.55
A35: Plagioclase B | B35: 5.31 | C35: 6.98 | D35: 5.74 | E35: 10.79
B36: 5.33 | C36: 6.81 | D36: 5.71 | E36: 10.34
B37: 5.28 | C37: 7.15 | D37: 5.76 | E37: 11.23
A38: Wash of plagioclase | B38: 4.55 | C38: 8.97 | D38: 5.65 | E38: 8.89
B39: 4.68 | C39: 4.45 | D39: 4.61 | E39: 4.8
B40: 4.55 | C40: 9.08 | D40: 5.67 | E40: 9.01
B41: =MIN(B4:B40) -> 4.25 | C41: =MIN(C4:C40) -> 4.14 | D41: =MIN(D4:D40) -> 4.21 | E41: =MIN(E4:E40) -> 4.01
A56: Pb-207 | B56: Pb-206 | C56: Pb-207 | D56: Pb-208
A57: Pb-206 | B57: U-238 | C57: U-235 | D57: Th-232
A58: Billion Years | B58: Billion Years | C58: Billion Years | D58: Billion Years
A59: 5.58 | B59: 9.21 | C59: 6.43 | D59: 24.92
A60: 5.65 | B60: 8.73 | C60: 6.39 | D60: 23.5
A61: 5.43 | B61: 10.28 | C61: 6.54 | D61: 28.14
A63: Pb-207 | B63: Pb-206 | C63: Pb-207 | D63: Pb-208
A64: Pb-206 | B64: U-238 | C64: U-235 | D64: Th-232
A65: Billion Years | B65: Billion Years | C65: Billion Years | D65: Billion Years
A66: 5.31 | B66: 6.98 | C66: 5.74 | D66: 10.79
A67: 5.33 | B67: 6.81 | C67: 5.71 | D67: 10.34
A68: 5.28 | B68: 7.15 | C68: 5.76 | D68: 11.23

Sheet B5
B1: Meteorite | C1: 206Pb/238U | D1: 207Pb/235U | E1: 207Pb/206Pb | F1: TABLE 6 | J1: 5369.609326 | K1: 5602 | L1: 8615
B2: Name | C2: Million Years | D2: Million Years | E2: Million Years | J2: 5366.574794 | K2: 5230 | L2: 6834
B3: Bruderheim-1 | C3: 4126 | D3: 4447 | E3: 4647 | J3: 5346.394694 | K3: 4939 | L3: 5334
B4: Bruderheim-2 | C4: 4542 | D4: 4592 | E4: 4628 | H4: Isotopic Lead Ages Of Meteorites | J4: 5342.911821 | K4: 4703 | L4: 4959
B5: Bruderheim-3 | C5: 4959 | D5: 4703 | E5: 4605 | H5: Earth And Planetary Science Letters | J5: 5325.99102
E6: 4613 | H6: Volume 19, Pages 321-329 | J6: 5268.695759
B7: Richardton-1 | C7: 8615 | D7: 5602 | E7: 4604 | H7: 1973 | J7: 5002.80409
E8: 4638 | H8: G. R. Tilton | J8: 4982.405755
B9: Richardton-2 | C9: 6834 | D9: 5230 | E9: 4633 | J9: 4978.350731
E10: 4616 | J10: 4958.984822
B11: Pultusk | C11: 5334 | D11: 4939 | E11: 4657 | J11: 4956.908398
E12: 4651 | J12: 4917.019538
J13: 4866.797303
J14: 4837.028848
B15: Meteorite | C15: 206Pb/204Pb | D15: 207Pb/204Pb | E15: 207Pb/206Pb | F15: 207Pb/206Pb | G15: TABLE 2 | J15: 4835.767823
B16: Name | C16: Amount | D16: Amount | E16: Ratio | F16: Age | J16: 4799.271788
B17: Allende-I | C17: 1064 | D17: 1088 | E17: =(D17/C17) -> 1.022556391 | F17: =[2]!AgePb76(E17) ->  | J17: =COUNT(J1:J16) -> 16 | K17: =COUNT(K1:K16) -> 4 | L17: =COUNT(L1:L16) -> 4
B18: Allende-II | C18: 1012 | D18: 1078 | E18: =(D18/C18) -> 1.065217391 | F18: =[2]!AgePb76(E18) ->  | J18: 207Pb/206Pb | K18: 207Pb/235U | L18: 206Pb/238U
B19: Murchison | C19: 977 | D19: 1056 | E19: 1.080859775 | F19: =[2]!AgePb76(E19) -> 
C20: 985 | D20: 1062 | E20: 1.078172589 | F20: =[2]!AgePb76(E20) -> 
B21: Mezo-Madaras | C21: 9449 | D21: 10384 | E21: 1.09895227 | F21: =[2]!AgePb76(E21) -> 
C22: 9444 | D22: 10356 | E22: 1.09656925 | F22: =[2]!AgePb76(E22) -> 
B23: Bruderheim-I | C23: 3562 | D23: 2683 | E23: 0.7532285233 | F23: =[2]!AgePb76(E23) -> 
B24: Bruderheim-ll | C24: 3023 | D24: 2327 | E24: 0.769765134 | F24: =[2]!AgePb76(E24) -> 
B25: Bruderheim-III | C25: 3275 | D25: 2469 | E25: 0.7538931298 | F25: =[2]!AgePb76(E25) -> 
C26: 3733 | D26: 2741 | E26: 0.7342619877 | F26: =[2]!AgePb76(E26) -> 
B27: Richardton-I | C27: 2155 | D27: 1794 | E27: 0.8324825986 | F27: =[2]!AgePb76(E27) -> 
C28: 2187 | D28: 1796 | E28: 0.821216278 | F28: =[2]!AgePb76(E28) -> 
B29: Richardton-ll | C29: 2228 | D29: 1827 | E29: 0.8200179533 | F29: =[2]!AgePb76(E29) -> 
C30: 2571 | D30: 2050 | E30: 0.7973551147 | F30: =[2]!AgePb76(E30) -> 
B31: Pultusk | C31: 2045 | D31: 1732 | E31: 0.8469437653 | F31: =[2]!AgePb76(E31) -> 
C32: 2180 | D32: 1820 | E32: 0.8348623853 | F32: =[2]!AgePb76(E32) -> 

Sheet B6
A1: 1 | B1: Rocks Older Than The Earth
A2: Author | B2: Gianfranco Di Vincenzo | C2: 1 | D2: Figure 8 | E2: 6 | F2: Billion Years Old
A3: Journal | B3: Earth And Planetary Science Letters | D3: Page 362 | E3: 7 | F3: Billion Years Old
A4: Edition | B4: Volume 223, PAGE 360
A5: Title | B5: 40Ar–39Ar Dating of Pseudo Tachylytes
A6: Year | B6: 2004 | D6: Quote | E6: "In contrast, quartz gave unrealistically old ages, even older than the Earth,
A7: Spreadsheet | B7: Older Than The Earth | D7: Page 360 | E7: which are associated with very high Cl/K ratios."
A8: Mineral, Location | B8: West Antarctic Rift System | AC8: Billion Years | AD8: Million Years
AA9: Sample | AB9: 187Os/188Os | AC9: 187Os/188Os | AD9: 187Os/188Os | AE9: 187Re/1880s | AF9: 187Re/1880s

Sheet B7
A1: TABLE 3 | G1: Ar-39 | H1: Standard | V1: 40Ar/39Ar | W1: 40Ar/39Ar | X1: 40Ar/39Ar | Y1: 40Ar/39Ar | AB1: 22090
G2: Ar-40 | H2: Deviation | V2: 22090 | W2: 10729 | X2: 6939 | Y2: 5000 | AB2: 20742
A3: ( °C) | C3: (X100) | D3: ( X100) | E3: ( X100) | F3: cumulative | G3: Million Years | H3: Million Years | V3: 20742 | W3: 10685 | X3: 6785 | Y3: 5000 | AB3: 20272
A4: A. TEK 58 plagioclase 1 | I4: =(A4) -> A. TEK 58 plagioclase 1 | J4: Granites | M4: Sample | N4: Maximum Age | O4: Minimum Age | P4: Average Age | Q4: Age Difference | R4: Percent | S4: Standard Deviation | V4: 20272 | W4: 10617 | X4: 6785 | Y4: 5000 | AB4: 20187
A5: 390 | B5: 147000 | C5: 1288.28 | D5: 7113 | E5: 0.001 | F5: 0.16 | G5: 13287 | H5: 39 | I5: Maximum Age | J5: 13435 | K5: Million Years | M5: Name | N5: Million Years | O5: Million Years | P5: Million Years | Q5: Million Years | R5: Difference | S5: Million Years | V5: 20187 | W5: 10610 | X5: 6765 | Y5: 5000 | AB5: 19945
A6: 470 | B6: 145000 | C6: 1024 | D6: 8371 | E6: 0.001 | F6: 0.31 | G6: 13263 | H6: 39 | I6: Minimum Age | J6: 1800 | K6: Million Years | M6: A. TEK 58 plagioclase 1 | N6: 13435 | O6: 1800 | P6: 7043 | Q6: 11635 | R6: 7.463888889 | S6: 4076 | V6: 19945 | W6: 10578 | X6: 6533 | Y6: 5000 | AB6: 16224
A7: 545 | B7: 159000 | C7: 981.91 | D7: 22863 | E7: 0.001 | F7: 0.45 | G7: 13435 | H7: 36 | I7: Average Age | J7: 7043 | K7: Million Years | M7: B. TEK 58 plagioclase 2 | N7: 8071 | O7: 2446 | P7: 6024 | Q7: 5625 | R7: 3.299672935 | S7: 1434 | V7: 16224 | W7: 10521 | X7: 6489 | Y7: 5000 | AB7: 15407
A8: 625 | B8: 63000 | C8: 404.97 | D8: 6053 | E8: 0.002 | F8: 0.79 | G8: 11783 | H8: 39 | I8: Age Difference | J8: =(J5-J6) -> 11635 | K8: Million Years | M8: C. TEK 58 plagioclase 3 | N8: 15407 | O8: 1214 | P8: 3857 | Q8: 14193 | R8: 12.69110379 | S8: 3519 | V8: 15407 | W8: 10314 | X8: 6453 | Y8: 5000 | AB8: 14689
A9: 700 | B9: 5841 | C9: 26.84 | D9: 222 | E9: 0.017 | F9: 4.64 | G9: 7492 | H9: 40 | I9: Difference | J9: =(J5/J6) -> 7.463888889 | K9: Percent | M9: D. TEK 58 plagioclase 4 | N9: 10776 | O9: 1800 | P9: 4650 | Q9: 8976 | R9: 5.986666667 | S9: 1554 | V9: 14689 | W9: 10310 | X9: 6452 | Y9: 5000 | AB9: 13750
A10: 780 | B10: 2975 | C10: 16.21 | D10: 231 | E10: 0.033 | F10: 13.33 | G10: 6303 | H10: 39 | I10: Standard Deviation | J10: 4076 | K10: Million Years | M10: E. TEK 58 pyroxene | N10: 11621 | O10: 5744 | P10: 9909 | Q10: 5877 | R10: 2.023154596 | S10: 1901 | V10: 13750 | W10: 10232 | X10: 6424 | Y10: 5000 | AB10: 13435
A11: 855 | B11: 3309 | C11: 15.95 | D11: 147 | E11: 0.03 | F11: 22.08 | G11: 6489 | H11: 39 | M11: F. TEK 58 biotite | N11: 4522 | O11: 1700 | P11: 2147 | Q11: 2822 | R11: 2.66 | S11: 774 | V11: 13435 | W11: 10102 | X11: 6303 | Y11: 5000 | AB11: 13287
A12: 940 | B12: 2541 | C12: 14.16 | D12: 222 | E12: 0.039 | F12: 31.45 | G12: 6027 | H12: 39 | M12: G. TEK 58 garnet | N12: 22090 | O12: 3716 | P12: 11685 | Q12: 18374 | R12: 5.944564047 | S12: 5777 | V12: 13287 | W12: 10097 | X12: 6045 | Y12: 5000 | AB12: 13263
A13: 1015 | B13: 1450 | C13: 9.59 | D13: 139 | E13: 0.068 | F13: 42.05 | G13: 5062 | H13: 38 | M13: TABLE 4 | N13: 5000 | O13: 1000 | P13: 3017 | Q13: 4000 | R13: 5 | S13: 1640 | V13: 13263 | W13: 9943 | X13: 6035 | Y13: 5000 | AB13: 12780
A14: 1090 | B14: 340 | C14: 2.66 | D14: 61 | E14: 0.287 | F14: 56.79 | G14: 2774 | H14: 32 | I14: H. Maluski and P. Motie | V14: 12780 | W14: 9899 | X14: 6027 | Y14: 5000 | AB14: 11961
A15: 1170 | B15: 159 | C15: 2.61 | D15: 151 | E15: 0.598 | F15: 79.14 | G15: 1800 | H15: 26 | I15: Chemical Geology | V15: 11961 | W15: 9874 | X15: 5983 | Y15: 5000 | AB15: 11804
A16: 1250 | B16: 178 | C16: 5.68 | D16: 107 | E16: 0.512 | F16: 90.09 | G16: 1931 | H16: 28 | I16: Volume 80, pages 201-204 | V16: 11804 | W16: 9684 | X16: 5892 | Y16: 5000 | AB16: 11783
A17: 1305 | B17: 377 | C17: 7.78 | D17: 411 | E17: 0.25 | F17: 94.05 | G17: 2921 | H17: 33 | I17: Location of extraneous argon | V17: 11783 | W17: 9564 | X17: 5777 | Y17: 5000 | AB17: 11621
A18: 1355 | B18: 829 | C18: 9.98 | D18: 513 | E18: 0.117 | F18: 97.3 | G18: 4135 | H18: 37 | I18: 1990 | V18: 11621 | W18: 9276 | X18: 5744 | Y18: 4908 | AB18: 11568
A19: 1405 | B19: 3873 | C19: 42.96 | D19: 555 | E19: 0.025 | F19: 98.6 | G19: 6765 | H19: 40 | V19: 11568 | W19: 9228 | X19: 5739 | Y19: 4902 | AB19: 11448
A20: 1450 | B20: 15439 | C20: 202.17 | D20: 248 | E20: 0.006 | F20: 100 | G20: 9228 | H20: 41 | M20: A. Plagioclase 1 | N20: B. Plagioclase 2 | O20: C. Plagioclase 3 | P20: D. Plagioclase 4 | Q20: E. Pyroxene | R20: G. Garnet | V20: 11448 | W20: 9150 | X20: 5712 | Y20: 4790 | AB20: 11396
G21: =STDEV(G5:G20) -> 4075.608273 | M21: Million Years | N21: Million Years | O21: Million Years | P21: Million Years | Q21: Million Years | R21: Million Years | V21: 11396 | W21: 8906 | X21: 5564 | Y21: 4752 | AB21: 11389
M22: 13435 | N22: 5008 | O22: 15407 | P22: 10776 | Q22: 11621 | R22: 22090 | V22: 11389 | W22: 8311 | X22: 5532 | Y22: 4587 | AB22: 11382
A23: B. TEK 58 plagioclase 2 | I23: =(A23) -> B. TEK 58 plagioclase 2 | J23: Granites | M23: 13287 | N23: 5410 | O23: 11804 | P23: 7689 | Q23: 11396 | R23: 20742 | V23: 11382 | W23: 8071 | X23: 5410 | Y23: 4522 | AB23: 11288
A24: 400 | B24: 6634 | C24: 46.13 | D24: 32 | E24: 0.015 | F24: 1.79 | G24: 8071 | H24: 40 | I24: Maximum Age | J24: 8071 | K24: Million Years | M24: 13263 | N24: 5712 | O24: 7995 | P24: 7318 | Q24: 11389 | R24: 20272 | V24: 11288 | W24: 7995 | X24: 5360 | Y24: 4477 | AB24: 11041
A25: 450 | B25: 5633 | C25: 112.52 | D25: 86 | E25: 0.017 | F25: 3.2 | G25: 7779 | H25: 41 | I25: Minimum Age | J25: 2446 | K25: Million Years | M25: 11783 | N25: 5739 | O25: 6045 | P25: 6452 | Q25: 11382 | R25: 20187 | V25: 11041 | W25: 7779 | X25: 5062 | Y25: 4136 | AB25: 10889
A26: 500 | B26: 3507 | C26: 24.14 | D26: 138 | E26: 0.028 | F26: 5.41 | G26: 6939 | H26: 40 | I26: Average Age | J26: 6024 | K26: Million Years | M26: 9228 | N26: 5892 | P26: 6424 | Q26: 11288 | R26: 19945 | V26: 10889 | W26: 7689 | X26: 5019 | Y26: 4135 | AB26: 10873
A27: 550 | B27: 4479 | C27: 35.5 | D27: 927 | E27: 0.022 | F27: 7.13 | G27: 7372 | H27: 40 | I27: Age Difference | J27: =(J24-J25) -> 5625 | K27: Million Years | M27: 7492 | N27: 5983 | P27: 5564 | Q27: 11041 | R27: 16224 | V27: 10873 | W27: 7492 | X27: 5008 | Y27: 4076 | AB27: 10790
A28: 600 | B28: 3213 | C28: 30.21 | D28: 850 | E28: 0.03 | F28: 9.16 | G28: 6785 | H28: 40 | I28: Difference | J28: =(J24/J25) -> 3.299672935 | K28: Percent | M28: 6489 | N28: 6453 | P28: 5360 | Q28: 10889 | R28: 14689 | V28: 10790 | W28: 7372 | X28: 5000 | Y28: 4006 | AB28: 10776
A29: 650 | B29: 2661 | C29: 16.76 | D29: 154 | E29: 0.037 | F29: 12.34 | G29: 6453 | H29: 39 | I29: Standard Deviation | J29: 1434 | K29: Million Years | M29: 6303 | N29: 6785 | Q29: 10873 | R29: 13750 | V29: 10776 | W29: 7361 | X29: 5000 | Y29: 3871 | AB29: 10736
A30: 700 | B30: 1739 | C30: 12.55 | D30: 108 | E30: 0.056 | F30: 15.58 | G30: 5712 | H30: 39 | M30: 6027 | N30: 6939 | Q30: 10736 | R30: 12780 | V30: 10736 | W30: 7318 | X30: 5000 | Y30: 3864 | AB30: 10729
A31: 750 | B31: 2033 | C31: 9.39 | D31: 109 | E31: 0.049 | F31: 23.02 | G31: 5983 | H31: 39 | M31: 5062 | N31: 7372 | Q31: 10729 | R31: 11961 | Y31: 3784 | AB31: 10685
A32: 800 | B32: 1930 | C32: 8.46 | D32: 151 | E32: 0.051 | F32: 30.24 | G32: 5892 | H32: 39 | N32: 7779 | Q32: 10685 | R32: 11568 | Y32: 3716 | AB32: 10617
A33: 850 | B33: 1829 | C33: 11.38 | D33: 158 | E33: 0.054 | F33: 37.43 | G33: 5008 | H33: 39 | N33: 8071 | Q33: 10617 | R33: 11448 | Y33: 3519 | AB33: 10610
A34: 900 | B34: 1766 | C34: 9.03 | D34: 130 | E34: 0.056 | F34: 44.15 | G34: 5739 | H34: 39 | Q34: 10610 | R34: 10790 | Y34: 3510 | AB34: 10578
A35: 1055 | B35: 1458 | C35: 6.66 | D35: 88 | E35: 0.068 | F35: 50.03 | G35: 5410 | H35: 38 | Q35: 10578 | R35: 10310 | Y35: 3500 | AB35: 10521
A36: 1115 | B36: 990 | C36: 4.64 | D36: 88 | E36: 0.1 | F36: 58.44 | G36: 4752 | H36: 37 | Q36: 10521 | R36: 10232 | Y36: 3452 | AB36: 10314
A37: 1445 | B37: 220 | C37: 1.14 | D37: 113 | E37: 0.447 | F37: 100 | G37: 2446 | H37: 30 | Q37: 10314 | R37: 8906 | Y37: 3404 | AB37: 10310
G38: =STDEV(G22:G37) -> 1433.519532 | Q38: 10102 | R38: 8311 | Y38: 3398 | AB38: 10232
A39: C. TEK 58 plagioclase 3 | I39: =(A39) -> C. TEK 58 plagioclase 3 | J39: Granites | Q39: 10097 | R39: 7361 | Y39: 3351 | AB39: 10102
A40: 400 | B40: 64657 | C40: 1098.71 | D40: 10110 | E40: 0.001 | F40: 0.01 | G40: 11804 | H40: 39 | I40: Maximum Age | J40: 15407 | K40: Million Years | Q40: 9943 | Y40: 3223 | AB40: 10097
A41: 500 | B41: 7746 | C41: 59.08 | D41: 637 | E41: 0.013 | F41: 0.25 | G41: 7995 | H41: 40 | I41: Minimum Age | J41: 1214 | K41: Million Years | Q41: 9899 | Y41: 3176 | AB41: 9943
A42: 550 | B42: 2567 | C42: 12.4 | D42: 326 | E42: 0.038 | F42: 0.64 | G42: 6045 | H42: 39 | I42: Average Age | J42: 3857 | K42: Million Years | Q42: 9874 | Y42: 3017 | AB42: 9899
A43: 600 | B43: 1022 | C43: 7.01 | D43: 132 | E43: 0.096 | F43: 1.6 | G43: 4477 | H43: 37 | I43: Age Difference | J43: =(J40-J41) -> 14193 | K43: Million Years | Q43: 9684 | Y43: 2982 | AB43: 9874
A44: 650 | B44: 276 | C44: 2.3 | D44: 110 | E44: 0.353 | F44: 3.52 | G44: 2484 | H44: 30 | I44: Difference | J44: =(J40/J41) -> 12.69110379 | K44: Percent | Q44: 9564 | Y44: 2921 | AB44: 9684
A45: 700 | B45: 169 | C45: 2.41 | D45: 19 | E45: 0.568 | F45: 6.43 | G45: 1867 | H45: 26 | I45: Standard Deviation | J45: 3519 | K45: Million Years | Q45: 9276 | Y45: 2852 | AB45: 9564
A46: 750 | B46: 151 | C46: 1.04 | D46: •51 | E46: 0.646 | F46: 10.88 | G46: 1744 | H46: 25 | Q46: 9150 | Y46: 2847 | AB46: 9276
A47: 800 | B47: 177 | C47: 0.85 | D47: 26 | E47: 0.557 | F47: 16.47 | G47: 1920 | H47: 26 | Y47: 2825 | AB47: 9228
A48: 850 | B48: 170 | C48: 0.76 | D48: 40 | E48: 0.579 | F48: 22.65 | G48: 1877 | H48: 26 | Y48: 2774 | AB48: 9150
A49: 900 | B49: 160 | C49: 1.07 | D49: 34 | E49: 0.612 | F49: 28.07 | G49: 1805 | H49: 25 | Y49: 2683 | AB49: 8906
A50: 940 | B50: 170 | C50: 1.02 | D50: 82 | E50: 0.578 | F50: 34.23 | G50: 1873 | H50: 26 | Y50: 2554 | AB50: 8311
A51: 1010 | B51: 39 | C51: 0.596 | D51: 41.61 | E51: 1839 | F51: 41.61 | G51: 1839 | H51: 26 | Y51: 2520 | AB51: 8071
A52: 1085 | B52: 34 | C52: 0.919 | D52: 54.18 | E52: 1381 | F52: 54.18 | G52: 1381 | H52: 21 | Y52: 2511 | AB52: 7995
A53: 1160 | B53: 25 | C53: 1.103 | D53: 71.78 | E53: 1214 | F53: 71.78 | G53: 1214 | H53: 19 | Y53: 2484 | AB53: 7779
A54: 1250 | B54: 33 | C54: 1.037 | D54: 95.46 | E54: 1270 | F54: 95.46 | G54: 1270 | H54: 20 | Y54: 2462 | AB54: 7689
A55: 1300 | B55: 108 | C55: 0.748 | D55: 99.09 | E55: 1568 | F55: 99.09 | G55: 1568 | H55: 24 | Y55: 2446 | AB55: 7492
A56: 1360 | B56: 314 | C56: 0.266 | D56: 99.98 | E56: 2847 | F56: 99.98 | G56: 2847 | H56: 33 | Y56: 2425 | AB56: 7372
A57: 1450 | B57: 16466 | C57: 0 | D57: 100 | E57: 15407 | F57: 100 | G57: 15407 | H57: 37 | Y57: 2420 | AB57: 7361
G58: =STDEV(G42:G57) -> 3518.546648 | Y58: 2396 | AB58: 7318
A59: D. TEK 58 plagioclase 4 | I59: =(A59) -> D. TEK 58 plagioclase 4 | J59: Granites | Y59: 2392 | AB59: 6939
A60: 400 | B60: 1996 | C60: 0.003 | D60: 0.23 | E60: 10776 | F60: 0.23 | G60: 10776 | H60: 40 | I60: Maximum Age | J60: 10776 | K60: Million Years | Y60: 2052 | AB60: 6785
A61: 450 | B61: 543 | C61: 0.03 | D61: 1.85 | E61: 6452 | F61: 1.85 | G61: 6452 | H61: 40 | I61: Minimum Age | J61: 1800 | K61: Million Years | Y61: 2025 | AB61: 6785
A62: 500 | B62: 924 | C62: 0.015 | D62: 2.82 | E62: 7689 | F62: 2.82 | G62: 7689 | H62: 40 | I62: Average Age | J62: 4650 | K62: Million Years | Y62: 2021 | AB62: 6765
A63: 550 | B63: 738 | C63: 0.031 | D63: 5.03 | E63: 6424 | F63: 5.03 | G63: 6424 | H63: 39 | I63: Age Difference | J63: =(J60-J61) -> 8976 | K63: Million Years | Y63: 1944 | AB63: 6533
A64: 600 | B64: 298 | C64: 0.052 | D64: 7.82 | E64: 5360 | F64: 7.82 | G64: 5360 | H64: 41 | I64: Difference | J64: =(J60/J61) -> 5.986666667 | K64: Percent | Y64: 1931 | AB64: 6489
A65: 650 | B65: 1401 | C65: 0.05 | D65: 9.13 | E65: 5564 | F65: 9.13 | G65: 5564 | H65: 39 | I65: Standard Deviation | J65: 1554 | K65: Million Years | Y65: 1920 | AB65: 6453
A66: 700 | B66: 457 | C66: 0.086 | D66: 11.41 | E66: 4587 | F66: 11.41 | G66: 4587 | H66: 39 | Y66: 1905 | AB66: 6452
A67: 750 | B67: 495 | C67: 0.204 | D67: 17.37 | E67: 3223 | F67: 17.37 | G67: 3223 | H67: 34 | Y67: 1901 | AB67: 6424
A68: 800 | B68: 231 | C68: 0.789 | D68: 21.82 | E68: 3452 | F68: 21.82 | G68: 3452 | H68: 35 | Y68: 1896 | AB68: 6303
A69: 850 | B69: 584 | C69: 0.126 | D69: 27.53 | E69: 4006 | F69: 27.53 | G69: 4006 | H69: 36 | Y69: 1891 | AB69: 6045
A70: 900 | B70: 377 | C70: 0.194 | D70: 36.21 | E70: 3351 | F70: 36.21 | G70: 3351 | H70: 34 | Y70: 1877 | AB70: 6035
A71: 940 | B71: 309 | C71: 0.173 | D71: 46.71 | E71: 3500 | F71: 46.71 | G71: 3500 | H71: 35 | Y71: 1877 | AB71: 6027
A72: 1010 | B72: 539 | C72: 0.186 | D72: 54.43 | E72: 3404 | F72: 54.43 | G72: 3404 | H72: 34 | Y72: 1873 | AB72: 5983
A73: 1085 | B73: 112 | C73: 0.27 | D73: 64.57 | E73: 2825 | F73: 64.57 | G73: 2825 | H73: 33 | Y73: 1872 | AB73: 5892
A74: 1160 | B74: 211 | C74: 0.597 | D74: 76.63 | E74: 1800 | F74: 76.63 | G74: 1800 | H74: 26 | Y74: 1871 | AB74: 5744
A75: 1250 | B75: 209 | C75: 0.603 | D75: 90.61 | E75: 1804 | F75: 90.61 | G75: 1804 | H75: 26 | Y75: 1867 | AB75: 5739
A76: 1300 | B76: 372 | C76: 0.28 | D76: 93.99 | E76: 2683 | F76: 93.99 | G76: 2683 | H76: 34 | Y76: 1839 | AB76: 5712
A77: 1360 | B77: 635 | C77: 0.112 | D77: 96.04 | E77: 4136 | F77: 96.04 | G77: 4136 | H77: 38 | Y77: 1836 | AB77: 5564
A78: 1450 | B78: 1052 | C78: 0.019 | D78: 100 | E78: 7318 | F78: 100 | G78: 7318 | H78: 39 | Y78: 1833 | AB78: 5532
G79: =STDEV(G63:G78) -> 1554.174302 | Y79: 1822 | AB79: 5410
A80: E. TEK 58 pyroxene | I80: =(A80) -> E. TEK 58 pyroxene | J80: Granites | Y80: 1819 | AB80: 5360
A81: 400 | B81: 46 | C81: 0.008 | D81: 9.71 | E81: 9276 | G81: 9276 | H81: 41 | I81: Maximum Age | J81: 11621 | K81: Million Years | Y81: 1815 | AB81: 5062
A82: 425 | B82: 0 | C82: 0.005 | D82: 12.59 | E82: 9899 | G82: 9899 | H82: 41 | I82: Minimum Age | J82: 5744 | K82: Million Years | Y82: 1807 | AB82: 5019
A83: 450 | B83: 0 | C83: 0.002 | D83: 13.35 | E83: 11396 | G83: 11396 | H83: 41 | I83: Average Age | J83: 9909 | K83: Million Years | Y83: 1805 | AB83: 5008
A84: 475 | B84: 0 | C84: 0.004 | D84: 14.49 | E84: 10617 | G84: 10617 | H84: 40 | I84: Age Difference | J84: =(J81-J82) -> 5877 | K84: Million Years | Y84: 1804 | AB84: 4908
A85: 500 | B85: 0 | C85: 0.002 | D85: 15.65 | E85: 11288 | G85: 11288 | H85: 40 | I85: Difference | J85: =(J81/J82) -> 2.023154596 | K85: Percent | Y85: 1803 | AB85: 4902
A86: 525 | B86: 0 | C86: 0.005 | D86: 17.69 | E86: 10097 | G86: 10097 | H86: 40 | I86: Standard Deviation | J86: 1901 | K86: Million Years | Y86: 1800 | AB86: 4790
A87: 550 | B87: 0 | C87: 0.002 | D87: 18.64 | E87: 11382 | G87: 11382 | H87: 41 | Y87: 1800 | AB87: 4752
A88: 575 | B88: 0 | C88: 0.003 | D88: 19.8 | E88: 11041 | G88: 11041 | H88: 40 | Y88: 1785 | AB88: 4587
A89: 600 | B89: 0 | C89: 0.005 | D89: 21.93 | E89: 9874 | G89: 9874 | H89: 40 | Y89: 1783 | AB89: 4522
A90: 625 | B90: 0 | C90: 0.002 | D90: 24.76 | E90: 10729 | G90: 10729 | H90: 40 | Y90: 1778 | AB90: 4477
A91: 650 | B91: 0 | C91: 0.003 | D91: 26.84 | E91: 10736 | G91: 10736 | H91: 40 | Y91: 1767 | AB91: 4136
A92: 675 | B92: 0 | C92: 0.002 | D92: 27.95 | E92: 11389 | G92: 11389 | H92: 40 | Y92: 1766 | AB92: 4135
A93: 700 | B93: 0 | C93: 0.003 | D93: 30.18 | E93: 10889 | G93: 10889 | H93: 40 | Y93: 1762 | AB93: 4006
A94: 725 | B94: 0 | C94: 0.006 | D94: 37.88 | E94: 9564 | G94: 9564 | H94: 40 | Y94: 1760 | AB94: 3871
A95: 750 | B95: 0 | C95: 0.003 | D95: 40.06 | E95: 10873 | G95: 10873 | H95: 40 | Y95: 1757 | AB95: 3716
A96: 775 | B96: 26865 | C96: 153.44 | D96: 0 | E96: 0.004 | F96: 44.13 | G96: 10578 | H96: 40 | Y96: 1755 | AB96: 3500
A97: 800 | B97: 20617 | C97: 95.58 | D97: 0 | E97: 0.005 | F97: 49.91 | G97: 10102 | H97: 40 | Y97: 1754 | AB97: 3452
A98: 825 | B98: 26028 | C98: 157.97 | D98: 0 | E98: 0.004 | F98: 51.94 | G98: 10521 | H98: 40 | Y98: 1744 | AB98: 3404
A99: 850 | B99: 18869 | C99: 86.25 | D99: 0 | E99: 0.005 | F99: 58.79 | G99: 9943 | H99: 40 | Y99: 1737 | AB99: 3398
A100: 875 | B100: 28515 | C100: 152.37 | D100: 0 | E100: 0.003 | F100: 63.16 | G100: 10685 | H100: 40 | Y100: 1736 | AB100: 3351
A101: 900 | B101: 47956 | C101: 210.83 | D101: 0 | E101: 0.002 | F101: 65.18 | G101: 11621 | H101: 40 | Y101: 1735 | AB101: 3223
A102: 1065 | B102: 23199 | C102: 162.81 | D102: 0 | E102: 0.004 | F102: 67.44 | G102: 10314 | H102: 40 | Y102: 1729 | AB102: 3176
A103: 1100 | B103: 27341 | C103: 184.4 | D103: 0 | E103: 0.004 | F103: 70.66 | G103: 10610 | H103: 40 | Y103: 1717 | AB103: 2921
A104: 1155 | B104: 16339 | C104: 85.6 | D104: 0 | E104: 0.006 | F104: 78.7 | G104: 9684 | H104: 40 | Y104: 1714 | AB104: 2847
A105: 1215 | B105: 12135 | C105: 71.11 | D105: 270 | E105: 0.008 | F105: 82.42 | G105: 9150 | H105: 40 | Y105: 1700 | AB105: 2825
A106: 1250 | B106: 3215 | C106: 11.59 | D106: 324 | E106: 0.031 | F106: 90.02 | G106: 6785 | H106: 39 | Y106: 1700 | AB106: 2774
A107: 1300 | B107: 1774 | C107: 7.97 | D107: 886 | E107: 0.056 | F107: 94.9 | G107: 5744 | H107: 38 | Y107: 1652 | AB107: 2683
A108: 1355 | B108: 2094 | C108: 15.8 | D108: 1458 | E108: 0.047 | F108: 97.27 | G108: 6035 | H108: 39 | Y108: 1619 | AB108: 2484
A109: 1455 | B109: 2785 | C109: 4.61 | D109: 991 | E109: 0.036 | F109: 100 | G109: 6533 | H109: 39 | Y109: 1568 | AB109: 2462
G110: =STDEV(G94:G109) -> 1901.420272 | Y110: 1554 | AB110: 2446
A111: F. TEK 58 biotite | I111: =(A111) -> F. TEK 58 biotite | J111: Granites | Y111: 1434 | AB111: 2025
A112: 400 | B112: 862 | C112: 21.85 | D112: 5.5 | E112: 0.108 | F112: 0.1 | G112: 4522 | H112: 39 | I112: Maximum Age | J112: 4522 | K112: Million Years | Y112: 1381 | AB112: 1931
A113: 450 | B113: 578 | C113: 16.56 | D113: 28.9 | E113: 0.16 | F113: 0.16 | G113: 3871 | H113: 38 | I113: Minimum Age | J113: 1700 | K113: Million Years | Y113: 1270 | AB113: 1920
A114: 500 | B114: 427 | C114: 17.94 | D114: 14.8 | E114: 0.208 | F114: 0.24 | G114: 3398 | H114: 38 | I114: Average Age | J114: 2147 | K114: Million Years | Y114: 1214 | AB114: 1891
A115: 550 | B115: 368 | C115: 7.24 | D115: 5.3 | E115: 0.256 | F115: 0.38 | G115: 3176 | H115: 35 | I115: Age Difference | J115: =(J112-J113) -> 2822 | K115: Million Years | Y115: 1000 | AB115: 1877
A116: 600 | B116: 223 | C116: 5.86 | D116: 0.5 | E116: 0.416 | F116: 0.66 | G116: 2462 | H116: 32 | I116: Difference | J116: =(J112/J113) -> 2.66 | K116: Percent | Y116: 774 | AB116: 1873
A117: 650 | B117: 158 | C117: 2.33 | D117: 0 | E117: 0.604 | F117: 1.65 | G117: 2025 | H117: 28 | I117: Standard Deviation | J117: 774 | K117: Million Years | Y117: 0 | AB117: 1867
A118: 700 | B118: 133 | C118: 1.16 | D118: 0 | E118: 0.729 | F118: 5.72 | G118: 1822 | H118: 26 | Y118: 0 | AB118: 1839
A119: 725 | B119: 129 | C119: 0.37 | D119: 0 | E119: 0.768 | F119: 11.81 | G119: 1783 | H119: 25 | Y119: 0 | AB119: 1833
A120: 750 | B120: 126 | C120: 0.27 | D120: 0 | E120: 0.783 | F120: 21.05 | G120: 1762 | H120: 25 | Y120: 0 | AB120: 1822
A121: 775 | B121: 126 | C121: 0.18 | D121: 0 | E121: 0.79 | F121: 34.09 | G121: 1755 | H121: 25 | AB121: 1819
A122: 800 | B122: 126 | C122: 0.13 | D122: 0 | E122: 0.79 | F122: 45.69 | G122: 1757 | H122: 25 | AB122: 1815
A123: 825 | B123: 126 | C123: 0.13 | D123: 0 | E123: 0.788 | F123: 57.47 | G123: 1760 | H123: 25 | AB123: 1807
A124: 850 | B124: 127 | C124: 0.07 | D124: 0 | E124: 0.784 | F124: 70.27 | G124: 1766 | H124: 25 | AB124: 1805
A125: 875 | B125: 129 | C125: 0.41 | D125: 0 | E125: 0.766 | F125: 75.35 | G125: 1785 | H125: 25 | AB125: 1804
A126: 900 | B126: 133 | C126: 0.35 | D126: 0 | E126: 0.745 | F126: 79.67 | G126: 1815 | H126: 25 | AB126: 1803
A127: 1000 | B127: 131 | C127: 0.67 | D127: 0 | E127: 0.75 | F127: 81.33 | G127: 1803 | H127: 25 | AB127: 1800
A128: 1050 | B128: 133 | C128: 0.54 | D128: 0 | E128: 0.741 | F128: 83.89 | G128: 1819 | H128: 25 | AB128: 1800
A129: 1110 | B129: 135 | C129: 0.56 | D129: 0 | E129: 0.732 | F129: 86.9 | G129: 1833 | H129: 26 | AB129: 1785
A130: 1165 | B130: 141 | C130: 0.41 | D130: 0 | E130: 0.699 | F130: 89.47 | G130: 1891 | H130: 26 | AB130: 1783
A131: 1225 | B131: 132 | C131: 0.41 | D131: 0 | E131: 0.751 | F131: 91.73 | G131: 1807 | H131: 25 | AB131: 1766
A132: 1285 | B132: 125 | C132: 0.35 | D132: 0 | E132: 0.788 | F132: 94.18 | G132: 1754 | H132: 25 | AB132: 1762
A133: 1335 | B133: 123 | C133: 0.42 | D133: 0 | E133: 0.804 | F133: 96.68 | G133: 1729 | H133: 25 | AB133: 1760
A134: 1390 | B134: 123 | C134: 0.61 | D134: 0 | E134: 0.796 | F134: 99.56 | G134: 1735 | H134: 25 | AB134: 1757
A135: 1445 | B135: 120 | C135: 1.31 | D135: 0 | E135: 0.807 | F135: 100 | G135: 1700 | H135: 25 | AB135: 1755
G136: =STDEV(G112:G135) -> 774.1317109 | AB136: 1754
A137: G. TEK 58 garnet | I137: =(A137) -> G. TEK 58 garnet | J137: Granites | AB137: 1744
A138: 390 | B138: 7070000 | C138: 59132.03 | D138: 106027 | E138: 0 | F138: 0.03 | G138: 20272 | H138: 28 | I138: Maximum Age | J138: 22090 | K138: Million Years | AB138: 1735
A139: 425 | B139: 9180000 | C139: 71719.8 | D139: 199736 | E139: 0 | F139: 0.06 | G139: 20742 | H139: 25 | I139: Minimum Age | J139: 3716 | K139: Million Years | AB139: 1729
A140: 470 | B140: 6750000 | C140: 47290.16 | D140: 148981 | E140: 0 | F140: 0.09 | G140: 20187 | H140: 26 | I140: Average Age | J140: 11685 | K140: Million Years | AB140: 1700
A141: 505 | B141: 190000 | C141: 1433.59 | D141: 5626 | E141: 0.001 | F141: 0.83 | G141: 13750 | H141: 39 | I141: Age Difference | J141: =(J138-J139) -> 18374 | K141: Million Years | AB141: 1568
A142: 550 | B142: 5900000 | C142: 39112.97 | D142: 135925 | E142: 0 | F142: 0.86 | G142: 19945 | H142: 27 | I142: Difference | J142: =(J138/J139) -> 5.944564047 | K142: Percent | AB142: 1381
A143: 585 | B143: 110000 | C143: 813.33 | D143: 4635 | E143: 0.001 | F143: 1.95 | G143: 12780 | H143: 39 | I143: Standard Deviation | J143: 5777 | K143: Million Years | AB143: 1270
A144: 625 | B144: 750000 | C144: 4746.95 | D144: 15222 | E144: 0 | F144: 2.18 | G144: 16224 | H144: 37 | AB144: 1214
A145: 660 | B145: 20000 | C145: 189.65 | D145: 1297 | E145: 0.004 | F145: 6.23 | G145: 10232 | H145: 40 | AB145: =STDEV(AB129:AB144) -> 190.6897895
A146: 700 | B146: 19380000 | C146: 118905.4 | D146: 783380 | E146: 0 | F146: 6.24 | G146: 22090 | H146: 24 | AB146: =STDEV(AB122:AB145) -> 351.3472963
A147: 740 | B147: 320000 | C147: 1893.53 | D147: 1649 | E147: 0 | F147: 6.9 | G147: 14689 | H147: 40 | AB147: =STDEV(AB131:AB146) -> 501.8074869
A148: 780 | B148: 70579 | C148: 418.76 | D148: 514 | E148: 0.001 | F148: 11.1 | G148: 11961 | H148: 40 | AB148: =STDEV(AB124:AB147) -> 484.5753363
A149: 820 | B149: 36824 | C149: 236.8 | D149: 1445 | E149: 0.003 | F149: 14.99 | G149: 10790 | H149: 40 | AB149: =STDEV(AB133:AB148) -> 582.1021506
A150: 860 | B150: 53073 | C150: 331.45 | D150: 1022 | E150: 0.002 | F150: 19.52 | G150: 11448 | H150: 40 | AB150: =STDEV(AB134:AB149) -> 595.1893358
A151: 900 | B151: 56718 | C151: 357.84 | D151: 851 | E151: 0.002 | F151: 23.91 | G151: 11568 | H151: 40 | AB151: =STDEV(AB135:AB150) -> 597.7790674
A152: 940 | B152: 28205 | C152: 189.47 | D152: 254 | E152: 0.003 | F152: 30.77 | G152: 10310 | H152: 40
A153: 975 | B153: 12897 | C153: 83.58 | D153: 642 | E153: 0.008 | F153: 40.65 | G153: 8906 | H153: 40
A154: 1015 | B154: 9250 | C154: 54.16 | D154: 1387 | E154: 0.011 | F154: 47.78 | G154: 8311 | H154: 40
A155: 1050 | B155: 5425 | C155: 49.43 | D155: 567 | E155: 0.018 | F155: 54.26 | G155: 7361 | H155: 40
A156: 1090 | B156: 1323 | C156: 15.09 | D156: 453 | E156: 0.073 | F156: 70.14 | G156: 4908 | H156: 38
A157: 1170 | B157: 1413 | C157: 17.65 | D157: 1858 | E157: 0.068 | F157: 80.87 | G157: 5019 | H157: 38
A158: 1250 | B158: 1908 | C158: 27.15 | D158: 9572 | E158: 0.05 | F158: 88.4 | G158: 5532 | H158: 37
A159: 1310 | B159: 1318 | C159: 34.85 | D159: 6914 | E159: 0.07 | F159: 93.77 | G159: 4902 | H159: 38
A160: 1360 | B160: 638 | C160: 40.09 | D160: 3161 | E160: 0.132 | F160: 96.67 | G160: 3716 | H160: 40
A161: 1450 | B161: 1233 | C161: 28.49 | D161: 4542 | E161: 0.076 | F161: 100 | G161: 4790 | H161: 38
G162: =STDEV(G138:G161) -> 5777.247678
A165: TABLE 4 | I165: TABLE 4
C166: 40Ar/39Ar | D166: Granites | I166: Maximum Age | J166: 5000 | K166: Million Years
A167: Isotopic data from laser analyses | C167: Ages | D167: Error | I167: Minimum Age | J167: 1000 | K167: Million Years
C168: Mega Years | D168: Mega Years | I168: Average Age | J168: 3017 | K168: Million Years
A169: Feldspars: | I169: Age Difference | J169: =(J166-J167) -> 4000 | K169: Million Years
A170: Perthite | B170: 1 | C170: 1000 | D170: 110 | I170: Difference | J170: =(J166/J167) -> 5 | K170: Percent
A171: Perthite | B171: 2 | C171: 1619 | D171: 37 | I171: Standard Deviation | J171: 1640 | K171: Million Years
A172: Plagioclase | B172: 3 | C172: 1767 | D172: 462
A173: Plagioclase | B173: 4 | C173: 2420 | D173: 517
A174: Perthite | B174: 5 | C174: 2511 | D174: 183
A175: Plagioclase | B175: 6 | C175: 5000 | D175: -
A176: Perthite | B176: 7 | C176: 5000 | D176: -
A177: Perthite | B177: 8 | C177: - | D177: -
A178: Plagioclase | B178: 9 | C178: 5000 | D178: -
A179: Symplectite | B179: 10 | C179: 3864 | D179: 50
A180: Pyroxenes:
A181: Rim | B181: 1 | C181: 5000 | D181: -
A182: Core | B182: 2 | C182: 3017 | D182: 235
A183: Core | B183: 3 | C183: - | D183: -
A184: Core | B184: 4 | C184: 5000 | D184: -
B185: 5 | C185: - | D185: -
B186: 6 | C186: 5000 | D186: -
A187: Microcrack | B187: 7 | C187: 5000 | D187: -
A188: Core | B188: 8 | C188: - | D188: -
A189: Core | B189: 9 | C189: 5000 | D189: -
A190: Core | B190: 10 | C190: - | D190: -
A191: Microcrack | B191: 11 | C191: - | D191: -
A192: Garnets:
A193: A Core | B193: 1 | C193: - | D193: 0.02
A194: Crack | B194: 2 | C194: 5000 | D194: 9.54
A195: Crack | B195: 3 | C195: 5000 | D195: 9.95
A196: Core | B196: 4 | C196: 0 | D196: 0
A197: Crack | B197: 5 | C197: 5000 | D197: 7.98
A198: B Crack | B198: 6 | C198: 5000 | D198: 45.5
A199: Core | B199: 7 | C199: 5000 | D199: 3.04
A200: Core | B200: 8 | C200: 5000 | D200: 2.75
A201: Crack | B201: 9 | C201: 5000 | D201: 16.05
A202: Core | B202: 10 | C202: 5000 | D202: 0.92
... 33 more rows

Sheet B8
K1: 40Ar/39Ar | L1: 40Ar/39Ar
K2: 9840 | L2: 3930
A3: Temperature | B3: Age (b.y.) | C3: Error (b.y.) | K3: 7330 | L3: 3890
A4: 400 | B4: 4.45 | C4: 0.16 | D4: Maximum Age | E4: Minimum Age | F4: Difference | G4: Difference | K4: 6560 | L4: 3800
A5: 600 | B5: 6.2 | C5: 0.07 | D5: Million Years | E5: Million Years | F5: Million Years | G5: Percentage | K5: 6200 | L5: 3470
A6: 700 | B6: 6.56 | C6: 0.06 | D6: 6560 | E6: 3110 | F6: =(D6-E6) -> 3450 | G6: =(F6/E6) -> 1.109324759 | K6: 6040 | L6: 3270
A7: 800 | B7: 3.8 | C7: 0.05 | K7: 5990 | L7: 3110
A8: 900 | B8: 3.27 | C8: 0.05 | K8: 5580 | L8: 2900
A9: 1000 | B9: 3.11 | C9: 0.05 | K9: 5520 | L9: 2860
A10: 1100 | B10: 3.93 | C10: 0.05 | K10: 5480 | L10: 2820
A11: 1200 | B11: 5.58 | C11: 0.05 | K11: 5120 | L11: 2410
A12: 1300 | B12: 5.12 | C12: 0.05 | K12: 4820 | L12: 1030
K13: 4450 | L13: 580
K14: 4340
A15: 600 | B15: 0.58 | C15: 0 | D15: Maximum Age | E15: Minimum Age | F15: Difference | G15: Difference
A16: 700 | B16: 1.03 | C16: 0 | D16: Million Years | E16: Million Years | F16: Million Years | G16: Percentage
A17: 800 | B17: 2.41 | C17: 0 | D17: 3890 | E17: 580 | F17: =(D17-E17) -> 3310 | G17: =(F17/E17) -> 5.706896552
A18: 900 | B18: 3.89 | C18: 0.11
A19: 1000 | B19: 2.86 | C19: 0.05
A20: 1100 | B20: 2.82 | C20: 0.05
A21: 1200 | B21: 2.9 | C21: 0.05
A22: 1500 | B22: 3.47 | C22: 0.05
A25: 600 | B25: 5.48 | C25: 0.13 | D25: Maximum Age | E25: Minimum Age | F25: Difference | G25: Difference
A26: 700 | B26: 5.99 | C26: 0.13 | D26: Million Years | E26: Million Years | F26: Million Years | G26: Percentage
A27: 800 | B27: 6.04 | C27: 0.07 | D27: 9840 | E27: 4340 | F27: =(D27-E27) -> 5500 | G27: =(F27/E27) -> 1.267281106
A28: 900 | B28: 4.34 | C28: 0.11
A29: 1000 | B29: 4.82 | C29: 0.03
A30: 1100 | B30: 5.52 | C30: 0.07
A31: 1200 | B31: 7.33 | C31: 0.1
A32: 1500 | B32: 9.84 | C32: 0.11
D34: Ichiro Kaneoka
D35: Earth and Planetary Science Letters, 1974
D36: Volume 22, Pages 145-156
D37: Excess Argon In Ultramafic Rocks
D40: Maximum Age | E40: Minimum Age | F40: Difference | G40: Difference
D41: Million Years | E41: Million Years | F41: Million Years | G41: Percentage
D42: 6560 | E42: 3110 | F42: =(D42-E42) -> 3450 | G42: =(F42/E42) -> 1.109324759
D43: 3890 | E43: 580 | F43: =(D43-E43) -> 3310 | G43: =(F43/E43) -> 5.706896552
D44: 9840 | E44: 4340 | F44: =(D44-E44) -> 5500 | G44: =(F44/E44) -> 1.267281106

Sheet B9
A1: Meteorite | B1: 87Rb/86 Age
A2: Canyon Diablo | B2: Million Years | D2: J. L. Birck
A3: Troilite 0 | B3: 3420 | D3: Meteoritics And Planetary Science
A4: Troilite 1 | B4: 1630 | D4: Volume 33, Pages 641 - 453
A5: Troilite 2 | B5: 1890 | D5: Rhenium-187-Osmium-187 in iron meteorites
A6: Troilite 3 | B6: 2540 | D6: 1998
A7: Troilite 4 | B7: 1130
A8: Leach Acetone | B8: 5730
A9: Leach H,O | B9: 8310
A10: Leach HCI 0.04N | B10: 1490
A11: Troilite dissolved | B11: 10430
A12: Metal 1 | B12: 13700
A13: Sardis | B13: Million Years
A14: Troilite 3 | B14: 1050
A15: Troilite 4 | B15: 420
A16: St. Severin | B16: Million Years
A17: Troilite | B17: 3340
A22: Meteorite | B22: Age
A23: Name | B23: Billion Years
A24: Canyon Diablo
A25: Leach Acetone | B25: 5.73
A26: Leach H,O | B26: 8.31
A27: Troilite dissolved | B27: 10.43
A28: Metal 1 | B28: 13.7
A31: Initial | B31: Today | C31: The | D31: Step | E31: Age | F31: Age | G31: Age
A32: 187Os/186Os | B32: 187Os/186Os | C32: Ratio | D32: Two | E32: Years | F32: Million Years | G32: Billion Years
A33: 0.095636 | B33: 1.182956348 | C33: =(1.04-(B33-A33)) -> -0.04732034755 | D33: =(C33/0.050768) -> -0.9320900479 | E33: =(D33 * 1000000000) -> -932090047.9 | F33: =(E33/1000000) -> -932.0900479 | G33: =(F33/1000) -> -0.9320900479
A34: 0.095636 | B34: 1.182592005 | C34: =(1.04-B34) -> -0.1425920053 | D34: =(C34/0.050768) -> -2.808698498 | E34: =(D34 * 1000000000) -> -2808698498 | F34: =(E34/1000000) -> -2808.698498 | G34: =(F34/1000) -> -2.808698498
A35: 0.095636 | B35: 1.181545136 | C35: -0.141545136 | D35: -2.788077844 | E35: -2788077844 | F35: -2788.077844 | G35: -2.788077844
A36: 0.095636 | B36: 1.182425102 | C36: -0.1424251022 | D36: -2.805410933 | E36: -2805410933 | F36: -2805.410933 | G36: -2.805410933
A37: 0.095636 | B37: 1.408768859 | C37: -0.3687688589 | D37: -7.263805131 | E37: -7263805131 | F37: -7263.805131 | G37: -7.263805131
A38: 0.095636 | B38: 1.408556417 | C38: -0.3685564173 | D38: -7.259620574 | E38: -7259620574 | F38: -7259.620574 | G38: -7.259620574
A39: 0.095636 | B39: 1.00918105 | C39: 0.03081894969 | D39: 0.6070546346 | E39: 607054634.6 | F39: 607.0546346 | G39: 0.6070546346
A40: 0.095636 | B40: 1.009455298 | C40: 0.03054470195 | D40: 0.6016526541 | E40: 601652654.1 | F40: 601.6526541 | G40: 0.6016526541
A41: 0.095636 | B41: 1.120597563 | C41: -0.08059756301 | D41: -1.587566243 | E41: -1587566243 | F41: -1587.566243 | G41: -1.587566243
A42: 0.095636 | B42: 1.516904583 | C42: -0.476904583 | D42: -9.393802849 | E42: -9393802849 | F42: -9393.802849 | G42: -9.393802849
A43: 0.095636 | B43: 1.081983637 | C43: -0.04198363667 | D43: -0.826970467 | E43: -826970467 | F43: -826.970467 | G43: -0.826970467
A61: Meteorite Sample | B61: 187Os/188Os | C61: Billion Years | D61: Million Years
A62: Coahuila 1 | B62: 0.14163 | C62: =(1.04-((B62)/0.12035))/0.050768 -> -2.694957755 | D62: =(C62 * 1000) -> -2694.957755
A63: Coahuila 2 | B63: 0.14173 | C63: =(1.04-((B63)/0.12035))/0.050768 -> -2.711324557 | D63: =(C63 * 1000) -> -2711.324557
A64: Coahuila 3 | B64: 0.14171 | C64: -2.708051197 | D64: -2708.051197
A65: Coahuila 4 | B65: 0.14162 | C65: -2.693321074 | D65: -2693.321074
A66: Sum | B66: 0.14167 | C66: -2.701504476 | D66: -2701.504476
A67: Large sample(28-11) | B67: 0.14169 | C67: -2.704777836 | D67: -2704.777836
A68: Tocopilla 1 | B68: 0.16901 | C68: -7.176188371 | D68: -7176.188371
A69: Tocopilla 2 | B69: 0.16883 | C69: -7.146728126 | D69: -7146.728126
A70: Tocopilla 3 | B70: 0.1689 | C70: -7.158184888 | D70: -7158.184888
A71: Sum | B71: 0.16893 | C71: -7.163094928 | D71: -7163.094928
A72: Ataxite
A73: Tlacotepec 1 | B73: 0.120912 | C73: 0.6959164565 | D73: 695.9164565
A74: Tlacotepec 2 | B74: 0.12096 | C74: 0.6880603911 | D74: 688.0603911
A75: Sum | B75: 0.120942 | C75: 0.6910064157 | D75: 691.0064157
A76: 1A 2mm
A77: Canyon Diablo 1 | B77: 0.13584 | C77: -1.747319871 | D77: -1747.319871
A78: Canyon Diablo 2 | B78: 0.13427 | C78: -1.490361066 | D78: -1490.361066
A79: Sum | B79: 0.13542 | C79: -1.678579299 | D79: -1678.579299
A80: CD Troilite 1 | B80: 0.18361 | C80: -9.565741584 | D80: -9565.741584
A81: CD Troilite 2 | B81: 0.18171 | C81: -9.254772331 | D81: -9254.772331
A82: Anomalous (2E)
A83: Kod 1189 1 | B83: 0.12919 | C83: -0.6589274821 | D83: -658.9274821
A84: Kod 1159 1 | B84: 0.12943 | C84: -0.6982078089 | D84: -698.2078089
A85: Kod 1189 2 | B85: 0.12896 | C85: -0.6212838356 | D85: -621.2838356
A86: Kod 1159 2 | B86: 0.1296 | C86: -0.7260313737 | D86: -726.0313737
A87: Sum | B87: 0.12926 | C87: -0.6703842441 | D87: -670.3842441
A90: Meteorite | B90: 87Rb/86 Age | C90: 187Os/188Os
A91: Canyon Diablo | B91: Million Years | C91: Million Years
A92: Troilite 0 | B92: 3420
A93: Troilite 1 | B93: 1630 | C93: -9565.741584
A94: Troilite 2 | B94: 1890 | C94: -9254.772331
A95: Troilite 3 | B95: 2540
A96: Troilite 4 | B96: 1130
A97: Leach Acetone | B97: 5730
A98: Leach H,O | B98: 8310
A99: Leach HCI 0.04N | B99: 1490
A100: Troilite dissolved | B100: 10430
A101: Metal 1 | B101: 13700
A102: Sardis | B102: Million Years
A103: Troilite 3 | B103: 1050
A104: Troilite 4 | B104: 420
A105: St. Severin | B105: Million Years
A106: Troilite | B106: 3340

Sheet C0
A1: 7 | B1: Rocks Older Than The Earth
A2: Author | B2: Jean Luck | C2: 7 | E2: 6.37 | F2: Billion Years Old
A3: Journal | B3: Earth and Planetary Science Letters | E3: 6.8 | F3: Billion Years Old
A4: Edition | B4: Volume 61, PAGE 293
A5: Title | B5: The Study of Molybdenites
A6: Year | B6: 1982
A7: Spreadsheet | B7: Older Than The Earth
A8: Mineral, Location | B8: Quebec, Canada

Sheet C1
A1: Meteorite | B1: Class | C1: Ar age Degassing | D1: U,Th He | E1: High | F1: Ref | G1: U,Th He | H1: CRE | I1: Table 1 | M1: 40Ar/39Ar | N1: 40Ar/39Ar | O1: 40Ar/39Ar | P1: 40Ar/39Ar | Q1: 40Ar/39Ar | R1: 40Ar/39Ar | S1: 40Ar/39Ar
C2: Million Years | D2: Million Years | G2: Million Years | H2: Million Years | M2: 17178 | N2: 4038 | O2: 3290 | P2: 2713 | Q2: 1651 | R2: 1132 | S2: 756
A3: Orvinio | B3: H6/S3 | C3: – | D3: 50 | E3: 3750 | F3: 1 | G3: 50 | H3: 7.4 | J3: Jennifer A. Grier | M3: 9023 | N3: 4010 | O3: 3240 | P3: 2680 | Q3: 1622 | R3: 1038 | S3: 738
A4: Orvinio | B4: H6/S3 | C4: 4200 | D4: – | E4: 4450 | F4: 1 | G4: – | H4: – | J4: Meteoritics And Planetary Science | M4: 8500 | N4: 3908 | O4: 3230 | P4: 2537 | Q4: 1620 | R4: 1019 | S4: 735
A5: Orvinio | B5: H6/S3 | D5: – | E5: 1900 | F5: 2 | G5: – | H5: – | J5: Volume 39, Number 9, Pages 1475–1493 | M5: 8330 | N5: 3763 | O5: 3220 | P5: 2503 | Q5: 1620 | R5: 1014 | S5: 729
A6: Charsonville | B6: H6 | C6: 270 | D6: 550 | E6: 3000 | F6: 2 | G6: 550 | H6: 66.1 | J6: Analyses of the chondritic meteorite Orvinio | M6: 7800 | N6: 3720 | O6: 3170 | P6: 2460 | Q6: 1600 | R6: 999 | S6: 711
A7: Clovis #2 | B7: H6 | C7: 40 | D7: – | E7: – | F7: 2 | G7: – | H7: – | J7: 2004 | M7: 7200 | N7: 3660 | O7: 3170 | P7: 2334 | Q7: 1588 | R7: 977 | S7: 703
A8: Dar al Gani 896 | B8: b | C8: 3704 | D8: – | E8: – | F8: 3 | G8: – | H8: – | M8: 7100 | N8: 3656 | O8: 3160 | P8: 2280 | Q8: 1540 | R8: 956 | S8: 680
A9: Dimitt | B9: H4/S3 | C9: 900 | D9: – | E9: 4000 | F9: 2 | G9: – | H9: 6 | M9: 6400 | N9: 3640 | O9: 3130 | P9: 2194 | Q9: 1529 | R9: 948 | S9: 678
A10: Jilin | B10: H5/S3 | C10: 500 | D10: 1250 | E10: 4300 | F10: 2 | G10: 1250 | H10: 2.6 | M10: 5070 | N10: 3620 | O10: 3130 | P10: 2169 | Q10: 1490 | R10: 936 | S10: 654
A11: Kimble County | B11: H6 | C11: 600 | D11: 805 | E11: 1100 | F11: 2 | G11: 805 | H11: 9.7 | M11: 5060 | N11: 3600 | O11: 3120 | P11: 2084 | Q11: 1480 | R11: 932 | S11: 586
A12: Monroe | B12: H4 | C12: 1100 | D12: 1210 | E12: 3500 | F12: 2 | G12: 1210 | H12: 12.8 | M12: 4400 | N12: 3580 | O12: 3060 | P12: 2080 | Q12: 1380 | R12: 927 | S12: 570
A13: Monahans | B13: H5 | C13: 4533 | D13: – | E13: – | F13: 4 | G13: – | H13: 6 | M13: 4390 | N13: 3570 | O13: 3011 | P13: 2076 | Q13: 1366 | R13: 926 | S13: 555
A14: Monahans | B14: H5 | C14: – | D14: – | E14: 4500 | F14: 4 | G14: – | H14: 13–18 | M14: 4350 | N14: 3560 | O14: 2858 | P14: 2020 | Q14: 1346 | R14: 922 | S14: 550
A15: Monahans | B15: H5 | C15: – | D15: – | E15: 4330 | F15: 4 | G15: – | H15: – | M15: 4325 | N15: 3455 | O15: 2857 | P15: 1940 | Q15: 1296 | R15: 904 | S15: 541
A16: Plainview | B16: H5/S3 | C16: 3630 | D16: 3410 | E16: 3660 | F16: 2 | G16: 3410 | H16: 6 | M16: 4250 | N16: 3391 | O16: 2855 | P16: 1908 | Q16: 1273 | R16: 871 | S16: 536
A17: Portales Valley | C17: 4486 | D17: – | E17: – | F17: 5 | G17: – | H17: – | M17: 4190 | N17: 3330 | O17: 2820 | P17: 1810 | Q17: 1243 | R17: 864 | S17: 526
A18: Sweetwater | B18: H5 | C18: 290 | D18: – | E18: 2800 | F18: 2 | G18: – | H18: 5 | M18: 4180 | N18: 3330 | O18: 2770 | P18: 1783 | Q18: 1239 | R18: 854 | S18: 370
A19: Ourique | B19: H4 | C19: 4450 | D19: – | E19: – | F19: 6 | G19: – | H19: – | M19: 4170 | N19: 3328 | O19: 2757 | P19: 1723 | Q19: 1226 | R19: 835 | S19: 324
A20: Tulia | B20: H | C20: 460 | D20: 1070 | E20: – | F20: 2 | G20: 1070 | H20: 4.6 | M20: 4110 | N20: 3317 | O20: 2750 | P20: 1715 | Q20: 1185 | R20: 817
A21: Ucera | B21: H5 | C21: 40 | D21: – | E21: 3200 | F21: 2 | G21: – | H21: 16.2 | M21: 4050 | N21: 3300 | O21: 2742 | P21: 1710 | Q21: 1154 | R21: 815
A22: Rose City | B22: H6/S6 | C22: – | D22: 260 | E22: 2300 | F22: 2 | G22: 260 | H22: 38.9
A23: Rose City | B23: H5/S6 | C23: 3620 | D23: – | E23: 3620 | F23: 7 | G23: – | H23: –
A24: Travis County | B24: H5/S4 | C24: 830 | D24: – | E24: – | F24: 7 | G24: – | H24: –
A25: Yanzhuang | B25: H6/S6 | C25: 130 | D25: – | E25: 3000 | F25: 7 | G25: – | H25: 3
A26: Yanzhuang | B26: H6/S6 | C26: 4090 | D26: – | E26: 4500 | F26: 7 | G26: – | H26: –
A29: Low | B29: High
A31: 325–600 | B31: 3750
A32: 900 | B32: 4450
A33: 800 | B33: 1900
A34: – | B34: 3000
A35: – | B35: –
A36: – | B36: –
A37: – | B37: 4000
A38: 0.4 | B38: 4300
A39: – | B39: 1100
A40: – | B40: 3500
A41: – | B41: –
A42: – | B42: 4500
A43: – | B43: 4330
A44: – | B44: 3660
A45: – | B45: –
A46: – | B46: 2800
A47: – | B47: –
A48: – | B48: –
A49: – | B49: 3200
A50: 380 | B50: 2300
A51: 700–200 | B51: 3620
A52: 330 | B52: –
A53: – | B53: 3000
A54: 200 | B54: 4500
A60: 400 | B60: 1.58 | C60: 66.6 | D60: 3.5 | E60: 12.5 | F60: 26000 | G60: 6400 | H60: Table A1.
A61: 3.6 | B61: 1 | C61: 0.7 | D61: 1400 | E61: 100
A62: 450 | B62: 1.98 | C62: 3.27 | D62: 3.2 | E62: 0.867 | F62: 1232 | G62: 17178
A63: 0.14 | B63: 0.7 | C63: 0.04 | D63: 46 | E63: 44
A64: 500 | B64: 2.38 | C64: 1.24 | D64: 2.2 | E64: 0.502 | F64: 587 | G64: 1019
A65: 0.06 | B65: 0.6 | C65: 0.031 | D65: 25 | E65: 34
A66: 550 | B66: 2.77 | C66: 1.5 | D66: 2.2 | E66: 0.596 | F66: 753 | G66: 1226
A67: 0.05 | B67: 0.7 | C67: 0.03 | D67: 20 | E67: 26
A68: 600 | B68: 4.03 | C68: 0.684 | D68: 2.97 | E68: 0.523 | F68: 526 | G68: 936
A69: 0.028 | B69: 0.45 | C69: 0.015 | D69: 11 | E69: 18
A70: 631 | B70: 2.33 | C70: 0.659 | D70: 3.2 | E70: 0.61 | F70: 475 | G70: 864
A71: 0.036 | B71: 0.7 | C71: 0.025 | D71: 15 | E71: 24
A72: 650 | B72: 4.3 | C72: 0.324 | D72: 2.46 | E72: 0.471 | F72: 288 | G72: 570
A73: 0.02 | B73: 0.47 | C73: 0.017 | D73: 6 | E73: 12
A74: 675 | B74: 2.03 | C74: 0.475 | D74: 3.2 | E74: 0.498 | F74: 443 | G74: 817
A75: 0.037 | B75: 0.8 | C75: 0.023 | D75: 14 | E75: 24
A76: 700 | B76: 1.45 | C76: 0.47 | D76: 4.7 | E76: 0.598 | F76: 520 | G76: 927
A77: 0.05 | B77: 1.1 | C77: 0.04 | D77: 23 | E77: 34
A78: 750 | B78: 2.16 | C78: 0.349 | D78: 2.8 | E78: 0.579 | F78: 503 | G78: 9023
A79: 0.042 | B79: 0.6 | C79: 0.025 | D79: 20 | E79: 30
A80: 825 | B80: 3.16 | C80: 0.483 | D80: 2.6 | E80: 0.79 | F80: 535 | G80: 948
A81: 0.036 | B81: 0.6 | C81: 0.034 | D81: 16 | E81: 25
A82: 925 | B82: 3.37 | C82: 1.146 | D82: 4.7 | E82: 1.352 | F82: 794 | G82: 1273
A83: 0.039 | B83: 0.5 | C83: 0.048 | D83: 17 | E83: 23
A84: 1025 | B84: 6.09 | C84: 1.339 | D84: 6.68 | E84: 1.162 | F84: 1802 | G84: 2169
A85: 0.029 | B85: 0.36 | C85: 0.027 | D85: 278 | E85: 26
A86: 1075 | B86: 5.55 | C86: 1.76 | D86: 12.4 | E86: 1.214 | F86: 3330 | G86: 3011
A87: 0.06 | B87: 1.3 | C87: 0.044 | D87: 110 | E87: 51
A88: 1100 | B88: 4.45 | C88: 2.07 | D88: 11.6 | E88: 1.061 | F88: 3890 | G88: 3240
A89: 0.06 | B89: 0.6 | C89: 0.026 | D89: 84 | E89: 38
A90: 1110 | B90: 3.06 | C90: 1.98 | D90: 10 | E90: 1.16 | F90: 4090 | G90: 3317
A91: 0.09 | B91: 1 | C91: 0.05 | D91: 160 | E91: 61
A92: 1150 | B92: 3.64 | C92: 2.9 | D92: 11 | E92: 1.27 | F92: 5000 | G92: 3620
A93: 0.11 | B93: 0.8 | C93: 0.05 | D93: 170 | E93: 60
A94: 1200 | B94: 4.03 | C94: 3.86 | D94: 10.7 | E94: 1.432 | F94: 4860 | G94: 3580
A95: 0.1 | B95: 0.7 | C95: 0.04 | D95: 130 | E95: 40
A96: 1250 | B96: 4.07 | C96: 4.41 | D96: 9.3 | E96: 1.503 | F96: 4479 | G96: 3455
A97: 0.1 | B97: 0.5 | C97: 0.034 | D97: 73 | E97: 32
A98: 1300 | B98: 2.75 | C98: 6.02 | D98: 10.1 | E98: 1.94 | F98: 5100 | G98: 3656
A99: 0.27 | B99: 1.1 | C99: 0.09 | D99: 220 | E99: 70
A100: 1400 | B100: 3.09 | C100: 7.47 | D100: 10.6 | E100: 2.23 | F100: 5460 | G100: 3763
A101: 0.3 | B101: 0.9 | C101: 0.1 | D101: 210 | E101: 64
A102: Total | B102: 68.29 | C102: 3.65 | D102: 6.88 | E102: 1.331 | F102: 3000 | G102: 2858
A103: 0.12 | B103: 0.18 | C103: 0.023 | D103: 50 | E103: 27
A106: 400 | B106: 5.22 | C106: 11.1 | D106: 2.49 | E106: 3860 | F106: 3230
A107: 1 | B107: 0.24 | C107: 330 | D107: 130
A108: 500 | B108: 2.69 | C108: 1.433 | D108: 0.61 | E108: 1126 | F108: 1620
A109: 0.04 | B109: 0.022 | C109: 20 | D109: 24
A110: 550 | B110: 5.83 | C110: 0.276 | D110: 0.336 | E110: 152.4 | F110: 324
A111: 0.012 | B111: 0.011 | C111: 2 | D111: 6
A112: 600 | B112: 6.51 | C112: 0.436 | D112: 0.461 | E112: 270.5 | F112: 541
A113: 0.018 | B113: 0.009 | C113: 2.7 | D113: 8
A114: 630 | B114: 4.44 | C114: 0.529 | D114: 0.531 | E114: 353 | F114: 678
A115: 0.018 | B115: 0.015 | C115: 7 | D115: 13
A116: 660 | B116: 2.6 | C116: 0.311 | D116: 0.528 | E116: 354 | F116: 680
A117: 0.026 | B117: 0.019 | C117: 11 | D117: 19
A118: 690 | B118: 2.51 | C118: 0.848 | D118: 0.735 | E118: 541 | F118: 956
A119: 0.044 | B119: 0.037 | C119: 16 | D119: 24
A120: 720 | B120: 1.65 | C120: 0.522 | D120: 0.756 | E120: 693 | F120: 1154
A121: 0.042 | B121: 0.031 | C121: 21 | D121: 28
A122: 750 | B122: 1.54 | C122: 0.728 | D122: 0.87 | E122: 859 | F122: 1346
A123: 0.048 | B123: 0.04 | C123: 24 | D123: 29
A124: 780 | B124: 1.25 | C124: 0.89 | D124: 1.1 | E124: 1229 | F124: 1715
A125: 0.07 | B125: 0.07 | C125: 42 | D125: 41
A126: 820 | B126: 1.62 | C126: 1.79 | D126: 1.98 | E126: 1837 | F126: 2194
A127: 0.06 | B127: 0.06 | C127: 43 | D127: 35
A128: 875 | B128: 2.23 | C128: 1.31 | D128: 1.335 | E128: 2385 | F128: 2537
A129: 0.05 | B129: 0.038 | C129: 44 | D129: 31
A130: 925 | B130: 2.08 | C130: 1.75 | D130: 1.402 | E130: 2790 | F130: 2757
A131: 0.06 | B131: 0.05 | C131: 80 | D131: 44
A132: 980 | B132: 2.71 | C132: 1.335 | D132: 1.083 | E132: 2990 | F132: 2855
A133: 0.045 | B133: 0.034 | C133: 60 | D133: 33
A134: 1025 | B134: 3.87 | C134: 1.13 | D134: 0.76 | E134: 2920 | F134: 2820
A135: 0.16 | B135: 0.1 | C135: 320 | D135: 160
A136: 1075 | B136: 4.29 | C136: 1.12 | D136: 0.79 | E136: 3440 | F136: 3060
A137: 0.14 | B137: 0.11 | C137: 280 | D137: 120
A138: 1100 | B138: 3.8 | C138: 1.26 | D138: 0.68 | E138: 3610 | F138: 3130
A139: 0.15 | B139: 0.09 | C139: 320 | D139: 130
A140: 1125 | B140: 6.81 | C140: 0.92 | D140: 0.369 | E140: 1220 | F140: 1710
A141: 0.09 | B141: 0.043 | C141: 90 | D141: 90
A142: 1150 | B142: 1.36 | C142: 2.88 | D142: 1.34 | E142: 5060 | F142: 3640
A143: 0.14 | B143: 0.08 | C143: 250 | D143: 8
A144: 1200 | B144: 2.92 | C144: 3 | D144: 1.35 | E144: 5300 | F144: 370
A145: 0.5 | B145: 0.3 | C145: 900 | D145: 290
A146: 1250 | B146: 4.33 | C146: 3.46 | D146: 1.4 | E146: 4140 | F146: 3330
A147: 0.36 | B147: 0.18 | C147: 420 | D147: 160
A148: 1300 | B148: 4.19 | C148: 5.8 | D148: 1.67 | E148: 4820 | F148: 3570
A149: 0.5 | B149: 0.2 | C149: 440 | D149: 140
A150: 1400 | B150: 5.75 | C150: 5 | D150: 1.7 | E150: 510 | F150: 3660
A151: 0.44 | B151: 0.19 | C151: 420 | D151: 130
A152: Total | B152: 80.18 | C152: 2.36 | D152: 1.011 | E152: 2410 | F152: 2680
A153: 0.09 | B153: 0.03 | C153: 70 | D153: 30
A156: 500 | B156: 6.34 | C156: 6.8 | D156: 1.73 | E156: 2780 | F156: 2750
A157: 0.8 | B157: 0.22 | C157: 340 | D157: 170
A158: 520 | B158: 1.35 | C158: 1.92 | D158: 0.757 | E158: 1237 | F158: 1723
A159: 0.09 | B159: 0.047 | C159: 49 | D159: 47
A160: 540 | B160: 2.32 | C160: 0.621 | D160: 0.364 | E160: 455 | F160: 835
A161: 0.049 | B161: 0.028 | C161: 15 | D161: 24
A162: 560 | B162: 5.21 | C162: 0.437 | D162: 0.407 | E162: 373 | F162: 711
A163: 0.015 | B163: 0.016 | C163: 7 | D163: 14
A164: 580 | B164: 2.68 | C164: 0.566 | D164: 0.436 | E164: 385 | F164: 729
A165: 0.034 | B165: 0.017 | C165: 9 | D165: 16
A166: 590 | B166: 3.98 | C166: 0.507 | D166: 0.456 | E166: 368 | F166: 703
A167: 0.026 | B167: 0.023 | C167: 7 | D167: 14
A168: 600 | B168: 1.78 | C168: 0.64 | D168: 0.488 | E168: 480 | F168: 871
A169: 0.05 | B169: 0.024 | C169: 13 | D169: 21
A170: 625 | B170: 1.66 | C170: 0.8 | D170: 0.585 | E170: 555 | F170: 977
A171: 0.06 | B171: 0.034 | C171: 18 | D171: 27
A172: 650 | B172: 1.82 | C172: 0.65 | D172: 0.57 | E172: 601 | F172: 1038
A173: 0.06 | B173: 0.04 | C173: 27 | D173: 37
A174: 675 | B174: 1.7 | C174: 0.87 | D174: 0.61 | E174: 675 | F174: 1132
A175: 0.06 | B175: 0.05 | C175: 33 | D175: 43
A176: 700 | B176: 1.47 | C176: 1.11 | D176: 0.78 | E176: 1032 | F176: 1529
A177: 0.07 | B177: 0.08 | C177: 45 | D177: 48
A178: 725 | B178: 1.68 | C178: 1.14 | D178: 0.688 | E178: 1040 | F178: 1540
A179: 0.1 | B179: 0.048 | C179: 60 | D179: 70
A180: 750 | B180: 1.38 | C180: 1.25 | D180: 0.82 | E180: 1093 | F180: 1588
A181: 0.07 | B181: 0.05 | C181: 39 | D181: 41
A182: 800 | B182: 1.92 | C182: 2.02 | D182: 1.3 | E182: 1337 | F182: 1810
A183: 0.09 | B183: 0.06 | C183: 44 | D183: 41
A184: 850 | B184: 1.73 | C184: 1.86 | D184: 1.07 | E184: 1680 | F184: 2080
A185: 0.1 | B185: 0.06 | C185: 80 | D185: 60
A186: 900 | B186: 1.59 | C186: 2.42 | D186: 1.06 | E186: 205 | F186: 2334
A187: 0.09 | B187: 0.07 | C187: 6 | D187: 44
A188: 950 | B188: 2.61 | C188: 3.25 | D188: 1.34 | E188: 2260 | F188: 2460
A189: 0.14 | B189: 0.06 | C189: 80 | D189: 50
A190: 1000 | B190: 3.31 | C190: 3.01 | D190: 1.25 | E190: 3000 | F190: 2857
A191: 0.06 | B191: 0.032 | C191: 60 | D191: 34
A192: 1050 | B192: 5.24 | C192: 3.66 | D192: 1.357 | E192: 3690 | F192: 3160
A193: 0.06 | B193: 0.028 | C193: 60 | D193: 31
A194: 1075 | B194: 2.65 | C194: 3.12 | D194: 1.22 | E194: 3830 | F194: 3220
A195: 0.11 | B195: 0.06 | C195: 120 | D195: 50
A196: 1100 | B196: 2.73 | C196: 3.19 | D196: 1.221 | E196: 3580 | F196: 2076
A197: 0.1 | B197: 0.041 | C197: 110 | D197: 29
A198: 1125 | B198: 3.91 | C198: 3.51 | D198: 1.25 | E198: 4120 | F198: 3120
A199: 0.11 | B199: 0.07 | C199: 130 | D199: 50
A200: 1150 | B200: 4.98 | C200: 4.07 | D200: 1.77 | E200: 4840 | F200: 3328
A201: 0.53 | B201: 0.24 | C201: 640 | D201: 50
A202: 1200 | B202: 6.11 | C202: 5 | D202: 1.62 | E202: 4020 | F202: 3560
A203: 0.5 | B203: 0.19 | C203: 450 | D203: 210
A204: 1250 | B204: 2.82 | C204: 8.64 | D204: 2.412 | E204: 4930 | F204: 3290
A205: 0.29 | B205: 0.12 | C205: 160 | D205: 170
A206: 1300 | B206: 2.21 | C206: 11.7 | D206: 2.82 | E206: 5307 | F206: 3600
A207: 0.5 | B207: 0.13 | C207: 230 | D207: 60
A208: 1400 | B208: 6.43 | C208: 16.7 | D208: 4.1 | E208: 5200 | F208: 3720
A209: 2.3 | B209: 0.6 | C209: 700 | D209: 70
A210: Total | B210: 81.59 | C210: 4.3 | D210: 1.42 | E210: 2710 | F210: 2713
A211: 0.21 | B211: 0.06 | C211: 90 | D211: 39
A213: 400 | B213: 1 | C213: 140 | D213: 6 | E213: 27 | F213: 58000 | G213: 7800
... 127 more rows

Sheet C2
A1: Meteorite/Sample | B1: Age, Billions
A2: A. Rose City (H5/S6) host rock | D2: =(A2) -> A. Rose City (H5/S6) host rock
A3: 400 | B3: 2.231 | D3: Maximum Age | E3: 4766 | F3: Million Years | H3: Sample | I3: Maximum Age | J3: Minimum Age | K3: Average Age | L3: Age Difference | M3: Percent | N3: Standard Deviation
A4: 480 | B4: 1.301 | D4: Minimum Age | E4: 193 | F4: Million Years | H4: Name | I4: Million Years | J4: Million Years | K4: Million Years | L4: Million Years | M4: Difference | N4: Million Years
A5: 520 | B5: 0.598 | D5: Average Age | E5: 1411 | F5: Million Years | H5: A. Rose City (H5/S6) host rock | I5: 4766 | J5: 193 | K5: 1411 | L5: 4573 | M5: 24.69430052 | N5: 1149
A6: 580 | B6: 0.51 | D6: Age Difference | E6: =(E3-E4) -> 4573 | F6: Million Years | H6: B. Rose City (H5/S6) melt | I6: 4529 | J6: 2126 | K6: 3404 | L6: 2403 | M6: 2.130291627 | N6: 503
A7: 640 | B7: 0.278 | D7: Difference | E7: =(E3/E4) -> 24.69430052 | F7: Percent | H7: C. Rose City (H5/S6) host rock #1 | I7: 3876 | J7: 231 | K7: 1782 | L7: 3645 | M7: 16.77922078 | N7: 1212
A8: 700 | B8: 0.198 | D8: Standard Deviation | E8: 1149 | F8: Million Years | H8: D. Rose City (H5/S6) host rock #2 | I8: 3259 | J8: 293 | K8: 1098 | L8: 2966 | M8: 11.12286689 | N8: 908
A9: 750 | B9: 0.193 | H9: E. Travis County (H5/S4) whole rock | I9: 3614 | J9: 295 | K9: 915 | L9: 3319 | M9: 12.25084746 | N9: 715
A10: 800 | B10: 0.23 | H10: F. Yanzhuang (H6/S6) host rock | I10: 5598 | J10: 65 | K10: 1591 | L10: 5533 | M10: 86.12307692 | N10: 1620
A11: 850 | B11: 0.232 | H11: G. Yanzhuang (H6/S6) melt fragment | I11: 10217 | J11: 1902 | K11: 3386 | L11: 8315 | M11: 5.371713985 | N11: 1508
A12: 900 | B12: 0.276 | H12: H. Yanzhuang (H6/S6) melt vein | I12: 7016 | J12: 1314 | K12: 3117 | L12: 5702 | M12: 5.339421613 | N12: 989
A13: 950 | B13: 0.404 | D13: Joachim Kunz | H13: I. Alfianello (L6/S5) whole rock | I13: 3470 | J13: 968 | K13: 2092 | L13: 2502 | M13: 3.584710744 | N13: 798
A14: 950 | B14: 0.585 | D14: Meteoritics And Planetary Science | H14: J. Bluff (L6/S6) host rock | I14: 13348 | J14: 506 | K14: 2018 | L14: 12842 | M14: 26.37944664 | N14: 3173
A15: 1050 | B15: 0.597 | D15: Volume 32, Pages 647 - 670 | H15: K. Bluff (L6/S6) melt | I15: 3773 | J15: 554 | K15: 1257 | L15: 3219 | M15: 6.810469314 | N15: 967
A16: 1100 | B16: 0.619 | D16: Shocked meteorites: Argon-40-argon-39 | H16: L. Mbale (L5-6) whole rock | I16: 3531 | J16: 466 | K16: 1099 | L16: 3065 | M16: 7.577253219 | N16: 807
A17: 1150 | B17: 0.682 | D17: 1997 | H17: M. McKinney (L4/S4-5) whole rock | I17: 1821 | J17: 499 | K17: 1054 | L17: 1322 | M17: 3.649298597 | N17: 508
A18: 1190 | B18: 0.8 | H18: N. Ness County (L6/S6) host rock #I | I18: 5052 | J18: 987 | K18: 3081 | L18: 4065 | M18: 5.118541033 | N18: 1006
A19: 1220 | B19: 1.147 | H19: O. Ness County (L6/S6) host rock #2 | I19: 6668 | J19: 1997 | K19: 3680 | L19: 4671 | M19: 3.339008513 | N19: 922
A20: 1250 | B20: 1.487 | H20: P. Paranaiba (L6/S6) host mk #I | I20: 3332 | J20: 453 | K20: 1082 | L20: 2879 | M20: 7.355408389 | N20: 763
A21: 1280 | B21: 1.705 | H21: Q. Paranaiba (L6/s6) host rock #2 | I21: 5593 | J21: 3110 | K21: 3841 | L21: 2483 | M21: 1.798392283 | N21: 453
A22: 1310 | B22: 2.134 | H22: R. Taiban (L5/S6) host rock | I22: 2845 | J22: 492 | K22: 881 | L22: 2353 | M22: 5.782520325 | N22: 575
A23: 1340 | B23: 1.949 | H23: S. Taiban (L5/S6) melt | I23: 1435 | J23: 156 | K23: 668 | L23: 1279 | M23: 9.198717949 | N23: 230
A24: 1370 | B24: 2.172 | H24: T. Walters (L6/S4) host rock | I24: 3452 | J24: 1592 | K24: 2674 | L24: 1860 | M24: 2.168341709 | N24: 677
A25: 1400 | B25: 2.355 | H25: U. Walters (L6/S4) melt | I25: 4074 | J25: 2026 | K25: 3214 | L25: 2048 | M25: 2.010858835 | N25: 587
A26: 1420 | B26: 2.621 | H26: V. Beeler (LU/S4) host rock #I | I26: 6466 | J26: 798 | K26: 3083 | L26: 5668 | M26: 8.102756892 | N26: 1117
A27: 1440 | B27: 2.759 | H27: W. Beeler (LL6/S4) host rock #2 | I27: 6609 | J27: 1491 | K27: 3449 | L27: 5118 | M27: 4.432595573 | N27: 975
A28: 1460 | B28: 2.827 | H28: X. ALHA 8101 1 (eucrite) basaltic clast | I28: 3818 | J28: 375 | K28: 2687 | L28: 3443 | M28: 10.18133333 | N28: 1360
A29: 1490 | B29: 3.215 | H29: Y. ALHA 8101 1 (eucrite) melt | I29: 2827 | J29: 244 | K29: 1087 | L29: 2583 | M29: 11.58606557 | N29: 798
A30: 1530 | B30: 4.766 | H30: Z. Padvaminkai (eucrite) hasalt | I30: 3925 | J30: 596 | K30: 2486 | L30: 3329 | M30: 6.58557047 | N30: 1358
A31: 1531 | B31: 2.04 | H31: 1. Padvaminkai (eucrite) melt | I31: 3984 | J31: 1586 | K31: 2946 | L31: 2398 | M31: 2.511979823 | N31: 880
B32: =AVERAGE(B3:B31) -> 1.410724138 | H32: 2. Padvarninkai Eucrite | I32: 3462 | J32: 1549 | K32: 2301 | L32: 1913 | M32: 2.234990316 | N32: 597
A34: B. Rose City (H5/S6) melt | B34: Age, Billions | D34: =(A34) -> B. Rose City (H5/S6) melt | H34: Sample | I34: Maximum Age | J34: Minimum Age | K34: Age Difference | L34: Percent
A35: 400 | B35: 2.167 | D35: Maximum Age | E35: 4529 | F35: Million Years | H35: Name | I35: Million Years | J35: Million Years | K35: Million Years | L35: Difference
A36: 480 | B36: 1.053 | D36: Minimum Age | E36: 2126 | F36: Million Years | H36: Alfianello | I36: 3470 | J36: 968 | K36: =(I36-J36) -> 2502 | L36: =(I36/J36) -> 3.584710744
A37: 540 | B37: 1.041 | D37: Average Age | E37: 3404 | F37: Million Years | H37: ALHA 8101 | I37: 3818 | J37: 244 | K37: 3574 | L37: 15.64754098
A38: 600 | B38: 0.719 | D38: Age Difference | E38: =(E35-E36) -> 2403 | F38: Million Years | H38: Beeler | I38: 6609 | J38: 798 | K38: 5811 | L38: 8.281954887
A39: 660 | B39: 0.83 | D39: Difference | E39: =(E35/E36) -> 2.130291627 | F39: Percent | H39: Bluff | I39: 13348 | J39: 506 | K39: 12842 | L39: 26.37944664
A40: 720 | B40: 0.652 | D40: Standard Deviation | E40: 503 | F40: Million Years | H40: Mbale | I40: 3531 | J40: 466 | K40: 3065 | L40: 7.577253219
A41: 760 | B41: 2.219 | H41: McKinney | I41: 1821 | J41: 499 | K41: 1322 | L41: 3.649298597
A42: 800 | B42: 3.14 | H42: Ness County | I42: 6668 | J42: 987 | K42: 5681 | L42: 6.755825735
A43: 840 | B43: 3.65 | H43: Padvaminkai | I43: 3984 | J43: 596 | K43: 3388 | L43: 6.684563758
A44: 880 | B44: 3.859 | H44: Paranaiba | I44: 5593 | J44: 453 | K44: 5140 | L44: 12.34657837
A45: 920 | B45: 3.888 | H45: Rose City | I45: 4766 | J45: 193 | K45: 4573 | L45: 24.69430052
A46: 960 | B46: 3.412 | H46: Taiban | I46: 2845 | J46: 156 | K46: 2689 | L46: 18.23717949
A47: 990 | B47: 2.91 | H47: Travis County | I47: 3614 | J47: 295 | K47: 3319 | L47: 12.25084746
A48: 1020 | B48: 2.504 | H48: Walters | I48: 4074 | J48: 1592 | K48: 2482 | L48: 2.559045226
A49: 1060 | B49: 2.126 | H49: Yanzhuang | I49: 10217 | J49: 65 | K49: 10152 | L49: 157.1846154
A50: 1110 | B50: 2.308
A51: 1160 | B51: 2.822
A52: 1190 | B52: 2.883
A53: 1220 | B53: 3.13
A54: 1240 | B54: 3.142 | H54: Sample | I54: Maximum Age | J54: Minimum Age | K54: Age Difference | L54: Percent | M54: Percent
A55: 1260 | B55: 3.4 | H55: Name | I55: Million Years | J55: Million Years | K55: Million Years | L55: Difference | M55: Difference
A56: 1280 | B56: 3.682 | H56: A. Rose City (H5/S6) host rock | I56: 4766 | J56: 193 | K56: 4573 | L56: 2469.430052 | M56: 24.69430052
A57: 1300 | B57: 3.671 | H57: B. Rose City (H5/S6) melt | I57: 4529 | J57: 2126 | K57: 2403 | L57: 213.0291627 | M57: 2.130291627
A58: 1320 | B58: 3.575 | H58: C. Rose City (H5/S6) host rock #1 | I58: 3876 | J58: 231 | K58: 3645 | L58: 1677.922078 | M58: 16.77922078
A59: 1340 | B59: 3.556 | H59: D. Rose City (H5/S6) host rock #2 | I59: 3259 | J59: 293 | K59: 2966 | L59: 1112.286689 | M59: 11.12286689
A60: 1360 | B60: 3.585 | H60: E. Travis County (H5/S4) whole rock | I60: 3614 | J60: 295 | K60: 3319 | L60: 1225.084746 | M60: 12.25084746
A61: 1375 | B61: 3.6 | H61: F. Yanzhuang (H6/S6) host rock | I61: 5598 | J61: 65 | K61: 5533 | L61: 8612.307692 | M61: 86.12307692
A62: 1390 | B62: 3.64 | H62: G. Yanzhuang (H6/S6) melt fragment | I62: 10217 | J62: 1902 | K62: 8315 | L62: 537.1713985 | M62: 5.371713985
A63: 1405 | B63: 3.648 | H63: H. Yanzhuang (H6/S6) melt vein | I63: 7016 | J63: 1314 | K63: 5702 | L63: 533.9421613 | M63: 5.339421613
A64: 1435 | B64: 3.66 | H64: I. Alfianello (L6/S5) whole rock | I64: 3470 | J64: 968 | K64: 2502 | L64: 358.4710744 | M64: 3.584710744
A65: 1450 | B65: 3.631 | H65: J. Bluff (L6/S6) host rock | I65: 13348 | J65: 506 | K65: 12842 | L65: 2637.944664 | M65: 26.37944664
A66: 1465 | B66: 3.591 | H66: K. Bluff (L6/S6) melt | I66: 3773 | J66: 554 | K66: 3219 | L66: 681.0469314 | M66: 6.810469314
A67: 1480 | B67: 3.603 | H67: L. Mbale (L5-6) whole rock | I67: 3531 | J67: 466 | K67: 3065 | L67: 757.7253219 | M67: 7.577253219
A68: 1495 | B68: 3.654 | H68: M. McKinney (L4/S4-5) whole rock | I68: 1821 | J68: 499 | K68: 1322 | L68: 364.9298597 | M68: 3.649298597
A69: 1510 | B69: 3.569 | H69: N. Ness County (L6/S6) host rock #I | I69: 5052 | J69: 987 | K69: 4065 | L69: 511.8541033 | M69: 5.118541033
A70: 1530 | B70: 3.581 | H70: O. Ness County (L6/S6) host rock #2 | I70: 6668 | J70: 1997 | K70: 4671 | L70: 333.9008513 | M70: 3.339008513
A71: 1531 | B71: 3.593 | H71: P. Paranaiba (L6/S6) host mk #I | I71: 3332 | J71: 453 | K71: 2879 | L71: 735.5408389 | M71: 7.355408389
A72: 1532 | B72: 3.699 | H72: Q. Paranaiba (L6/s6) host rock #2 | I72: 5593 | J72: 3110 | K72: 2483 | L72: 179.8392283 | M72: 1.798392283
A73: 1533 | B73: 4.007 | H73: R. Taiban (L5/S6) host rock | I73: 2845 | J73: 492 | K73: 2353 | L73: 578.2520325 | M73: 5.782520325
A74: 1560 | B74: 4.529 | H74: S. Taiban (L5/S6) melt | I74: 1435 | J74: 156 | K74: 1279 | L74: 919.8717949 | M74: 9.198717949
B75: =AVERAGE(B46:B74) -> 3.403827586 | H75: T. Walters (L6/S4) host rock | I75: 3452 | J75: 1592 | K75: 1860 | L75: 216.8341709 | M75: 2.168341709
H76: U. Walters (L6/S4) melt | I76: 4074 | J76: 2026 | K76: 2048 | L76: 201.0858835 | M76: 2.010858835
A77: C. Rose City (H5/S6) host rock #1 | B77: Age, Billions | D77: =(A77) -> C. Rose City (H5/S6) host rock #1 | H77: V. Beeler (LU/S4) host rock #I | I77: 6466 | J77: 798 | K77: 5668 | L77: 810.2756892 | M77: 8.102756892
A78: 400 | B78: 3.24 | D78: Maximum Age | E78: 3876 | F78: Million Years | H78: W. Beeler (LL6/S4) host rock #2 | I78: 6609 | J78: 1491 | K78: 5118 | L78: 443.2595573 | M78: 4.432595573
A79: 470 | B79: 1.828 | D79: Minimum Age | E79: 231 | F79: Million Years | H79: X. ALHA 8101 1 (eucrite) basaltic clast | I79: 3818 | J79: 375 | K79: 3443 | L79: 1018.133333 | M79: 10.18133333
A80: 530 | B80: 1.233 | D80: Average Age | E80: 1782 | F80: Million Years | H80: Y. ALHA 8101 1 (eucrite) melt | I80: 2827 | J80: 244 | K80: 2583 | L80: 1158.606557 | M80: 11.58606557
A81: 590 | B81: 0.636 | D81: Age Difference | E81: =(E78-E79) -> 3645 | F81: Million Years
A82: 650 | B82: 0.329 | D82: Difference | E82: =(E78/E79) -> 16.77922078 | F82: Percent
A83: 710 | B83: 0.231 | D83: Standard Deviation | E83: 1212 | F83: Million Years
A84: 770 | B84: 0.269
A85: 820 | B85: 0.407
A86: 870 | B86: 0.419
A87: 930 | B87: 0.535
A88: 1010 | B88: 0.581
A89: 1080 | B89: 0.742
A90: 1170 | B90: 0.917
A91: 1230 | B91: 1.996
A92: 1270 | B92: 2.809
A93: 1300 | B93: 3.876
A94: 1330 | B94: 3.104
A95: 1360 | B95: 2.73
A96: 1400 | B96: 2.53
A97: 1440 | B97: 2.844
A98: 1470 | B98: 2.767
A99: 1500 | B99: 2.779
A100: 1530 | B100: 2.926
A101: 1531 | B101: 3.035
B102: =AVERAGE(B78:B101) -> 1.781791667
A104: D. Rose City (H5/S6) host rock #2 | B104: Age, Billions | D104: =(A104) -> D. Rose City (H5/S6) host rock #2
A105: 400 | B105: 3.259 | D105: Maximum Age | E105: 3259 | F105: Million Years
A106: 480 | B106: 1.206 | D106: Minimum Age | E106: 293 | F106: Million Years
A107: 520 | B107: 0.769 | D107: Average Age | E107: 1098 | F107: Million Years
A108: 560 | B108: 0.513 | D108: Age Difference | E108: =(E105-E106) -> 2966 | F108: Million Years
A109: 600 | B109: 0.53 | D109: Difference | E109: =(E105/E106) -> 11.12286689 | F109: Percent
A110: 640 | B110: 0.446 | D110: Standard Deviation | E110: 908 | F110: Million Years
A111: 680 | B111: 0.362
A112: 710 | B112: 0.307
A113: 740 | B113: 0.293
A114: 770 | B114: 0.367
A115: 800 | B115: 0.638
A116: 830 | B116: 0.451
A117: 860 | B117: 0.417
A118: 890 | B118: 0.463
A119: 920 | B119: 0.494
A120: 970 | B120: 0.616
A121: 1010 | B121: 0.665
A122: 1050 | B122: 0.85
A123: 1090 | B123: 0.94
A124: 1140 | B124: 0.917
A125: 1200 | B125: 1.097
A126: 1280 | B126: 1.415
A127: 1360 | B127: 2.054
A128: 1450 | B128: 2.321
A129: 1530 | B129: 2.574
A130: 1531 | B130: 2.883
A131: 1532 | B131: 2.807
B132: =AVERAGE(B105:B131) -> 1.098296296
A134: E. Travis County (H5/S4) whole rock | B134: Age, Billions | D134: =(A134) -> E. Travis County (H5/S4) whole rock
A135: 400 | B135: 3.614 | D135: Maximum Age | E135: 3614 | F135: Million Years
A136: 480 | B136: 1.544 | D136: Minimum Age | E136: 295 | F136: Million Years
A137: 540 | B137: 1.386 | D137: Average Age | E137: 915 | F137: Million Years
A138: 600 | B138: 1.897 | D138: Age Difference | E138: =(E135-E136) -> 3319 | F138: Million Years
A139: 650 | B139: 1.063 | D139: Difference | E139: =(E135/E136) -> 12.25084746 | F139: Percent
A140: 700 | B140: 0.834 | D140: Standard Deviation | E140: 715 | F140: Million Years
A141: 750 | B141: 0.515
A142: 800 | B142: 0.316
A143: 840 | B143: 0.295
A144: 880 | B144: 0.312
A145: 920 | B145: 0.33
A146: 970 | B146: 0.367
A147: 1030 | B147: 0.353
A148: 1100 | B148: 0.936
A149: 1170 | B149: 0.68
A150: 1230 | B150: 0.798
A151: 1300 | B151: 0.8
A152: 1370 | B152: 0.818
A153: 1400 | B153: 0.901
A154: 1430 | B154: 0.87
A155: 1460 | B155: 0.843
A156: 1490 | B156: 0.762
A157: 1530 | B157: 0.802
B158: =AVERAGE(B134:B157) -> 0.9146086957
A160: F. Yanzhuang (H6/S6) host rock | B160: Age, Billions | D160: =(A160) -> F. Yanzhuang (H6/S6) host rock
A161: 400 | B161: 5.598 | D161: Maximum Age | E161: 5598 | F161: Million Years
A162: 470 | B162: 2.091 | D162: Minimum Age | E162: 65 | F162: Million Years
A163: 530 | B163: 0.301 | D163: Average Age | E163: 1591 | F163: Million Years
A164: 630 | B164: 0.154 | D164: Age Difference | E164: =(E161-E162) -> 5533 | F164: Million Years
A165: 680 | B165: 0.121 | D165: Difference | E165: =(E161/E162) -> 86.12307692 | F165: Percent
A166: 730 | B166: 0.146 | D166: Standard Deviation | E166: 1620 | F166: Million Years
A167: 820 | B167: 0.163
A168: 900 | B168: 0.065
A169: lo00 | B169: 0.251
A170: 1100 | B170: 0.915
A171: 1200 | B171: 1.407
A172: 1280 | B172: 2.248
A173: 1360 | B173: 2.838
A174: 1440 | B174: 2.996
A175: 1530 | B175: 3.147
A176: 1531 | B176: 3.019
B177: =AVERAGE(B161:B176) -> 1.59125
A179: G. Yanzhuang (H6/S6) melt fragment | B179: Age, Billions | D179: =(A179) -> G. Yanzhuang (H6/S6) melt fragment
A180: 380 | B180: 10.217 | D180: Maximum Age | E180: 10217 | F180: Million Years
A181: 460 | B181: 5.423 | D181: Minimum Age | E181: 1902 | F181: Million Years
A182: 520 | B182: 3.084 | D182: Average Age | E182: 3386 | F182: Million Years
A183: 560 | B183: 2.286 | D183: Age Difference | E183: =(E180-E181) -> 8315 | F183: Million Years
A184: 600 | B184: 2.11 | D184: Difference | E184: =(E180/E181) -> 5.371713985 | F184: Percent
A185: 640 | B185: 1.972 | D185: Standard Deviation | E185: 1508 | F185: Million Years
A186: 680 | B186: 1.965
A187: 720 | B187: 2.103
A188: 750 | B188: 1.902
A189: 780 | B189: 1.938
A190: 810 | B190: 1.98
A191: 840 | B191: 2.22
A192: 870 | B192: 2.504
A193: 900 | B193: 2.562
A194: 930 | B194: 2.599
A195: 960 | B195: 2.867
A196: 990 | B196: 2.854
A197: 1060 | B197: 2.697
A198: 1090 | B198: 2.69
A199: 1140 | B199: 2.574
A200: 1180 | B200: 2.73
A201: 1220 | B201: 3.275
A202: 1260 | B202: 3.458
A203: 1300 | B203: 3.335
A204: 1340 | B204: 3.493
A205: 1380 | B205: 3.826
... 602 more rows

Sheet C3
A1: 4 | B1: Rocks Older Than The Earth | E1: Billion Years Old
A2: Author | B2: John G. Spray | C2: 4 | E2: 5.01 | F2: Billion Years Old
A3: Journal | B3: Earth And Planetary Science Letters | E3: 5.127 | F3: Billion Years Old
A4: Edition | B4: Volume 172, PAGE 207 | E4: 5.02 | F4: Billion Years Old
A5: Title | B5: The Strangways impact structure | E5: 5.08 | F5: Billion Years Old
A6: Year | B6: 1999 | E6: 5.91 | F6: Billion Years Old
A7: Spreadsheet | B7: Older Than The Earth | E7: 8.569 | F7: Billion Years Old
A8: Mineral, Location | B8: Northern Territory, Australia
E10: 40Ar/39Ar | F10: 40Ar/39Ar | G10: 40Ar/39Ar | H10: 40Ar/39Ar
E11: 8569 | F11: 1093 | G11: 812 | H11: 736
E12: 5910 | F12: 1043 | G12: 811 | H12: 736
E13: 5127 | F13: 1031 | G13: 803 | H13: 734
E14: 5080 | F14: 1010 | G14: 802 | H14: 733
E15: 5020 | F15: 996 | G15: 789 | H15: 727
E16: 4843 | F16: 964 | G16: 781 | H16: 722
E17: 4641 | F17: 963 | G17: 778 | H17: 713
E18: 4404 | F18: 954 | G18: 775 | H18: 705
E19: 4106 | F19: 953 | G19: 773 | H19: 701
E20: 3894 | F20: 944 | G20: 773 | H20: 700
E21: 1686 | F21: 929 | G21: 767 | H21: 698
E22: 1653 | F22: 897 | G22: 766 | H22: 692
E23: 1637 | F23: 891 | G23: 759 | H23: 685
E24: 1598 | F24: 866 | G24: 758 | H24: 684
E25: 1572 | F25: 847 | G25: 758 | H25: 684
E26: 1495 | F26: 834 | G26: 758 | H26: 680
E27: 1276 | F27: 833 | G27: 756 | H27: 671
E28: 1271 | F28: 822 | G28: 755 | H28: 669
E29: 1256 | F29: 818 | G29: 751 | H29: 643
E30: 1237 | F30: 815 | G30: 746 | H30: 641
E31: 1108 | F31: 815 | G31: 744 | H31: 633

Sheet C4
E1: Location | F1: Country | G1: Re/Os Age A | H1: Re/Os Age B | I1: Re/Os Age C
A2: 8 | B2: Rocks Older Than The Earth | E2: Mt. Mulgine | F2: Australia | G2: 2760 | H2: 2684 | I2: None
A3: Author | B3: Katsuhiko Suzuki | C3: 8 | E3: Mt. Mulgine | F3: Australia | G3: 2820
A4: Journal | B4: Geochimica et Cosmochimica Acta | E4: Matasvaara | F4: Finland | G4: 2590 | H4: 2700 | I4: 1710
A5: Edition | B5: Volume 57, PAGE 1626 | E5: Matasvaara | F5: Finland | G5: 2650
A6: Title | B6: Reliable Re-Os Ages | E6: Matasvaara | F6: Finland | G6: 2550
A7: Year | B7: 1993 | E7: Matasvaara | F7: Finland | G7: 2590
A8: Spreadsheet | B8: Older Than The Earth | E8: Preissac | F8: Canada | G8: 2670 | H8: 2690 | I8: 5930
A9: Mineral, Location | B9: Canada | E9: Preissac | F9: Canada | G9: 2710 | H9: 2655 | I9: 6300
E10: Preissac | F10: Canada | G10: 2650
E11: Preissac | F11: Canada | G11: 2680
E12: Climax | F12: USA | G12: 26.6 | H12: 25.9 | I12: 88

Sheet C5
A1: Sample | N1: Million Years
A2: Acapulco, 1.1 | B2: 4.2 | C2: 2.4 | D2: 1.8 | E2: 5 | F2: 450.6 | G2: 4 | H2: 584 | I2: 51 | J2: 61 | K2: 0 | L2: red | M2: 0.9 | N2: 4779 | O2: Maximum Age | P2: 4909 | Q2: Million Years
A3: Acapulco, 1.2 | B3: 10.7 | C3: 5.2 | D3: 2.1 | E3: 13 | F3: 711.5 | G3: 4 | H3: 583 | I3: 51 | J3: 61 | K3: 0 | L3: red | M3: 0.87 | N3: 4839 | O3: Minimum Age | P3: 1452 | Q3: Million Years
A4: Acapulco, 1.5 | B4: 7.9 | C4: 3.6 | D4: 2.2 | E4: 9 | F4: 990.6 | G4: 4 | H4: 562 | I4: 52 | J4: 62 | K4: 0.06 | L4: red | M4: 0.86 | N4: 4839 | O4: Average Age | P4: 4091 | Q4: Million Years
A5: Acapulco, 2.5 | B5: 9.5 | C5: 3.9 | D5: 2.5 | E5: 11 | F5: 711.9 | G5: 4 | H5: 524 | I5: 54 | J5: 64 | K5: 0.28 | L5: red | M5: 0.81 | N5: 4909 | O5: Age Difference | P5: =(P2-P3) -> 3457 | Q5: Million Years
A6: Acapulco, 3.4 | B6: 7.4 | C6: 3.7 | D6: 2 | E6: 8 | F6: 941.4 | G6: 4 | H6: 435 | I6: 51 | J6: 61 | K6: 1.5 | L6: red | M6: 0.83 | N6: 4786 | O6: Difference | P6: =(P2/P3) -> 3.380853994 | Q6: Percent
A7: Acapulco, 3.2 | B7: 7.1 | C7: 3.5 | D7: 2 | E7: 8 | F7: 197.5 | G7: 4 | H7: 380 | I7: 52 | J7: 62 | K7: 2.7 | L7: white | M7: 0.81 | N7: 4775 | O7: Standard Deviation | P7: 1055 | Q7: Million Years
A8: Acapulco, 3.3 | B8: 4.5 | C8: 1.4 | D8: 3.3 | E8: 4 | F8: 884.8 | G8: 4 | H8: 304 | I8: 51 | J8: 61 | K8: 4.6 | L8: white | M8: 0.84 | N8: 4631
A9: Acapulco, 1.4 | B9: 6.4 | C9: 3.3 | D9: 2 | E9: 5 | F9: 381.8 | G9: 3 | H9: 745 | I9: 42 | J9: 53 | K9: 39 | L9: red | M9: 0.88 | N9: 4003
A10: Acapulco, 2.3 | B10: 4.8 | C10: 1.9 | D10: 2.5 | E10: 3 | F10: 345.5 | G10: 3 | H10: 399 | I10: 40 | J10: 51 | K10: 94 | L10: red | M10: 0.86 | N10: 3704
A11: Acapulco, 1.3 | B11: 5.6 | C11: 3.1 | D11: 1.8 | E11: 3 | F11: 309.5 | G11: 3 | H11: 19 | I11: 34 | J11: 44 | K11: 194 | L11: white | M11: 0.89 | N11: 3253
A12: Acapulco, 3.1 | B12: 4.3 | C12: 2.1 | D12: 2 | E12: 2 | F12: 153.2 | G12: 2 | H12: 714 | I12: 39 | J12: 49 | K12: 267 | L12: white | M12: 0.81 | N12: 3128
A13: Acapulco, 2.1 | B13: 0.2 | C13: 4 | D13: 0 | E13: 189.7 | F13: 1 | G13: 272 | H13: 22 | I13: 28 | J13: 1 | K13: 94 | L13: white | M13: 0.87 | N13: 1452
N14: =STDEV(N2:N13) -> 1055.522318
A16: Kyoungwon Min
A17: Earth and Planetary Science Letters
A18: Volume 209, pages 323 - 336
A19: Single grain (U-Th)/He ages
A20: 2003
N28: U/Th
N29: 4909
N30: 4839
N31: 4839
N32: 4786
N33: 4779
N34: 4775
N35: 4631
N36: 4003
N37: 3704
N38: 3253
N39: 3128
N40: 1452

Sheet C6
A1: Meteorite | B1: Age | C1: L. Rancitelli, And D. E. Fisher
A2: Sample | B2: Million Years | C2: Science
A3: Neutron Activation | B3: 10000 | C3: Volume 155, Pages 999-1000
A4: Stoenner and Zahringer | B4: 7000 | C4: Potassium: Argon Dating of Iron Meteorites
A5: Muller and Ziihringer's | B5: 6300 | C5: February 24, 1967
A6: Wasserburg, Burnett | B6: 4700
A7: K-1 | B7: 8500
A8: K-2 | B8: 9300
A9: B-1 | B9: 6500
A10: G-1 | B10: 10400 | C10: Meteorite Dating

Sheet C7
A2: 9 | B2: Rocks Older Than The Earth | E2: 40Ar/39Ar | F2: 40Ar/39Ar | G2: 40Ar/39Ar | H2: 40Ar/39Ar
A3: Author | B3: M. A. Kendrick | C3: 9 | E3: 9969 | F3: 4760 | G3: 3109 | H3: 1892
A4: Journal | B4: Geochimica et Cosmochimica Acta | E4: 8655 | F4: 4759 | G4: 2955 | H4: 1866
A5: Edition | B5: Volume 70, PAGE 2573-2575 | E5: 7715 | F5: 4714 | G5: 2952 | H5: 1853
A6: Title | B6: 40Ar–39Ar Quartz Ages | E6: 7412 | F6: 4594 | G6: 2863 | H6: 1818
A7: Year | B7: 2006 | E7: 6568 | F7: 4515 | G7: 2840 | H7: 1793
A8: Spreadsheet | B8: Older Than The Earth | E8: 6442 | F8: 4508 | G8: 2808 | H8: 1793
A9: Mineral, Location | B9: Mount Isa, Queensland | E9: 6393 | F9: 4506 | G9: 2775 | H9: 1768
E10: 6127 | F10: 4499 | G10: 2674 | H10: 1764
E11: 6060 | F11: 4425 | G11: 2639 | H11: 1724
E12: 5871 | F12: 4343 | G12: 2628 | H12: 1644
E13: 5620 | F13: 4252 | G13: 2610 | H13: 1630
E14: 5601 | F14: 4144 | G14: 2581 | H14: 1595
E15: 5511 | F15: 4128 | G15: 2530 | H15: 1511
E16: 5418 | F16: 4120 | G16: 2475 | H16: 1496
E17: 5370 | F17: 4063 | G17: 2360 | H17: 1482
E18: 5238 | F18: 3799 | G18: 2261 | H18: 1406
E19: 5201 | F19: 3713 | G19: 2230 | H19: 1402
E20: 5176 | F20: 3692 | G20: 2197 | H20: 1394
E21: 5049 | F21: 3523 | G21: 2180 | H21: 1304
E22: 4983 | F22: 3442 | G22: 2176 | H22: 1252
E23: 4931 | F23: 3422 | G23: 2128 | H23: 1246
E24: 4883 | F24: 3329 | G24: 2076 | H24: 1188
E25: 4844 | F25: 3227 | G25: 2018 | H25: 1174
E26: 4805 | F26: 3198 | G26: 2016 | H26: 1152
E27: 4804 | F27: 3188 | G27: 1926 | H27: 1127
E28: 4777 | F28: 3136 | G28: 1914 | H28: 1115

Sheet C8
A1: TABLE 4 | B1: K, Rb and Sr concentrations and 87Sr/86Sr ratios and model ages for Allende inclusions and matrix | O1: U-238 | P1: U-235 | Q1: Pb-206 | R1: Th-232 | T1: 16.49
I2: Meteorite Dating | O2: 9860 | P2: 5780 | Q2: 4569 | R2: 16490 | T2: 14.4 | V2: =(O2 * 1000) -> 9860000 | W2: =(P2 * 1000) -> 5780000 | X2: =(Q2 * 1000) -> 4569000 | Y2: =(R2 * 1000) -> 16490000
A3: Sample | B3: Weight | C3: K | D3: Rb | E3: Sr | F3: 87Ftb/96Sr | G3: 87Sr/865r. | I3: Model age, Billions Of Years | O3: 8950 | P3: 5600 | Q3: 4568 | R3: 14400 | T3: 11.7 | V3: =(O3 * 1000) -> 8950000 | W3: 5600000 | X3: 4568000 | Y3: 14400000
A4: Total meteorite (Smithsonian | C4: Split 3, Position 41) | J4: Maximum Age | K4: 4.84 | L4: Billion Years | O4: 8820 | P4: 5570 | Q4: 4567 | R4: 11700 | T4: 10.4 | V4: 8820000 | W4: 5570000 | X4: 4567000 | Y4: 11700000
A5: WRi | B5: 51.2 | C5: 277 | D5: 1.17 | E5: 14.34 | F5: 0.236 | G5: 0.71415 | H5: 10 | I5: 4.48 | J5: Minimum Age | K5: 0.7 | L5: Billion Years | O5: 7820 | P5: 5360 | Q5: 4562 | R5: 10400 | T5: 10.4 | V5: 7820000 | W5: 5360000 | X5: 4562000 | Y5: 10400000
A6: WR2 | B6: 39.9 | C6: 252 | D6: 1.03 | E6: 12.49 | F6: 0.24 | G6: 0.71444 | H6: 16 | I6: 4.49 | J6: Average Age | K6: 3.66 | L6: Billion Years | O6: 7800 | P6: 5340 | Q6: 4557 | R6: 10400 | T6: 10.1 | V6: 7800000 | W6: 5340000 | X6: 4557000 | Y6: 10400000
A7: Matrix | J7: Age Difference | K7: =(K4-K5) -> 4.14 | L7: Billion Years | O7: 7750 | P7: 5340 | Q7: 4554 | R7: 10100 | T7: 9.86 | V7: 7750000 | W7: 5340000 | X7: 4554000 | Y7: 10100000
A8: MX1 | B8: 38.3 | C8: 76 | D8: 0.51 | E8: 16.87 | F8: 0.088 | G8: 0.7051 | H8: 12 | I8: 4.84 | J8: Difference | K8: =(K4/K5) -> 6.914285714 | L8: Percent | O8: 6660 | P8: 5100 | Q8: 4554 | R8: 9860 | T8: 9.86 | V8: 6660000 | W8: 5100000 | X8: 4554000 | Y8: 9860000
A9: MX2 | B9: 36.7 | C9: 103 | D9: 0.59 | E9: 17.48 | F9: 0.092 | G9: 0.70504 | H9: 10 | I9: 4.6 | J9: Standard Deviation | K9: 1.35 | L9: Billion Years | O9: 6500 | P9: 5050 | Q9: 4553 | R9: 9550 | T9: 9.55 | V9: 6500000 | W9: 5050000 | X9: 4553000 | Y9: 9550000
A10: White aggregate | O10: 6500 | P10: 5040 | Q10: 4552 | R10: 9150 | T10: 9.15 | V10: 6500000 | W10: 5040000 | X10: 4552000 | Y10: 9150000
A11: WWC | B11: 68.4 | C11: 195 | D11: 0.99 | E11: 156.5 | F11: 0.018 | G11: 0.69976 | H11: 22 | I11: 0.69857 | O11: 6440 | P11: 5040 | Q11: 4547 | R11: 7520 | T11: 8.95 | V11: 6440000 | W11: 5040000 | X11: 4547000 | Y11: 7520000
A12: W6 | B12: 11.8 | C12: 73 | D12: 1.52 | E12: 154.3 | F12: 0.028 | G12: 0.7003 | H12: 4 | I12: 3.33 | O12: 6420 | P12: 5030 | Q12: 4546 | R12: 6990 | T12: 8.82 | V12: 6420000 | W12: 5030000 | X12: 4546000 | Y12: 6990000
A13: W11 | B13: 29.8 | C13: 206 | D13: 0.72 | E13: 165.2 | F13: 0.013 | G13: 0.69976 | H13: 10 | I13: 0.6989 | O13: 6350 | P13: 5020 | Q13: 4544 | R13: 6400 | T13: 7.82 | V13: 6350000 | W13: 5020000 | X13: 4544000 | Y13: 6400000
A14: Pinkish-white aggregate | O14: 6330 | P14: 4990 | Q14: 4540 | R14: 5440 | T14: 7.8 | V14: 6330000 | W14: 4990000 | X14: 4540000 | Y14: 5440000
B15: 18.1 | C15: 2597 | D15: 13.5 | E15: 48.65 | F15: 0.806 | G15: 0.74993 | H15: 2 | I15: 4.41 | O15: 6050 | P15: 4960 | Q15: 4538 | R15: 5350 | T15: 7.75 | V15: 6050000 | W15: 4960000 | X15: 4538000 | Y15: 5350000
A16: Ca-Al-rich chondrules | J16: Mitsunobu Tatsumoto | O16: 5730 | P16: 4890 | Q16: 4533 | R16: 5150 | T16: 7.52 | V16: 5730000 | W16: 4890000 | X16: 4533000 | Y16: 5150000
A17: N17 | B17: 47.8 | C17: 91 | D17: 0.59 | E17: 151.4 | F17: 0.011 | G17: 0.69934 | H17: 4 | I17: 0.6986 | J17: Geochemica Et Cosmochemica Acta | O17: 5730 | P17: 4880 | Q17: 4533 | R17: 4810 | T17: 6.99 | V17: 5730000 | W17: 4880000 | X17: 4533000 | Y17: 4810000
A18: 818 | B18: 59.7 | C18: 168 | D18: 1.52 | E18: 180.9 | F18: 0.024 | G18: 0.70037 | H18: 10 | I18: 4.08 | J18: Volume 40, pages 617 - 634 | O18: 5690 | P18: 4860 | Q18: 4528 | T18: 6.66 | V18: 5690000 | W18: 4860000 | X18: 4528000 | Y18: 0
A19: 819 | B19: 72.8 | C19: 587 | D19: 2.7 | E19: 118.4 | F19: 0.066 | G19: 0.70291 | H19: 4 | I19: 4.17 | J19: The Allende and Orgueil Chondrites | O19: 5500 | P19: 4820 | Q19: 4524 | T19: 6.5 | V19: 5500000 | W19: 4820000 | X19: 4524000 | Y19: 0
A20: N28 | B20: 28.3 | C20: 80 | D20: 0.08 | E20: 182.9 | F20: 0.001 | G20: 0.69884 | H20: 8 | I20: 0.69877 | J20: 1976 | O20: 5450 | P20: 4810 | Q20: 4521 | T20: 6.5 | V20: 5450000 | W20: 4810000 | X20: 4521000 | Y20: 0
A21: Mg-rich chondrules | O21: 5440 | P21: 4790 | Q21: 4518 | T21: 6.44 | V21: 5440000 | W21: 4790000 | X21: 4518000 | Y21: 0
A22: N4 | B22: 13.1 | C22: 475 | D22: 2.35 | E22: 4.77 | F22: 1.44 | G22: 0.78851 | H22: 4 | I22: 4.34 | O22: 5340 | P22: 4780 | Q22: 4506 | T22: 6.42 | V22: 5340000 | W22: 4780000 | X22: 4506000 | Y22: 0
A23: N5 | B23: 20.2 | C23: 452 | D23: 2.31 | E23: 5.96 | F23: 1.13 | G23: 0.76963 | H23: 8 | I23: 4.36 | O23: 5070 | P23: 4700 | Q23: 4503 | T23: 6.4 | V23: 5070000 | W23: 4700000 | X23: 4503000 | Y23: 0
A24: N6 | B24: 18.2 | C24: 197 | D24: 2.21 | E24: 41.96 | F24: 0.152 | G24: 0.70846 | H24: 8 | I24: 4.36 | O24: 5040 | P24: 4700 | Q24: 4497 | T24: 6.35 | V24: 5040000 | W24: 4700000 | X24: 4497000 | Y24: 0
A25: N7 | B25: 89.7 | C25: 230 | D25: 0.86 | E25: 11.83 | F25: 0.211 | G25: 0.70686 | H25: 10 | I25: 2.64 | O25: 5020 | Q25: 4496 | T25: 6.33 | V25: 5020000 | W25: 0 | X25: 4496000 | Y25: 0
A26: N8 | B26: 36.6 | C26: 716 | D26: 4.06 | E26: 4.79 | F26: 2.49 | G26: 0.85941 | H26: 10 | I26: 4.49 | O26: 5010 | Q26: 4495 | T26: 6.05 | V26: 5010000 | W26: 0 | X26: 4495000 | Y26: 0
A27: N9 | B27: 32.5 | C27: 744 | D27: 3.65 | E27: 6.52 | F27: 1.63 | G27: 0.7929 | H27: 8 | I27: 4.03 | O27: 4960 | Q27: 4494 | T27: 5.78 | V27: 4960000 | W27: 0 | X27: 4494000 | Y27: 0
A28: NIO | B28: 14.5 | C28: 769 | D28: 2.97 | E28: 17.54 | F28: 0.491 | G28: 0.72977 | H28: 10 | I28: 4.38 | O28: 4920 | Q28: 4492 | T28: 5.73 | V28: 4920000 | W28: 0 | X28: 4492000 | Y28: 0
A29: N11 | B29: 27.9 | C29: 466 | D29: 2.61 | E29: 12.7 | F29: 0.596 | G29: 0.73451 | H29: 8 | I29: 4.17 | Q29: 4489 | T29: 5.73 | V29: 0 | W29: 0 | X29: 4489000 | Y29: 0
A30: N12 | B30: 36.1 | C30: 641 | D30: 4.2 | E30: 11.14 | F30: 1.096 | G30: 0.76318 | H30: 10 | I30: 4.1 | Q30: 4488 | T30: 5.69 | V30: 0 | W30: 0 | X30: 4488000 | Y30: 0
A31: N13 | B31: 23.7 | C31: 556 | D31: 2.65 | E31: 5.57 | F31: 1.386 | G31: 0.78156 | H31: 8 | I31: 4.17 | Q31: 4483 | T31: 5.6 | V31: 0 | W31: 0 | X31: 4483000 | Y31: 0
A32: N14 | B32: 31.2 | C32: 305 | D32: 1.05 | E32: 9.16 | F32: 0.333 | G32: 0.71973 | H32: 4 | I32: 4.35 | Q32: 4481 | T32: 5.57 | V32: 0 | W32: 0 | X32: 4481000 | Y32: 0
A33: N25 | B33: 11.8 | C33: 1448 | D33: 7.12 | E33: 23.22 | F33: 0.891 | G33: 0.75238 | H33: 16 | I33: 4.19 | Q33: 4467 | T33: 5.5 | V33: 0 | W33: 0 | X33: 4467000 | Y33: 0
A34: N26 | B34: 8.8 | C34: 815 | D34: 3.83 | E34: 29.47 | F34: 0.376 | G34: 0.72171 | H34: 8 | I34: 4.22 | O34: =MAX(O2:O33) -> 9860 | P34: =MAX(P2:P33) -> 5780 | Q34: 4569 | R34: 16490 | T34: 5.45
A35: N27 | B35: 24.6 | C35: 1001 | D35: 5.37 | E35: 14.33 | F35: 1.08 | G35: 0.76196 | H35: 16 | I35: 4.08 | O35: =MIN(O2:O34) -> 4920 | P35: =MIN(P2:P34) -> 4700 | Q35: 4467 | R35: 4810 | T35: 5.44
I36: =STDEV(I5:I35) -> 1.350698708 | T36: 5.44
T37: 5.36
T38: 5.35
T39: 5.34
T40: 5.34
A41: TABLE 6 | J41: Meteorite Dating | T41: 5.34
A42: Systematics of Allende and Orgueil 627 | G42: Ages | H42: Ages | I42: Ages | J42: Ages | T42: 5.15
G43: Billion Years | H43: Billion Years | I43: Billion Years | J43: Billion Years | T43: 5.1
A44: compositions and model ages of Orgueil and Allende | T44: 5.07
B45: Corrected for Blank and fractionation. | F45: 2380/204pb | G45: Pb-206 | H45: Pb-207 | I45: Pb-207 | J45: Pb-208 | K45: Pb-208 | T45: 5.05
A46: 206pb/204pb | B46: 207pb/204pb | C46: 208pb/204pb | D46: 207p6/206pb | E46: 208pb/206pb | G46: U-238 | H46: U-235 | I46: Pb-206 | J46: Th-232 | K46: Th-232 | T46: 5.04
A47: 9.845 | B47: 10.614 | C47: 30.02 | D47: 1.078 | E47: 3.049 | F47: 0.149 | G47: 9.86 | H47: 5.78 | I47: 4.495 | J47: 14.4 | K47: Maximum Age | L47: 14.4 | M47: Billion Years | T47: 5.04
A48: 9.75 | B48: 10.557 | D48: 1.0827 | F48: 0.148 | G48: 8.95 | H48: 5.6 | I48: 4.497 | K48: Minimum Age | L48: 4.81 | M48: Billion Years | T48: 5.04
A49: 11.25 | B49: 11.451 | C49: 31.35 | D49: 1.0178 | E49: 2.787 | F49: 0.663 | G49: 8.82 | H49: 5.57 | I49: 4.496 | J49: 10.4 | K49: Average Age | L49: 6.4 | M49: Billion Years | T49: 5.03
A50: 9.873 | B50: 10.630 | C50: 30.27 | D50: 1.0767 | E50: 3.066 | F50: 0.329 | G50: 6.44 | H50: 5.03 | I50: 4.494 | J50: 9.86 | K50: Age Difference | L50: =(L47-L48) -> 9.59 | M50: Billion Years | T50: 5.02
A51: 9.814 | B51: 10.592 | C51: 29.9 | D51: 1.0793 | E51: 3.047 | F51: 0.303 | G51: 6.33 | H51: 4.99 | I51: 4.481 | J51: 16.49 | K51: Difference | L51: =(L47/L48) -> 2.993762994 | M51: Percent | T51: 5.02
A52: 9.825 | B52: 10.601 | D52: 1.079 | F52: 0.304 | G52: 6.42 | H52: 5.02 | I52: 4.489 | K52: Standard Deviation | L52: 3.37 | M52: Billion Years | T52: 5.01
A53: 10.09 | B53: 10.763 | C53: 30.23 | D53: 1.0667 | E53: 2.996 | F53: 0.333 | G53: 7.8 | H53: 5.36 | I53: 4.506 | J53: 9.15 | T53: 4.99
A54: 9.734 | B54: 10.553 | D54: 1.0841 | F54: 0.321 | G54: 5.45 | H54: 4.79 | I54: 4.524 | T54: 4.96
A55: 11.076 | B55: 11.325 | C55: 31.16 | D55: 1.0225 | E55: 2.813 | F55: 1.8 | G55: 4.41 | H55: 4.45 | I55: 4.467 | J55: 4.81 | T55: 4.89
A56: 11.629 | B56: 11.671 | C56: 31.8 | D56: 1.0036 | E56: 2.734 | F56: 0.996 | G56: 7.75 | H56: 5.34 | I56: 4.492 | J56: 10.1 | T56: 4.88
A57: 11.673 | B57: 11.689 | D57: 1.0014 | F57: 1 | G57: 7.82 | H57: 5.34 | I57: 4.483 | T57: 4.86
A58: 55.88 | B58: 39.2 | C58: 88.32 | D58: 0.7014 | E58: 1.58 | F58: 40.16 | G58: 4.96 | H58: 4.68 | I58: 4.557 | J58: 5.15 | K58: Pb-206 | T58: 4.82
A59: 52.93 | B59: 37.45 | D59: 0,7076 | F59: 38.04 | G59: 4.92 | H59: 4.67 | I59: 4.562 | K59: U-238 | T59: 4.81
A60: 26.721 | B60: 21.026 | C60: 70.86 | D60: 0.7869 | E60: 2.652 | F60: 12.16 | G60: 5.73 | H60: 4.88 | I60: 4.547 | J60: 5.44 | K60: Maximum Age | L60: 9.86 | M60: Billion Years | T60: 4.81
A61: 24.035 | B61: 19.287 | D61: 0.8025 | F61: 10.94 | G61: 5.5 | H61: 4.81 | I61: 4.533 | K61: Minimum Age | L61: 3.91 | M61: Billion Years
A62: 20.046 | B62: 16.939 | C62: 40.566 | D62: 0.8449 | E62: 2.024 | F62: 8.33 | G62: 5.34 | H62: 4.78 | I62: 4.552 | J62: 11.7 | K62: Average Age | L62: 6.02 | M62: Billion Years
A63: 20.709 | B63: 17.431 | D63: 0,8417 | F63: 8.6 | G63: 5.44 | H63: 4.82 | I63: 4.569 | J63: -- | K63: Age Difference | L63: =(L60-L61) -> 5.95 | M63: Billion Years
A64: 24435 | B64: 19.75 | C64: 44.378 | D64: 0.8083 | E64: 1.816 | F64: 15.46 | G64: 4.4 | H64: 4.51 | I64: 4.567 | J64: 10.4 | K64: Difference | L64: =(L60/L61) -> 2.52173913 | M64: Percent
A65: 26.415 | B65: 20.821 | D65: 0.7882 | F65: 16.71 | G65: 4.54 | H65: 4.54 | I65: 4.544 | J65: -- | K65: Standard Deviation | L65: 1.45 | M65: Billion Years
A66: 18.445 | B66: 15.951 | C66: 38.334 | D66: 0.8648 | E66: 2.078 | F66: 7,71 | G66: 5.04 | H66: 4.7 | I66: 4.553 | J66: 9.55
A67: 18.628 | B67: 16.014 | D67: 0.8597 | F67: 7.78 | G67: 5.07 | H67: 4.7 | I67: 4.54
A68: 36.44 | B68: 26.515 | C68: 66.01 | D68: 0.7276 | E68: 1.811 | F68: 15.6 | G68: 6.5 | H68: 5.05 | I68: 4.503 | J68: 7.52
A69: 36.66 | B69: 26.484 | D69: 0.7224 | F69: 15.7 | G69: 6.5 | H69: 5.04 | I69: 4.488
A70: 32.559 | B70: 24.612 | C70: 56.769 | D70: 0.7559 | E70: 1.743 | F70: 24.79 | G70: 4.26 | H70: 4.46 | I70: 4.546 | J70: 5.35
A71: 29.633 | B71: 22.663 | D71: 0.7647 | F71: 24.33 | G71: 3.91 | H71: 4.33 | I71: 4.528
A72: 52.561 | B72: 37.085 | C72: 70.052 | D72: 0.7056 | E72: 1.333 | F72: 36.68 | G72: 5.02 | H72: 4.69 | I72: 4.554 | J72: 6.99
A73: 51.77 | B73: 36.591 | D73: 0.7068 | F73: 36.13 | G73: 5.01 | H73: 4.69 | I73: 4.554
A74: 13.45 | B74: 12.797 | C74: 33.36 | D74: 0.9514 | E74: 2.48 | F74: 2.89 | G74: 5.73 | H74: 4.86 | I74: 4.518 | J74: 6.4
A75: 13.389 | B75: 12.847 | D75: 0.9595 | F75: 2.88 | G75: 5.69 | H75: 4.89 | I75: 4.568
A76: 15.773 | B76: 14.24 | D76: 0.9029 | F76: 4.16 | G76: 6.05 | H76: 4.96 | I76: 4.533
A77: 21.101 | B77: 17.436 | D77: 0.8263 | F77: 6.52 | G77: 6.66 | H77: 5.1 | I77: 4.521
A78: 21.932 | B78: 18.029 | D78: 0.8221 | F78: 7.53 | G78: 6.35 | H78: 5.04 | I78: 4.538
G79: 25 | H79: 12 | J79: 16
A84: Pb-208
A85: Th-232
A86: 4.81
A87: 5.15 | H87: 25
A88: 5.35 | H88: 12
A89: 5.44 | H89: 16
A90: 6.4 | H90: =SUM(H87:H89) -> 53
A91: 6.99
A92: 7.52
A93: 9.15
A94: 9.55
A95: 9.86
A96: 10.1
A97: 10.4
A98: 10.4
A99: 11.7
A100: 14.4
A101: 16.49
A102: --
A103: --
A120: Pb-206/U-238 | B120: Pb-208/Th-232
A121: Billion Years | B121: Billion Years
A122: 9.86 | B122: 16.49
A123: 8.95 | B123: 14.4
A124: 8.82 | B124: 11.7
A125: 7.82 | B125: 10.4
A126: 7.8 | B126: 10.4
A127: 7.75 | B127: 10.1
A128: 6.66 | B128: 9.86
A129: 6.5 | B129: 9.55
A130: 6.5 | B130: 9.15
A131: 6.44 | B131: 7.52
A132: 6.42 | B132: 6.99
A133: 6.35 | B133: 6.4
A134: 6.33 | B134: 5.44
A135: 6.05 | B135: 5.35
A136: 5.73 | B136: 5.15
A137: 5.73 | B137: 4.81

Sheet C9
A1: TABLE 1 | B1: Meteorite Dating | I1: 5.13
A2: Meteorite | B2: Rb/Sr | I2: 7.33
A3: Sample | B3: Billion Years | C3: TABLE 1 | I3: 4.91
A4: Yamato-790143, 84 | B4: 5.13 | C4: Maximum Age | D4: 7330 | E4: Million Years | I4: 4.67
A5: Yamato-790345, 84 | B5: 4.33 | C5: Minimum Age | D5: 3110 | E5: Million Years | I5: 4.58
A6: Yamato-790397, 81 | B6: 4.12 | C6: Average Age | D6: 4410 | E6: Million Years | I6: 4.57
A7: Yamato-770519, 93 | B7: 3.76 | C7: Age Difference | D7: =(D4-D5) -> 4220 | E7: Million Years | I7: 4.52
A8: Yamato-770519, 85 | B8: 3.75 | C8: Difference | D8: =(D4/D5) -> 2.356913183 | E8: Percent | I8: 4.45
A9: Yamato-770519, 85 | B9: 3.5 | C9: Standard Deviation | D9: 950 | E9: Million Years | I9: 4.33
A10: Yamato-790723, 93 | B10: 4.45 | I10: 4.24
A11: Yamato-790723, 81 | B11: 4.67 | I11: 4.12
A12: Yamato-790757, 85 | B12: 3.64 | C12: Osamu Okano | I12: 3.76
A13: Yamato-790964, 74 | B13: 4.24 | C13: Geochemica Et Cosmochemica Acta | I13: 3.75
A14: Yamato-790964, 74 | B14: 4.91 | C14: Volume 54, pages 3509 - 3523 | I14: 3.64
A15: Yamato-790964, 74 | B15: 7.33 | C15: Antarctic LL-chondrites | I15: 3.5
A16: Yamato-74442, 6 | B16: 4.57 | C16: 1990 | I16: 3.11
A17: Yamato-74442, 6 | B17: 4.52
A18: Yamato-74442, 6 | B18: 4.58
A19: ALH-77304,6, 20 | B19: 3.11
B20: =STDEV(B4:B19) -> 0.9493486802
E21: `
A22: TABLE 5
A23: Meteorite | B23: Gas Retention Ages
A24: Sample | B24: Billion Years
B25: U-Th | C25: TABLE 5A
A26: Y-790143.84 | B26: 0.84 | C26: Maximum Age | D26: 3550 | E26: Million Years
A27: Y-790345.84 | B27: 0.75 | C27: Minimum Age | D27: 550 | E27: Million Years
A28: Y-790397.81 | B28: 0.55 | C28: Average Age | D28: 5161 | E28: Million Years
A29: Y-790519.85 | B29: 0.82 | C29: Age Difference | D29: 1154 | E29: Million Years
A30: Y-790723.81 | B30: 0.76 | C30: Difference | D30: =(D26/D27) -> 6.454545455 | E30: Percent
A31: Y-790964,74 | B31: 0.81 | C31: Standard Deviation | D31: 1060 | E31: Million Years
A32: Y-74442.6 | B32: 3.55
B33: =STDEV(B26:B32) -> 1.060862183
A35: Meteorite | B35: Gas Retention Ages
A36: Sample | B36: Billion Years | C36: TABLE 5B
B37: K-Ar | C37: Maximum Age | D37: 3970 | E37: Million Years
A38: Y-790143.84 | B38: 1.03 | C38: Minimum Age | D38: 1030 | E38: Million Years
A39: Y-790345.84 | B39: 1.26 | C39: Average Age | D39: 5161 | E39: Million Years
A40: Y-790397.81 | B40: 1.32 | C40: Age Difference | D40: 1637 | E40: Million Years
A41: Y-790519.85 | B41: 1.31 | C41: Difference | D41: =(D37/D38) -> 3.854368932 | E41: Percent
A42: Y-790723.81 | B42: 1.31 | C42: Standard Deviation | D42: 1034 | E42: Million Years
A43: Y-790964,74 | B43: 1.26
A44: Y-74442.6 | B44: 3.97
B45: =STDEV(B38:B44) -> 1.033597508
A48: Rb/Sr | B48: U-Th | C48: K-Ar
A49: 5130 | B49: 3550 | C49: 3970
A50: 7330 | B50: 840 | C50: 1320
A51: 4910 | B51: 820 | C51: 1310
A52: 4670 | B52: 810 | C52: 1310
A53: 4580 | B53: 760 | C53: 1260
A54: 4570 | B54: 750 | C54: 1260
A55: 4520 | B55: 550 | C55: 1030
A56: 4450
A57: 4330
A58: 4240
A59: 4120
A60: 3760
A61: 3750
A62: 3640
A63: 3500
A64: 3110

Sheet D0
A1: TABLE 1A | G1: 40Ar/39Ar Age | H1: Error | I1: =(A1) -> TABLE 1A
G2: Million Years | H2: Million Years
A3: 350 | B3: 0.81 | C3: 17 | D3: 128.2 | E3: 11.8 | F3: 338.7 | G3: 889 | H3: 49 | I3: Maximum Age | J3: 3176 | K3: Million Years | M3: Sample | N3: Maximum Age | O3: Minimum Age | P3: Average Age | Q3: Age Difference | R3: Percent | S3: Standard Deviation
A4: 400 | B4: 2.29 | C4: 1750 | D4: 230 | E4: 56.69 | F4: 282.8 | G4: 190 | H4: 4 | I4: Minimum Age | J4: 190 | K4: Million Years | M4: Name | N4: Million Years | O4: Million Years | P4: Million Years | Q4: Million Years | R4: Difference | S4: Million Years
A5: 450 | B5: 2 | C5: 145 | D5: 370.9 | E5: 69.25 | F5: 660.9 | G5: 347 | H5: 3 | I5: Average Age | J5: 1480 | K5: Million Years | M5: TABLE 1A | N5: 3176 | O5: 190 | P5: 1480 | Q5: 2986 | R5: 16.71578947 | S5: 1010
A6: 500 | B6: 1.25 | C6: 72 | D6: 275.15 | E6: 85.62 | F6: 1355.8 | G6: 543 | H6: 5 | I6: Age Difference | J6: =(J3-J4) -> 2986 | K6: Million Years | M6: TABLE 1B | N6: 5006 | O6: 422 | P6: 1320 | Q6: 4584 | R6: 11.86255924 | S6: 1068
A7: 550 | B7: 1.37 | C7: 98 | D7: 86.76 | E7: 139.1 | F7: 2013.6 | G7: 503 | H7: 2 | I7: Difference | J7: =(J3/J4) -> 16.71578947 | K7: Percent | M7: TABLE 2 | N7: 6130 | O7: 950 | P7: 3127 | Q7: 5180 | R7: 6.452631579 | S7: 1571
A8: 600 | B8: 1.33 | C8: 141 | D8: 22.3 | E8: 192.1 | F8: 2554.4 | G8: 467 | H8: 2 | I8: Standard Deviation | J8: 1010 | K8: Million Years | M8: TABLE 4 | N8: 2515 | O8: 500 | P8: 788 | Q8: 2015 | R8: 5.03 | S8: 100
A9: 650 | B9: 1.96 | C9: 263 | D9: 11.41 | E9: 314.2 | F9: 3976.7 | G9: 447 | H9: 1 | M9: TABLE 5 | N9: 7100 | O9: 510 | P9: 2222 | Q9: 6590 | R9: 13.92156863 | S9: 2224
A10: 700 | B10: 2.63 | C10: 277 | D10: 18.02 | E10: 299.35 | F10: 3947.9 | G10: 463 | H10: 2
A11: 750 | B11: 2.72 | C11: 307 | D11: 11.61 | E11: 293.69 | F11: 4560.6 | G11: 534 | H11: 2
A12: 800 | B12: 3.09 | C12: 228 | D12: 11.97 | E12: 176.05 | F12: 4108.6 | G12: 753 | H12: 3 | I12: 40Ar/39Ar Age
A13: 850 | B13: 2.95 | C13: 194 | D13: 19.12 | E13: 97.57 | F13: 4036 | G13: 1175 | H13: 6 | I13: P. McConvilles, S. Kelley And G. Turner
A14: 900 | B14: 2.11 | C14: 202 | D14: 28.21 | E14: 43.79 | F14: 2483.8 | G14: 1470 | H14: 17 | I14: Geochemica Et Cosmochemica Acta | M14: Sample | N14: Maximum Age | O14: Minimum Age | P14: Age Difference | Q14: Percent
A15: 950 | B15: 4.64 | C15: 317 | D15: 54.8 | E15: 26.41 | F15: 2595.5 | G15: 2088 | H15: 40 | I15: Volume 52, Pages 2487-2499 | M15: Name | N15: Million Years | O15: Million Years | P15: Million Years | Q15: Difference
A16: 1000 | B16: 6.01 | C16: 412 | D16: 68.38 | E16: 16.82 | F16: 1771.8 | G16: 2175 | H16: 57 | I16: The Peace River shocked M chondrite | M16: TABLE 1A | N16: 3176 | O16: 190 | P16: 2986 | Q16: 16.71578947
A17: 1050 | B17: 6.99 | C17: 487 | D17: 71.81 | E17: 12.93 | F17: 1166.8 | G17: 1984 | H17: 103 | I17: 1988 | M17: TABLE 1B | N17: 5006 | O17: 422 | P17: 4584 | Q17: 11.86255924
A18: 1100 | B18: 7.54 | C18: 540 | D18: 61.18 | E18: 9.23 | F18: 1329.5 | G18: 2589 | H18: 123 | M18: TABLE 2 | N18: 6130 | O18: 950 | P18: 5180 | Q18: 6.452631579
A19: 1150 | B19: 8.24 | C19: 752 | D19: 75.19 | E19: 9.57 | F19: 978.9 | G19: 2138 | H19: 126 | M19: TABLE 4 | N19: 2515 | O19: 500 | P19: 2015 | Q19: 5.03
A20: 1200 | B20: 11.2 | C20: 1175 | D20: 120.1 | E20: 6.59 | F20: 883.4 | G20: 2489 | H20: 170 | M20: TABLE 5 | N20: 7100 | O20: 510 | P20: 6590 | Q20: 13.92156863
A21: 1250 | B21: 14.17 | C21: 1671 | D21: 155.1 | E21: 4.03 | F21: 873.4 | G21: 3176 | H21: 125
A22: 1300 | B22: 10.7 | C22: 877 | D22: 77.79 | E22: 2.2 | F22: 274.9 | G22: 2395 | H22: 112
A23: 1350 | B23: 9.45 | C23: 614 | D23: 43.28 | E23: 1.52 | F23: 284.16 | G23: 2960 | H23: 177
A24: 1400 | B24: 6.58 | C24: 336 | D24: 22.28 | E24: 1.06 | F24: 149.9 | G24: 2568 | H24: 225
A25: 1500 | B25: 3.87 | C25: 129 | D25: 6.35 | E25: 0.92 | F25: 150.3 | G25: 2770 | H25: 607
A26: 1650 | B26: 2.29 | C26: 65 | D26: 7.41 | E26: 2.56 | F26: 29.28 | G26: 408 | H26: 49 | M26: 40Ar/39Ar Age | N26: 40Ar/39Ar Age | O26: 40Ar/39Ar Age | P26: 40Ar/39Ar Age | Q26: 40Ar/39Ar Age
M27: TABLE 1A | N27: TABLE 1B | O27: TABLE 2 | P27: TABLE 4 | Q27: TABLE 5
A28: TABLE 1B | G28: 40Ar/39Ar Age | H28: Error | I28: =(A28) -> TABLE 1B | M28: 190 | N28: 422 | O28: 950 | P28: 500 | Q28: 510
G29: Million Years | H29: Million Years | M29: 347 | N29: 434 | O29: 1060 | P29: 520 | Q29: 515
A30: 600 | B30: 1.09 | C30: 144,3 | D30: 3.43 | E30: 154.09 | F30: 2058.9 | G30: 469 | H30: 1 | I30: Maximum Age | J30: 5006 | K30: Million Years | M30: 408 | N30: 456 | O30: 1120 | P30: 530 | Q30: 555
A31: 350 | B31: 0.53 | C31: 19.3 | D31: 4.43 | E31: 8.13 | F31: 214.1 | G31: 830 | H31: 21 | I31: Minimum Age | J31: 422 | K31: Million Years | M31: 447 | N31: 469 | O31: 2000 | P31: 540 | Q31: 560
A32: 400 | B32: 0.63 | C32: 20.3 | D32: 5.37 | E32: 18.5 | F32: 396.6 | G32: 702 | H32: 8 | I32: Average Age | J32: 1320 | K32: Million Years | M32: 463 | N32: 518 | O32: 2780 | P32: 550 | Q32: 580
A33: 450 | B33: 0.7 | C33: 27.7 | D33: 3.22 | E33: 28.56 | F33: 569.3 | G33: 661 | H33: 6 | I33: Age Difference | J33: =(J30-J31) -> 4584 | K33: Million Years | M33: 467 | N33: 518 | O33: 3240 | P33: 550 | Q33: 630
A34: 500 | B34: 0.73 | C34: 61.8 | D34: 2.56 | E34: 67.72 | F34: 1154.6 | G34: 579 | H34: 2 | I34: Difference | J34: =(J30/J31) -> 11.86255924 | K34: Percent | M34: 503 | N34: 552 | O34: 3260 | P34: 560 | Q34: 665
A35: 550 | B35: 0.87 | C35: 91.7 | D35: 1.92 | E35: 101.67 | F35: 1524.4 | G35: 518 | H35: 2 | I35: Standard Deviation | J35: 1068 | K35: Million Years | M35: 534 | N35: 579 | O35: 3390 | P35: 560 | Q35: 670
A36: 650 | B36: 1.6 | C36: 221 | D36: 5.84 | E36: 220.65 | F36: 2705.8 | G36: 434 | H36: 1 | M36: 543 | N36: 661 | O36: 3680 | P36: 560 | Q36: 700
A37: 700 | B37: 2.61 | C37: 330.1 | D37: 13.99 | E37: 268.92 | F37: 3192.5 | G37: 422 | H37: 1 | M37: 753 | N37: 702 | O37: 3760 | P37: 580 | Q37: 700
A38: 750 | B38: 3.24 | C38: 357.6 | D38: 10.89 | E38: 260.21 | F38: 3373.8 | G38: 456 | H38: 1 | M38: 889 | N38: 714 | O38: 4020 | P38: 590 | Q38: 720
A39: 800 | B39: 2.51 | C39: 202.1 | D39: 10.46 | E39: 146.17 | F39: 2191.7 | G39: 518 | H39: 2 | M39: 1175 | N39: 830 | O39: 5270 | P39: 600 | Q39: 760
A40: 850 | B40: 2.42 | C40: 160.8 | D40: 16.28 | E40: 109.12 | F40: 1757.8 | G40: 552 | H40: 2 | M40: 1470 | N40: 917 | O40: 6130 | P40: 600 | Q40: 775
A41: 900 | B41: 2.71 | C41: 160.6 | D41: 27.72 | E41: 59.32 | F41: 1297.5 | G41: 714 | H41: 3 | M41: 1984 | N41: 1173 | P41: 600 | Q41: 810
A42: 950 | B42: 4.03 | C42: 221.7 | D42: 59.07 | E42: 27.8 | F42: 1146.8 | G42: 1173 | H42: 13 | M42: 2088 | N42: 1270 | P42: 620 | Q42: 830
A43: 1000 | B43: 4.87 | C43: 270.5 | D43: 67.23 | E43: 11.95 | F43: 874.1 | G43: 1741 | H43: 39 | M43: 2138 | N43: 1576 | P43: 635 | Q43: 895
A44: 1050 | B44: 7.69 | C44: 326.3 | D44: 70.51 | E44: 8.33 | F44: 784.3 | G44: 2035 | H44: 34 | M44: 2175 | N44: 1741 | P44: 660 | Q44: 995
A45: 1100 | B45: 5.75 | C45: 348.2 | D45: 54.95 | E45: 5.82 | F45: 452.2 | G45: 1808 | H45: 77 | M45: 2395 | N45: 1808 | P45: 710 | Q45: 1900
A46: 1150 | B46: 5.84 | C46: 441.3 | D46: 54.7 | E46: 6.12 | F46: 384.5 | G46: 1576 | H46: 34 | M46: 2489 | N46: 1810 | P46: 720 | Q46: 1935
A47: 1200 | B47: 7.53 | C47: 927.4 | D47: 105.3 | E47: 6.04 | F47: 469.6 | G47: 1810 | H47: 49 | M47: 2568 | N47: 2035 | P47: 725 | Q47: 2465
A48: 1250 | B48: 9.11 | C48: 1503.9 | D48: 97.24 | E48: 2.91 | F48: 482.5 | G48: 2786 | H48: 116 | M48: 2589 | N48: 2228 | P48: 755 | Q48: 3650
A49: 1300 | B49: 8.86 | C49: 1275.2 | D49: 36.56 | E49: 1.59 | F49: 174.9 | G49: 2228 | H49: 162 | M49: 2770 | N49: 2488 | P49: 780 | Q49: 5100
A50: 1350 | B50: 7.39 | C50: 603.9 | D50: 13.49 | E50: 1.03 | F50: 30.6 | G50: 917 | H50: 167 | M50: 2960 | N50: 2786 | P50: 810 | Q50: 5225
A51: 1400 | B51: 13.22 | C51: 560.5 | D51: 18.34 | E51: 1.26 | F51: 169.1 | G51: 2488 | H51: 292 | M51: 3176 | N51: 5006 | P51: 830 | Q51: 5260
A52: 1500 | B52: 10.26 | C52: 148.4 | D52: 22.45 | E52: 1.26 | F52: 854.1 | G52: 5006 | H52: 286 | P52: 850 | Q52: 5425
A53: 1550 | B53: 0.59 | C53: 7.9 | D53: 2.913 | E53: 0.63 | F53: 28.77 | G53: 1270 | H53: 138 | P53: 920 | Q53: 5860
P54: 1070 | Q54: 6440
A55: TABLE 2 | G55: 40Ar/39Ar Age | H55: Error | I55: =(A55) -> TABLE 2 | P55: 1185 | Q55: 7100
G56: Million Years | H56: Million Years | P56: 1230
A57: 350 | B57: 6.2 | C57: 611 | D57: 90.6 | E57: 32.8 | F57: 1012 | G57: 950 | H57: 90 | I57: Maximum Age | J57: 6130 | K57: Million Years | P57: 1590
A58: 300 | B58: 3.2 | C58: 228.6 | D58: 97.6 | E58: 22.4 | F58: 787.2 | G58: 1060 | H58: 120 | I58: Minimum Age | J58: 950 | K58: Million Years | P58: 2515
A59: 400 | B59: 3 | C59: 208 | D59: 42.9 | E59: 12.7 | F59: 482.7 | G59: 1120 | H59: 210 | I59: Average Age | J59: 3127 | K59: Million Years
A60: 500 | B60: 5.2 | C60: 317 | D60: 41.8 | E60: 9 | F60: 804.3 | G60: 2000 | H60: 500 | I60: Age Difference | J60: =(J57-J58) -> 5180 | K60: Million Years
A61: 600 | B61: 9.1 | C61: 219 | D61: 10.5 | E61: 7.8 | F61: 1263 | G61: 2780 | H61: 270 | I61: Difference | J61: =(J57/J58) -> 6.452631579 | K61: Percent
A62: 1200 | B62: 22.8 | C62: 3240 | D62: 53.3 | E62: 50.6 | F62: 11282 | G62: 3240 | H62: 80 | I62: Standard Deviation | J62: 1571 | K62: Million Years
A63: 1000 | B63: 27.7 | C63: 3020 | D63: 83.2 | E63: 225.3 | F63: 50622 | G63: 3260 | H63: 20
A64: 1300 | B64: 13 | C64: 1470 | D64: 44.5 | E64: 26.2 | F64: 6444 | G64: 3390 | H64: 80
A65: 1500 | B65: 23.1 | C65: 1480 | D65: 96.5 | E65: 27.3 | F65: 8102 | G65: 3680 | H65: 80
A66: 1100 | B66: 19.5 | C66: 1940 | D66: 44.5 | E66: 40.5 | F66: 12574 | G66: 3760 | H66: 130
A67: 800 | B67: 22.8 | C67: 625 | D67: 1450 | E67: 96.5 | F67: 35473 | G67: 4020 | H67: 50
A68: 900 | B68: 15.7 | C68: 1380 | D68: 69.8 | E68: 146 | F68: 113301 | G68: 5270 | H68: 40
A69: 1650 | B69: 16.4 | C69: 150 | D69: 23.9 | E69: 3.8 | F69: 4914 | G69: 6130 | H69: 740
A71: TABLE 4 | F71: 40Ar/39Ar Age | G71: Error | I71: =(A71) -> TABLE 4
F72: Million Years | G72: Million Years
A73: 0.7 | B73: 1.2 | C73: 48 | D73: 708 | E73: 14.7 | F73: 500 | G73: 15 | I73: Maximum Age | J73: 2515 | K73: Million Years
A74: 1.5 | B74: 2.5 | C74: 38.3 | D74: 560 | E74: 15.6 | F74: 530 | G74: 20 | I74: Minimum Age | J74: 500 | K74: Million Years
B75: 3.2 | C75: 35.5 | D75: 546 | E75: 15.4 | F75: 520 | G75: 20 | I75: Average Age | J75: 788 | K75: Million Years
A76: 0.5 | B76: 1.1 | C76: 34 | D76: 660 | E76: 19.4 | F76: 635 | G76: 20 | I76: Age Difference | J76: =(J73-J74) -> 2015 | K76: Million Years
A77: 0.6 | B77: 2.2 | C77: 40.1 | D77: 1038 | E77: 25.9 | F77: 810 | G77: 20 | I77: Difference | J77: =(J73/J74) -> 5.03 | K77: Percent
A78: 1 | B78: 2 | C78: 27.6 | D78: 449 | E78: 16.3 | F78: 550 | G78: 30 | I78: Standard Deviation | J78: 100 | K78: Million Years
A79: 1.1 | B79: 2.1 | C79: 24.6 | D79: 430 | E79: 17.5 | F79: 580 | G79: 30
A80: 1 | B80: 1.9 | C80: 28.5 | D80: 507 | E80: 17.8 | F80: 590 | G80: 30
A81: 3.7 | B81: 7.1 | C81: 29.6 | D81: 652 | E81: 22 | F81: 710 | G81: 30
A82: 2.5 | B82: 3 | C82: 28.7 | D82: 710 | E82: 24.7 | F82: 780 | G82: 30
A83: 0.2 | B83: 2.3 | C83: 27.4 | D83: 437 | E83: 15.9 | F83: 540 | G83: 30
A84: 2.5 | B84: 3.7 | C84: 24.9 | D84: 416 | E84: 16.7 | F84: 560 | G84: 35
A85: 0.3 | B85: 1.4 | C85: 17.8 | D85: 291 | E85: 16.3 | F85: 550 | G85: 40
A86: 1.9 | B86: 2.7 | C86: 16.3 | D86: 304 | E86: 18.7 | F86: 620 | G86: 50
A87: 0.6 | B87: 1.2 | C87: 15.1 | D87: 306 | E87: 20.3 | F87: 660 | G87: 50
A88: 0.7 | B88: 2.4 | C88: 14 | D88: 234 | E88: 16.7 | F88: 560 | G88: 55
A89: 1.7 | B89: 3.8 | C89: 14.2 | D89: 339 | E89: 23.8 | F89: 755 | G89: 55
A90: 0.4 | B90: 1 | C90: 13.7 | D90: 245 | E90: 17.9 | F90: 560 | G90: 60
A91: 1.6 | B91: 1.9 | C91: 12.7 | D91: 349 | E91: 27.5 | F91: 850 | G91: 60
A92: 1.6 | B92: 2.6 | C92: 10.1 | D92: 185 | E92: 18.2 | F92: 600 | G92: 70
A93: 1.3 | B93: 3.2 | C93: 10.4 | D93: 278 | E93: 26.7 | F93: 830 | G93: 75
A94: 0.9 | B94: 1.9 | C94: 9.5 | D94: 216 | E94: 22.8 | F94: 725 | G94: 75
A95: 0.6 | B95: 1.9 | C95: 10.4 | D95: 189 | E95: 18.2 | F95: 600 | G95: 80
A96: 1.4 | B96: 2.9 | C96: 9.8 | D96: 220 | E96: 22.5 | F96: 720 | G96: 90
A97: 2.2 | B97: 3.5 | C97: 6.9 | D97: 208 | E97: 30.4 | F97: 920 | G97: 110
A98: 0.2 | B98: 1.6 | C98: 8.7 | D98: 371 | E98: 42.6 | F98: 1185 | G98: 110
A99: 1 | B99: 2.1 | C99: 6.4 | D99: 117 | E99: 18.3 | F99: 600 | G99: 115
A100: 1.4 | B100: 1.8 | C100: 3.7 | D100: 167 | E100: 44.8 | F100: 1230 | G100: 160
A101: 2.9 | B101: 3.7 | C101: 4.4 | D101: 609 | E101: 139.2 | F101: 2515 | G101: 280
A102: 0 | B102: 0.8 | C102: 2.1 | D102: 78 | E102: 37.1 | F102: 1070 | G102: 400
A103: 1.1 | B103: 1.8 | C103: 1.9 | D103: 125 | E103: 65 | F103: 1590 | G103: 410
A105: TABLE 5 | G105: 40Ar/39Ar Age | H105: Error | I105: =(A105) -> TABLE 5
G106: Million Years | H106: Million Years
A107: 1 | B107: 2.5 | C107: 3.8 | D107: 5.5 | E107: 161 | F107: 29.5 | G107: 895 | H107: 130 | I107: Maximum Age | J107: 7100 | K107: Million Years
A108: 0.6 | B108: 0.4 | C108: 2.1 | D108: 20.9 | E108: 313 | F108: 15 | G108: 510 | H108: 40 | I108: Minimum Age | J108: 510 | K108: Million Years
A109: 0.4 | B109: 0 | C109: 1.3 | D109: 4.2 | E109: 63 | F109: 15.2 | G109: 515 | H109: 175 | I109: Average Age | J109: 2222 | K109: Million Years
A110: 3.6 | B110: 0 | C110: 1 | D110: 14.2 | E110: 235 | F110: 16.6 | G110: 555 | H110: 99 | I110: Age Difference | J110: =(J107-J108) -> 6590 | K110: Million Years
A111: 2.6 | B111: 0.5 | C111: 2.2 | D111: 19.8 | E111: 331 | F111: 16.7 | G111: 560 | H111: 40 | I111: Difference | J111: =(J107/J108) -> 13.92156863 | K111: Percent
A112: 2.8 | B112: 0.7 | C112: 2.2 | D112: 22.3 | E112: 386 | F112: 17.3 | G112: 580 | H112: 35 | I112: Standard Deviation | J112: 2224 | K112: Million Years
A113: 2.5 | B113: 0 | C113: 0.1 | D113: 8.6 | E113: 163 | F113: 19 | G113: 630 | H113: 85
A114: 3.2 | B114: 0.4 | C114: 2.2 | D114: 5.9 | E114: 120 | F114: 20.4 | G114: 665 | H114: 125
A115: 1 | B115: 0.4 | C115: 2.3 | D115: 57.5 | E115: 1186 | F115: 20.6 | G115: 670 | H115: 15
B116: 0.1 | C116: 1.9 | D116: 20.9 | E116: 449 | F116: 21.5 | G116: 700 | H116: 35
A117: 1.2 | B117: 1.2 | C117: 2.4 | D117: 10.9 | E117: 235 | F117: 21.5 | G117: 700 | H117: 70
A118: 3.4 | B118: 0 | C118: 1 | D118: 5.2 | E118: 116 | F118: 22.6 | G118: 720 | H118: 140
A119: 0.2 | B119: 1.5 | C119: 2.6 | D119: 6.2 | E119: 150 | F119: 24.1 | G119: 760 | H119: 120
A120: 3.8 | B120: 0 | C120: 1.2 | D120: 5 | E120: 124 | F120: 24.7 | G120: 775 | H120: 145
A121: 0.8 | B121: 2.2 | C121: 1.7 | D121: 7.2 | E121: 187 | F121: 26 | G121: 810 | H121: 100
B122: 0.1 | C122: 2.4 | D122: 11.4 | E122: 304 | F122: 26.7 | G122: 830 | H122: 65
A123: 2.4 | B123: 0.8 | C123: 1.6 | D123: 34.3 | E123: 1158 | F123: 33.7 | G123: 995 | H123: 25
A124: 2.3 | B124: 0 | C124: 2.3 | D124: 9.2 | E124: 792 | F124: 86 | G124: 1900 | H124: 100
A125: 1.3 | B125: 0 | C125: 1.2 | D125: 14.5 | E125: 128 | F125: 88.3 | G125: 1935 | H125: 60
A126: 1.4 | B126: 0 | C126: 1.9 | D126: 11.4 | E126: 1525 | F126: 134.2 | G126: 2465 | H126: 75
A127: 2.2 | B127: 1.3 | C127: 4.4 | D127: 9.6 | E127: 2889 | F127: 302 | G127: 3650 | H127: 90
A128: 2.1 | B128: 0.1 | C128: 3.5 | D128: 3.5 | E128: 2572 | F128: 729 | G128: 5100 | H128: 310
A129: 2 | B129: 0.8 | C129: 0.8 | D129: 3 | E129: 2370 | F129: 784 | G129: 5225 | H129: 455
A130: 1.9 | B130: 0.2 | C130: 2.4 | D130: 4.2 | E130: 3377 | F130: 802 | G130: 5260 | H130: 230
A131: 1.8 | B131: 0.4 | C131: 4 | D131: 4.7 | E131: 4169 | F131: 882 | G131: 5425 | H131: 150
A132: 1.7 | B132: 0 | C132: 2.1 | D132: 2.1 | E132: 2418 | F132: 1137 | G132: 5860 | H132: 480
A133: 1.5 | B133: 0.2 | C133: 3.6 | D133: 1.7 | E133: 2729 | F133: 1584 | G133: 6440 | H133: 745
A134: 1.6 | B134: 0 | C134: 2.8 | D134: 0.8 | E134: 1874 | F134: 2361 | G134: 7100 | H134: 1100

Sheet D1
A1: Temp | B1: 40Ar/39Ar | C1: Error | J1: 40Ar/39Ar | K1: 40Ar/39Ar
A2: Centigrade | B2: Billion Years | C2: Billion Years | J2: 11284 | K2: 4511
A3: 300 | B3: 11.284 | C3: 4.19 | E3: Paul Pellas | J3: 11421 | K3: 4559
A4: 350 | B4: 11.421 | C4: 2.747 | E4: Geochemica Et Cosmochemica Acta | J4: 8534 | K4: 4590
A5: 400 | B5: 8.534 | C5: 0.342 | E5: Vol. 61, No. 16, pp. 3477-3501 | J5: 6949 | K5: 4580
A6: 450 | B6: 6.949 | C6: 0.112 | E6: History Of The Acapulco Meteorite | J6: 4083 | K6: 4521
A7: 500 | B7: 4.083 | C7: 0.044 | E7: 1997 | J7: 3892 | K7: 4522
A8: 550 | B8: 3.892 | C8: 0.018 | J8: 4112 | K8: 4531
A9: 590 | B9: 4.112 | C9: 0.015 | J9: 4376 | K9: 4521
A10: 630 | B10: 4.376 | C10: 0.014 | E10: Maximum Age | F10: 11421 | G10: Million Years | J10: 4564 | K10: 4514
A11: 660 | B11: 4.564 | C11: 0.014 | E11: Minimum Age | F11: 3481 | G11: Million Years | J11: 4480 | K11: 4519
A12: 690 | B12: 4.48 | C12: 0.015 | E12: Average Age | F12: 4964 | G12: Million Years | J12: 4460 | K12: 4515
A13: 720 | B13: 4.46 | C13: 0.012 | E13: Age Difference | F13: =(F10-F11) -> 7940 | G13: Million Years | J13: 4506 | K13: 4501
A14: 750 | B14: 4.506 | C14: 0.017 | E14: Difference | F14: =(F10/F11) -> 3.280953749 | G14: Percent | J14: 4513 | K14: 4502
A15: 770 | B15: 4.513 | C15: 0.013 | E15: Standard Deviation | F15: 1723 | G15: Million Years | J15: 4513 | K15: 4508
A16: 790 | B16: 4.513 | C16: 0.011 | J16: 4521 | K16: 4459
A17: 810 | B17: 4.521 | C17: 0.011 | J17: 4518 | K17: 4402
A18: 830 | B18: 4.518 | C18: 0.011 | J18: 4502 | K18: 4324
A19: 850 | B19: 4.502 | C19: 0.015 | J19: 4516 | K19: 4306
A20: 870 | B20: 4.516 | C20: 0.015 | J20: 4506 | K20: 3481
A21: 890 | B21: 4.506 | C21: 0.014
A22: 905 | B22: 4.511 | C22: 0.015
A23: 920 | B23: 4.559 | C23: 0.015
A24: 935 | B24: 4.59 | C24: 0.016
A25: 950 | B25: 4.58 | C25: 0.017
A26: 965 | B26: 4.521 | C26: 0.014
A27: 980 | B27: 4.522 | C27: 0.014
A28: 1000 | B28: 4.531 | C28: 0.014
A29: 1015 | B29: 4.521 | C29: 0.014
A30: 1035 | B30: 4.514 | C30: 0.014
A31: 1060 | B31: 4.519 | C31: 0.008
A32: 1090 | B32: 4.515 | C32: 0.008
A33: 1140 | B33: 4.501 | C33: 0.008
A34: 1200 | B34: 4.502 | C34: 0.007
A35: 1260 | B35: 4.508 | C35: 0.007
A36: 1320 | B36: 4.459 | C36: 0.012
A37: 1400 | B37: 4.402 | C37: 0.056
A38: 1480 | B38: 4.324 | C38: 0.177
A39: 1540 | B39: 4.306 | C39: 0.131
A40: 1540 | B40: 3.481 | C40: 0.597

Sheet D2
A1: 5 | B1: Rocks Older Than The Earth | G1: Pb-206 | H1: Pb-207 | I1: Ratio | J1: Age | K1: Page 1587
A2: Author | B2: R. J. Walker | C2: 5 | E2: 5.6 | F2: Billion Years Old | G2: 18.08 | H2: 15.39 | I2: =(G2/H2) -> 1.174788824 | J2: =[2]!AgePb76(I2) ->  | K2: Billion Years Old
A3: Journal | B3: Geochimica et Cosmochimica Acta | E3: 12.6 | F3: Billion Years Old | G3: 17.31 | H3: 15.07 | I3: =(G3/H3) -> 1.148639681 | J3: =[2]!AgePb76(I3) ->  | K3: Billion Years Old
A4: Edition | B4: Volume 53, PAGE 1591 | G4: 21.02 | H4: 16.18 | I4: =(G4/H4) -> 1.299134734 | J4: =[2]!AgePb76(I4) ->  | K4: Billion Years Old
A5: Title | B5: African Peridotite Xenoliths | G5: 23.77 | H5: 16.29 | I5: =(G5/H5) -> 1.459177409 | J5: =[2]!AgePb76(I5) ->  | K5: Billion Years Old
A6: Year | B6: 1989 | G6: 17.51 | H6: 15.49 | I6: =(G6/H6) -> 1.130406714 | J6: =[2]!AgePb76(I6) ->  | K6: Billion Years Old
A7: Spreadsheet | B7: Older Than The Earth
A8: Mineral, Location | B8: South Africa
D13: Table 4: | E13: Jagersfontein | F13: Nd/Sm | G13: Os/Os | H13: Os/Os
E14: 1007 WR | F14: 660 | G14: Negative | H14: 2740
E15: 1007 cpx | F15: 1080 | G15: _ | H15: _
E16: 1008 WR | F16: 690 | G16: 2790 | H16: 2500
E17: 1008 Cpx | F17: 1420 | G17: _ | H17: _
E18: 1012 WR | F18: 700 | G18: Negative | H18: 550
E19: 1012 cpx | F19: 1130 | G19: _ | H19: _
E20: 1033 WR | F20: 1330 | G20: 2540 | H20: 1790
E21: 1033 cpx | F21: 1270 | G21: _ | H21: _
E22: N. Lesotho
E23: 4254 WR | F23: 590 | G23: Negative | H23: 1890
E24: 4254 Gt | F24: 1400 | G24: _ | H24: _
E25: 4258 WR | F25: 850 | G25: 110 | H25: 40
E26: 1566 WR | F26: _ | G26: 970 | H26: 170
E27: 1596 WR | F27: _ | G27: 5650 | H27: 2890
E28: 1924 WR | F28: _ | G28: 1480 | H28: 1100
E29: 1926 WR | F29: _ | G29: 3890 | H29: 1540
E30: Premier | H30: 0
E31: 5267 WR | F31: 1530 | G31: 2520 | H31: 1700
E32: 5267 Cpx | F32: 1400 | G32: _ | H32: _
E33: 5267 Gt | F33: 570 | G33: _ | H33: _
E34: 5268 WR | F34: 1630 | G34: 2540 | H34: 1980
E35: Kimberlites | H35: 0
E36: Letseng-la-Terse | F36: 520 | G36: 90 | H36: Negative
E37: Bellsbank | F37: 1070 | G37: 12600 | H37: 2460

Sheet D3
A2: 2 | B2: Rocks Older Than The Earth
A3: Author | B3: R. W. Carlson
A4: Journal | B4: Earth And Planetary Science Letters
A5: Edition | B5: Volume 126, PAGE 460
A6: Title | B6: North Western Wyoming Craton
A7: Year | B7: 1994
A8: Spreadsheet | B8: Older Than The Earth
A9: Mineral, Location | B9: Wyoming Craton
A13: Table 1 | D13: Age | F13: Model Age
A14: Pb-206 | B14: Pb-207 | C14: Ratio | D14: 207Pb/206Pb | E14: Page 460 | F14: Rb/Sr
A15: 17.283 | B15: 15.411 | C15: =(A15/B15) -> 1.121471676 | D15: =[1]!AgePb76(C15) ->  | E15: Million Years Old | F15: 1750
A16: 17.436 | B16: 15.448 | C16: =(A16/B16) -> 1.128689798 | D16: =[1]!AgePb76(C16) ->  | E16: Million Years Old | F16: 1910
A17: 17.828 | B17: 15.48 | C17: 1.151679587 | D17: =[1]!AgePb76(C17) ->  | E17: Million Years Old | F17: 1470
A18: 19.439 | B18: 15.644 | C18: 1.242585017 | D18: =[1]!AgePb76(C18) ->  | E18: Million Years Old | F18: 4040
A19: 19.102 | B19: 15.841 | C19: 1.205858216 | D19: =[1]!AgePb76(C19) ->  | E19: Million Years Old | F19: 3440
A20: 18.078 | B20: 15.441 | C20: 1.170779095 | D20: =[1]!AgePb76(C20) ->  | E20: Million Years Old | F20: 520
A21: 17.936 | B21: 15.359 | C21: 1.167784361 | D21: =[1]!AgePb76(C21) ->  | E21: Million Years Old | F21: 150
A22: 17.924 | B22: 15.49 | C22: 1.157133635 | D22: =[1]!AgePb76(C22) ->  | E22: Million Years Old | F22: 120
A23: 23.182 | B23: 16.017 | C23: 1.447337204 | D23: =[1]!AgePb76(C23) ->  | E23: Million Years Old | F23: 10800
A24: 17.642 | B24: 15.462 | C24: 1.140990816 | D24: =[1]!AgePb76(C24) ->  | E24: Million Years Old | F24: 3180
A25: 18.18 | B25: 15.535 | C25: 1.170260702 | D25: =[1]!AgePb76(C25) ->  | E25: Million Years Old | F25: 15500
A26: 18.566 | B26: 15.585 | C26: 1.191273661 | D26: =[1]!AgePb76(C26) ->  | E26: Million Years Old | F26: -3440
A27: 17.826 | B27: 15.464 | C27: 1.152741852 | D27: =[1]!AgePb76(C27) ->  | E27: Million Years Old | F27: 2140
A28: 19.844 | B28: 15.672 | C28: 1.266207249 | D28: =[1]!AgePb76(C28) ->  | E28: Million Years Old | F28: 4440
A29: 19.89 | B29: 15.676 | C29: 1.268818576 | D29: =[1]!AgePb76(C29) ->  | E29: Million Years Old
A30: 17.768 | B30: 15.502 | C30: 1.146174687 | D30: =[1]!AgePb76(C30) ->  | E30: Million Years Old | F30: 240
A31: 18.356 | B31: 15.58 | C31: 1.17817715 | D31: =[1]!AgePb76(C31) ->  | E31: Million Years Old | F31: 170
A32: 18.213 | B32: 15.466 | C32: 1.177615414 | D32: =[1]!AgePb76(C32) ->  | E32: Million Years Old | F32: 120
A35: Table 2
A36: 87Rb/86Sr | B36: 147Sm/144Nd | C36: 207Pb/206Pb
A37: 5170 | B37: 3460 | C37: 4770
A38: -630 | B38: 2550 | C38: 5195
A39: -930 | B39: 2490 | C39: 5145
A40: 2600 | B40: 2500 | C40: 5121
A41: 110 | B41: 2610 | C41: 5108
A42: -300 | B42: 2630 | C42: 5137
B43: 2510 | C43: 1776
B44: 2540 | C44: 1763

Sheet D4
A1: Meteorite | B1: Age | C1: R. W. Stoenner And J. Zahringer
A2: K-Ar Dating | B2: Billion Years | C2: Geochemica Et Cosmochemica Acta
A3: Mt. Ayliff | B3: 6.9 | C3: Volume 15, Pages 40 - 50
A4: Arispe | B4: 6.8 | C4: Potassium-argon age of iron meteorites
A5: H. H. Ninninger | B5: 6.9 | C5: 1958
A6: Carbo | B6: 8.4
A7: Canon Diablo I | B7: 8.5
A8: Canon Diablo I | B8: 6.9
A9: Canon Diablo I | B9: 6.6
A10: Canon Diablo I | B10: 5.3
A11: Canon Diablo II | B11: 13
A12: Canon Diablo II | B12: 11
A13: Canon Diablo II | B13: 10.5
A14: Canon Diablo II | B14: 12
A15: Toluca I | B15: 5.9
A16: Toluca I | B16: 7.1
A17: Toluca II | B17: 10
A18: Toluca II | B18: 10.8
A19: Toluca II | B19: 8.8 | C19: Meteorite Dating
A26: Meteorite | B26: Age
A27: K-Ar Dating | B27: Million Years
A28: Mt. Ayliff | B28: 6900
A29: Arispe | B29: 6800
A30: H. H. Ninninger | B30: 6900
A31: Carbo | B31: 8400
A32: Canon Diablo I | B32: 8500
A33: Canon Diablo I | B33: 6900
A34: Canon Diablo I | B34: 6600
A35: Canon Diablo I | B35: 5300
A36: Canon Diablo II | B36: 13000
A37: Canon Diablo II | B37: 11000
A38: Canon Diablo II | B38: 10500
A39: Canon Diablo II | B39: 12000
A40: Toluca I | B40: 5900
A41: Toluca I | B41: 7100
A42: Toluca II | B42: 10000
A43: Toluca II | B43: 10800
A44: Toluca II | B44: 8800
B45: =MIN(B28:B44) -> 5300

Sheet D5
A1: Sample no. | B1: Rock type | C1: Unit | D1: Million Years | S1: 87Rb/86Sr | T1: 87Rb/86Sr | U1: 87Rb/86Sr | V1: 87Rb/86Sr | W1: 87Rb/86Sr | X1: 87Rb/86Sr
A2: 858_6 | D2: 87Rb/86Sr | F2: Maximum Age | G2: Million Years | H2: 1717 | L2: Sample | M2: Maximum Age | N2: Minimum Age | O2: Difference | P2: Difference | S2: 23312 | T2: 1573 | U2: 1246 | V2: 1109 | W2: 971 | X2: 670
A3: A | B3: Quartzite | C3: Wallace | D3: 838 | F3: Minimum Age | G3: Million Years | H3: 406 | L3: Sample | M3: Maximum Age | N3: Minimum Age | O3: Difference | P3: Percentage | S3: 7816 | T3: 1570 | U3: 1245 | V3: 1104 | W3: 968 | X3: 661
A4: B | B4: Bi-Mu Qtzt | C4: Wallace | D4: 406 | F4: Difference | G4: Million Years | H4: =(H2-H3) -> 1311 | L4: 858_6 | M4: 1717 | N4: 406 | O4: =(M4-N4) -> 1311 | P4: =(O4/N4) -> 3.229064039 | S4: 6953 | T4: 1563 | U4: 1241 | V4: 1092 | W4: 966 | X4: 655
A5: C | B5: Argillite | C5: Wallace | D5: 966 | F5: Difference | G5: Percentage | H5: =(H4/H3) -> 3.229064039 | L5: 858-7 | M5: 4475 | N5: 779 | O5: =(M5-N5) -> 3696 | P5: =(O5/N5) -> 4.744544288 | S5: 6105 | T5: 1490 | U5: 1231 | V5: 1091 | W5: 953 | X5: 641
A6: D | B6: Argillite | C6: Wallace | D6: 988 | L6: 858_8 | M6: 3516 | N6: 551 | O6: =(M6-N6) -> 2965 | P6: =(O6/N6) -> 5.381125227 | S6: 4475 | T6: 1480 | U6: 1230 | V6: 1090 | W6: 918 | X6: 624
A7: E | B7: Argillite | C7: Wallace | D7: 589 | L7: 858_9 | M7: 2696 | N7: 395 | O7: 2301 | P7: 5.825316456 | S7: 4291 | T7: 1467 | U7: 1222 | V7: 1088 | W7: 909 | X7: 620
A8: F | B8: Quartzite | C8: Revett | D8: 1023 | F8: Robert J. Fleck | L8: 858-10 | M8: 661 | N8: 111 | O8: 550 | P8: 4.954954955 | S8: 3516 | T8: 1465 | U8: 1220 | V8: 1085 | W8: 902 | X8: 593
A9: G | B9: Argillite | C9: Wallace | D9: 726 | F9: Economic Geology, 2002 | L9: 858-11 | M9: 1172 | N9: 641 | O9: 531 | P9: 0.8283931357 | S9: 3028 | T9: 1460 | U9: 1216 | V9: 1077 | W9: 896 | X9: 589
